Workbook

Sheet 試験問題（関数）
A1: ='関数（書き）'!$C$2 -> 37 | B1: ='関数（書き）'!$C$3 -> 101 | C1: ='関数（書き）'!$C$4 -> 109 | D1: ='関数（書き）'!$C$5 -> 41 | E1: ='関数（書き）'!$C$6 -> 122 | F1: ='関数（書き）'!$C$7 -> 35 | G1: ='関数（書き）'!$C$8 -> 105 | H1: ='関数（書き）'!$C$9 -> 108 | I1: ='関数（書き）'!$C$10 -> 110 | J1: ='関数（書き）'!$C$11 -> 81 | K1: ='関数（読み）'!$C$2 -> 90 | L1: ='関数（読み）'!$C$3 -> 98 | M1: ='関数（読み）'!$C$4 -> 75 | N1: ='関数（読み）'!$C$5 -> 117 | O1: ='関数（読み）'!$C$6 -> 36 | P1: ='関数（読み）'!$C$7 -> 114 | Q1: ='関数（読み）'!$C$8 -> 97 | R1: ='関数（読み）'!$C$9 -> 84 | S1: ='関数（読み）'!$C$10 -> 104 | T1: ='関数（読み）'!$C$11 -> 46
A2: ⑳ | B2: ⑲ | C2: ⑱ | D2: ⑰ | E2: ⑯ | F2: ⑮ | G2: ⑭ | H2: ⑬ | I2: ⑫ | J2: ⑪ | K2: ⑩ | L2: ⑨ | M2: ⑧ | N2: ⑦ | O2: ⑥ | P2: ⑤ | Q2: ④ | R2: ③ | S2: ② | T2: ① | U2: 次の［ ］の部分の漢字には読みがなをひらがなで書き、カタカナは漢字に直しなさい。 | V2: 14 | W2: 「漢字の博士検定試験」練習問題
A3: =IF(A1="","",VLOOKUP(A1,漢字書き!$A$2:$N$506,6,0)) -> ［キョウ］か書をよむ | B3: =IF(B1="","",VLOOKUP(B1,漢字書き!$A$2:$N$506,6,0)) -> ［コンシュウ］のニュース | C3: =IF(C1="","",VLOOKUP(C1,漢字書き!$A$2:$N$506,6,0)) -> ごはんを［タ］べる | D3: =IF(D1="","",VLOOKUP(D1,漢字書き!$A$2:$N$506,6,0)) -> 車が［チカ］づく | E3: =IF(E1="","",VLOOKUP(E1,漢字書き!$A$2:$N$506,6,0)) -> ［キッテ］をあつめる | F3: =IF(F1="","",VLOOKUP(F1,漢字書き!$A$2:$N$506,6,0)) -> ［サカナ］がおよぐ | G3: =IF(G1="","",VLOOKUP(G1,漢字書き!$A$2:$N$506,6,0)) -> ［ショウ］年とあそぶ | H3: =IF(H1="","",VLOOKUP(H1,漢字書き!$A$2:$N$506,6,0)) -> ［ショク］じはたのしい | I3: =IF(I1="","",VLOOKUP(I1,漢字書き!$A$2:$N$506,6,0)) -> ［ココロ］がはずむ | J3: =IF(J1="","",VLOOKUP(J1,漢字書き!$A$2:$N$506,6,0)) -> 文を［ツク］る | K3: =IF(K1="","",VLOOKUP(K1,漢字読み!$A$2:$O$506,6,0)) -> ［細］かい字 | L3: =IF(L1="","",VLOOKUP(L1,漢字読み!$A$2:$O$506,6,0)) -> ［矢］がささる | M3: =IF(M1="","",VLOOKUP(M1,漢字読み!$A$2:$O$506,6,0)) -> ［光］をあびる | N3: =IF(N1="","",VLOOKUP(N1,漢字読み!$A$2:$O$506,6,0)) -> ［春］がきた | O3: =IF(O1="","",VLOOKUP(O1,漢字読み!$A$2:$O$506,6,0)) -> ［汽］てきをならす | P3: =IF(P1="","",VLOOKUP(P1,漢字読み!$A$2:$O$506,6,0)) -> ［秋］の夕ぐれ | Q3: =IF(Q1="","",VLOOKUP(Q1,漢字読み!$A$2:$O$506,6,0)) -> わか山［市］の学校 | R3: =IF(R1="","",VLOOKUP(R1,漢字読み!$A$2:$O$506,6,0)) -> 海外の［国］にあこがれる | S3: =IF(S1="","",VLOOKUP(S1,漢字読み!$A$2:$O$506,6,0)) -> とう大［寺］の大ぶつ | T3: =IF(T1="","",VLOOKUP(T1,漢字読み!$A$2:$O$506,6,0)) -> ［京］とに行く | V3: 級
V4: 名前
A5: =IF(A1="","",IF(VLOOKUP(A1,漢字書き!$A$2:$N$502,7,0)=0,"",VLOOKUP(A1,漢字書き!$A$2:$N$502,7,0))) -> か書 | B5: =IF(B1="","",IF(VLOOKUP(B1,漢字書き!$A$2:$N$502,7,0)=0,"",VLOOKUP(B1,漢字書き!$A$2:$N$502,7,0))) ->  | C5: =IF(C1="","",IF(VLOOKUP(C1,漢字書き!$A$2:$N$502,7,0)=0,"",VLOOKUP(C1,漢字書き!$A$2:$N$502,7,0))) -> べる | D5: =IF(D1="","",IF(VLOOKUP(D1,漢字書き!$A$2:$N$502,7,0)=0,"",VLOOKUP(D1,漢字書き!$A$2:$N$502,7,0))) -> づく | E5: =IF(E1="","",IF(VLOOKUP(E1,漢字書き!$A$2:$N$502,7,0)=0,"",VLOOKUP(E1,漢字書き!$A$2:$N$502,7,0))) ->  | F5: =IF(F1="","",IF(VLOOKUP(F1,漢字書き!$A$2:$N$502,7,0)=0,"",VLOOKUP(F1,漢字書き!$A$2:$N$502,7,0))) ->  | G5: =IF(G1="","",IF(VLOOKUP(G1,漢字書き!$A$2:$N$502,7,0)=0,"",VLOOKUP(G1,漢字書き!$A$2:$N$502,7,0))) -> 年 | H5: =IF(H1="","",IF(VLOOKUP(H1,漢字書き!$A$2:$N$502,7,0)=0,"",VLOOKUP(H1,漢字書き!$A$2:$N$502,7,0))) -> じ | I5: =IF(I1="","",IF(VLOOKUP(I1,漢字書き!$A$2:$N$502,7,0)=0,"",VLOOKUP(I1,漢字書き!$A$2:$N$502,7,0))) ->  | J5: =IF(J1="","",IF(VLOOKUP(J1,漢字書き!$A$2:$N$502,7,0)=0,"",VLOOKUP(J1,漢字書き!$A$2:$N$502,7,0))) -> る | K5: =IF(K1="","",IF(VLOOKUP(K1,漢字読み!$A$2:$O$502,7,0)=0,"",VLOOKUP(K1,漢字読み!$A$2:$O$502,7,0))) -> かい | L5: =IF(L1="","",IF(VLOOKUP(L1,漢字読み!$A$2:$O$502,7,0)=0,"",VLOOKUP(L1,漢字読み!$A$2:$O$502,7,0))) ->  | M5: =IF(M1="","",IF(VLOOKUP(M1,漢字読み!$A$2:$O$502,7,0)=0,"",VLOOKUP(M1,漢字読み!$A$2:$O$502,7,0))) ->  | N5: =IF(N1="","",IF(VLOOKUP(N1,漢字読み!$A$2:$O$502,7,0)=0,"",VLOOKUP(N1,漢字読み!$A$2:$O$502,7,0))) ->  | O5: =IF(O1="","",IF(VLOOKUP(O1,漢字読み!$A$2:$O$502,7,0)=0,"",VLOOKUP(O1,漢字読み!$A$2:$O$502,7,0))) -> てき | P5: =IF(P1="","",IF(VLOOKUP(P1,漢字読み!$A$2:$O$502,7,0)=0,"",VLOOKUP(P1,漢字読み!$A$2:$O$502,7,0))) ->  | Q5: =IF(Q1="","",IF(VLOOKUP(Q1,漢字読み!$A$2:$O$502,7,0)=0,"",VLOOKUP(Q1,漢字読み!$A$2:$O$502,7,0))) ->  | R5: =IF(R1="","",IF(VLOOKUP(R1,漢字読み!$A$2:$O$502,7,0)=0,"",VLOOKUP(R1,漢字読み!$A$2:$O$502,7,0))) ->  | S5: =IF(S1="","",IF(VLOOKUP(S1,漢字読み!$A$2:$O$502,7,0)=0,"",VLOOKUP(S1,漢字読み!$A$2:$O$502,7,0))) ->  | T5: =IF(T1="","",IF(VLOOKUP(T1,漢字読み!$A$2:$O$502,7,0)=0,"",VLOOKUP(T1,漢字読み!$A$2:$O$502,7,0))) -> と | W5: 和歌山県教育委員会
A6: ='関数（書き）'!$C$12 -> 74 | B6: ='関数（書き）'!$C$13 -> 30 | C6: ='関数（書き）'!$C$14 -> 111 | D6: ='関数（書き）'!$C$15 -> 83 | E6: ='関数（書き）'!$C$16 -> 45 | F6: ='関数（書き）'!$C$17 -> 90 | G6: ='関数（書き）'!$C$18 -> 6 | H6: ='関数（書き）'!$C$19 -> 117 | I6: ='関数（書き）'!$C$20 -> 118 | J6: ='関数（書き）'!$C$21 -> 123 | K6: ='関数（読み）'!$C$12 -> 77 | L6: ='関数（読み）'!$C$13 -> 10 | M6: ='関数（読み）'!$C$14 -> 69 | N6: ='関数（読み）'!$C$15 -> 23 | O6: ='関数（読み）'!$C$16 -> 49 | P6: ='関数（読み）'!$C$17 -> 38 | Q6: ='関数（読み）'!$C$18 -> 110 | R6: ='関数（読み）'!$C$19 -> 40 | S6: ='関数（読み）'!$C$20 -> 95 | T6: ='関数（読み）'!$C$21 -> 96
A7: ⑳ | B7: ⑲ | C7: ⑱ | D7: ⑰ | E7: ⑯ | F7: ⑮ | G7: ⑭ | H7: ⑬ | I7: ⑫ | J7: ⑪ | K7: ⑩ | L7: ⑨ | M7: ⑧ | N7: ⑦ | O7: ⑥ | P7: ⑤ | Q7: ④ | R7: ③ | S7: ② | T7: ① | U7: 次の［ ］の部分の漢字には読みがなをひらがなで書き、カタカナは漢字に直しなさい。 | V7: 14 | W7: 「漢字の博士検定試験」練習問題
A8: =IF(A6="","",VLOOKUP(A6,漢字書き!$A$2:$N$506,6,0)) -> ［コク］ばんを見る | B8: =IF(B6="","",VLOOKUP(B6,漢字書き!$A$2:$N$506,6,0)) -> ［ニッキ］をかく | C8: =IF(C6="","",VLOOKUP(C6,漢字書き!$A$2:$N$506,6,0)) -> ［アタラ］しいえんぴつ | D8: =IF(D6="","",VLOOKUP(D6,漢字書き!$A$2:$N$506,6,0)) -> かけ［ザン］のべん強 | E8: =IF(E6="","",VLOOKUP(E6,漢字書き!$A$2:$N$506,6,0)) -> ［ケイサン］がとくい | F8: =IF(F6="","",VLOOKUP(F6,漢字書き!$A$2:$N$506,6,0)) -> ［アネ］がいます | G8: =IF(G6="","",VLOOKUP(G6,漢字書き!$A$2:$N$506,6,0)) -> あすは［エンソク］だ | H8: =IF(H6="","",VLOOKUP(H6,漢字書き!$A$2:$N$506,6,0)) -> ［ニシ］の空 | I8: =IF(I6="","",VLOOKUP(I6,漢字書き!$A$2:$N$506,6,0)) -> きれいな［コエ］ | J8: =IF(J6="","",VLOOKUP(J6,漢字書き!$A$2:$N$506,6,0)) -> はさみで［キ］る | K8: =IF(K6="","",VLOOKUP(K6,漢字読み!$A$2:$O$506,6,0)) -> ［三行］で書く | L8: =IF(L6="","",VLOOKUP(L6,漢字読み!$A$2:$O$506,6,0)) -> ［夏休］みがはじまる | M8: =IF(M6="","",VLOOKUP(M6,漢字読み!$A$2:$O$506,6,0)) -> ［図工］のじかん | N8: =IF(N6="","",VLOOKUP(N6,漢字読み!$A$2:$O$506,6,0)) -> ［絵画］を見る | O8: =IF(O6="","",VLOOKUP(O6,漢字読み!$A$2:$O$506,6,0)) -> ［教室］に入る | P8: =IF(P6="","",VLOOKUP(P6,漢字読み!$A$2:$O$506,6,0)) -> ［日記］をつける | Q8: =IF(Q6="","",VLOOKUP(Q6,漢字読み!$A$2:$O$506,6,0)) -> ［社会］のへんか | R8: =IF(R6="","",VLOOKUP(R6,漢字読み!$A$2:$O$506,6,0)) -> ［弓］の名人 | S8: =IF(S6="","",VLOOKUP(S6,漢字読み!$A$2:$O$506,6,0)) -> でんしゃが［止］まる | T8: =IF(T6="","",VLOOKUP(T6,漢字読み!$A$2:$O$506,6,0)) -> ［朝市］がひらかれる | V8: 級
V9: 名前
A10: =IF(A6="","",IF(VLOOKUP(A6,漢字書き!$A$2:$N$502,7,0)=0,"",(VLOOKUP(A6,漢字書き!$A$2:$N$502,7,0)))) -> ばん | B10: =IF(B6="","",IF(VLOOKUP(B6,漢字書き!$A$2:$N$502,7,0)=0,"",(VLOOKUP(B6,漢字書き!$A$2:$N$502,7,0)))) ->  | C10: =IF(X6="","",IF(VLOOKUP(X6,漢字書き!$A$2:$N$502,7,0)=0,"",VLOOKUP(X6,漢字書き!$A$2:$N$502,7,0))) ->  | D10: =IF(D6="","",IF(VLOOKUP(D6,漢字書き!$A$2:$N$502,7,0)=0,"",VLOOKUP(D6,漢字書き!$A$2:$N$502,7,0))) ->  | E10: =IF(E6="","",IF(VLOOKUP(E6,漢字書き!$A$2:$N$502,7,0)=0,"",(VLOOKUP(E6,漢字書き!$A$2:$N$502,7,0)))) ->  | F10: =IF(F6="","",IF(VLOOKUP(F6,漢字書き!$A$2:$N$502,7,0)=0,"",(VLOOKUP(F6,漢字書き!$A$2:$N$502,7,0)))) ->  | G10: =IF(G6="","",IF(VLOOKUP(G6,漢字書き!$A$2:$N$502,7,0)=0,"",VLOOKUP(G6,漢字書き!$A$2:$N$502,7,0))) ->  | H10: =IF(H6="","",IF(VLOOKUP(H6,漢字書き!$A$2:$N$502,7,0)=0,"",VLOOKUP(H6,漢字書き!$A$2:$N$502,7,0))) ->  | I10: =IF(I6="","",IF(VLOOKUP(I6,漢字書き!$A$2:$N$502,7,0)=0,"",VLOOKUP(I6,漢字書き!$A$2:$N$502,7,0))) ->  | J10: =IF(J6="","",IF(VLOOKUP(J6,漢字書き!$A$2:$N$502,7,0)=0,"",VLOOKUP(J6,漢字書き!$A$2:$N$502,7,0))) -> る | K10: =IF(K6="","",IF(VLOOKUP(K6,漢字読み!$A$2:$O$502,7,0)=0,"",VLOOKUP(K6,漢字読み!$A$2:$O$502,7,0))) ->  | L10: =IF(L6="","",IF(VLOOKUP(L6,漢字読み!$A$2:$O$502,7,0)=0,"",VLOOKUP(L6,漢字読み!$A$2:$O$502,7,0))) -> み | M10: =IF(M6="","",IF(VLOOKUP(M6,漢字読み!$A$2:$O$502,7,0)=0,"",VLOOKUP(M6,漢字読み!$A$2:$O$502,7,0))) ->  | N10: =IF(N6="","",IF(VLOOKUP(N6,漢字読み!$A$2:$O$502,7,0)=0,"",VLOOKUP(N6,漢字読み!$A$2:$O$502,7,0))) ->  | O10: =IF(O6="","",IF(VLOOKUP(O6,漢字読み!$A$2:$O$502,7,0)=0,"",VLOOKUP(O6,漢字読み!$A$2:$O$502,7,0))) ->  | P10: =IF(P6="","",IF(VLOOKUP(P6,漢字読み!$A$2:$O$502,7,0)=0,"",VLOOKUP(P6,漢字読み!$A$2:$O$502,7,0))) ->  | Q10: =IF(Q6="","",IF(VLOOKUP(Q6,漢字読み!$A$2:$O$502,7,0)=0,"",VLOOKUP(Q6,漢字読み!$A$2:$O$502,7,0))) ->  | R10: =IF(R6="","",IF(VLOOKUP(R6,漢字読み!$A$2:$O$502,7,0)=0,"",VLOOKUP(R6,漢字読み!$A$2:$O$502,7,0))) ->  | S10: =IF(S6="","",IF(VLOOKUP(S6,漢字読み!$A$2:$O$502,7,0)=0,"",VLOOKUP(S6,漢字読み!$A$2:$O$502,7,0))) -> まる | T10: =IF(T6="","",IF(VLOOKUP(T6,漢字読み!$A$2:$O$502,7,0)=0,"",VLOOKUP(T6,漢字読み!$A$2:$O$502,7,0))) ->  | W10: 和歌山県教育委員会
A11: ='関数（書き）'!$C$2 -> 37 | B11: ='関数（書き）'!$C$3 -> 101 | C11: ='関数（書き）'!$C$4 -> 109 | D11: ='関数（書き）'!$C$5 -> 41 | E11: ='関数（書き）'!$C$6 -> 122 | F11: ='関数（書き）'!$C$7 -> 35 | G11: ='関数（書き）'!$C$8 -> 105 | H11: ='関数（書き）'!$C$9 -> 108 | I11: ='関数（書き）'!$C$10 -> 110 | J11: ='関数（書き）'!$C$11 -> 81 | K11: ='関数（読み）'!$C$2 -> 90 | L11: ='関数（読み）'!$C$3 -> 98 | M11: ='関数（読み）'!$C$4 -> 75 | N11: ='関数（読み）'!$C$5 -> 117 | O11: ='関数（読み）'!$C$6 -> 36 | P11: ='関数（読み）'!$C$7 -> 114 | Q11: ='関数（読み）'!$C$8 -> 97 | R11: ='関数（読み）'!$C$9 -> 84 | S11: ='関数（読み）'!$C$10 -> 104 | T11: ='関数（読み）'!$C$11 -> 46
A12: ⑳ | B12: ⑲ | C12: ⑱ | D12: ⑰ | E12: ⑯ | F12: ⑮ | G12: ⑭ | H12: ⑬ | I12: ⑫ | J12: ⑪ | K12: ⑩ | L12: ⑨ | M12: ⑧ | N12: ⑦ | O12: ⑥ | P12: ⑤ | Q12: ④ | R12: ③ | S12: ② | T12: ① | U12: 次の［ ］の部分の漢字には読みがなをひらがなで書き、カタカナは漢字に直しなさい。 | V12: 14 | W12: 「漢字の博士検定試験」練習問題
A13: =IF(A11="","",VLOOKUP(A11,漢字書き!$A$2:$N$506,6,0)) -> ［キョウ］か書をよむ | B13: =IF(B11="","",VLOOKUP(B11,漢字書き!$A$2:$N$506,6,0)) -> ［コンシュウ］のニュース | C13: =IF(C11="","",VLOOKUP(C11,漢字書き!$A$2:$N$506,6,0)) -> ごはんを［タ］べる | D13: =IF(D11="","",VLOOKUP(D11,漢字書き!$A$2:$N$506,6,0)) -> 車が［チカ］づく | E13: =IF(E11="","",VLOOKUP(E11,漢字書き!$A$2:$N$506,6,0)) -> ［キッテ］をあつめる | F13: =IF(F11="","",VLOOKUP(F11,漢字書き!$A$2:$N$506,6,0)) -> ［サカナ］がおよぐ | G13: =IF(G11="","",VLOOKUP(G11,漢字書き!$A$2:$N$506,6,0)) -> ［ショウ］年とあそぶ | H13: =IF(H11="","",VLOOKUP(H11,漢字書き!$A$2:$N$506,6,0)) -> ［ショク］じはたのしい | I13: =IF(I11="","",VLOOKUP(I11,漢字書き!$A$2:$N$506,6,0)) -> ［ココロ］がはずむ | J13: =IF(J11="","",VLOOKUP(J11,漢字書き!$A$2:$N$506,6,0)) -> 文を［ツク］る | K13: =IF(K11="","",VLOOKUP(K11,漢字読み!$A$2:$O$506,6,0)) -> ［細］かい字 | L13: =IF(L11="","",VLOOKUP(L11,漢字読み!$A$2:$O$506,6,0)) -> ［矢］がささる | M13: =IF(M11="","",VLOOKUP(M11,漢字読み!$A$2:$O$506,6,0)) -> ［光］をあびる | N13: =IF(N11="","",VLOOKUP(N11,漢字読み!$A$2:$O$506,6,0)) -> ［春］がきた | O13: =IF(O11="","",VLOOKUP(O11,漢字読み!$A$2:$O$506,6,0)) -> ［汽］てきをならす | P13: =IF(P11="","",VLOOKUP(P11,漢字読み!$A$2:$O$506,6,0)) -> ［秋］の夕ぐれ | Q13: =IF(Q11="","",VLOOKUP(Q11,漢字読み!$A$2:$O$506,6,0)) -> わか山［市］の学校 | R13: =IF(R11="","",VLOOKUP(R11,漢字読み!$A$2:$O$506,6,0)) -> 海外の［国］にあこがれる | S13: =IF(S11="","",VLOOKUP(S11,漢字読み!$A$2:$O$506,6,0)) -> とう大［寺］の大ぶつ | T13: =IF(T11="","",VLOOKUP(T11,漢字読み!$A$2:$O$506,6,0)) -> ［京］とに行く | V13: 級
A14: =IF(A11="","",VLOOKUP(A11,漢字書き!$A$2:$N$506,8,0)) -> 教 | B14: =IF(B11="","",VLOOKUP(B11,漢字書き!$A$2:$N$506,8,0)) -> 今週 | C14: =IF(C11="","",VLOOKUP(C11,漢字書き!$A$2:$N$506,8,0)) -> 食 | D14: =IF(D11="","",VLOOKUP(D11,漢字書き!$A$2:$N$506,8,0)) -> 近 | E14: =IF(E11="","",VLOOKUP(E11,漢字書き!$A$2:$N$506,8,0)) -> 切手 | F14: =IF(F11="","",VLOOKUP(F11,漢字書き!$A$2:$N$506,8,0)) -> 魚 | G14: =IF(G11="","",VLOOKUP(G11,漢字書き!$A$2:$N$506,8,0)) -> 少 | H14: =IF(H11="","",VLOOKUP(H11,漢字書き!$A$2:$N$506,8,0)) -> 食 | I14: =IF(I11="","",VLOOKUP(I11,漢字書き!$A$2:$N$506,8,0)) -> 心 | J14: =IF(J11="","",VLOOKUP(J11,漢字書き!$A$2:$N$506,8,0)) -> 作 | K14: =IF(K11="","",VLOOKUP(K11,漢字読み!$A$2:$O$506,8,0)) -> こま | L14: =IF(L11="","",VLOOKUP(L11,漢字読み!$A$2:$O$506,8,0)) -> や | M14: =IF(M11="","",VLOOKUP(M11,漢字読み!$A$2:$O$506,8,0)) -> ひかり | N14: =IF(N11="","",VLOOKUP(N11,漢字読み!$A$2:$O$506,8,0)) -> はる | O14: =IF(O11="","",VLOOKUP(O11,漢字読み!$A$2:$O$506,8,0)) -> き | P14: =IF(P11="","",VLOOKUP(P11,漢字読み!$A$2:$O$506,8,0)) -> あき | Q14: =IF(Q11="","",VLOOKUP(Q11,漢字読み!$A$2:$O$506,8,0)) -> し | R14: =IF(R11="","",VLOOKUP(R11,漢字読み!$A$2:$O$506,8,0)) -> くに | S14: =IF(S11="","",VLOOKUP(S11,漢字読み!$A$2:$O$506,8,0)) -> じ | T14: =IF(T11="","",VLOOKUP(T11,漢字読み!$A$2:$O$506,8,0)) -> きょう | V14: 名前
A15: =IF(A11="","",IF(VLOOKUP(A11,漢字書き!$A$2:$N$502,7,0)=0,"",VLOOKUP(A11,漢字書き!$A$2:$N$502,7,0))) -> か書 | B15: =IF(B11="","",IF(VLOOKUP(B11,漢字書き!$A$2:$N$502,7,0)=0,"",VLOOKUP(B11,漢字書き!$A$2:$N$502,7,0))) ->  | C15: =IF(C11="","",IF(VLOOKUP(C11,漢字書き!$A$2:$N$502,7,0)=0,"",VLOOKUP(C11,漢字書き!$A$2:$N$502,7,0))) -> べる | D15: =IF(D11="","",IF(VLOOKUP(D11,漢字書き!$A$2:$N$502,7,0)=0,"",VLOOKUP(D11,漢字書き!$A$2:$N$502,7,0))) -> づく | E15: =IF(E11="","",IF(VLOOKUP(E11,漢字書き!$A$2:$N$502,7,0)=0,"",VLOOKUP(E11,漢字書き!$A$2:$N$502,7,0))) ->  | F15: =IF(F11="","",IF(VLOOKUP(F11,漢字書き!$A$2:$N$502,7,0)=0,"",VLOOKUP(F11,漢字書き!$A$2:$N$502,7,0))) ->  | G15: =IF(G11="","",IF(VLOOKUP(G11,漢字書き!$A$2:$N$502,7,0)=0,"",VLOOKUP(G11,漢字書き!$A$2:$N$502,7,0))) -> 年 | H15: =IF(H11="","",IF(VLOOKUP(H11,漢字書き!$A$2:$N$502,7,0)=0,"",VLOOKUP(H11,漢字書き!$A$2:$N$502,7,0))) -> じ | I15: =IF(I11="","",IF(VLOOKUP(I11,漢字書き!$A$2:$N$502,7,0)=0,"",VLOOKUP(I11,漢字書き!$A$2:$N$502,7,0))) ->  | J15: =IF(J11="","",IF(VLOOKUP(J11,漢字書き!$A$2:$N$502,7,0)=0,"",VLOOKUP(J11,漢字書き!$A$2:$N$502,7,0))) -> る | K15: =IF(K11="","",IF(VLOOKUP(K11,漢字読み!$A$2:$O$502,7,0)=0,"",VLOOKUP(K11,漢字読み!$A$2:$O$502,7,0))) -> かい | L15: =IF(L11="","",IF(VLOOKUP(L11,漢字読み!$A$2:$O$502,7,0)=0,"",VLOOKUP(L11,漢字読み!$A$2:$O$502,7,0))) ->  | M15: =IF(M11="","",IF(VLOOKUP(M11,漢字読み!$A$2:$O$502,7,0)=0,"",VLOOKUP(M11,漢字読み!$A$2:$O$502,7,0))) ->  | N15: =IF(N11="","",IF(VLOOKUP(N11,漢字読み!$A$2:$O$502,7,0)=0,"",VLOOKUP(N11,漢字読み!$A$2:$O$502,7,0))) ->  | O15: =IF(O11="","",IF(VLOOKUP(O11,漢字読み!$A$2:$O$502,7,0)=0,"",VLOOKUP(O11,漢字読み!$A$2:$O$502,7,0))) -> てき | P15: =IF(P11="","",IF(VLOOKUP(P11,漢字読み!$A$2:$O$502,7,0)=0,"",VLOOKUP(P11,漢字読み!$A$2:$O$502,7,0))) ->  | Q15: =IF(Q11="","",IF(VLOOKUP(Q11,漢字読み!$A$2:$O$502,7,0)=0,"",VLOOKUP(Q11,漢字読み!$A$2:$O$502,7,0))) ->  | R15: =IF(R11="","",IF(VLOOKUP(R11,漢字読み!$A$2:$O$502,7,0)=0,"",VLOOKUP(R11,漢字読み!$A$2:$O$502,7,0))) ->  | S15: =IF(S11="","",IF(VLOOKUP(S11,漢字読み!$A$2:$O$502,7,0)=0,"",VLOOKUP(S11,漢字読み!$A$2:$O$502,7,0))) ->  | T15: =IF(T11="","",IF(VLOOKUP(T11,漢字読み!$A$2:$O$502,7,0)=0,"",VLOOKUP(T11,漢字読み!$A$2:$O$502,7,0))) -> と | W15: 和歌山県教育委員会
A16: ='関数（書き）'!$C$12 -> 74 | B16: ='関数（書き）'!$C$13 -> 30 | C16: ='関数（書き）'!$C$14 -> 111 | D16: ='関数（書き）'!$C$15 -> 83 | E16: ='関数（書き）'!$C$16 -> 45 | F16: ='関数（書き）'!$C$17 -> 90 | G16: ='関数（書き）'!$C$18 -> 6 | H16: ='関数（書き）'!$C$19 -> 117 | I16: ='関数（書き）'!$C$20 -> 118 | J16: ='関数（書き）'!$C$21 -> 123 | K16: ='関数（読み）'!$C$12 -> 77 | L16: ='関数（読み）'!$C$13 -> 10 | M16: ='関数（読み）'!$C$14 -> 69 | N16: ='関数（読み）'!$C$15 -> 23 | O16: ='関数（読み）'!$C$16 -> 49 | P16: ='関数（読み）'!$C$17 -> 38 | Q16: ='関数（読み）'!$C$18 -> 110 | R16: ='関数（読み）'!$C$19 -> 40 | S16: ='関数（読み）'!$C$20 -> 95 | T16: ='関数（読み）'!$C$21 -> 96
A17: ⑳ | B17: ⑲ | C17: ⑱ | D17: ⑰ | E17: ⑯ | F17: ⑮ | G17: ⑭ | H17: ⑬ | I17: ⑫ | J17: ⑪ | K17: ⑩ | L17: ⑨ | M17: ⑧ | N17: ⑦ | O17: ⑥ | P17: ⑤ | Q17: ④ | R17: ③ | S17: ② | T17: ① | U17: 次の［ ］の部分の漢字には読みがなをひらがなで書き、カタカナは漢字に直しなさい。 | V17: 14 | W17: 「漢字の博士検定試験」練習問題
A18: =IF(A16="","",VLOOKUP(A16,漢字書き!$A$2:$N$506,6,0)) -> ［コク］ばんを見る | B18: =IF(B16="","",VLOOKUP(B16,漢字書き!$A$2:$N$506,6,0)) -> ［ニッキ］をかく | C18: =IF(C16="","",VLOOKUP(C16,漢字書き!$A$2:$N$506,6,0)) -> ［アタラ］しいえんぴつ | D18: =IF(D16="","",VLOOKUP(D16,漢字書き!$A$2:$N$506,6,0)) -> かけ［ザン］のべん強 | E18: =IF(E16="","",VLOOKUP(E16,漢字書き!$A$2:$N$506,6,0)) -> ［ケイサン］がとくい | F18: =IF(F16="","",VLOOKUP(F16,漢字書き!$A$2:$N$506,6,0)) -> ［アネ］がいます | G18: =IF(G16="","",VLOOKUP(G16,漢字書き!$A$2:$N$506,6,0)) -> あすは［エンソク］だ | H18: =IF(H16="","",VLOOKUP(H16,漢字書き!$A$2:$N$506,6,0)) -> ［ニシ］の空 | I18: =IF(I16="","",VLOOKUP(I16,漢字書き!$A$2:$N$506,6,0)) -> きれいな［コエ］ | J18: =IF(J16="","",VLOOKUP(J16,漢字書き!$A$2:$N$506,6,0)) -> はさみで［キ］る | K18: =IF(K16="","",VLOOKUP(K16,漢字読み!$A$2:$O$506,6,0)) -> ［三行］で書く | L18: =IF(L16="","",VLOOKUP(L16,漢字読み!$A$2:$O$506,6,0)) -> ［夏休］みがはじまる | M18: =IF(M16="","",VLOOKUP(M16,漢字読み!$A$2:$O$506,6,0)) -> ［図工］のじかん | N18: =IF(N16="","",VLOOKUP(N16,漢字読み!$A$2:$O$506,6,0)) -> ［絵画］を見る | O18: =IF(O16="","",VLOOKUP(O16,漢字読み!$A$2:$O$506,6,0)) -> ［教室］に入る | P18: =IF(P16="","",VLOOKUP(P16,漢字読み!$A$2:$O$506,6,0)) -> ［日記］をつける | Q18: =IF(Q16="","",VLOOKUP(Q16,漢字読み!$A$2:$O$506,6,0)) -> ［社会］のへんか | R18: =IF(R16="","",VLOOKUP(R16,漢字読み!$A$2:$O$506,6,0)) -> ［弓］の名人 | S18: =IF(S16="","",VLOOKUP(S16,漢字読み!$A$2:$O$506,6,0)) -> でんしゃが［止］まる | T18: =IF(T16="","",VLOOKUP(T16,漢字読み!$A$2:$O$506,6,0)) -> ［朝市］がひらかれる | V18: 級
A19: =IF(A11="","",VLOOKUP(A16,漢字書き!$A$2:$N$506,8,0)) -> 黒 | B19: =IF(B11="","",VLOOKUP(B16,漢字書き!$A$2:$N$506,8,0)) -> 日記 | C19: =IF(C11="","",VLOOKUP(C16,漢字書き!$A$2:$N$506,8,0)) -> 新 | D19: =IF(D11="","",VLOOKUP(D16,漢字書き!$A$2:$N$506,8,0)) -> 算 | E19: =IF(E11="","",VLOOKUP(E16,漢字書き!$A$2:$N$506,8,0)) -> 計算 | F19: =IF(F11="","",VLOOKUP(F16,漢字書き!$A$2:$N$506,8,0)) -> 姉 | G19: =IF(G11="","",VLOOKUP(G16,漢字書き!$A$2:$N$506,8,0)) -> 遠足 | H19: =IF(H11="","",VLOOKUP(H16,漢字書き!$A$2:$N$506,8,0)) -> 西 | I19: =IF(I11="","",VLOOKUP(I16,漢字書き!$A$2:$N$506,8,0)) -> 声 | J19: =IF(J11="","",VLOOKUP(J16,漢字書き!$A$2:$N$506,8,0)) -> 切 | K19: =IF(K11="","",VLOOKUP(K16,漢字読み!$A$2:$O$506,8,0)) -> さんぎょう | L19: =IF(L11="","",VLOOKUP(L16,漢字読み!$A$2:$O$506,8,0)) -> なつやす | M19: =IF(M11="","",VLOOKUP(M16,漢字読み!$A$2:$O$506,8,0)) -> ずこう | N19: =IF(N11="","",VLOOKUP(N16,漢字読み!$A$2:$O$506,8,0)) -> かいが | O19: =IF(O11="","",VLOOKUP(O16,漢字読み!$A$2:$O$506,8,0)) -> きょうしつ | P19: =IF(P11="","",VLOOKUP(P16,漢字読み!$A$2:$O$506,8,0)) -> にっき | Q19: =IF(Q11="","",VLOOKUP(Q16,漢字読み!$A$2:$O$506,8,0)) -> しゃかい | R19: =IF(R11="","",VLOOKUP(R16,漢字読み!$A$2:$O$506,8,0)) -> ゆみ | S19: =IF(S11="","",VLOOKUP(S16,漢字読み!$A$2:$O$506,8,0)) -> と | T19: =IF(T11="","",VLOOKUP(T16,漢字読み!$A$2:$O$506,8,0)) -> あさいち | V19: 名前
A20: =IF(A16="","",IF(VLOOKUP(A16,漢字書き!$A$2:$N$502,7,0)=0,"",(VLOOKUP(A16,漢字書き!$A$2:$N$502,7,0)))) -> ばん | B20: =IF(B16="","",IF(VLOOKUP(B16,漢字書き!$A$2:$N$502,7,0)=0,"",(VLOOKUP(B16,漢字書き!$A$2:$N$502,7,0)))) ->  | C20: =IF(X16="","",IF(VLOOKUP(X16,漢字書き!$A$2:$N$502,7,0)=0,"",VLOOKUP(X16,漢字書き!$A$2:$N$502,7,0))) ->  | D20: =IF(D16="","",IF(VLOOKUP(D16,漢字書き!$A$2:$N$502,7,0)=0,"",VLOOKUP(D16,漢字書き!$A$2:$N$502,7,0))) ->  | E20: =IF(E16="","",IF(VLOOKUP(E16,漢字書き!$A$2:$N$502,7,0)=0,"",(VLOOKUP(E16,漢字書き!$A$2:$N$502,7,0)))) ->  | F20: =IF(F16="","",IF(VLOOKUP(F16,漢字書き!$A$2:$N$502,7,0)=0,"",(VLOOKUP(F16,漢字書き!$A$2:$N$502,7,0)))) ->  | G20: =IF(G16="","",IF(VLOOKUP(G16,漢字書き!$A$2:$N$502,7,0)=0,"",VLOOKUP(G16,漢字書き!$A$2:$N$502,7,0))) ->  | H20: =IF(H16="","",IF(VLOOKUP(H16,漢字書き!$A$2:$N$502,7,0)=0,"",VLOOKUP(H16,漢字書き!$A$2:$N$502,7,0))) ->  | I20: =IF(I16="","",IF(VLOOKUP(I16,漢字書き!$A$2:$N$502,7,0)=0,"",VLOOKUP(I16,漢字書き!$A$2:$N$502,7,0))) ->  | J20: =IF(J16="","",IF(VLOOKUP(J16,漢字書き!$A$2:$N$502,7,0)=0,"",VLOOKUP(J16,漢字書き!$A$2:$N$502,7,0))) -> る | K20: =IF(K16="","",IF(VLOOKUP(K16,漢字読み!$A$2:$O$502,7,0)=0,"",VLOOKUP(K16,漢字読み!$A$2:$O$502,7,0))) ->  | L20: =IF(L16="","",IF(VLOOKUP(L16,漢字読み!$A$2:$O$502,7,0)=0,"",VLOOKUP(L16,漢字読み!$A$2:$O$502,7,0))) -> み | M20: =IF(M16="","",IF(VLOOKUP(M16,漢字読み!$A$2:$O$502,7,0)=0,"",VLOOKUP(M16,漢字読み!$A$2:$O$502,7,0))) ->  | N20: =IF(N16="","",IF(VLOOKUP(N16,漢字読み!$A$2:$O$502,7,0)=0,"",VLOOKUP(N16,漢字読み!$A$2:$O$502,7,0))) ->  | O20: =IF(O16="","",IF(VLOOKUP(O16,漢字読み!$A$2:$O$502,7,0)=0,"",VLOOKUP(O16,漢字読み!$A$2:$O$502,7,0))) ->  | P20: =IF(P16="","",IF(VLOOKUP(P16,漢字読み!$A$2:$O$502,7,0)=0,"",VLOOKUP(P16,漢字読み!$A$2:$O$502,7,0))) ->  | Q20: =IF(Q16="","",IF(VLOOKUP(Q16,漢字読み!$A$2:$O$502,7,0)=0,"",VLOOKUP(Q16,漢字読み!$A$2:$O$502,7,0))) ->  | R20: =IF(R16="","",IF(VLOOKUP(R16,漢字読み!$A$2:$O$502,7,0)=0,"",VLOOKUP(R16,漢字読み!$A$2:$O$502,7,0))) ->  | S20: =IF(S16="","",IF(VLOOKUP(S16,漢字読み!$A$2:$O$502,7,0)=0,"",VLOOKUP(S16,漢字読み!$A$2:$O$502,7,0))) -> まる | T20: =IF(T16="","",IF(VLOOKUP(T16,漢字読み!$A$2:$O$502,7,0)=0,"",VLOOKUP(T16,漢字読み!$A$2:$O$502,7,0))) ->  | W20: 和歌山県教育委員会

Sheet 網羅問題（関数）
A1: =INDIRECT("'関数（書き）'!C" & COLUMN(B$1)+SUM($AD$2:$AD2)) -> 37 | B1: =INDIRECT("'関数（書き）'!C" & COLUMN(C$1)+SUM($AD$2:$AD2)) -> 101 | C1: =INDIRECT("'関数（書き）'!C" & COLUMN(D$1)+SUM($AD$2:$AD2)) -> 109 | D1: =INDIRECT("'関数（書き）'!C" & COLUMN(E$1)+SUM($AD$2:$AD2)) -> 41 | E1: =INDIRECT("'関数（書き）'!C" & COLUMN(F$1)+SUM($AD$2:$AD2)) -> 122 | F1: =INDIRECT("'関数（書き）'!C" & COLUMN(G$1)+SUM($AD$2:$AD2)) -> 35 | G1: =INDIRECT("'関数（書き）'!C" & COLUMN(H$1)+SUM($AD$2:$AD2)) -> 105 | H1: =INDIRECT("'関数（書き）'!C" & COLUMN(I$1)+SUM($AD$2:$AD2)) -> 108 | I1: =INDIRECT("'関数（書き）'!C" & COLUMN(J$1)+SUM($AD$2:$AD2)) -> 110 | J1: =INDIRECT("'関数（書き）'!C" & COLUMN(K$1)+SUM($AD$2:$AD2)) -> 81 | K1: =INDIRECT("'関数（読み）'!C" & COLUMN(B$1)+SUM($AD$2:$AD2)) -> 90 | L1: =INDIRECT("'関数（読み）'!C" & COLUMN(C$1)+SUM($AD$2:$AD2)) -> 98 | M1: =INDIRECT("'関数（読み）'!C" & COLUMN(D$1)+SUM($AD$2:$AD2)) -> 75 | N1: =INDIRECT("'関数（読み）'!C" & COLUMN(E$1)+SUM($AD$2:$AD2)) -> 117 | O1: =INDIRECT("'関数（読み）'!C" & COLUMN(F$1)+SUM($AD$2:$AD2)) -> 36 | P1: =INDIRECT("'関数（読み）'!C" & COLUMN(G$1)+SUM($AD$2:$AD2)) -> 114 | Q1: =INDIRECT("'関数（読み）'!C" & COLUMN(H$1)+SUM($AD$2:$AD2)) -> 97 | R1: =INDIRECT("'関数（読み）'!C" & COLUMN(I$1)+SUM($AD$2:$AD2)) -> 84 | S1: =INDIRECT("'関数（読み）'!C" & COLUMN(J$1)+SUM($AD$2:$AD2)) -> 104 | T1: =INDIRECT("'関数（読み）'!C" & COLUMN(K$1)+SUM($AD$2:$AD2)) -> 46
A2: ⑳ | B2: ⑲ | C2: ⑱ | D2: ⑰ | E2: ⑯ | F2: ⑮ | G2: ⑭ | H2: ⑬ | I2: ⑫ | J2: ⑪ | K2: ⑩ | L2: ⑨ | M2: ⑧ | N2: ⑦ | O2: ⑥ | P2: ⑤ | Q2: ④ | R2: ③ | S2: ② | T2: ① | U2: 次の［ ］の部分の漢字には読みがなをひらがなで書き、カタカナは漢字に直しなさい。 | V2: 14 | W2: 「漢字の博士検定試験」練習問題 | AD2: 0 | AE2: 問 | AF2: 1 | AG2: ～ | AH2: =SUM($AD$2:$AD2)+10 -> 10 | AI2: 問まで | AJ2: =COUNTIF($A$1:$T$200,T3) -> 2
A3: =IF(A1="","",VLOOKUP(A1,漢字書き!$A$2:$N$506,6,0)) -> ［キョウ］か書をよむ | B3: =IF(B1="","",VLOOKUP(B1,漢字書き!$A$2:$N$506,6,0)) -> ［コンシュウ］のニュース | C3: =IF(C1="","",VLOOKUP(C1,漢字書き!$A$2:$N$506,6,0)) -> ごはんを［タ］べる | D3: =IF(D1="","",VLOOKUP(D1,漢字書き!$A$2:$N$506,6,0)) -> 車が［チカ］づく | E3: =IF(E1="","",VLOOKUP(E1,漢字書き!$A$2:$N$506,6,0)) -> ［キッテ］をあつめる | F3: =IF(F1="","",VLOOKUP(F1,漢字書き!$A$2:$N$506,6,0)) -> ［サカナ］がおよぐ | G3: =IF(G1="","",VLOOKUP(G1,漢字書き!$A$2:$N$506,6,0)) -> ［ショウ］年とあそぶ | H3: =IF(H1="","",VLOOKUP(H1,漢字書き!$A$2:$N$506,6,0)) -> ［ショク］じはたのしい | I3: =IF(I1="","",VLOOKUP(I1,漢字書き!$A$2:$N$506,6,0)) -> ［ココロ］がはずむ | J3: =IF(J1="","",VLOOKUP(J1,漢字書き!$A$2:$N$506,6,0)) -> 文を［ツク］る | K3: =IF(K1="","",VLOOKUP(K1,漢字読み!$A$2:$O$506,6,0)) -> ［細］かい字 | L3: =IF(L1="","",VLOOKUP(L1,漢字読み!$A$2:$O$506,6,0)) -> ［矢］がささる | M3: =IF(M1="","",VLOOKUP(M1,漢字読み!$A$2:$O$506,6,0)) -> ［光］をあびる | N3: =IF(N1="","",VLOOKUP(N1,漢字読み!$A$2:$O$506,6,0)) -> ［春］がきた | O3: =IF(O1="","",VLOOKUP(O1,漢字読み!$A$2:$O$506,6,0)) -> ［汽］てきをならす | P3: =IF(P1="","",VLOOKUP(P1,漢字読み!$A$2:$O$506,6,0)) -> ［秋］の夕ぐれ | Q3: =IF(Q1="","",VLOOKUP(Q1,漢字読み!$A$2:$O$506,6,0)) -> わか山［市］の学校 | R3: =IF(R1="","",VLOOKUP(R1,漢字読み!$A$2:$O$506,6,0)) -> 海外の［国］にあこがれる | S3: =IF(S1="","",VLOOKUP(S1,漢字読み!$A$2:$O$506,6,0)) -> とう大［寺］の大ぶつ | T3: =IF(T1="","",VLOOKUP(T1,漢字読み!$A$2:$O$506,6,0)) -> ［京］とに行く | V3: 級
V4: 名前
A5: =IF(A1="","",IF(VLOOKUP(A1,漢字書き!$A$2:$N$502,7,0)=0,"",VLOOKUP(A1,漢字書き!$A$2:$N$502,7,0))) -> か書 | B5: =IF(B1="","",IF(VLOOKUP(B1,漢字書き!$A$2:$N$502,7,0)=0,"",VLOOKUP(B1,漢字書き!$A$2:$N$502,7,0))) ->  | C5: =IF(C1="","",IF(VLOOKUP(C1,漢字書き!$A$2:$N$502,7,0)=0,"",VLOOKUP(C1,漢字書き!$A$2:$N$502,7,0))) -> べる | D5: =IF(D1="","",IF(VLOOKUP(D1,漢字書き!$A$2:$N$502,7,0)=0,"",VLOOKUP(D1,漢字書き!$A$2:$N$502,7,0))) -> づく | E5: =IF(E1="","",IF(VLOOKUP(E1,漢字書き!$A$2:$N$502,7,0)=0,"",VLOOKUP(E1,漢字書き!$A$2:$N$502,7,0))) ->  | F5: =IF(F1="","",IF(VLOOKUP(F1,漢字書き!$A$2:$N$502,7,0)=0,"",VLOOKUP(F1,漢字書き!$A$2:$N$502,7,0))) ->  | G5: =IF(G1="","",IF(VLOOKUP(G1,漢字書き!$A$2:$N$502,7,0)=0,"",VLOOKUP(G1,漢字書き!$A$2:$N$502,7,0))) -> 年 | H5: =IF(H1="","",IF(VLOOKUP(H1,漢字書き!$A$2:$N$502,7,0)=0,"",VLOOKUP(H1,漢字書き!$A$2:$N$502,7,0))) -> じ | I5: =IF(I1="","",IF(VLOOKUP(I1,漢字書き!$A$2:$N$502,7,0)=0,"",VLOOKUP(I1,漢字書き!$A$2:$N$502,7,0))) ->  | J5: =IF(J1="","",IF(VLOOKUP(J1,漢字書き!$A$2:$N$502,7,0)=0,"",VLOOKUP(J1,漢字書き!$A$2:$N$502,7,0))) -> る | K5: =IF(K1="","",IF(VLOOKUP(K1,漢字読み!$A$2:$O$502,7,0)=0,"",VLOOKUP(K1,漢字読み!$A$2:$O$502,7,0))) -> かい | L5: =IF(L1="","",IF(VLOOKUP(L1,漢字読み!$A$2:$O$502,7,0)=0,"",VLOOKUP(L1,漢字読み!$A$2:$O$502,7,0))) ->  | M5: =IF(M1="","",IF(VLOOKUP(M1,漢字読み!$A$2:$O$502,7,0)=0,"",VLOOKUP(M1,漢字読み!$A$2:$O$502,7,0))) ->  | N5: =IF(N1="","",IF(VLOOKUP(N1,漢字読み!$A$2:$O$502,7,0)=0,"",VLOOKUP(N1,漢字読み!$A$2:$O$502,7,0))) ->  | O5: =IF(O1="","",IF(VLOOKUP(O1,漢字読み!$A$2:$O$502,7,0)=0,"",VLOOKUP(O1,漢字読み!$A$2:$O$502,7,0))) -> てき | P5: =IF(P1="","",IF(VLOOKUP(P1,漢字読み!$A$2:$O$502,7,0)=0,"",VLOOKUP(P1,漢字読み!$A$2:$O$502,7,0))) ->  | Q5: =IF(Q1="","",IF(VLOOKUP(Q1,漢字読み!$A$2:$O$502,7,0)=0,"",VLOOKUP(Q1,漢字読み!$A$2:$O$502,7,0))) ->  | R5: =IF(R1="","",IF(VLOOKUP(R1,漢字読み!$A$2:$O$502,7,0)=0,"",VLOOKUP(R1,漢字読み!$A$2:$O$502,7,0))) ->  | S5: =IF(S1="","",IF(VLOOKUP(S1,漢字読み!$A$2:$O$502,7,0)=0,"",VLOOKUP(S1,漢字読み!$A$2:$O$502,7,0))) ->  | T5: =IF(T1="","",IF(VLOOKUP(T1,漢字読み!$A$2:$O$502,7,0)=0,"",VLOOKUP(T1,漢字読み!$A$2:$O$502,7,0))) -> と | W5: 和歌山県教育委員会
A6: =INDIRECT("'関数（書き）'!C" & COLUMN(B$1)+SUM($AD$2:$AD7)) -> 74 | B6: =INDIRECT("'関数（書き）'!C" & COLUMN(C$1)+SUM($AD$2:$AD7)) -> 30 | C6: =INDIRECT("'関数（書き）'!C" & COLUMN(D$1)+SUM($AD$2:$AD7)) -> 111 | D6: =INDIRECT("'関数（書き）'!C" & COLUMN(E$1)+SUM($AD$2:$AD7)) -> 83 | E6: =INDIRECT("'関数（書き）'!C" & COLUMN(F$1)+SUM($AD$2:$AD7)) -> 45 | F6: =INDIRECT("'関数（書き）'!C" & COLUMN(G$1)+SUM($AD$2:$AD7)) -> 90 | G6: =INDIRECT("'関数（書き）'!C" & COLUMN(H$1)+SUM($AD$2:$AD7)) -> 6 | H6: =INDIRECT("'関数（書き）'!C" & COLUMN(I$1)+SUM($AD$2:$AD7)) -> 117 | I6: =INDIRECT("'関数（書き）'!C" & COLUMN(J$1)+SUM($AD$2:$AD7)) -> 118 | J6: =INDIRECT("'関数（書き）'!C" & COLUMN(K$1)+SUM($AD$2:$AD7)) -> 123 | K6: =INDIRECT("'関数（読み）'!C" & COLUMN(B$1)+SUM($AD$2:$AD7)) -> 77 | L6: =INDIRECT("'関数（読み）'!C" & COLUMN(C$1)+SUM($AD$2:$AD7)) -> 10 | M6: =INDIRECT("'関数（読み）'!C" & COLUMN(D$1)+SUM($AD$2:$AD7)) -> 69 | N6: =INDIRECT("'関数（読み）'!C" & COLUMN(E$1)+SUM($AD$2:$AD7)) -> 23 | O6: =INDIRECT("'関数（読み）'!C" & COLUMN(F$1)+SUM($AD$2:$AD7)) -> 49 | P6: =INDIRECT("'関数（読み）'!C" & COLUMN(G$1)+SUM($AD$2:$AD7)) -> 38 | Q6: =INDIRECT("'関数（読み）'!C" & COLUMN(H$1)+SUM($AD$2:$AD7)) -> 110 | R6: =INDIRECT("'関数（読み）'!C" & COLUMN(I$1)+SUM($AD$2:$AD7)) -> 40 | S6: =INDIRECT("'関数（読み）'!C" & COLUMN(J$1)+SUM($AD$2:$AD7)) -> 95 | T6: =INDIRECT("'関数（読み）'!C" & COLUMN(K$1)+SUM($AD$2:$AD7)) -> 96
A7: ⑳ | B7: ⑲ | C7: ⑱ | D7: ⑰ | E7: ⑯ | F7: ⑮ | G7: ⑭ | H7: ⑬ | I7: ⑫ | J7: ⑪ | K7: ⑩ | L7: ⑨ | M7: ⑧ | N7: ⑦ | O7: ⑥ | P7: ⑤ | Q7: ④ | R7: ③ | S7: ② | T7: ① | U7: 次の［ ］の部分の漢字には読みがなをひらがなで書き、カタカナは漢字に直しなさい。 | V7: 14 | W7: 「漢字の博士検定試験」練習問題 | AC7: ← | AD7: 10 | AE7: 問 | AF7: =AH2+1 -> 11 | AG7: ～ | AH7: =SUM($AD$2:$AD7)+10 -> 20 | AI7: 問まで | AJ7: =COUNTIF($A$1:$T$200,T8) -> 2
A8: =IF(A6="","",VLOOKUP(A6,漢字書き!$A$2:$N$506,6,0)) -> ［コク］ばんを見る | B8: =IF(B6="","",VLOOKUP(B6,漢字書き!$A$2:$N$506,6,0)) -> ［ニッキ］をかく | C8: =IF(C6="","",VLOOKUP(C6,漢字書き!$A$2:$N$506,6,0)) -> ［アタラ］しいえんぴつ | D8: =IF(D6="","",VLOOKUP(D6,漢字書き!$A$2:$N$506,6,0)) -> かけ［ザン］のべん強 | E8: =IF(E6="","",VLOOKUP(E6,漢字書き!$A$2:$N$506,6,0)) -> ［ケイサン］がとくい | F8: =IF(F6="","",VLOOKUP(F6,漢字書き!$A$2:$N$506,6,0)) -> ［アネ］がいます | G8: =IF(G6="","",VLOOKUP(G6,漢字書き!$A$2:$N$506,6,0)) -> あすは［エンソク］だ | H8: =IF(H6="","",VLOOKUP(H6,漢字書き!$A$2:$N$506,6,0)) -> ［ニシ］の空 | I8: =IF(I6="","",VLOOKUP(I6,漢字書き!$A$2:$N$506,6,0)) -> きれいな［コエ］ | J8: =IF(J6="","",VLOOKUP(J6,漢字書き!$A$2:$N$506,6,0)) -> はさみで［キ］る | K8: =IF(K6="","",VLOOKUP(K6,漢字読み!$A$2:$O$506,6,0)) -> ［三行］で書く | L8: =IF(L6="","",VLOOKUP(L6,漢字読み!$A$2:$O$506,6,0)) -> ［夏休］みがはじまる | M8: =IF(M6="","",VLOOKUP(M6,漢字読み!$A$2:$O$506,6,0)) -> ［図工］のじかん | N8: =IF(N6="","",VLOOKUP(N6,漢字読み!$A$2:$O$506,6,0)) -> ［絵画］を見る | O8: =IF(O6="","",VLOOKUP(O6,漢字読み!$A$2:$O$506,6,0)) -> ［教室］に入る | P8: =IF(P6="","",VLOOKUP(P6,漢字読み!$A$2:$O$506,6,0)) -> ［日記］をつける | Q8: =IF(Q6="","",VLOOKUP(Q6,漢字読み!$A$2:$O$506,6,0)) -> ［社会］のへんか | R8: =IF(R6="","",VLOOKUP(R6,漢字読み!$A$2:$O$506,6,0)) -> ［弓］の名人 | S8: =IF(S6="","",VLOOKUP(S6,漢字読み!$A$2:$O$506,6,0)) -> でんしゃが［止］まる | T8: =IF(T6="","",VLOOKUP(T6,漢字読み!$A$2:$O$506,6,0)) -> ［朝市］がひらかれる | V8: 級
V9: 名前
A10: =IF(A6="","",IF(VLOOKUP(A6,漢字書き!$A$2:$N$502,7,0)=0,"",VLOOKUP(A6,漢字書き!$A$2:$N$502,7,0))) -> ばん | B10: =IF(B6="","",IF(VLOOKUP(B6,漢字書き!$A$2:$N$502,7,0)=0,"",VLOOKUP(B6,漢字書き!$A$2:$N$502,7,0))) ->  | C10: =IF(C6="","",IF(VLOOKUP(C6,漢字書き!$A$2:$N$502,7,0)=0,"",VLOOKUP(C6,漢字書き!$A$2:$N$502,7,0))) -> しい | D10: =IF(D6="","",IF(VLOOKUP(D6,漢字書き!$A$2:$N$502,7,0)=0,"",VLOOKUP(D6,漢字書き!$A$2:$N$502,7,0))) ->  | E10: =IF(E6="","",IF(VLOOKUP(E6,漢字書き!$A$2:$N$502,7,0)=0,"",VLOOKUP(E6,漢字書き!$A$2:$N$502,7,0))) ->  | F10: =IF(F6="","",IF(VLOOKUP(F6,漢字書き!$A$2:$N$502,7,0)=0,"",VLOOKUP(F6,漢字書き!$A$2:$N$502,7,0))) ->  | G10: =IF(G6="","",IF(VLOOKUP(G6,漢字書き!$A$2:$N$502,7,0)=0,"",VLOOKUP(G6,漢字書き!$A$2:$N$502,7,0))) ->  | H10: =IF(H6="","",IF(VLOOKUP(H6,漢字書き!$A$2:$N$502,7,0)=0,"",VLOOKUP(H6,漢字書き!$A$2:$N$502,7,0))) ->  | I10: =IF(I6="","",IF(VLOOKUP(I6,漢字書き!$A$2:$N$502,7,0)=0,"",VLOOKUP(I6,漢字書き!$A$2:$N$502,7,0))) ->  | J10: =IF(J6="","",IF(VLOOKUP(J6,漢字書き!$A$2:$N$502,7,0)=0,"",VLOOKUP(J6,漢字書き!$A$2:$N$502,7,0))) -> る | K10: =IF(K6="","",IF(VLOOKUP(K6,漢字読み!$A$2:$O$502,7,0)=0,"",VLOOKUP(K6,漢字読み!$A$2:$O$502,7,0))) ->  | L10: =IF(L6="","",IF(VLOOKUP(L6,漢字読み!$A$2:$O$502,7,0)=0,"",VLOOKUP(L6,漢字読み!$A$2:$O$502,7,0))) -> み | M10: =IF(M6="","",IF(VLOOKUP(M6,漢字読み!$A$2:$O$502,7,0)=0,"",VLOOKUP(M6,漢字読み!$A$2:$O$502,7,0))) ->  | N10: =IF(N6="","",IF(VLOOKUP(N6,漢字読み!$A$2:$O$502,7,0)=0,"",VLOOKUP(N6,漢字読み!$A$2:$O$502,7,0))) ->  | O10: =IF(O6="","",IF(VLOOKUP(O6,漢字読み!$A$2:$O$502,7,0)=0,"",VLOOKUP(O6,漢字読み!$A$2:$O$502,7,0))) ->  | P10: =IF(P6="","",IF(VLOOKUP(P6,漢字読み!$A$2:$O$502,7,0)=0,"",VLOOKUP(P6,漢字読み!$A$2:$O$502,7,0))) ->  | Q10: =IF(Q6="","",IF(VLOOKUP(Q6,漢字読み!$A$2:$O$502,7,0)=0,"",VLOOKUP(Q6,漢字読み!$A$2:$O$502,7,0))) ->  | R10: =IF(R6="","",IF(VLOOKUP(R6,漢字読み!$A$2:$O$502,7,0)=0,"",VLOOKUP(R6,漢字読み!$A$2:$O$502,7,0))) ->  | S10: =IF(S6="","",IF(VLOOKUP(S6,漢字読み!$A$2:$O$502,7,0)=0,"",VLOOKUP(S6,漢字読み!$A$2:$O$502,7,0))) -> まる | T10: =IF(T6="","",IF(VLOOKUP(T6,漢字読み!$A$2:$O$502,7,0)=0,"",VLOOKUP(T6,漢字読み!$A$2:$O$502,7,0))) ->  | W10: 和歌山県教育委員会
A11: =A1 -> 37 | B11: =B1 -> 101 | C11: =C1 -> 109 | D11: =D1 -> 41 | E11: =E1 -> 122 | F11: =F1 -> 35 | G11: =G1 -> 105 | H11: =H1 -> 108 | I11: =I1 -> 110 | J11: =J1 -> 81 | K11: =K1 -> 90 | L11: =L1 -> 98 | M11: =M1 -> 75 | N11: =N1 -> 117 | O11: =O1 -> 36 | P11: =P1 -> 114 | Q11: =Q1 -> 97 | R11: =R1 -> 84 | S11: =S1 -> 104 | T11: =T1 -> 46
A12: ⑳ | B12: ⑲ | C12: ⑱ | D12: ⑰ | E12: ⑯ | F12: ⑮ | G12: ⑭ | H12: ⑬ | I12: ⑫ | J12: ⑪ | K12: ⑩ | L12: ⑨ | M12: ⑧ | N12: ⑦ | O12: ⑥ | P12: ⑤ | Q12: ④ | R12: ③ | S12: ② | T12: ① | U12: 次の［ ］の部分の漢字には読みがなをひらがなで書き、カタカナは漢字に直しなさい。 | V12: 14 | W12: 「漢字の博士検定試験」練習問題
A13: =IF(A11="","",VLOOKUP(A11,漢字書き!$A$2:$N$506,6,0)) -> ［キョウ］か書をよむ | B13: =IF(B11="","",VLOOKUP(B11,漢字書き!$A$2:$N$506,6,0)) -> ［コンシュウ］のニュース | C13: =IF(C11="","",VLOOKUP(C11,漢字書き!$A$2:$N$506,6,0)) -> ごはんを［タ］べる | D13: =IF(D11="","",VLOOKUP(D11,漢字書き!$A$2:$N$506,6,0)) -> 車が［チカ］づく | E13: =IF(E11="","",VLOOKUP(E11,漢字書き!$A$2:$N$506,6,0)) -> ［キッテ］をあつめる | F13: =IF(F11="","",VLOOKUP(F11,漢字書き!$A$2:$N$506,6,0)) -> ［サカナ］がおよぐ | G13: =IF(G11="","",VLOOKUP(G11,漢字書き!$A$2:$N$506,6,0)) -> ［ショウ］年とあそぶ | H13: =IF(H11="","",VLOOKUP(H11,漢字書き!$A$2:$N$506,6,0)) -> ［ショク］じはたのしい | I13: =IF(I11="","",VLOOKUP(I11,漢字書き!$A$2:$N$506,6,0)) -> ［ココロ］がはずむ | J13: =IF(J11="","",VLOOKUP(J11,漢字書き!$A$2:$N$506,6,0)) -> 文を［ツク］る | K13: =IF(K11="","",VLOOKUP(K11,漢字読み!$A$2:$O$506,6,0)) -> ［細］かい字 | L13: =IF(L11="","",VLOOKUP(L11,漢字読み!$A$2:$O$506,6,0)) -> ［矢］がささる | M13: =IF(M11="","",VLOOKUP(M11,漢字読み!$A$2:$O$506,6,0)) -> ［光］をあびる | N13: =IF(N11="","",VLOOKUP(N11,漢字読み!$A$2:$O$506,6,0)) -> ［春］がきた | O13: =IF(O11="","",VLOOKUP(O11,漢字読み!$A$2:$O$506,6,0)) -> ［汽］てきをならす | P13: =IF(P11="","",VLOOKUP(P11,漢字読み!$A$2:$O$506,6,0)) -> ［秋］の夕ぐれ | Q13: =IF(Q11="","",VLOOKUP(Q11,漢字読み!$A$2:$O$506,6,0)) -> わか山［市］の学校 | R13: =IF(R11="","",VLOOKUP(R11,漢字読み!$A$2:$O$506,6,0)) -> 海外の［国］にあこがれる | S13: =IF(S11="","",VLOOKUP(S11,漢字読み!$A$2:$O$506,6,0)) -> とう大［寺］の大ぶつ | T13: =IF(T11="","",VLOOKUP(T11,漢字読み!$A$2:$O$506,6,0)) -> ［京］とに行く | V13: 級
A14: =IF(A$11="","",VLOOKUP(A11,漢字書き!$A$2:$O$506,8,0)) -> 教 | B14: =IF(B$11="","",VLOOKUP(B11,漢字書き!$A$2:$O$506,8,0)) -> 今週 | C14: =IF(C$11="","",VLOOKUP(C11,漢字書き!$A$2:$O$506,8,0)) -> 食 | D14: =IF(D$11="","",VLOOKUP(D11,漢字書き!$A$2:$O$506,8,0)) -> 近 | E14: =IF(E$11="","",VLOOKUP(E11,漢字書き!$A$2:$O$506,8,0)) -> 切手 | F14: =IF(F$11="","",VLOOKUP(F11,漢字書き!$A$2:$O$506,8,0)) -> 魚 | G14: =IF(G$11="","",VLOOKUP(G11,漢字書き!$A$2:$O$506,8,0)) -> 少 | H14: =IF(H$11="","",VLOOKUP(H11,漢字書き!$A$2:$O$506,8,0)) -> 食 | I14: =IF(I$11="","",VLOOKUP(I11,漢字書き!$A$2:$O$506,8,0)) -> 心 | J14: =IF(J$11="","",VLOOKUP(J11,漢字書き!$A$2:$O$506,8,0)) -> 作 | K14: =IF(K$11="","",VLOOKUP(K11,漢字読み!$A$2:$O$506,8,0)) -> こま | L14: =IF(L$11="","",VLOOKUP(L11,漢字読み!$A$2:$O$506,8,0)) -> や | M14: =IF(M$11="","",VLOOKUP(M11,漢字読み!$A$2:$O$506,8,0)) -> ひかり | N14: =IF(N$11="","",VLOOKUP(N11,漢字読み!$A$2:$O$506,8,0)) -> はる | O14: =IF(O$11="","",VLOOKUP(O11,漢字読み!$A$2:$O$506,8,0)) -> き | P14: =IF(P$11="","",VLOOKUP(P11,漢字読み!$A$2:$O$506,8,0)) -> あき | Q14: =IF(Q$11="","",VLOOKUP(Q11,漢字読み!$A$2:$O$506,8,0)) -> し | R14: =IF(R$11="","",VLOOKUP(R11,漢字読み!$A$2:$O$506,8,0)) -> くに | S14: =IF(S$11="","",VLOOKUP(S11,漢字読み!$A$2:$O$506,8,0)) -> じ | T14: =IF(T$11="","",VLOOKUP(T11,漢字読み!$A$2:$O$506,8,0)) -> きょう | V14: 名前
A15: =IF(A11="","",IF(VLOOKUP(A11,漢字書き!$A$2:$N$502,7,0)=0,"",VLOOKUP(A11,漢字書き!$A$2:$N$502,7,0))) -> か書 | B15: =IF(B11="","",IF(VLOOKUP(B11,漢字書き!$A$2:$N$502,7,0)=0,"",VLOOKUP(B11,漢字書き!$A$2:$N$502,7,0))) ->  | C15: =IF(C11="","",IF(VLOOKUP(C11,漢字書き!$A$2:$N$502,7,0)=0,"",VLOOKUP(C11,漢字書き!$A$2:$N$502,7,0))) -> べる | D15: =IF(D11="","",IF(VLOOKUP(D11,漢字書き!$A$2:$N$502,7,0)=0,"",VLOOKUP(D11,漢字書き!$A$2:$N$502,7,0))) -> づく | E15: =IF(E11="","",IF(VLOOKUP(E11,漢字書き!$A$2:$N$502,7,0)=0,"",VLOOKUP(E11,漢字書き!$A$2:$N$502,7,0))) ->  | F15: =IF(F11="","",IF(VLOOKUP(F11,漢字書き!$A$2:$N$502,7,0)=0,"",VLOOKUP(F11,漢字書き!$A$2:$N$502,7,0))) ->  | G15: =IF(G11="","",IF(VLOOKUP(G11,漢字書き!$A$2:$N$502,7,0)=0,"",VLOOKUP(G11,漢字書き!$A$2:$N$502,7,0))) -> 年 | H15: =IF(H11="","",IF(VLOOKUP(H11,漢字書き!$A$2:$N$502,7,0)=0,"",VLOOKUP(H11,漢字書き!$A$2:$N$502,7,0))) -> じ | I15: =IF(I11="","",IF(VLOOKUP(I11,漢字書き!$A$2:$N$502,7,0)=0,"",VLOOKUP(I11,漢字書き!$A$2:$N$502,7,0))) ->  | J15: =IF(J11="","",IF(VLOOKUP(J11,漢字書き!$A$2:$N$502,7,0)=0,"",VLOOKUP(J11,漢字書き!$A$2:$N$502,7,0))) -> る | K15: =IF(K11="","",IF(VLOOKUP(K11,漢字読み!$A$2:$O$502,7,0)=0,"",VLOOKUP(K11,漢字読み!$A$2:$O$502,7,0))) -> かい | L15: =IF(L11="","",IF(VLOOKUP(L11,漢字読み!$A$2:$O$502,7,0)=0,"",VLOOKUP(L11,漢字読み!$A$2:$O$502,7,0))) ->  | M15: =IF(M11="","",IF(VLOOKUP(M11,漢字読み!$A$2:$O$502,7,0)=0,"",VLOOKUP(M11,漢字読み!$A$2:$O$502,7,0))) ->  | N15: =IF(N11="","",IF(VLOOKUP(N11,漢字読み!$A$2:$O$502,7,0)=0,"",VLOOKUP(N11,漢字読み!$A$2:$O$502,7,0))) ->  | O15: =IF(O11="","",IF(VLOOKUP(O11,漢字読み!$A$2:$O$502,7,0)=0,"",VLOOKUP(O11,漢字読み!$A$2:$O$502,7,0))) -> てき | P15: =IF(P11="","",IF(VLOOKUP(P11,漢字読み!$A$2:$O$502,7,0)=0,"",VLOOKUP(P11,漢字読み!$A$2:$O$502,7,0))) ->  | Q15: =IF(Q11="","",IF(VLOOKUP(Q11,漢字読み!$A$2:$O$502,7,0)=0,"",VLOOKUP(Q11,漢字読み!$A$2:$O$502,7,0))) ->  | R15: =IF(R11="","",IF(VLOOKUP(R11,漢字読み!$A$2:$O$502,7,0)=0,"",VLOOKUP(R11,漢字読み!$A$2:$O$502,7,0))) ->  | S15: =IF(S11="","",IF(VLOOKUP(S11,漢字読み!$A$2:$O$502,7,0)=0,"",VLOOKUP(S11,漢字読み!$A$2:$O$502,7,0))) ->  | T15: =IF(T11="","",IF(VLOOKUP(T11,漢字読み!$A$2:$O$502,7,0)=0,"",VLOOKUP(T11,漢字読み!$A$2:$O$502,7,0))) -> と | W15: 和歌山県教育委員会
A16: =A6 -> 74 | B16: =B6 -> 30 | C16: =C6 -> 111 | D16: =D6 -> 83 | E16: =E6 -> 45 | F16: =F6 -> 90 | G16: =G6 -> 6 | H16: =H6 -> 117 | I16: =I6 -> 118 | J16: =J6 -> 123 | K16: =K6 -> 77 | L16: =L6 -> 10 | M16: =M6 -> 69 | N16: =N6 -> 23 | O16: =O6 -> 49 | P16: =P6 -> 38 | Q16: =Q6 -> 110 | R16: =R6 -> 40 | S16: =S6 -> 95 | T16: =T6 -> 96
A17: ⑳ | B17: ⑲ | C17: ⑱ | D17: ⑰ | E17: ⑯ | F17: ⑮ | G17: ⑭ | H17: ⑬ | I17: ⑫ | J17: ⑪ | K17: ⑩ | L17: ⑨ | M17: ⑧ | N17: ⑦ | O17: ⑥ | P17: ⑤ | Q17: ④ | R17: ③ | S17: ② | T17: ① | U17: 次の［ ］の部分の漢字には読みがなをひらがなで書き、カタカナは漢字に直しなさい。 | V17: 14 | W17: 「漢字の博士検定試験」練習問題
A18: =IF(A16="","",VLOOKUP(A16,漢字書き!$A$2:$N$506,6,0)) -> ［コク］ばんを見る | B18: =IF(B16="","",VLOOKUP(B16,漢字書き!$A$2:$N$506,6,0)) -> ［ニッキ］をかく | C18: =IF(C16="","",VLOOKUP(C16,漢字書き!$A$2:$N$506,6,0)) -> ［アタラ］しいえんぴつ | D18: =IF(D16="","",VLOOKUP(D16,漢字書き!$A$2:$N$506,6,0)) -> かけ［ザン］のべん強 | E18: =IF(E16="","",VLOOKUP(E16,漢字書き!$A$2:$N$506,6,0)) -> ［ケイサン］がとくい | F18: =IF(F16="","",VLOOKUP(F16,漢字書き!$A$2:$N$506,6,0)) -> ［アネ］がいます | G18: =IF(G16="","",VLOOKUP(G16,漢字書き!$A$2:$N$506,6,0)) -> あすは［エンソク］だ | H18: =IF(H16="","",VLOOKUP(H16,漢字書き!$A$2:$N$506,6,0)) -> ［ニシ］の空 | I18: =IF(I16="","",VLOOKUP(I16,漢字書き!$A$2:$N$506,6,0)) -> きれいな［コエ］ | J18: =IF(J16="","",VLOOKUP(J16,漢字書き!$A$2:$N$506,6,0)) -> はさみで［キ］る | K18: =IF(K16="","",VLOOKUP(K16,漢字読み!$A$2:$O$506,6,0)) -> ［三行］で書く | L18: =IF(L16="","",VLOOKUP(L16,漢字読み!$A$2:$O$506,6,0)) -> ［夏休］みがはじまる | M18: =IF(M16="","",VLOOKUP(M16,漢字読み!$A$2:$O$506,6,0)) -> ［図工］のじかん | N18: =IF(N16="","",VLOOKUP(N16,漢字読み!$A$2:$O$506,6,0)) -> ［絵画］を見る | O18: =IF(O16="","",VLOOKUP(O16,漢字読み!$A$2:$O$506,6,0)) -> ［教室］に入る | P18: =IF(P16="","",VLOOKUP(P16,漢字読み!$A$2:$O$506,6,0)) -> ［日記］をつける | Q18: =IF(Q16="","",VLOOKUP(Q16,漢字読み!$A$2:$O$506,6,0)) -> ［社会］のへんか | R18: =IF(R16="","",VLOOKUP(R16,漢字読み!$A$2:$O$506,6,0)) -> ［弓］の名人 | S18: =IF(S16="","",VLOOKUP(S16,漢字読み!$A$2:$O$506,6,0)) -> でんしゃが［止］まる | T18: =IF(T16="","",VLOOKUP(T16,漢字読み!$A$2:$O$506,6,0)) -> ［朝市］がひらかれる | V18: 級
A19: =IF(A$16="","",VLOOKUP(A16,漢字書き!$A$2:$O$506,8,0)) -> 黒 | B19: =IF(B$16="","",VLOOKUP(B16,漢字書き!$A$2:$O$506,8,0)) -> 日記 | C19: =IF(C$16="","",VLOOKUP(C16,漢字書き!$A$2:$O$506,8,0)) -> 新 | D19: =IF(D$16="","",VLOOKUP(D16,漢字書き!$A$2:$O$506,8,0)) -> 算 | E19: =IF(E$16="","",VLOOKUP(E16,漢字書き!$A$2:$O$506,8,0)) -> 計算 | F19: =IF(F$16="","",VLOOKUP(F16,漢字書き!$A$2:$O$506,8,0)) -> 姉 | G19: =IF(G$16="","",VLOOKUP(G16,漢字書き!$A$2:$O$506,8,0)) -> 遠足 | H19: =IF(H$16="","",VLOOKUP(H16,漢字書き!$A$2:$O$506,8,0)) -> 西 | I19: =IF(I$16="","",VLOOKUP(I16,漢字書き!$A$2:$O$506,8,0)) -> 声 | J19: =IF(J$16="","",VLOOKUP(J16,漢字書き!$A$2:$O$506,8,0)) -> 切 | K19: =IF(K$16="","",VLOOKUP(K16,漢字読み!$A$2:$O$506,8,0)) -> さんぎょう | L19: =IF(L$16="","",VLOOKUP(L16,漢字読み!$A$2:$O$506,8,0)) -> なつやす | M19: =IF(M$16="","",VLOOKUP(M16,漢字読み!$A$2:$O$506,8,0)) -> ずこう | N19: =IF(N$16="","",VLOOKUP(N16,漢字読み!$A$2:$O$506,8,0)) -> かいが | O19: =IF(O$16="","",VLOOKUP(O16,漢字読み!$A$2:$O$506,8,0)) -> きょうしつ | P19: =IF(P$16="","",VLOOKUP(P16,漢字読み!$A$2:$O$506,8,0)) -> にっき | Q19: =IF(Q$16="","",VLOOKUP(Q16,漢字読み!$A$2:$O$506,8,0)) -> しゃかい | R19: =IF(R$16="","",VLOOKUP(R16,漢字読み!$A$2:$O$506,8,0)) -> ゆみ | S19: =IF(S$16="","",VLOOKUP(S16,漢字読み!$A$2:$O$506,8,0)) -> と | T19: =IF(T$16="","",VLOOKUP(T16,漢字読み!$A$2:$O$506,8,0)) -> あさいち | V19: 名前
A20: =IF(A16="","",IF(VLOOKUP(A16,漢字書き!$A$2:$N$502,7,0)=0,"",VLOOKUP(A16,漢字書き!$A$2:$N$502,7,0))) -> ばん | B20: =IF(B16="","",IF(VLOOKUP(B16,漢字書き!$A$2:$N$502,7,0)=0,"",VLOOKUP(B16,漢字書き!$A$2:$N$502,7,0))) ->  | C20: =IF(C16="","",IF(VLOOKUP(C16,漢字書き!$A$2:$N$502,7,0)=0,"",VLOOKUP(C16,漢字書き!$A$2:$N$502,7,0))) -> しい | D20: =IF(D16="","",IF(VLOOKUP(D16,漢字書き!$A$2:$N$502,7,0)=0,"",VLOOKUP(D16,漢字書き!$A$2:$N$502,7,0))) ->  | E20: =IF(E16="","",IF(VLOOKUP(E16,漢字書き!$A$2:$N$502,7,0)=0,"",VLOOKUP(E16,漢字書き!$A$2:$N$502,7,0))) ->  | F20: =IF(F16="","",IF(VLOOKUP(F16,漢字書き!$A$2:$N$502,7,0)=0,"",VLOOKUP(F16,漢字書き!$A$2:$N$502,7,0))) ->  | G20: =IF(G16="","",IF(VLOOKUP(G16,漢字書き!$A$2:$N$502,7,0)=0,"",VLOOKUP(G16,漢字書き!$A$2:$N$502,7,0))) ->  | H20: =IF(H16="","",IF(VLOOKUP(H16,漢字書き!$A$2:$N$502,7,0)=0,"",VLOOKUP(H16,漢字書き!$A$2:$N$502,7,0))) ->  | I20: =IF(I16="","",IF(VLOOKUP(I16,漢字書き!$A$2:$N$502,7,0)=0,"",VLOOKUP(I16,漢字書き!$A$2:$N$502,7,0))) ->  | J20: =IF(J16="","",IF(VLOOKUP(J16,漢字書き!$A$2:$N$502,7,0)=0,"",VLOOKUP(J16,漢字書き!$A$2:$N$502,7,0))) -> る | K20: =IF(K16="","",IF(VLOOKUP(K16,漢字読み!$A$2:$O$502,7,0)=0,"",VLOOKUP(K16,漢字読み!$A$2:$O$502,7,0))) ->  | L20: =IF(L16="","",IF(VLOOKUP(L16,漢字読み!$A$2:$O$502,7,0)=0,"",VLOOKUP(L16,漢字読み!$A$2:$O$502,7,0))) -> み | M20: =IF(M16="","",IF(VLOOKUP(M16,漢字読み!$A$2:$O$502,7,0)=0,"",VLOOKUP(M16,漢字読み!$A$2:$O$502,7,0))) ->  | N20: =IF(N16="","",IF(VLOOKUP(N16,漢字読み!$A$2:$O$502,7,0)=0,"",VLOOKUP(N16,漢字読み!$A$2:$O$502,7,0))) ->  | O20: =IF(O16="","",IF(VLOOKUP(O16,漢字読み!$A$2:$O$502,7,0)=0,"",VLOOKUP(O16,漢字読み!$A$2:$O$502,7,0))) ->  | P20: =IF(P16="","",IF(VLOOKUP(P16,漢字読み!$A$2:$O$502,7,0)=0,"",VLOOKUP(P16,漢字読み!$A$2:$O$502,7,0))) ->  | Q20: =IF(Q16="","",IF(VLOOKUP(Q16,漢字読み!$A$2:$O$502,7,0)=0,"",VLOOKUP(Q16,漢字読み!$A$2:$O$502,7,0))) ->  | R20: =IF(R16="","",IF(VLOOKUP(R16,漢字読み!$A$2:$O$502,7,0)=0,"",VLOOKUP(R16,漢字読み!$A$2:$O$502,7,0))) ->  | S20: =IF(S16="","",IF(VLOOKUP(S16,漢字読み!$A$2:$O$502,7,0)=0,"",VLOOKUP(S16,漢字読み!$A$2:$O$502,7,0))) -> まる | T20: =IF(T16="","",IF(VLOOKUP(T16,漢字読み!$A$2:$O$502,7,0)=0,"",VLOOKUP(T16,漢字読み!$A$2:$O$502,7,0))) ->  | W20: 和歌山県教育委員会
A21: =INDIRECT("'関数（書き）'!C" & COLUMN(B$1)+SUM($AD$2:$AD22)) -> 102 | B21: =INDIRECT("'関数（書き）'!C" & COLUMN(C$1)+SUM($AD$2:$AD22)) -> 27 | C21: =INDIRECT("'関数（書き）'!C" & COLUMN(D$1)+SUM($AD$2:$AD22)) -> 50 | D21: =INDIRECT("'関数（書き）'!C" & COLUMN(E$1)+SUM($AD$2:$AD22)) -> 17 | E21: =INDIRECT("'関数（書き）'!C" & COLUMN(F$1)+SUM($AD$2:$AD22)) -> 95 | F21: =INDIRECT("'関数（書き）'!C" & COLUMN(G$1)+SUM($AD$2:$AD22)) -> 100 | G21: =INDIRECT("'関数（書き）'!C" & COLUMN(H$1)+SUM($AD$2:$AD22)) -> 62 | H21: =INDIRECT("'関数（書き）'!C" & COLUMN(I$1)+SUM($AD$2:$AD22)) -> 77 | I21: =INDIRECT("'関数（書き）'!C" & COLUMN(J$1)+SUM($AD$2:$AD22)) -> 63 | J21: =INDIRECT("'関数（書き）'!C" & COLUMN(K$1)+SUM($AD$2:$AD22)) -> 99 | K21: =INDIRECT("'関数（読み）'!C" & COLUMN(B$1)+SUM($AD$2:$AD22)) -> 85 | L21: =INDIRECT("'関数（読み）'!C" & COLUMN(C$1)+SUM($AD$2:$AD22)) -> 132 | M21: =INDIRECT("'関数（読み）'!C" & COLUMN(D$1)+SUM($AD$2:$AD22)) -> 74 | N21: =INDIRECT("'関数（読み）'!C" & COLUMN(E$1)+SUM($AD$2:$AD22)) -> 60 | O21: =INDIRECT("'関数（読み）'!C" & COLUMN(F$1)+SUM($AD$2:$AD22)) -> 149 | P21: =INDIRECT("'関数（読み）'!C" & COLUMN(G$1)+SUM($AD$2:$AD22)) -> 12 | Q21: =INDIRECT("'関数（読み）'!C" & COLUMN(H$1)+SUM($AD$2:$AD22)) -> 101 | R21: =INDIRECT("'関数（読み）'!C" & COLUMN(I$1)+SUM($AD$2:$AD22)) -> 7 | S21: =INDIRECT("'関数（読み）'!C" & COLUMN(J$1)+SUM($AD$2:$AD22)) -> 17 | T21: =INDIRECT("'関数（読み）'!C" & COLUMN(K$1)+SUM($AD$2:$AD22)) -> 47
A22: ⑳ | B22: ⑲ | C22: ⑱ | D22: ⑰ | E22: ⑯ | F22: ⑮ | G22: ⑭ | H22: ⑬ | I22: ⑫ | J22: ⑪ | K22: ⑩ | L22: ⑨ | M22: ⑧ | N22: ⑦ | O22: ⑥ | P22: ⑤ | Q22: ④ | R22: ③ | S22: ② | T22: ① | U22: 次の［ ］の部分の漢字には読みがなをひらがなで書き、カタカナは漢字に直しなさい。 | V22: 14 | W22: 「漢字の博士検定試験」練習問題 | AC22: ← | AD22: 10 | AE22: 問 | AF22: =AH7+1 -> 21 | AG22: ～ | AH22: =SUM($AD$2:$AD22)+10 -> 30 | AI22: 問まで | AJ22: =COUNTIF($A$1:$T$200,T23) -> 2
A23: =IF(A21="","",VLOOKUP(A21,漢字書き!$A$2:$N$506,6,0)) -> あたたかい［ハル］ | B23: =IF(B21="","",VLOOKUP(B21,漢字書き!$A$2:$N$506,6,0)) -> ［イワ］にのぼる | C23: =IF(C21="","",VLOOKUP(C21,漢字書き!$A$2:$N$506,6,0)) -> ［ハラ］っぱであそぶ | D23: =IF(D21="","",VLOOKUP(D21,漢字書き!$A$2:$N$506,6,0)) -> ともだちに［ア］う | E23: =IF(E21="","",VLOOKUP(E21,漢字書き!$A$2:$N$506,6,0)) -> ［ジカン］がすぎる | F23: =IF(F21="","",VLOOKUP(F21,漢字書き!$A$2:$N$506,6,0)) -> ［アキ］まつり | G23: =IF(G21="","",VLOOKUP(G21,漢字書き!$A$2:$N$506,6,0)) -> ［コウ］つうルール | H23: =IF(H21="","",VLOOKUP(H21,漢字書き!$A$2:$N$506,6,0)) -> ［ゴサイ］のたんじょうび | I23: =IF(I21="","",VLOOKUP(I21,漢字書き!$A$2:$N$506,6,0)) -> 星が［ヒカ］る | J23: =IF(J21="","",VLOOKUP(J21,漢字書き!$A$2:$N$506,6,0)) -> 犬の［クビ］わ | K23: =IF(K21="","",VLOOKUP(K21,漢字読み!$A$2:$O$506,6,0)) -> ［黒］ごまのふりかけ | L23: =IF(L21="","",VLOOKUP(L21,漢字読み!$A$2:$O$506,6,0)) -> ［親］にはなす | M23: =IF(M21="","",VLOOKUP(M21,漢字読み!$A$2:$O$506,6,0)) -> ［日光］をあびる | N23: =IF(N21="","",VLOOKUP(N21,漢字読み!$A$2:$O$506,6,0)) -> ［草原］を走る | O23: =IF(O21="","",VLOOKUP(O21,漢字読み!$A$2:$O$506,6,0)) -> ［前］のページ | P23: =IF(P21="","",VLOOKUP(P21,漢字読み!$A$2:$O$506,6,0)) -> ［家］に帰る | Q23: =IF(Q21="","",VLOOKUP(Q21,漢字読み!$A$2:$O$506,6,0)) -> うれしく［思］う | R23: =IF(R21="","",VLOOKUP(R21,漢字読み!$A$2:$O$506,6,0)) -> うれしい［遠足］ | S23: =IF(S21="","",VLOOKUP(S21,漢字読み!$A$2:$O$506,6,0)) -> ［何回］もよむ | T23: =IF(T21="","",VLOOKUP(T21,漢字読み!$A$2:$O$506,6,0)) -> ［強］いチームとたたかう | V23: 級
V24: 名前
A25: =IF(A21="","",IF(VLOOKUP(A21,漢字書き!$A$2:$N$502,7,0)=0,"",VLOOKUP(A21,漢字書き!$A$2:$N$502,7,0))) ->  | B25: =IF(B21="","",IF(VLOOKUP(B21,漢字書き!$A$2:$N$502,7,0)=0,"",VLOOKUP(B21,漢字書き!$A$2:$N$502,7,0))) ->  | C25: =IF(C21="","",IF(VLOOKUP(C21,漢字書き!$A$2:$N$502,7,0)=0,"",VLOOKUP(C21,漢字書き!$A$2:$N$502,7,0))) -> っぱ | D25: =IF(D21="","",IF(VLOOKUP(D21,漢字書き!$A$2:$N$502,7,0)=0,"",VLOOKUP(D21,漢字書き!$A$2:$N$502,7,0))) -> う | E25: =IF(E21="","",IF(VLOOKUP(E21,漢字書き!$A$2:$N$502,7,0)=0,"",VLOOKUP(E21,漢字書き!$A$2:$N$502,7,0))) ->  | F25: =IF(F21="","",IF(VLOOKUP(F21,漢字書き!$A$2:$N$502,7,0)=0,"",VLOOKUP(F21,漢字書き!$A$2:$N$502,7,0))) -> まつり | G25: =IF(G21="","",IF(VLOOKUP(G21,漢字書き!$A$2:$N$502,7,0)=0,"",VLOOKUP(G21,漢字書き!$A$2:$N$502,7,0))) -> つう | H25: =IF(H21="","",IF(VLOOKUP(H21,漢字書き!$A$2:$N$502,7,0)=0,"",VLOOKUP(H21,漢字書き!$A$2:$N$502,7,0))) ->  | I25: =IF(I21="","",IF(VLOOKUP(I21,漢字書き!$A$2:$N$502,7,0)=0,"",VLOOKUP(I21,漢字書き!$A$2:$N$502,7,0))) -> る | J25: =IF(J21="","",IF(VLOOKUP(J21,漢字書き!$A$2:$N$502,7,0)=0,"",VLOOKUP(J21,漢字書き!$A$2:$N$502,7,0))) -> わ | K25: =IF(K21="","",IF(VLOOKUP(K21,漢字読み!$A$2:$O$502,7,0)=0,"",VLOOKUP(K21,漢字読み!$A$2:$O$502,7,0))) -> ごま | L25: =IF(L21="","",IF(VLOOKUP(L21,漢字読み!$A$2:$O$502,7,0)=0,"",VLOOKUP(L21,漢字読み!$A$2:$O$502,7,0))) ->  | M25: =IF(M21="","",IF(VLOOKUP(M21,漢字読み!$A$2:$O$502,7,0)=0,"",VLOOKUP(M21,漢字読み!$A$2:$O$502,7,0))) ->  | N25: =IF(N21="","",IF(VLOOKUP(N21,漢字読み!$A$2:$O$502,7,0)=0,"",VLOOKUP(N21,漢字読み!$A$2:$O$502,7,0))) ->  | O25: =IF(O21="","",IF(VLOOKUP(O21,漢字読み!$A$2:$O$502,7,0)=0,"",VLOOKUP(O21,漢字読み!$A$2:$O$502,7,0))) ->  | P25: =IF(P21="","",IF(VLOOKUP(P21,漢字読み!$A$2:$O$502,7,0)=0,"",VLOOKUP(P21,漢字読み!$A$2:$O$502,7,0))) ->  | Q25: =IF(Q21="","",IF(VLOOKUP(Q21,漢字読み!$A$2:$O$502,7,0)=0,"",VLOOKUP(Q21,漢字読み!$A$2:$O$502,7,0))) -> う | R25: =IF(R21="","",IF(VLOOKUP(R21,漢字読み!$A$2:$O$502,7,0)=0,"",VLOOKUP(R21,漢字読み!$A$2:$O$502,7,0))) ->  | S25: =IF(S21="","",IF(VLOOKUP(S21,漢字読み!$A$2:$O$502,7,0)=0,"",VLOOKUP(S21,漢字読み!$A$2:$O$502,7,0))) ->  | T25: =IF(T21="","",IF(VLOOKUP(T21,漢字読み!$A$2:$O$502,7,0)=0,"",VLOOKUP(T21,漢字読み!$A$2:$O$502,7,0))) -> い | W25: 和歌山県教育委員会
A26: =INDIRECT("'関数（書き）'!C" & COLUMN(B$1)+SUM($AD$2:$AD27)) -> 5 | B26: =INDIRECT("'関数（書き）'!C" & COLUMN(C$1)+SUM($AD$2:$AD27)) -> 7 | C26: =INDIRECT("'関数（書き）'!C" & COLUMN(D$1)+SUM($AD$2:$AD27)) -> 92 | D26: =INDIRECT("'関数（書き）'!C" & COLUMN(E$1)+SUM($AD$2:$AD27)) -> 42 | E26: =INDIRECT("'関数（書き）'!C" & COLUMN(F$1)+SUM($AD$2:$AD27)) -> 26 | F26: =INDIRECT("'関数（書き）'!C" & COLUMN(G$1)+SUM($AD$2:$AD27)) -> 38 | G26: =INDIRECT("'関数（書き）'!C" & COLUMN(H$1)+SUM($AD$2:$AD27)) -> 31 | H26: =INDIRECT("'関数（書き）'!C" & COLUMN(I$1)+SUM($AD$2:$AD27)) -> 15 | I26: =INDIRECT("'関数（書き）'!C" & COLUMN(J$1)+SUM($AD$2:$AD27)) -> 43 | J26: =INDIRECT("'関数（書き）'!C" & COLUMN(K$1)+SUM($AD$2:$AD27)) -> 104 | K26: =INDIRECT("'関数（読み）'!C" & COLUMN(B$1)+SUM($AD$2:$AD27)) -> 131 | L26: =INDIRECT("'関数（読み）'!C" & COLUMN(C$1)+SUM($AD$2:$AD27)) -> 128 | M26: =INDIRECT("'関数（読み）'!C" & COLUMN(D$1)+SUM($AD$2:$AD27)) -> 111 | N26: =INDIRECT("'関数（読み）'!C" & COLUMN(E$1)+SUM($AD$2:$AD27)) -> 127 | O26: =INDIRECT("'関数（読み）'!C" & COLUMN(F$1)+SUM($AD$2:$AD27)) -> 19 | P26: =INDIRECT("'関数（読み）'!C" & COLUMN(G$1)+SUM($AD$2:$AD27)) -> 87 | Q26: =INDIRECT("'関数（読み）'!C" & COLUMN(H$1)+SUM($AD$2:$AD27)) -> 139 | R26: =INDIRECT("'関数（読み）'!C" & COLUMN(I$1)+SUM($AD$2:$AD27)) -> 119 | S26: =INDIRECT("'関数（読み）'!C" & COLUMN(J$1)+SUM($AD$2:$AD27)) -> 55 | T26: =INDIRECT("'関数（読み）'!C" & COLUMN(K$1)+SUM($AD$2:$AD27)) -> 99
A27: ⑳ | B27: ⑲ | C27: ⑱ | D27: ⑰ | E27: ⑯ | F27: ⑮ | G27: ⑭ | H27: ⑬ | I27: ⑫ | J27: ⑪ | K27: ⑩ | L27: ⑨ | M27: ⑧ | N27: ⑦ | O27: ⑥ | P27: ⑤ | Q27: ④ | R27: ③ | S27: ② | T27: ① | U27: 次の［ ］の部分の漢字には読みがなをひらがなで書き、カタカナは漢字に直しなさい。 | V27: 14 | W27: 「漢字の博士検定試験」練習問題 | AC27: ← | AD27: 10 | AE27: 問 | AF27: =AH22+1 -> 31 | AG27: ～ | AH27: =SUM($AD$2:$AD27)+10 -> 40 | AI27: 問まで | AJ27: =COUNTIF($A$1:$T$200,T28) -> 2
A28: =IF(A26="","",VLOOKUP(A26,漢字書き!$A$2:$N$506,6,0)) -> ［トオ］いくにのはなし | B28: =IF(B26="","",VLOOKUP(B26,漢字書き!$A$2:$N$506,6,0)) -> ［ナニ］かごようですか | C28: =IF(C26="","",VLOOKUP(C26,漢字書き!$A$2:$N$506,6,0)) -> ［カミ］しばい | D28: =IF(D26="","",VLOOKUP(D26,漢字書き!$A$2:$N$506,6,0)) -> ［アニ］のともだち | E28: =IF(E26="","",VLOOKUP(E26,漢字書き!$A$2:$N$506,6,0)) -> ［マル］い石 | F28: =IF(F26="","",VLOOKUP(F26,漢字書き!$A$2:$N$506,6,0)) -> ［キョウシツ］に入る | G28: =IF(G26="","",VLOOKUP(G26,漢字書き!$A$2:$N$506,6,0)) -> 家に［カエ］る | H28: =IF(H26="","",VLOOKUP(H26,漢字書き!$A$2:$N$506,6,0)) -> 目が［マワ］る | I28: =IF(I26="","",VLOOKUP(I26,漢字書き!$A$2:$N$506,6,0)) -> ［ニンギョウ］をかう | J28: =IF(J26="","",VLOOKUP(J26,漢字書き!$A$2:$N$506,6,0)) -> ［スク］ないおかず | K28: =IF(K26="","",VLOOKUP(K26,漢字読み!$A$2:$O$506,6,0)) -> ［親］ゆうになる | L28: =IF(L26="","",VLOOKUP(L26,漢字読み!$A$2:$O$506,6,0)) -> ［新入生］をむかえる | M28: =IF(M26="","",VLOOKUP(M26,漢字読み!$A$2:$O$506,6,0)) -> 力が［弱］い | N28: =IF(N26="","",VLOOKUP(N26,漢字読み!$A$2:$O$506,6,0)) -> ［心］の中 | O28: =IF(O26="","",VLOOKUP(O26,漢字読み!$A$2:$O$506,6,0)) -> ［会社］ではたらく | P28: =IF(P26="","",VLOOKUP(P26,漢字読み!$A$2:$O$506,6,0)) -> ［九才］になる | Q28: =IF(Q26="","",VLOOKUP(Q26,漢字読み!$A$2:$O$506,6,0)) -> ［声］をかける | R28: =IF(R26="","",VLOOKUP(R26,漢字読み!$A$2:$O$506,6,0)) -> 字を［書］く | S28: =IF(S26="","",VLOOKUP(S26,漢字読み!$A$2:$O$506,6,0)) -> ［計算］をする | T28: =IF(T26="","",VLOOKUP(T26,漢字読み!$A$2:$O$506,6,0)) -> わたしの［姉］です | V28: 級
V29: 名前
A30: =IF(A26="","",IF(VLOOKUP(A26,漢字書き!$A$2:$N$502,7,0)=0,"",VLOOKUP(A26,漢字書き!$A$2:$N$502,7,0))) -> い | B30: =IF(B26="","",IF(VLOOKUP(B26,漢字書き!$A$2:$N$502,7,0)=0,"",VLOOKUP(B26,漢字書き!$A$2:$N$502,7,0))) -> か | C30: =IF(C26="","",IF(VLOOKUP(C26,漢字書き!$A$2:$N$502,7,0)=0,"",VLOOKUP(C26,漢字書き!$A$2:$N$502,7,0))) ->  | D30: =IF(D26="","",IF(VLOOKUP(D26,漢字書き!$A$2:$N$502,7,0)=0,"",VLOOKUP(D26,漢字書き!$A$2:$N$502,7,0))) ->  | E30: =IF(E26="","",IF(VLOOKUP(E26,漢字書き!$A$2:$N$502,7,0)=0,"",VLOOKUP(E26,漢字書き!$A$2:$N$502,7,0))) -> い | F30: =IF(F26="","",IF(VLOOKUP(F26,漢字書き!$A$2:$N$502,7,0)=0,"",VLOOKUP(F26,漢字書き!$A$2:$N$502,7,0))) ->  | G30: =IF(G26="","",IF(VLOOKUP(G26,漢字書き!$A$2:$N$502,7,0)=0,"",VLOOKUP(G26,漢字書き!$A$2:$N$502,7,0))) -> る | H30: =IF(H26="","",IF(VLOOKUP(H26,漢字書き!$A$2:$N$502,7,0)=0,"",VLOOKUP(H26,漢字書き!$A$2:$N$502,7,0))) -> る | I30: =IF(I26="","",IF(VLOOKUP(I26,漢字書き!$A$2:$N$502,7,0)=0,"",VLOOKUP(I26,漢字書き!$A$2:$N$502,7,0))) ->  | J30: =IF(J26="","",IF(VLOOKUP(J26,漢字書き!$A$2:$N$502,7,0)=0,"",VLOOKUP(J26,漢字書き!$A$2:$N$502,7,0))) -> ない | K30: =IF(K26="","",IF(VLOOKUP(K26,漢字読み!$A$2:$O$502,7,0)=0,"",VLOOKUP(K26,漢字読み!$A$2:$O$502,7,0))) -> ゆう | L30: =IF(L26="","",IF(VLOOKUP(L26,漢字読み!$A$2:$O$502,7,0)=0,"",VLOOKUP(L26,漢字読み!$A$2:$O$502,7,0))) ->  | M30: =IF(M26="","",IF(VLOOKUP(M26,漢字読み!$A$2:$O$502,7,0)=0,"",VLOOKUP(M26,漢字読み!$A$2:$O$502,7,0))) -> い | N30: =IF(N26="","",IF(VLOOKUP(N26,漢字読み!$A$2:$O$502,7,0)=0,"",VLOOKUP(N26,漢字読み!$A$2:$O$502,7,0))) ->  | O30: =IF(O26="","",IF(VLOOKUP(O26,漢字読み!$A$2:$O$502,7,0)=0,"",VLOOKUP(O26,漢字読み!$A$2:$O$502,7,0))) ->  | P30: =IF(P26="","",IF(VLOOKUP(P26,漢字読み!$A$2:$O$502,7,0)=0,"",VLOOKUP(P26,漢字読み!$A$2:$O$502,7,0))) ->  | Q30: =IF(Q26="","",IF(VLOOKUP(Q26,漢字読み!$A$2:$O$502,7,0)=0,"",VLOOKUP(Q26,漢字読み!$A$2:$O$502,7,0))) ->  | R30: =IF(R26="","",IF(VLOOKUP(R26,漢字読み!$A$2:$O$502,7,0)=0,"",VLOOKUP(R26,漢字読み!$A$2:$O$502,7,0))) -> く | S30: =IF(S26="","",IF(VLOOKUP(S26,漢字読み!$A$2:$O$502,7,0)=0,"",VLOOKUP(S26,漢字読み!$A$2:$O$502,7,0))) ->  | T30: =IF(T26="","",IF(VLOOKUP(T26,漢字読み!$A$2:$O$502,7,0)=0,"",VLOOKUP(T26,漢字読み!$A$2:$O$502,7,0))) ->  | W30: 和歌山県教育委員会
A31: =A21 -> 102 | B31: =B21 -> 27 | C31: =C21 -> 50 | D31: =D21 -> 17 | E31: =E21 -> 95 | F31: =F21 -> 100 | G31: =G21 -> 62 | H31: =H21 -> 77 | I31: =I21 -> 63 | J31: =J21 -> 99 | K31: =K21 -> 85 | L31: =L21 -> 132 | M31: =M21 -> 74 | N31: =N21 -> 60 | O31: =O21 -> 149 | P31: =P21 -> 12 | Q31: =Q21 -> 101 | R31: =R21 -> 7 | S31: =S21 -> 17 | T31: =T21 -> 47
A32: ⑳ | B32: ⑲ | C32: ⑱ | D32: ⑰ | E32: ⑯ | F32: ⑮ | G32: ⑭ | H32: ⑬ | I32: ⑫ | J32: ⑪ | K32: ⑩ | L32: ⑨ | M32: ⑧ | N32: ⑦ | O32: ⑥ | P32: ⑤ | Q32: ④ | R32: ③ | S32: ② | T32: ① | U32: 次の［ ］の部分の漢字には読みがなをひらがなで書き、カタカナは漢字に直しなさい。 | V32: 14 | W32: 「漢字の博士検定試験」練習問題
A33: =IF(A31="","",VLOOKUP(A31,漢字書き!$A$2:$N$506,6,0)) -> あたたかい［ハル］ | B33: =IF(B31="","",VLOOKUP(B31,漢字書き!$A$2:$N$506,6,0)) -> ［イワ］にのぼる | C33: =IF(C31="","",VLOOKUP(C31,漢字書き!$A$2:$N$506,6,0)) -> ［ハラ］っぱであそぶ | D33: =IF(D31="","",VLOOKUP(D31,漢字書き!$A$2:$N$506,6,0)) -> ともだちに［ア］う | E33: =IF(E31="","",VLOOKUP(E31,漢字書き!$A$2:$N$506,6,0)) -> ［ジカン］がすぎる | F33: =IF(F31="","",VLOOKUP(F31,漢字書き!$A$2:$N$506,6,0)) -> ［アキ］まつり | G33: =IF(G31="","",VLOOKUP(G31,漢字書き!$A$2:$N$506,6,0)) -> ［コウ］つうルール | H33: =IF(H31="","",VLOOKUP(H31,漢字書き!$A$2:$N$506,6,0)) -> ［ゴサイ］のたんじょうび | I33: =IF(I31="","",VLOOKUP(I31,漢字書き!$A$2:$N$506,6,0)) -> 星が［ヒカ］る | J33: =IF(J31="","",VLOOKUP(J31,漢字書き!$A$2:$N$506,6,0)) -> 犬の［クビ］わ | K33: =IF(K31="","",VLOOKUP(K31,漢字読み!$A$2:$O$506,6,0)) -> ［黒］ごまのふりかけ | L33: =IF(L31="","",VLOOKUP(L31,漢字読み!$A$2:$O$506,6,0)) -> ［親］にはなす | M33: =IF(M31="","",VLOOKUP(M31,漢字読み!$A$2:$O$506,6,0)) -> ［日光］をあびる | N33: =IF(N31="","",VLOOKUP(N31,漢字読み!$A$2:$O$506,6,0)) -> ［草原］を走る | O33: =IF(O31="","",VLOOKUP(O31,漢字読み!$A$2:$O$506,6,0)) -> ［前］のページ | P33: =IF(P31="","",VLOOKUP(P31,漢字読み!$A$2:$O$506,6,0)) -> ［家］に帰る | Q33: =IF(Q31="","",VLOOKUP(Q31,漢字読み!$A$2:$O$506,6,0)) -> うれしく［思］う | R33: =IF(R31="","",VLOOKUP(R31,漢字読み!$A$2:$O$506,6,0)) -> うれしい［遠足］ | S33: =IF(S31="","",VLOOKUP(S31,漢字読み!$A$2:$O$506,6,0)) -> ［何回］もよむ | T33: =IF(T31="","",VLOOKUP(T31,漢字読み!$A$2:$O$506,6,0)) -> ［強］いチームとたたかう | V33: 級
A34: =IF(A$11="","",VLOOKUP(A31,漢字書き!$A$2:$O$506,8,0)) -> 春 | B34: =IF(B$11="","",VLOOKUP(B31,漢字書き!$A$2:$O$506,8,0)) -> 岩 | C34: =IF(C$11="","",VLOOKUP(C31,漢字書き!$A$2:$O$506,8,0)) -> 原 | D34: =IF(D$11="","",VLOOKUP(D31,漢字書き!$A$2:$O$506,8,0)) -> 会 | E34: =IF(E$11="","",VLOOKUP(E31,漢字書き!$A$2:$O$506,8,0)) -> 時間 | F34: =IF(F$11="","",VLOOKUP(F31,漢字書き!$A$2:$O$506,8,0)) -> 秋 | G34: =IF(G$11="","",VLOOKUP(G31,漢字書き!$A$2:$O$506,8,0)) -> 交 | H34: =IF(H$11="","",VLOOKUP(H31,漢字書き!$A$2:$O$506,8,0)) -> 五才 | I34: =IF(I$11="","",VLOOKUP(I31,漢字書き!$A$2:$O$506,8,0)) -> 光 | J34: =IF(J$11="","",VLOOKUP(J31,漢字書き!$A$2:$O$506,8,0)) -> 首 | K34: =IF(K$11="","",VLOOKUP(K31,漢字読み!$A$2:$O$506,8,0)) -> くろ | L34: =IF(L$11="","",VLOOKUP(L31,漢字読み!$A$2:$O$506,8,0)) -> おや | M34: =IF(M$11="","",VLOOKUP(M31,漢字読み!$A$2:$O$506,8,0)) -> にっこう | N34: =IF(N$11="","",VLOOKUP(N31,漢字読み!$A$2:$O$506,8,0)) -> そうげん | O34: =IF(O$11="","",VLOOKUP(O31,漢字読み!$A$2:$O$506,8,0)) -> まえ | P34: =IF(P$11="","",VLOOKUP(P31,漢字読み!$A$2:$O$506,8,0)) -> いえ | Q34: =IF(Q$11="","",VLOOKUP(Q31,漢字読み!$A$2:$O$506,8,0)) -> おも | R34: =IF(R$11="","",VLOOKUP(R31,漢字読み!$A$2:$O$506,8,0)) -> えんそく | S34: =IF(S$11="","",VLOOKUP(S31,漢字読み!$A$2:$O$506,8,0)) -> なんかい | T34: =IF(T$11="","",VLOOKUP(T31,漢字読み!$A$2:$O$506,8,0)) -> つよ | V34: 名前
A35: =IF(A31="","",IF(VLOOKUP(A31,漢字書き!$A$2:$N$502,7,0)=0,"",VLOOKUP(A31,漢字書き!$A$2:$N$502,7,0))) ->  | B35: =IF(B31="","",IF(VLOOKUP(B31,漢字書き!$A$2:$N$502,7,0)=0,"",VLOOKUP(B31,漢字書き!$A$2:$N$502,7,0))) ->  | C35: =IF(C31="","",IF(VLOOKUP(C31,漢字書き!$A$2:$N$502,7,0)=0,"",VLOOKUP(C31,漢字書き!$A$2:$N$502,7,0))) -> っぱ | D35: =IF(D31="","",IF(VLOOKUP(D31,漢字書き!$A$2:$N$502,7,0)=0,"",VLOOKUP(D31,漢字書き!$A$2:$N$502,7,0))) -> う | E35: =IF(E31="","",IF(VLOOKUP(E31,漢字書き!$A$2:$N$502,7,0)=0,"",VLOOKUP(E31,漢字書き!$A$2:$N$502,7,0))) ->  | F35: =IF(F31="","",IF(VLOOKUP(F31,漢字書き!$A$2:$N$502,7,0)=0,"",VLOOKUP(F31,漢字書き!$A$2:$N$502,7,0))) -> まつり | G35: =IF(G31="","",IF(VLOOKUP(G31,漢字書き!$A$2:$N$502,7,0)=0,"",VLOOKUP(G31,漢字書き!$A$2:$N$502,7,0))) -> つう | H35: =IF(H31="","",IF(VLOOKUP(H31,漢字書き!$A$2:$N$502,7,0)=0,"",VLOOKUP(H31,漢字書き!$A$2:$N$502,7,0))) ->  | I35: =IF(I31="","",IF(VLOOKUP(I31,漢字書き!$A$2:$N$502,7,0)=0,"",VLOOKUP(I31,漢字書き!$A$2:$N$502,7,0))) -> る | J35: =IF(J31="","",IF(VLOOKUP(J31,漢字書き!$A$2:$N$502,7,0)=0,"",VLOOKUP(J31,漢字書き!$A$2:$N$502,7,0))) -> わ | K35: =IF(K31="","",IF(VLOOKUP(K31,漢字読み!$A$2:$O$502,7,0)=0,"",VLOOKUP(K31,漢字読み!$A$2:$O$502,7,0))) -> ごま | L35: =IF(L31="","",IF(VLOOKUP(L31,漢字読み!$A$2:$O$502,7,0)=0,"",VLOOKUP(L31,漢字読み!$A$2:$O$502,7,0))) ->  | M35: =IF(M31="","",IF(VLOOKUP(M31,漢字読み!$A$2:$O$502,7,0)=0,"",VLOOKUP(M31,漢字読み!$A$2:$O$502,7,0))) ->  | N35: =IF(N31="","",IF(VLOOKUP(N31,漢字読み!$A$2:$O$502,7,0)=0,"",VLOOKUP(N31,漢字読み!$A$2:$O$502,7,0))) ->  | O35: =IF(O31="","",IF(VLOOKUP(O31,漢字読み!$A$2:$O$502,7,0)=0,"",VLOOKUP(O31,漢字読み!$A$2:$O$502,7,0))) ->  | P35: =IF(P31="","",IF(VLOOKUP(P31,漢字読み!$A$2:$O$502,7,0)=0,"",VLOOKUP(P31,漢字読み!$A$2:$O$502,7,0))) ->  | Q35: =IF(Q31="","",IF(VLOOKUP(Q31,漢字読み!$A$2:$O$502,7,0)=0,"",VLOOKUP(Q31,漢字読み!$A$2:$O$502,7,0))) -> う | R35: =IF(R31="","",IF(VLOOKUP(R31,漢字読み!$A$2:$O$502,7,0)=0,"",VLOOKUP(R31,漢字読み!$A$2:$O$502,7,0))) ->  | S35: =IF(S31="","",IF(VLOOKUP(S31,漢字読み!$A$2:$O$502,7,0)=0,"",VLOOKUP(S31,漢字読み!$A$2:$O$502,7,0))) ->  | T35: =IF(T31="","",IF(VLOOKUP(T31,漢字読み!$A$2:$O$502,7,0)=0,"",VLOOKUP(T31,漢字読み!$A$2:$O$502,7,0))) -> い | W35: 和歌山県教育委員会
A36: =A26 -> 5 | B36: =B26 -> 7 | C36: =C26 -> 92 | D36: =D26 -> 42 | E36: =E26 -> 26 | F36: =F26 -> 38 | G36: =G26 -> 31 | H36: =H26 -> 15 | I36: =I26 -> 43 | J36: =J26 -> 104 | K36: =K26 -> 131 | L36: =L26 -> 128 | M36: =M26 -> 111 | N36: =N26 -> 127 | O36: =O26 -> 19 | P36: =P26 -> 87 | Q36: =Q26 -> 139 | R36: =R26 -> 119 | S36: =S26 -> 55 | T36: =T26 -> 99
A37: ⑳ | B37: ⑲ | C37: ⑱ | D37: ⑰ | E37: ⑯ | F37: ⑮ | G37: ⑭ | H37: ⑬ | I37: ⑫ | J37: ⑪ | K37: ⑩ | L37: ⑨ | M37: ⑧ | N37: ⑦ | O37: ⑥ | P37: ⑤ | Q37: ④ | R37: ③ | S37: ② | T37: ① | U37: 次の［ ］の部分の漢字には読みがなをひらがなで書き、カタカナは漢字に直しなさい。 | V37: 14 | W37: 「漢字の博士検定試験」練習問題
A38: =IF(A36="","",VLOOKUP(A36,漢字書き!$A$2:$N$506,6,0)) -> ［トオ］いくにのはなし | B38: =IF(B36="","",VLOOKUP(B36,漢字書き!$A$2:$N$506,6,0)) -> ［ナニ］かごようですか | C38: =IF(C36="","",VLOOKUP(C36,漢字書き!$A$2:$N$506,6,0)) -> ［カミ］しばい | D38: =IF(D36="","",VLOOKUP(D36,漢字書き!$A$2:$N$506,6,0)) -> ［アニ］のともだち | E38: =IF(E36="","",VLOOKUP(E36,漢字書き!$A$2:$N$506,6,0)) -> ［マル］い石 | F38: =IF(F36="","",VLOOKUP(F36,漢字書き!$A$2:$N$506,6,0)) -> ［キョウシツ］に入る | G38: =IF(G36="","",VLOOKUP(G36,漢字書き!$A$2:$N$506,6,0)) -> 家に［カエ］る | H38: =IF(H36="","",VLOOKUP(H36,漢字書き!$A$2:$N$506,6,0)) -> 目が［マワ］る | I38: =IF(I36="","",VLOOKUP(I36,漢字書き!$A$2:$N$506,6,0)) -> ［ニンギョウ］をかう | J38: =IF(J36="","",VLOOKUP(J36,漢字書き!$A$2:$N$506,6,0)) -> ［スク］ないおかず | K38: =IF(K36="","",VLOOKUP(K36,漢字読み!$A$2:$O$506,6,0)) -> ［親］ゆうになる | L38: =IF(L36="","",VLOOKUP(L36,漢字読み!$A$2:$O$506,6,0)) -> ［新入生］をむかえる | M38: =IF(M36="","",VLOOKUP(M36,漢字読み!$A$2:$O$506,6,0)) -> 力が［弱］い | N38: =IF(N36="","",VLOOKUP(N36,漢字読み!$A$2:$O$506,6,0)) -> ［心］の中 | O38: =IF(O36="","",VLOOKUP(O36,漢字読み!$A$2:$O$506,6,0)) -> ［会社］ではたらく | P38: =IF(P36="","",VLOOKUP(P36,漢字読み!$A$2:$O$506,6,0)) -> ［九才］になる | Q38: =IF(Q36="","",VLOOKUP(Q36,漢字読み!$A$2:$O$506,6,0)) -> ［声］をかける | R38: =IF(R36="","",VLOOKUP(R36,漢字読み!$A$2:$O$506,6,0)) -> 字を［書］く | S38: =IF(S36="","",VLOOKUP(S36,漢字読み!$A$2:$O$506,6,0)) -> ［計算］をする | T38: =IF(T36="","",VLOOKUP(T36,漢字読み!$A$2:$O$506,6,0)) -> わたしの［姉］です | V38: 級
A39: =IF(A$16="","",VLOOKUP(A36,漢字書き!$A$2:$O$506,8,0)) -> 遠 | B39: =IF(B$16="","",VLOOKUP(B36,漢字書き!$A$2:$O$506,8,0)) -> 何 | C39: =IF(C$16="","",VLOOKUP(C36,漢字書き!$A$2:$O$506,8,0)) -> 紙 | D39: =IF(D$16="","",VLOOKUP(D36,漢字書き!$A$2:$O$506,8,0)) -> 兄 | E39: =IF(E$16="","",VLOOKUP(E36,漢字書き!$A$2:$O$506,8,0)) -> 丸 | F39: =IF(F$16="","",VLOOKUP(F36,漢字書き!$A$2:$O$506,8,0)) -> 教室 | G39: =IF(G$16="","",VLOOKUP(G36,漢字書き!$A$2:$O$506,8,0)) -> 帰 | H39: =IF(H$16="","",VLOOKUP(H36,漢字書き!$A$2:$O$506,8,0)) -> 回 | I39: =IF(I$16="","",VLOOKUP(I36,漢字書き!$A$2:$O$506,8,0)) -> 人形 | J39: =IF(J$16="","",VLOOKUP(J36,漢字書き!$A$2:$O$506,8,0)) -> 少 | K39: =IF(K$16="","",VLOOKUP(K36,漢字読み!$A$2:$O$506,8,0)) -> しん | L39: =IF(L$16="","",VLOOKUP(L36,漢字読み!$A$2:$O$506,8,0)) -> しんにゅうせい | M39: =IF(M$16="","",VLOOKUP(M36,漢字読み!$A$2:$O$506,8,0)) -> よわ | N39: =IF(N$16="","",VLOOKUP(N36,漢字読み!$A$2:$O$506,8,0)) -> こころ | O39: =IF(O$16="","",VLOOKUP(O36,漢字読み!$A$2:$O$506,8,0)) -> かいしゃ | P39: =IF(P$16="","",VLOOKUP(P36,漢字読み!$A$2:$O$506,8,0)) -> きゅうさい | Q39: =IF(Q$16="","",VLOOKUP(Q36,漢字読み!$A$2:$O$506,8,0)) -> こえ | R39: =IF(R$16="","",VLOOKUP(R36,漢字読み!$A$2:$O$506,8,0)) -> か | S39: =IF(S$16="","",VLOOKUP(S36,漢字読み!$A$2:$O$506,8,0)) -> けいさん | T39: =IF(T$16="","",VLOOKUP(T36,漢字読み!$A$2:$O$506,8,0)) -> あね | V39: 名前
A40: =IF(A36="","",IF(VLOOKUP(A36,漢字書き!$A$2:$N$502,7,0)=0,"",VLOOKUP(A36,漢字書き!$A$2:$N$502,7,0))) -> い | B40: =IF(B36="","",IF(VLOOKUP(B36,漢字書き!$A$2:$N$502,7,0)=0,"",VLOOKUP(B36,漢字書き!$A$2:$N$502,7,0))) -> か | C40: =IF(C36="","",IF(VLOOKUP(C36,漢字書き!$A$2:$N$502,7,0)=0,"",VLOOKUP(C36,漢字書き!$A$2:$N$502,7,0))) ->  | D40: =IF(D36="","",IF(VLOOKUP(D36,漢字書き!$A$2:$N$502,7,0)=0,"",VLOOKUP(D36,漢字書き!$A$2:$N$502,7,0))) ->  | E40: =IF(E36="","",IF(VLOOKUP(E36,漢字書き!$A$2:$N$502,7,0)=0,"",VLOOKUP(E36,漢字書き!$A$2:$N$502,7,0))) -> い | F40: =IF(F36="","",IF(VLOOKUP(F36,漢字書き!$A$2:$N$502,7,0)=0,"",VLOOKUP(F36,漢字書き!$A$2:$N$502,7,0))) ->  | G40: =IF(G36="","",IF(VLOOKUP(G36,漢字書き!$A$2:$N$502,7,0)=0,"",VLOOKUP(G36,漢字書き!$A$2:$N$502,7,0))) -> る | H40: =IF(H36="","",IF(VLOOKUP(H36,漢字書き!$A$2:$N$502,7,0)=0,"",VLOOKUP(H36,漢字書き!$A$2:$N$502,7,0))) -> る | I40: =IF(I36="","",IF(VLOOKUP(I36,漢字書き!$A$2:$N$502,7,0)=0,"",VLOOKUP(I36,漢字書き!$A$2:$N$502,7,0))) ->  | J40: =IF(J36="","",IF(VLOOKUP(J36,漢字書き!$A$2:$N$502,7,0)=0,"",VLOOKUP(J36,漢字書き!$A$2:$N$502,7,0))) -> ない | K40: =IF(K36="","",IF(VLOOKUP(K36,漢字読み!$A$2:$O$502,7,0)=0,"",VLOOKUP(K36,漢字読み!$A$2:$O$502,7,0))) -> ゆう | L40: =IF(L36="","",IF(VLOOKUP(L36,漢字読み!$A$2:$O$502,7,0)=0,"",VLOOKUP(L36,漢字読み!$A$2:$O$502,7,0))) ->  | M40: =IF(M36="","",IF(VLOOKUP(M36,漢字読み!$A$2:$O$502,7,0)=0,"",VLOOKUP(M36,漢字読み!$A$2:$O$502,7,0))) -> い | N40: =IF(N36="","",IF(VLOOKUP(N36,漢字読み!$A$2:$O$502,7,0)=0,"",VLOOKUP(N36,漢字読み!$A$2:$O$502,7,0))) ->  | O40: =IF(O36="","",IF(VLOOKUP(O36,漢字読み!$A$2:$O$502,7,0)=0,"",VLOOKUP(O36,漢字読み!$A$2:$O$502,7,0))) ->  | P40: =IF(P36="","",IF(VLOOKUP(P36,漢字読み!$A$2:$O$502,7,0)=0,"",VLOOKUP(P36,漢字読み!$A$2:$O$502,7,0))) ->  | Q40: =IF(Q36="","",IF(VLOOKUP(Q36,漢字読み!$A$2:$O$502,7,0)=0,"",VLOOKUP(Q36,漢字読み!$A$2:$O$502,7,0))) ->  | R40: =IF(R36="","",IF(VLOOKUP(R36,漢字読み!$A$2:$O$502,7,0)=0,"",VLOOKUP(R36,漢字読み!$A$2:$O$502,7,0))) -> く | S40: =IF(S36="","",IF(VLOOKUP(S36,漢字読み!$A$2:$O$502,7,0)=0,"",VLOOKUP(S36,漢字読み!$A$2:$O$502,7,0))) ->  | T40: =IF(T36="","",IF(VLOOKUP(T36,漢字読み!$A$2:$O$502,7,0)=0,"",VLOOKUP(T36,漢字読み!$A$2:$O$502,7,0))) ->  | W40: 和歌山県教育委員会
A41: =INDIRECT("'関数（書き）'!C" & COLUMN(B$1)+SUM($AD$2:$AD42)) -> 70 | B41: =INDIRECT("'関数（書き）'!C" & COLUMN(C$1)+SUM($AD$2:$AD42)) -> 13 | C41: =INDIRECT("'関数（書き）'!C" & COLUMN(D$1)+SUM($AD$2:$AD42)) -> 2 | D41: =INDIRECT("'関数（書き）'!C" & COLUMN(E$1)+SUM($AD$2:$AD42)) -> 53 | E41: =INDIRECT("'関数（書き）'!C" & COLUMN(F$1)+SUM($AD$2:$AD42)) -> 9 | F41: =INDIRECT("'関数（書き）'!C" & COLUMN(G$1)+SUM($AD$2:$AD42)) -> 54 | G41: =INDIRECT("'関数（書き）'!C" & COLUMN(H$1)+SUM($AD$2:$AD42)) -> 56 | H41: =INDIRECT("'関数（書き）'!C" & COLUMN(I$1)+SUM($AD$2:$AD42)) -> 67 | I41: =INDIRECT("'関数（書き）'!C" & COLUMN(J$1)+SUM($AD$2:$AD42)) -> 85 | J41: =INDIRECT("'関数（書き）'!C" & COLUMN(K$1)+SUM($AD$2:$AD42)) -> 82 | K41: =INDIRECT("'関数（読み）'!C" & COLUMN(B$1)+SUM($AD$2:$AD42)) -> 63 | L41: =INDIRECT("'関数（読み）'!C" & COLUMN(C$1)+SUM($AD$2:$AD42)) -> 53 | M41: =INDIRECT("'関数（読み）'!C" & COLUMN(D$1)+SUM($AD$2:$AD42)) -> 25 | N41: =INDIRECT("'関数（読み）'!C" & COLUMN(E$1)+SUM($AD$2:$AD42)) -> 100 | O41: =INDIRECT("'関数（読み）'!C" & COLUMN(F$1)+SUM($AD$2:$AD42)) -> 44 | P41: =INDIRECT("'関数（読み）'!C" & COLUMN(G$1)+SUM($AD$2:$AD42)) -> 88 | Q41: =INDIRECT("'関数（読み）'!C" & COLUMN(H$1)+SUM($AD$2:$AD42)) -> 26 | R41: =INDIRECT("'関数（読み）'!C" & COLUMN(I$1)+SUM($AD$2:$AD42)) -> 57 | S41: =INDIRECT("'関数（読み）'!C" & COLUMN(J$1)+SUM($AD$2:$AD42)) -> 41 | T41: =INDIRECT("'関数（読み）'!C" & COLUMN(K$1)+SUM($AD$2:$AD42)) -> 70
A42: ⑳ | B42: ⑲ | C42: ⑱ | D42: ⑰ | E42: ⑯ | F42: ⑮ | G42: ⑭ | H42: ⑬ | I42: ⑫ | J42: ⑪ | K42: ⑩ | L42: ⑨ | M42: ⑧ | N42: ⑦ | O42: ⑥ | P42: ⑤ | Q42: ④ | R42: ③ | S42: ② | T42: ① | U42: 次の［ ］の部分の漢字には読みがなをひらがなで書き、カタカナは漢字に直しなさい。 | V42: 14 | W42: 「漢字の博士検定試験」練習問題 | AC42: ← | AD42: 10 | AE42: 問 | AF42: =AH27+1 -> 41 | AG42: ～ | AH42: =SUM($AD$2:$AD42)+10 -> 50 | AI42: 問まで | AJ42: =COUNTIF($A$1:$T$200,T43) -> 2
A43: =IF(A41="","",VLOOKUP(A41,漢字書き!$A$2:$N$506,6,0)) -> テストに［ゴウ］かくする | B43: =IF(B41="","",VLOOKUP(B41,漢字書き!$A$2:$N$506,6,0)) -> ［ウタゴエ］がひびく | C43: =IF(C41="","",VLOOKUP(C41,漢字書き!$A$2:$N$506,6,0)) -> とりの［ハネ］ | D43: =IF(D41="","",VLOOKUP(D41,漢字書き!$A$2:$N$506,6,0)) -> ［ゴゴ］のひととき | E43: =IF(E41="","",VLOOKUP(E41,漢字書き!$A$2:$N$506,6,0)) -> ながい［ナツヤス］み | F43: =IF(F41="","",VLOOKUP(F41,漢字書き!$A$2:$N$506,6,0)) -> 先生の［ウシ］ろをあるく | G43: =IF(G41="","",VLOOKUP(G41,漢字書き!$A$2:$N$506,6,0)) -> むかしばなしを［カタ］る | H43: =IF(H41="","",VLOOKUP(H41,漢字書き!$A$2:$N$506,6,0)) -> ありの［ギョウ］れつ | I43: =IF(I41="","",VLOOKUP(I41,漢字書き!$A$2:$N$506,6,0)) -> ［ケイサン］もんだい | J43: =IF(J41="","",VLOOKUP(J41,漢字書き!$A$2:$N$506,6,0)) -> ［サクブン］をかく | K43: =IF(K41="","",VLOOKUP(K41,漢字読み!$A$2:$O$506,6,0)) -> ［古文］をよむ | L43: =IF(L41="","",VLOOKUP(L41,漢字読み!$A$2:$O$506,6,0)) -> ［形］をかえる | M43: =IF(M41="","",VLOOKUP(M41,漢字読み!$A$2:$O$506,6,0)) -> ［外国］の町 | N43: =IF(N41="","",VLOOKUP(N41,漢字読み!$A$2:$O$506,6,0)) -> ［思］いでをつくる | O43: =IF(O41="","",VLOOKUP(O41,漢字読み!$A$2:$O$506,6,0)) -> ［魚］のむれ | P43: =IF(P41="","",VLOOKUP(P41,漢字読み!$A$2:$O$506,6,0)) -> かれは［天才］だ | Q43: =IF(Q41="","",VLOOKUP(Q41,漢字読み!$A$2:$O$506,6,0)) -> ［角］どをはかる | R43: =IF(R41="","",VLOOKUP(R41,漢字読み!$A$2:$O$506,6,0)) -> ［元気］にあそぶ | S43: =IF(S41="","",VLOOKUP(S41,漢字読み!$A$2:$O$506,6,0)) -> ［牛］をかう | T43: =IF(T41="","",VLOOKUP(T41,漢字読み!$A$2:$O$506,6,0)) -> ［広］い原っぱ | V43: 級
V44: 名前
A45: =IF(A41="","",IF(VLOOKUP(A41,漢字書き!$A$2:$N$502,7,0)=0,"",VLOOKUP(A41,漢字書き!$A$2:$N$502,7,0))) -> かく | B45: =IF(B41="","",IF(VLOOKUP(B41,漢字書き!$A$2:$N$502,7,0)=0,"",VLOOKUP(B41,漢字書き!$A$2:$N$502,7,0))) ->  | C45: =IF(C41="","",IF(VLOOKUP(C41,漢字書き!$A$2:$N$502,7,0)=0,"",VLOOKUP(C41,漢字書き!$A$2:$N$502,7,0))) ->  | D45: =IF(D41="","",IF(VLOOKUP(D41,漢字書き!$A$2:$N$502,7,0)=0,"",VLOOKUP(D41,漢字書き!$A$2:$N$502,7,0))) ->  | E45: =IF(E41="","",IF(VLOOKUP(E41,漢字書き!$A$2:$N$502,7,0)=0,"",VLOOKUP(E41,漢字書き!$A$2:$N$502,7,0))) -> み | F45: =IF(F41="","",IF(VLOOKUP(F41,漢字書き!$A$2:$N$502,7,0)=0,"",VLOOKUP(F41,漢字書き!$A$2:$N$502,7,0))) -> ろ | G45: =IF(G41="","",IF(VLOOKUP(G41,漢字書き!$A$2:$N$502,7,0)=0,"",VLOOKUP(G41,漢字書き!$A$2:$N$502,7,0))) -> る | H45: =IF(H41="","",IF(VLOOKUP(H41,漢字書き!$A$2:$N$502,7,0)=0,"",VLOOKUP(H41,漢字書き!$A$2:$N$502,7,0))) -> れつ | I45: =IF(I41="","",IF(VLOOKUP(I41,漢字書き!$A$2:$N$502,7,0)=0,"",VLOOKUP(I41,漢字書き!$A$2:$N$502,7,0))) ->  | J45: =IF(J41="","",IF(VLOOKUP(J41,漢字書き!$A$2:$N$502,7,0)=0,"",VLOOKUP(J41,漢字書き!$A$2:$N$502,7,0))) ->  | K45: =IF(K41="","",IF(VLOOKUP(K41,漢字読み!$A$2:$O$502,7,0)=0,"",VLOOKUP(K41,漢字読み!$A$2:$O$502,7,0))) ->  | L45: =IF(L41="","",IF(VLOOKUP(L41,漢字読み!$A$2:$O$502,7,0)=0,"",VLOOKUP(L41,漢字読み!$A$2:$O$502,7,0))) ->  | M45: =IF(M41="","",IF(VLOOKUP(M41,漢字読み!$A$2:$O$502,7,0)=0,"",VLOOKUP(M41,漢字読み!$A$2:$O$502,7,0))) ->  | N45: =IF(N41="","",IF(VLOOKUP(N41,漢字読み!$A$2:$O$502,7,0)=0,"",VLOOKUP(N41,漢字読み!$A$2:$O$502,7,0))) -> いで | O45: =IF(O41="","",IF(VLOOKUP(O41,漢字読み!$A$2:$O$502,7,0)=0,"",VLOOKUP(O41,漢字読み!$A$2:$O$502,7,0))) ->  | P45: =IF(P41="","",IF(VLOOKUP(P41,漢字読み!$A$2:$O$502,7,0)=0,"",VLOOKUP(P41,漢字読み!$A$2:$O$502,7,0))) ->  | Q45: =IF(Q41="","",IF(VLOOKUP(Q41,漢字読み!$A$2:$O$502,7,0)=0,"",VLOOKUP(Q41,漢字読み!$A$2:$O$502,7,0))) -> ど | R45: =IF(R41="","",IF(VLOOKUP(R41,漢字読み!$A$2:$O$502,7,0)=0,"",VLOOKUP(R41,漢字読み!$A$2:$O$502,7,0))) ->  | S45: =IF(S41="","",IF(VLOOKUP(S41,漢字読み!$A$2:$O$502,7,0)=0,"",VLOOKUP(S41,漢字読み!$A$2:$O$502,7,0))) ->  | T45: =IF(T41="","",IF(VLOOKUP(T41,漢字読み!$A$2:$O$502,7,0)=0,"",VLOOKUP(T41,漢字読み!$A$2:$O$502,7,0))) -> い | W45: 和歌山県教育委員会
A46: =INDIRECT("'関数（書き）'!C" & COLUMN(B$1)+SUM($AD$2:$AD47)) -> 121 | B46: =INDIRECT("'関数（書き）'!C" & COLUMN(C$1)+SUM($AD$2:$AD47)) -> 107 | C46: =INDIRECT("'関数（書き）'!C" & COLUMN(D$1)+SUM($AD$2:$AD47)) -> 94 | D46: =INDIRECT("'関数（書き）'!C" & COLUMN(E$1)+SUM($AD$2:$AD47)) -> 61 | E46: =INDIRECT("'関数（書き）'!C" & COLUMN(F$1)+SUM($AD$2:$AD47)) -> 20 | F46: =INDIRECT("'関数（書き）'!C" & COLUMN(G$1)+SUM($AD$2:$AD47)) -> 57 | G46: =INDIRECT("'関数（書き）'!C" & COLUMN(H$1)+SUM($AD$2:$AD47)) -> 29 | H46: =INDIRECT("'関数（書き）'!C" & COLUMN(I$1)+SUM($AD$2:$AD47)) -> 39 | I46: =INDIRECT("'関数（書き）'!C" & COLUMN(J$1)+SUM($AD$2:$AD47)) -> 112 | J46: =INDIRECT("'関数（書き）'!C" & COLUMN(K$1)+SUM($AD$2:$AD47)) -> 73 | K46: =INDIRECT("'関数（読み）'!C" & COLUMN(B$1)+SUM($AD$2:$AD47)) -> 135 | L46: =INDIRECT("'関数（読み）'!C" & COLUMN(C$1)+SUM($AD$2:$AD47)) -> 144 | M46: =INDIRECT("'関数（読み）'!C" & COLUMN(D$1)+SUM($AD$2:$AD47)) -> 65 | N46: =INDIRECT("'関数（読み）'!C" & COLUMN(E$1)+SUM($AD$2:$AD47)) -> 120 | O46: =INDIRECT("'関数（読み）'!C" & COLUMN(F$1)+SUM($AD$2:$AD47)) -> 45 | P46: =INDIRECT("'関数（読み）'!C" & COLUMN(G$1)+SUM($AD$2:$AD47)) -> 81 | Q46: =INDIRECT("'関数（読み）'!C" & COLUMN(H$1)+SUM($AD$2:$AD47)) -> 32 | R46: =INDIRECT("'関数（読み）'!C" & COLUMN(I$1)+SUM($AD$2:$AD47)) -> 61 | S46: =INDIRECT("'関数（読み）'!C" & COLUMN(J$1)+SUM($AD$2:$AD47)) -> 137 | T46: =INDIRECT("'関数（読み）'!C" & COLUMN(K$1)+SUM($AD$2:$AD47)) -> 33
A47: ⑳ | B47: ⑲ | C47: ⑱ | D47: ⑰ | E47: ⑯ | F47: ⑮ | G47: ⑭ | H47: ⑬ | I47: ⑫ | J47: ⑪ | K47: ⑩ | L47: ⑨ | M47: ⑧ | N47: ⑦ | O47: ⑥ | P47: ⑤ | Q47: ④ | R47: ③ | S47: ② | T47: ① | U47: 次の［ ］の部分の漢字には読みがなをひらがなで書き、カタカナは漢字に直しなさい。 | V47: 14 | W47: 「漢字の博士検定試験」練習問題 | AC47: ← | AD47: 10 | AE47: 問 | AF47: =AH42+1 -> 51 | AG47: ～ | AH47: =SUM($AD$2:$AD47)+10 -> 60 | AI47: 問まで | AJ47: =COUNTIF($A$1:$T$200,T48) -> 2
A48: =IF(A46="","",VLOOKUP(A46,漢字書き!$A$2:$N$506,6,0)) -> よく［ハ］れた日 | B48: =IF(B46="","",VLOOKUP(B46,漢字書き!$A$2:$N$506,6,0)) -> ［イロ］えんぴつ | C48: =IF(C46="","",VLOOKUP(C46,漢字書き!$A$2:$N$506,6,0)) -> ［ジ］てん車にのる | D48: =IF(D46="","",VLOOKUP(D46,漢字書き!$A$2:$N$506,6,0)) -> せんしゅの［コウ］たい | E48: =IF(E46="","",VLOOKUP(E46,漢字書き!$A$2:$N$506,6,0)) -> ［エ］にかいて見せる | F48: =IF(F46="","",VLOOKUP(F46,漢字書き!$A$2:$N$506,6,0)) -> ［ダイク］さんが家をたてる | G48: =IF(G46="","",VLOOKUP(G46,漢字書き!$A$2:$N$506,6,0)) -> おもちゃの［キシャ］ | H48: =IF(H46="","",VLOOKUP(H46,漢字書き!$A$2:$N$506,6,0)) -> ［スウジ］をよむ | I48: =IF(I46="","",VLOOKUP(I46,漢字書き!$A$2:$N$506,6,0)) -> ぞうの［オヤコ］ | J48: =IF(J46="","",VLOOKUP(J46,漢字書き!$A$2:$N$506,6,0)) -> ［ガイコク］に行く | K48: =IF(K46="","",VLOOKUP(K46,漢字読み!$A$2:$O$506,6,0)) -> ［算数］のノート | L48: =IF(L46="","",VLOOKUP(L46,漢字読み!$A$2:$O$506,6,0)) -> ［切手］をあつめる | M48: =IF(M46="","",VLOOKUP(M46,漢字読み!$A$2:$O$506,6,0)) -> ［午後］のひととき | N48: =IF(N46="","",VLOOKUP(N46,漢字読み!$A$2:$O$506,6,0)) -> ［少］人数のクラス | O48: =IF(O46="","",VLOOKUP(O46,漢字読み!$A$2:$O$506,6,0)) -> かわいい［金魚］ | P48: =IF(P46="","",VLOOKUP(P46,漢字読み!$A$2:$O$506,6,0)) -> ［黄色］いたんぽぽ | Q48: =IF(Q46="","",VLOOKUP(Q46,漢字読み!$A$2:$O$506,6,0)) -> ［岩］かげにかくれる | R48: =IF(R46="","",VLOOKUP(R46,漢字読み!$A$2:$O$506,6,0)) -> ［雨戸］をしめる | S48: =IF(S46="","",VLOOKUP(S46,漢字読み!$A$2:$O$506,6,0)) -> おはじきを［数］える | T48: =IF(T46="","",VLOOKUP(T46,漢字読み!$A$2:$O$506,6,0)) -> ［岩石］のしゅるい | V48: 級
V49: 名前
A50: =IF(A46="","",IF(VLOOKUP(A46,漢字書き!$A$2:$N$502,7,0)=0,"",VLOOKUP(A46,漢字書き!$A$2:$N$502,7,0))) -> れた | B50: =IF(B46="","",IF(VLOOKUP(B46,漢字書き!$A$2:$N$502,7,0)=0,"",VLOOKUP(B46,漢字書き!$A$2:$N$502,7,0))) ->  | C50: =IF(C46="","",IF(VLOOKUP(C46,漢字書き!$A$2:$N$502,7,0)=0,"",VLOOKUP(C46,漢字書き!$A$2:$N$502,7,0))) -> てん車 | D50: =IF(D46="","",IF(VLOOKUP(D46,漢字書き!$A$2:$N$502,7,0)=0,"",VLOOKUP(D46,漢字書き!$A$2:$N$502,7,0))) -> たい | E50: =IF(E46="","",IF(VLOOKUP(E46,漢字書き!$A$2:$N$502,7,0)=0,"",VLOOKUP(E46,漢字書き!$A$2:$N$502,7,0))) ->  | F50: =IF(F46="","",IF(VLOOKUP(F46,漢字書き!$A$2:$N$502,7,0)=0,"",VLOOKUP(F46,漢字書き!$A$2:$N$502,7,0))) ->  | G50: =IF(G46="","",IF(VLOOKUP(G46,漢字書き!$A$2:$N$502,7,0)=0,"",VLOOKUP(G46,漢字書き!$A$2:$N$502,7,0))) ->  | H50: =IF(H46="","",IF(VLOOKUP(H46,漢字書き!$A$2:$N$502,7,0)=0,"",VLOOKUP(H46,漢字書き!$A$2:$N$502,7,0))) ->  | I50: =IF(I46="","",IF(VLOOKUP(I46,漢字書き!$A$2:$N$502,7,0)=0,"",VLOOKUP(I46,漢字書き!$A$2:$N$502,7,0))) ->  | J50: =IF(J46="","",IF(VLOOKUP(J46,漢字書き!$A$2:$N$502,7,0)=0,"",VLOOKUP(J46,漢字書き!$A$2:$N$502,7,0))) ->  | K50: =IF(K46="","",IF(VLOOKUP(K46,漢字読み!$A$2:$O$502,7,0)=0,"",VLOOKUP(K46,漢字読み!$A$2:$O$502,7,0))) ->  | L50: =IF(L46="","",IF(VLOOKUP(L46,漢字読み!$A$2:$O$502,7,0)=0,"",VLOOKUP(L46,漢字読み!$A$2:$O$502,7,0))) ->  | M50: =IF(M46="","",IF(VLOOKUP(M46,漢字読み!$A$2:$O$502,7,0)=0,"",VLOOKUP(M46,漢字読み!$A$2:$O$502,7,0))) ->  | N50: =IF(N46="","",IF(VLOOKUP(N46,漢字読み!$A$2:$O$502,7,0)=0,"",VLOOKUP(N46,漢字読み!$A$2:$O$502,7,0))) -> 人数 | O50: =IF(O46="","",IF(VLOOKUP(O46,漢字読み!$A$2:$O$502,7,0)=0,"",VLOOKUP(O46,漢字読み!$A$2:$O$502,7,0))) ->  | P50: =IF(P46="","",IF(VLOOKUP(P46,漢字読み!$A$2:$O$502,7,0)=0,"",VLOOKUP(P46,漢字読み!$A$2:$O$502,7,0))) -> い | Q50: =IF(Q46="","",IF(VLOOKUP(Q46,漢字読み!$A$2:$O$502,7,0)=0,"",VLOOKUP(Q46,漢字読み!$A$2:$O$502,7,0))) -> かげ | R50: =IF(R46="","",IF(VLOOKUP(R46,漢字読み!$A$2:$O$502,7,0)=0,"",VLOOKUP(R46,漢字読み!$A$2:$O$502,7,0))) ->  | S50: =IF(S46="","",IF(VLOOKUP(S46,漢字読み!$A$2:$O$502,7,0)=0,"",VLOOKUP(S46,漢字読み!$A$2:$O$502,7,0))) -> える | T50: =IF(T46="","",IF(VLOOKUP(T46,漢字読み!$A$2:$O$502,7,0)=0,"",VLOOKUP(T46,漢字読み!$A$2:$O$502,7,0))) ->  | W50: 和歌山県教育委員会
A51: =A41 -> 70 | B51: =B41 -> 13 | C51: =C41 -> 2 | D51: =D41 -> 53 | E51: =E41 -> 9 | F51: =F41 -> 54 | G51: =G41 -> 56 | H51: =H41 -> 67 | I51: =I41 -> 85 | J51: =J41 -> 82 | K51: =K41 -> 63 | L51: =L41 -> 53 | M51: =M41 -> 25 | N51: =N41 -> 100 | O51: =O41 -> 44 | P51: =P41 -> 88 | Q51: =Q41 -> 26 | R51: =R41 -> 57 | S51: =S41 -> 41 | T51: =T41 -> 70
A52: ⑳ | B52: ⑲ | C52: ⑱ | D52: ⑰ | E52: ⑯ | F52: ⑮ | G52: ⑭ | H52: ⑬ | I52: ⑫ | J52: ⑪ | K52: ⑩ | L52: ⑨ | M52: ⑧ | N52: ⑦ | O52: ⑥ | P52: ⑤ | Q52: ④ | R52: ③ | S52: ② | T52: ① | U52: 次の［ ］の部分の漢字には読みがなをひらがなで書き、カタカナは漢字に直しなさい。 | V52: 14 | W52: 「漢字の博士検定試験」練習問題
A53: =IF(A51="","",VLOOKUP(A51,漢字書き!$A$2:$N$506,6,0)) -> テストに［ゴウ］かくする | B53: =IF(B51="","",VLOOKUP(B51,漢字書き!$A$2:$N$506,6,0)) -> ［ウタゴエ］がひびく | C53: =IF(C51="","",VLOOKUP(C51,漢字書き!$A$2:$N$506,6,0)) -> とりの［ハネ］ | D53: =IF(D51="","",VLOOKUP(D51,漢字書き!$A$2:$N$506,6,0)) -> ［ゴゴ］のひととき | E53: =IF(E51="","",VLOOKUP(E51,漢字書き!$A$2:$N$506,6,0)) -> ながい［ナツヤス］み | F53: =IF(F51="","",VLOOKUP(F51,漢字書き!$A$2:$N$506,6,0)) -> 先生の［ウシ］ろをあるく | G53: =IF(G51="","",VLOOKUP(G51,漢字書き!$A$2:$N$506,6,0)) -> むかしばなしを［カタ］る | H53: =IF(H51="","",VLOOKUP(H51,漢字書き!$A$2:$N$506,6,0)) -> ありの［ギョウ］れつ | I53: =IF(I51="","",VLOOKUP(I51,漢字書き!$A$2:$N$506,6,0)) -> ［ケイサン］もんだい | J53: =IF(J51="","",VLOOKUP(J51,漢字書き!$A$2:$N$506,6,0)) -> ［サクブン］をかく | K53: =IF(K51="","",VLOOKUP(K51,漢字読み!$A$2:$O$506,6,0)) -> ［古文］をよむ | L53: =IF(L51="","",VLOOKUP(L51,漢字読み!$A$2:$O$506,6,0)) -> ［形］をかえる | M53: =IF(M51="","",VLOOKUP(M51,漢字読み!$A$2:$O$506,6,0)) -> ［外国］の町 | N53: =IF(N51="","",VLOOKUP(N51,漢字読み!$A$2:$O$506,6,0)) -> ［思］いでをつくる | O53: =IF(O51="","",VLOOKUP(O51,漢字読み!$A$2:$O$506,6,0)) -> ［魚］のむれ | P53: =IF(P51="","",VLOOKUP(P51,漢字読み!$A$2:$O$506,6,0)) -> かれは［天才］だ | Q53: =IF(Q51="","",VLOOKUP(Q51,漢字読み!$A$2:$O$506,6,0)) -> ［角］どをはかる | R53: =IF(R51="","",VLOOKUP(R51,漢字読み!$A$2:$O$506,6,0)) -> ［元気］にあそぶ | S53: =IF(S51="","",VLOOKUP(S51,漢字読み!$A$2:$O$506,6,0)) -> ［牛］をかう | T53: =IF(T51="","",VLOOKUP(T51,漢字読み!$A$2:$O$506,6,0)) -> ［広］い原っぱ | V53: 級
A54: =IF(A$11="","",VLOOKUP(A51,漢字書き!$A$2:$O$506,8,0)) -> 合 | B54: =IF(B$11="","",VLOOKUP(B51,漢字書き!$A$2:$O$506,8,0)) -> 歌声 | C54: =IF(C$11="","",VLOOKUP(C51,漢字書き!$A$2:$O$506,8,0)) -> 羽 | D54: =IF(D$11="","",VLOOKUP(D51,漢字書き!$A$2:$O$506,8,0)) -> 午後 | E54: =IF(E$11="","",VLOOKUP(E51,漢字書き!$A$2:$O$506,8,0)) -> 夏休 | F54: =IF(F$11="","",VLOOKUP(F51,漢字書き!$A$2:$O$506,8,0)) -> 後 | G54: =IF(G$11="","",VLOOKUP(G51,漢字書き!$A$2:$O$506,8,0)) -> 語 | H54: =IF(H$11="","",VLOOKUP(H51,漢字書き!$A$2:$O$506,8,0)) -> 行 | I54: =IF(I$11="","",VLOOKUP(I51,漢字書き!$A$2:$O$506,8,0)) -> 計算 | J54: =IF(J$11="","",VLOOKUP(J51,漢字書き!$A$2:$O$506,8,0)) -> 作文 | K54: =IF(K$11="","",VLOOKUP(K51,漢字読み!$A$2:$O$506,8,0)) -> こぶん | L54: =IF(L$11="","",VLOOKUP(L51,漢字読み!$A$2:$O$506,8,0)) -> かたち | M54: =IF(M$11="","",VLOOKUP(M51,漢字読み!$A$2:$O$506,8,0)) -> がいこく | N54: =IF(N$11="","",VLOOKUP(N51,漢字読み!$A$2:$O$506,8,0)) -> おも | O54: =IF(O$11="","",VLOOKUP(O51,漢字読み!$A$2:$O$506,8,0)) -> さかな | P54: =IF(P$11="","",VLOOKUP(P51,漢字読み!$A$2:$O$506,8,0)) -> てんさい | Q54: =IF(Q$11="","",VLOOKUP(Q51,漢字読み!$A$2:$O$506,8,0)) -> かく | R54: =IF(R$11="","",VLOOKUP(R51,漢字読み!$A$2:$O$506,8,0)) -> げんき | S54: =IF(S$11="","",VLOOKUP(S51,漢字読み!$A$2:$O$506,8,0)) -> うし | T54: =IF(T$11="","",VLOOKUP(T51,漢字読み!$A$2:$O$506,8,0)) -> ひろ | V54: 名前
A55: =IF(A51="","",IF(VLOOKUP(A51,漢字書き!$A$2:$N$502,7,0)=0,"",VLOOKUP(A51,漢字書き!$A$2:$N$502,7,0))) -> かく | B55: =IF(B51="","",IF(VLOOKUP(B51,漢字書き!$A$2:$N$502,7,0)=0,"",VLOOKUP(B51,漢字書き!$A$2:$N$502,7,0))) ->  | C55: =IF(C51="","",IF(VLOOKUP(C51,漢字書き!$A$2:$N$502,7,0)=0,"",VLOOKUP(C51,漢字書き!$A$2:$N$502,7,0))) ->  | D55: =IF(D51="","",IF(VLOOKUP(D51,漢字書き!$A$2:$N$502,7,0)=0,"",VLOOKUP(D51,漢字書き!$A$2:$N$502,7,0))) ->  | E55: =IF(E51="","",IF(VLOOKUP(E51,漢字書き!$A$2:$N$502,7,0)=0,"",VLOOKUP(E51,漢字書き!$A$2:$N$502,7,0))) -> み | F55: =IF(F51="","",IF(VLOOKUP(F51,漢字書き!$A$2:$N$502,7,0)=0,"",VLOOKUP(F51,漢字書き!$A$2:$N$502,7,0))) -> ろ | G55: =IF(G51="","",IF(VLOOKUP(G51,漢字書き!$A$2:$N$502,7,0)=0,"",VLOOKUP(G51,漢字書き!$A$2:$N$502,7,0))) -> る | H55: =IF(H51="","",IF(VLOOKUP(H51,漢字書き!$A$2:$N$502,7,0)=0,"",VLOOKUP(H51,漢字書き!$A$2:$N$502,7,0))) -> れつ | I55: =IF(I51="","",IF(VLOOKUP(I51,漢字書き!$A$2:$N$502,7,0)=0,"",VLOOKUP(I51,漢字書き!$A$2:$N$502,7,0))) ->  | J55: =IF(J51="","",IF(VLOOKUP(J51,漢字書き!$A$2:$N$502,7,0)=0,"",VLOOKUP(J51,漢字書き!$A$2:$N$502,7,0))) ->  | K55: =IF(K51="","",IF(VLOOKUP(K51,漢字読み!$A$2:$O$502,7,0)=0,"",VLOOKUP(K51,漢字読み!$A$2:$O$502,7,0))) ->  | L55: =IF(L51="","",IF(VLOOKUP(L51,漢字読み!$A$2:$O$502,7,0)=0,"",VLOOKUP(L51,漢字読み!$A$2:$O$502,7,0))) ->  | M55: =IF(M51="","",IF(VLOOKUP(M51,漢字読み!$A$2:$O$502,7,0)=0,"",VLOOKUP(M51,漢字読み!$A$2:$O$502,7,0))) ->  | N55: =IF(N51="","",IF(VLOOKUP(N51,漢字読み!$A$2:$O$502,7,0)=0,"",VLOOKUP(N51,漢字読み!$A$2:$O$502,7,0))) -> いで | O55: =IF(O51="","",IF(VLOOKUP(O51,漢字読み!$A$2:$O$502,7,0)=0,"",VLOOKUP(O51,漢字読み!$A$2:$O$502,7,0))) ->  | P55: =IF(P51="","",IF(VLOOKUP(P51,漢字読み!$A$2:$O$502,7,0)=0,"",VLOOKUP(P51,漢字読み!$A$2:$O$502,7,0))) ->  | Q55: =IF(Q51="","",IF(VLOOKUP(Q51,漢字読み!$A$2:$O$502,7,0)=0,"",VLOOKUP(Q51,漢字読み!$A$2:$O$502,7,0))) -> ど | R55: =IF(R51="","",IF(VLOOKUP(R51,漢字読み!$A$2:$O$502,7,0)=0,"",VLOOKUP(R51,漢字読み!$A$2:$O$502,7,0))) ->  | S55: =IF(S51="","",IF(VLOOKUP(S51,漢字読み!$A$2:$O$502,7,0)=0,"",VLOOKUP(S51,漢字読み!$A$2:$O$502,7,0))) ->  | T55: =IF(T51="","",IF(VLOOKUP(T51,漢字読み!$A$2:$O$502,7,0)=0,"",VLOOKUP(T51,漢字読み!$A$2:$O$502,7,0))) -> い | W55: 和歌山県教育委員会
A56: =A46 -> 121 | B56: =B46 -> 107 | C56: =C46 -> 94 | D56: =D46 -> 61 | E56: =E46 -> 20 | F56: =F46 -> 57 | G56: =G46 -> 29 | H56: =H46 -> 39 | I56: =I46 -> 112 | J56: =J46 -> 73 | K56: =K46 -> 135 | L56: =L46 -> 144 | M56: =M46 -> 65 | N56: =N46 -> 120 | O56: =O46 -> 45 | P56: =P46 -> 81 | Q56: =Q46 -> 32 | R56: =R46 -> 61 | S56: =S46 -> 137 | T56: =T46 -> 33
A57: ⑳ | B57: ⑲ | C57: ⑱ | D57: ⑰ | E57: ⑯ | F57: ⑮ | G57: ⑭ | H57: ⑬ | I57: ⑫ | J57: ⑪ | K57: ⑩ | L57: ⑨ | M57: ⑧ | N57: ⑦ | O57: ⑥ | P57: ⑤ | Q57: ④ | R57: ③ | S57: ② | T57: ① | U57: 次の［ ］の部分の漢字には読みがなをひらがなで書き、カタカナは漢字に直しなさい。 | V57: 14 | W57: 「漢字の博士検定試験」練習問題
A58: =IF(A56="","",VLOOKUP(A56,漢字書き!$A$2:$N$506,6,0)) -> よく［ハ］れた日 | B58: =IF(B56="","",VLOOKUP(B56,漢字書き!$A$2:$N$506,6,0)) -> ［イロ］えんぴつ | C58: =IF(C56="","",VLOOKUP(C56,漢字書き!$A$2:$N$506,6,0)) -> ［ジ］てん車にのる | D58: =IF(D56="","",VLOOKUP(D56,漢字書き!$A$2:$N$506,6,0)) -> せんしゅの［コウ］たい | E58: =IF(E56="","",VLOOKUP(E56,漢字書き!$A$2:$N$506,6,0)) -> ［エ］にかいて見せる | F58: =IF(F56="","",VLOOKUP(F56,漢字書き!$A$2:$N$506,6,0)) -> ［ダイク］さんが家をたてる | G58: =IF(G56="","",VLOOKUP(G56,漢字書き!$A$2:$N$506,6,0)) -> おもちゃの［キシャ］ | H58: =IF(H56="","",VLOOKUP(H56,漢字書き!$A$2:$N$506,6,0)) -> ［スウジ］をよむ | I58: =IF(I56="","",VLOOKUP(I56,漢字書き!$A$2:$N$506,6,0)) -> ぞうの［オヤコ］ | J58: =IF(J56="","",VLOOKUP(J56,漢字書き!$A$2:$N$506,6,0)) -> ［ガイコク］に行く | K58: =IF(K56="","",VLOOKUP(K56,漢字読み!$A$2:$O$506,6,0)) -> ［算数］のノート | L58: =IF(L56="","",VLOOKUP(L56,漢字読み!$A$2:$O$506,6,0)) -> ［切手］をあつめる | M58: =IF(M56="","",VLOOKUP(M56,漢字読み!$A$2:$O$506,6,0)) -> ［午後］のひととき | N58: =IF(N56="","",VLOOKUP(N56,漢字読み!$A$2:$O$506,6,0)) -> ［少］人数のクラス | O58: =IF(O56="","",VLOOKUP(O56,漢字読み!$A$2:$O$506,6,0)) -> かわいい［金魚］ | P58: =IF(P56="","",VLOOKUP(P56,漢字読み!$A$2:$O$506,6,0)) -> ［黄色］いたんぽぽ | Q58: =IF(Q56="","",VLOOKUP(Q56,漢字読み!$A$2:$O$506,6,0)) -> ［岩］かげにかくれる | R58: =IF(R56="","",VLOOKUP(R56,漢字読み!$A$2:$O$506,6,0)) -> ［雨戸］をしめる | S58: =IF(S56="","",VLOOKUP(S56,漢字読み!$A$2:$O$506,6,0)) -> おはじきを［数］える | T58: =IF(T56="","",VLOOKUP(T56,漢字読み!$A$2:$O$506,6,0)) -> ［岩石］のしゅるい | V58: 級
A59: =IF(A$16="","",VLOOKUP(A56,漢字書き!$A$2:$O$506,8,0)) -> 晴 | B59: =IF(B$16="","",VLOOKUP(B56,漢字書き!$A$2:$O$506,8,0)) -> 色 | C59: =IF(C$16="","",VLOOKUP(C56,漢字書き!$A$2:$O$506,8,0)) -> 自 | D59: =IF(D$16="","",VLOOKUP(D56,漢字書き!$A$2:$O$506,8,0)) -> 交 | E59: =IF(E$16="","",VLOOKUP(E56,漢字書き!$A$2:$O$506,8,0)) -> 絵 | F59: =IF(F$16="","",VLOOKUP(F56,漢字書き!$A$2:$O$506,8,0)) -> 大工 | G59: =IF(G$16="","",VLOOKUP(G56,漢字書き!$A$2:$O$506,8,0)) -> 汽車 | H59: =IF(H$16="","",VLOOKUP(H56,漢字書き!$A$2:$O$506,8,0)) -> 数字 | I59: =IF(I$16="","",VLOOKUP(I56,漢字書き!$A$2:$O$506,8,0)) -> 親子 | J59: =IF(J$16="","",VLOOKUP(J56,漢字書き!$A$2:$O$506,8,0)) -> 外国 | K59: =IF(K$16="","",VLOOKUP(K56,漢字読み!$A$2:$O$506,8,0)) -> さんすう | L59: =IF(L$16="","",VLOOKUP(L56,漢字読み!$A$2:$O$506,8,0)) -> きって | M59: =IF(M$16="","",VLOOKUP(M56,漢字読み!$A$2:$O$506,8,0)) -> ごご | N59: =IF(N$16="","",VLOOKUP(N56,漢字読み!$A$2:$O$506,8,0)) -> しょう | O59: =IF(O$16="","",VLOOKUP(O56,漢字読み!$A$2:$O$506,8,0)) -> きんぎょ | P59: =IF(P$16="","",VLOOKUP(P56,漢字読み!$A$2:$O$506,8,0)) -> きいろ | Q59: =IF(Q$16="","",VLOOKUP(Q56,漢字読み!$A$2:$O$506,8,0)) -> いわ | R59: =IF(R$16="","",VLOOKUP(R56,漢字読み!$A$2:$O$506,8,0)) -> あまど | S59: =IF(S$16="","",VLOOKUP(S56,漢字読み!$A$2:$O$506,8,0)) -> かぞ | T59: =IF(T$16="","",VLOOKUP(T56,漢字読み!$A$2:$O$506,8,0)) -> がんせき | V59: 名前
A60: =IF(A56="","",IF(VLOOKUP(A56,漢字書き!$A$2:$N$502,7,0)=0,"",VLOOKUP(A56,漢字書き!$A$2:$N$502,7,0))) -> れた | B60: =IF(B56="","",IF(VLOOKUP(B56,漢字書き!$A$2:$N$502,7,0)=0,"",VLOOKUP(B56,漢字書き!$A$2:$N$502,7,0))) ->  | C60: =IF(C56="","",IF(VLOOKUP(C56,漢字書き!$A$2:$N$502,7,0)=0,"",VLOOKUP(C56,漢字書き!$A$2:$N$502,7,0))) -> てん車 | D60: =IF(D56="","",IF(VLOOKUP(D56,漢字書き!$A$2:$N$502,7,0)=0,"",VLOOKUP(D56,漢字書き!$A$2:$N$502,7,0))) -> たい | E60: =IF(E56="","",IF(VLOOKUP(E56,漢字書き!$A$2:$N$502,7,0)=0,"",VLOOKUP(E56,漢字書き!$A$2:$N$502,7,0))) ->  | F60: =IF(F56="","",IF(VLOOKUP(F56,漢字書き!$A$2:$N$502,7,0)=0,"",VLOOKUP(F56,漢字書き!$A$2:$N$502,7,0))) ->  | G60: =IF(G56="","",IF(VLOOKUP(G56,漢字書き!$A$2:$N$502,7,0)=0,"",VLOOKUP(G56,漢字書き!$A$2:$N$502,7,0))) ->  | H60: =IF(H56="","",IF(VLOOKUP(H56,漢字書き!$A$2:$N$502,7,0)=0,"",VLOOKUP(H56,漢字書き!$A$2:$N$502,7,0))) ->  | I60: =IF(I56="","",IF(VLOOKUP(I56,漢字書き!$A$2:$N$502,7,0)=0,"",VLOOKUP(I56,漢字書き!$A$2:$N$502,7,0))) ->  | J60: =IF(J56="","",IF(VLOOKUP(J56,漢字書き!$A$2:$N$502,7,0)=0,"",VLOOKUP(J56,漢字書き!$A$2:$N$502,7,0))) ->  | K60: =IF(K56="","",IF(VLOOKUP(K56,漢字読み!$A$2:$O$502,7,0)=0,"",VLOOKUP(K56,漢字読み!$A$2:$O$502,7,0))) ->  | L60: =IF(L56="","",IF(VLOOKUP(L56,漢字読み!$A$2:$O$502,7,0)=0,"",VLOOKUP(L56,漢字読み!$A$2:$O$502,7,0))) ->  | M60: =IF(M56="","",IF(VLOOKUP(M56,漢字読み!$A$2:$O$502,7,0)=0,"",VLOOKUP(M56,漢字読み!$A$2:$O$502,7,0))) ->  | N60: =IF(N56="","",IF(VLOOKUP(N56,漢字読み!$A$2:$O$502,7,0)=0,"",VLOOKUP(N56,漢字読み!$A$2:$O$502,7,0))) -> 人数 | O60: =IF(O56="","",IF(VLOOKUP(O56,漢字読み!$A$2:$O$502,7,0)=0,"",VLOOKUP(O56,漢字読み!$A$2:$O$502,7,0))) ->  | P60: =IF(P56="","",IF(VLOOKUP(P56,漢字読み!$A$2:$O$502,7,0)=0,"",VLOOKUP(P56,漢字読み!$A$2:$O$502,7,0))) -> い | Q60: =IF(Q56="","",IF(VLOOKUP(Q56,漢字読み!$A$2:$O$502,7,0)=0,"",VLOOKUP(Q56,漢字読み!$A$2:$O$502,7,0))) -> かげ | R60: =IF(R56="","",IF(VLOOKUP(R56,漢字読み!$A$2:$O$502,7,0)=0,"",VLOOKUP(R56,漢字読み!$A$2:$O$502,7,0))) ->  | S60: =IF(S56="","",IF(VLOOKUP(S56,漢字読み!$A$2:$O$502,7,0)=0,"",VLOOKUP(S56,漢字読み!$A$2:$O$502,7,0))) -> える | T60: =IF(T56="","",IF(VLOOKUP(T56,漢字読み!$A$2:$O$502,7,0)=0,"",VLOOKUP(T56,漢字読み!$A$2:$O$502,7,0))) ->  | W60: 和歌山県教育委員会
A61: =INDIRECT("'関数（書き）'!C" & COLUMN(B$1)+SUM($AD$2:$AD62)) -> 19 | B61: =INDIRECT("'関数（書き）'!C" & COLUMN(C$1)+SUM($AD$2:$AD62)) -> 89 | C61: =INDIRECT("'関数（書き）'!C" & COLUMN(D$1)+SUM($AD$2:$AD62)) -> 120 | D61: =INDIRECT("'関数（書き）'!C" & COLUMN(E$1)+SUM($AD$2:$AD62)) -> 25 | E61: =INDIRECT("'関数（書き）'!C" & COLUMN(F$1)+SUM($AD$2:$AD62)) -> 93 | F61: =INDIRECT("'関数（書き）'!C" & COLUMN(G$1)+SUM($AD$2:$AD62)) -> 8 | G61: =INDIRECT("'関数（書き）'!C" & COLUMN(H$1)+SUM($AD$2:$AD62)) -> 33 | H61: =INDIRECT("'関数（書き）'!C" & COLUMN(I$1)+SUM($AD$2:$AD62)) -> 116 | I61: =INDIRECT("'関数（書き）'!C" & COLUMN(J$1)+SUM($AD$2:$AD62)) -> 75 | J61: =INDIRECT("'関数（書き）'!C" & COLUMN(K$1)+SUM($AD$2:$AD62)) -> 23 | K61: =INDIRECT("'関数（読み）'!C" & COLUMN(B$1)+SUM($AD$2:$AD62)) -> 58 | L61: =INDIRECT("'関数（読み）'!C" & COLUMN(C$1)+SUM($AD$2:$AD62)) -> 140 | M61: =INDIRECT("'関数（読み）'!C" & COLUMN(D$1)+SUM($AD$2:$AD62)) -> 146 | N61: =INDIRECT("'関数（読み）'!C" & COLUMN(E$1)+SUM($AD$2:$AD62)) -> 78 | O61: =INDIRECT("'関数（読み）'!C" & COLUMN(F$1)+SUM($AD$2:$AD62)) -> 113 | P61: =INDIRECT("'関数（読み）'!C" & COLUMN(G$1)+SUM($AD$2:$AD62)) -> 124 | Q61: =INDIRECT("'関数（読み）'!C" & COLUMN(H$1)+SUM($AD$2:$AD62)) -> 4 | R61: =INDIRECT("'関数（読み）'!C" & COLUMN(I$1)+SUM($AD$2:$AD62)) -> 109 | S61: =INDIRECT("'関数（読み）'!C" & COLUMN(J$1)+SUM($AD$2:$AD62)) -> 138 | T61: =INDIRECT("'関数（読み）'!C" & COLUMN(K$1)+SUM($AD$2:$AD62)) -> 29
A62: ⑳ | B62: ⑲ | C62: ⑱ | D62: ⑰ | E62: ⑯ | F62: ⑮ | G62: ⑭ | H62: ⑬ | I62: ⑫ | J62: ⑪ | K62: ⑩ | L62: ⑨ | M62: ⑧ | N62: ⑦ | O62: ⑥ | P62: ⑤ | Q62: ④ | R62: ③ | S62: ② | T62: ① | U62: 次の［ ］の部分の漢字には読みがなをひらがなで書き、カタカナは漢字に直しなさい。 | V62: 14 | W62: 「漢字の博士検定試験」練習問題 | AC62: ← | AD62: 10 | AE62: 問 | AF62: =AH47+1 -> 61 | AG62: ～ | AH62: =SUM($AD$2:$AD62)+10 -> 70 | AI62: 問まで | AJ62: =COUNTIF($A$1:$T$200,T63) -> 2
A63: =IF(A61="","",VLOOKUP(A61,漢字書き!$A$2:$N$506,6,0)) -> ［ウミ］べをさんぽする | B63: =IF(B61="","",VLOOKUP(B61,漢字書き!$A$2:$N$506,6,0)) -> ［ヤ］がささる | C63: =IF(C61="","",VLOOKUP(C61,漢字書き!$A$2:$N$506,6,0)) -> ［ホシゾラ］かんさつ | D63: =IF(D61="","",VLOOKUP(D61,漢字書き!$A$2:$N$506,6,0)) -> ［ジカン］がすぎる | E63: =IF(E61="","",VLOOKUP(E61,漢字書き!$A$2:$N$506,6,0)) -> お［テラ］のかね | F63: =IF(F61="","",VLOOKUP(F61,漢字書き!$A$2:$N$506,6,0)) -> ［カガク］のしんぽ | G63: =IF(G61="","",VLOOKUP(G61,漢字書き!$A$2:$N$506,6,0)) -> うまと［ウシ］ | H63: =IF(H61="","",VLOOKUP(H61,漢字書き!$A$2:$N$506,6,0)) -> ［スウジ］をならべる | I63: =IF(I61="","",VLOOKUP(I61,漢字書き!$A$2:$N$506,6,0)) -> ［クロ］いふくをきる | J63: =IF(J61="","",VLOOKUP(J61,漢字書き!$A$2:$N$506,6,0)) -> ［タノ］しくあそぶ | K63: =IF(K61="","",VLOOKUP(K61,漢字読み!$A$2:$O$506,6,0)) -> すきな［言］ば | L63: =IF(L61="","",VLOOKUP(L61,漢字読み!$A$2:$O$506,6,0)) -> ［星］ざをおぼえる | M63: =IF(M61="","",VLOOKUP(M61,漢字読み!$A$2:$O$506,6,0)) -> ［雪］がふる | N63: =IF(N61="","",VLOOKUP(N61,漢字読み!$A$2:$O$506,6,0)) -> いい［行］いをする | O63: =IF(O61="","",VLOOKUP(O61,漢字読み!$A$2:$O$506,6,0)) -> ［首］わをする | P63: =IF(P61="","",VLOOKUP(P61,漢字読み!$A$2:$O$506,6,0)) -> ［色］がかわる | Q63: =IF(Q61="","",VLOOKUP(Q61,漢字読み!$A$2:$O$506,6,0)) -> 白い［雲］ | R63: =IF(R61="","",VLOOKUP(R61,漢字読み!$A$2:$O$506,6,0)) -> ［会社］にいく | S63: =IF(S61="","",VLOOKUP(S61,漢字読み!$A$2:$O$506,6,0)) -> ［西］にしずむ夕日 | T63: =IF(T61="","",VLOOKUP(T61,漢字読み!$A$2:$O$506,6,0)) -> たのしい学校［生活］ | V63: 級
V64: 名前
A65: =IF(A61="","",IF(VLOOKUP(A61,漢字書き!$A$2:$N$502,7,0)=0,"",VLOOKUP(A61,漢字書き!$A$2:$N$502,7,0))) -> べ | B65: =IF(B61="","",IF(VLOOKUP(B61,漢字書き!$A$2:$N$502,7,0)=0,"",VLOOKUP(B61,漢字書き!$A$2:$N$502,7,0))) ->  | C65: =IF(C61="","",IF(VLOOKUP(C61,漢字書き!$A$2:$N$502,7,0)=0,"",VLOOKUP(C61,漢字書き!$A$2:$N$502,7,0))) ->  | D65: =IF(D61="","",IF(VLOOKUP(D61,漢字書き!$A$2:$N$502,7,0)=0,"",VLOOKUP(D61,漢字書き!$A$2:$N$502,7,0))) ->  | E65: =IF(E61="","",IF(VLOOKUP(E61,漢字書き!$A$2:$N$502,7,0)=0,"",VLOOKUP(E61,漢字書き!$A$2:$N$502,7,0))) ->  | F65: =IF(F61="","",IF(VLOOKUP(F61,漢字書き!$A$2:$N$502,7,0)=0,"",VLOOKUP(F61,漢字書き!$A$2:$N$502,7,0))) ->  | G65: =IF(G61="","",IF(VLOOKUP(G61,漢字書き!$A$2:$N$502,7,0)=0,"",VLOOKUP(G61,漢字書き!$A$2:$N$502,7,0))) ->  | H65: =IF(H61="","",IF(VLOOKUP(H61,漢字書き!$A$2:$N$502,7,0)=0,"",VLOOKUP(H61,漢字書き!$A$2:$N$502,7,0))) ->  | I65: =IF(I61="","",IF(VLOOKUP(I61,漢字書き!$A$2:$N$502,7,0)=0,"",VLOOKUP(I61,漢字書き!$A$2:$N$502,7,0))) -> い | J65: =IF(J61="","",IF(VLOOKUP(J61,漢字書き!$A$2:$N$502,7,0)=0,"",VLOOKUP(J61,漢字書き!$A$2:$N$502,7,0))) -> しく | K65: =IF(K61="","",IF(VLOOKUP(K61,漢字読み!$A$2:$O$502,7,0)=0,"",VLOOKUP(K61,漢字読み!$A$2:$O$502,7,0))) -> ば | L65: =IF(L61="","",IF(VLOOKUP(L61,漢字読み!$A$2:$O$502,7,0)=0,"",VLOOKUP(L61,漢字読み!$A$2:$O$502,7,0))) -> ざ | M65: =IF(M61="","",IF(VLOOKUP(M61,漢字読み!$A$2:$O$502,7,0)=0,"",VLOOKUP(M61,漢字読み!$A$2:$O$502,7,0))) ->  | N65: =IF(N61="","",IF(VLOOKUP(N61,漢字読み!$A$2:$O$502,7,0)=0,"",VLOOKUP(N61,漢字読み!$A$2:$O$502,7,0))) -> い | O65: =IF(O61="","",IF(VLOOKUP(O61,漢字読み!$A$2:$O$502,7,0)=0,"",VLOOKUP(O61,漢字読み!$A$2:$O$502,7,0))) -> わ | P65: =IF(P61="","",IF(VLOOKUP(P61,漢字読み!$A$2:$O$502,7,0)=0,"",VLOOKUP(P61,漢字読み!$A$2:$O$502,7,0))) ->  | Q65: =IF(Q61="","",IF(VLOOKUP(Q61,漢字読み!$A$2:$O$502,7,0)=0,"",VLOOKUP(Q61,漢字読み!$A$2:$O$502,7,0))) ->  | R65: =IF(R61="","",IF(VLOOKUP(R61,漢字読み!$A$2:$O$502,7,0)=0,"",VLOOKUP(R61,漢字読み!$A$2:$O$502,7,0))) ->  | S65: =IF(S61="","",IF(VLOOKUP(S61,漢字読み!$A$2:$O$502,7,0)=0,"",VLOOKUP(S61,漢字読み!$A$2:$O$502,7,0))) ->  | T65: =IF(T61="","",IF(VLOOKUP(T61,漢字読み!$A$2:$O$502,7,0)=0,"",VLOOKUP(T61,漢字読み!$A$2:$O$502,7,0))) ->  | W65: 和歌山県教育委員会
A66: =INDIRECT("'関数（書き）'!C" & COLUMN(B$1)+SUM($AD$2:$AD67)) -> 64 | B66: =INDIRECT("'関数（書き）'!C" & COLUMN(C$1)+SUM($AD$2:$AD67)) -> 127 | C66: =INDIRECT("'関数（書き）'!C" & COLUMN(D$1)+SUM($AD$2:$AD67)) -> 52 | D66: =INDIRECT("'関数（書き）'!C" & COLUMN(E$1)+SUM($AD$2:$AD67)) -> 103 | E66: =INDIRECT("'関数（書き）'!C" & COLUMN(F$1)+SUM($AD$2:$AD67)) -> 98 | F66: =INDIRECT("'関数（書き）'!C" & COLUMN(G$1)+SUM($AD$2:$AD67)) -> 22 | G66: =INDIRECT("'関数（書き）'!C" & COLUMN(H$1)+SUM($AD$2:$AD67)) -> 46 | H66: =INDIRECT("'関数（書き）'!C" & COLUMN(I$1)+SUM($AD$2:$AD67)) -> 11 | I66: =INDIRECT("'関数（書き）'!C" & COLUMN(J$1)+SUM($AD$2:$AD67)) -> 10 | J66: =INDIRECT("'関数（書き）'!C" & COLUMN(K$1)+SUM($AD$2:$AD67)) -> 125 | K66: =INDIRECT("'関数（読み）'!C" & COLUMN(B$1)+SUM($AD$2:$AD67)) -> 43 | L66: =INDIRECT("'関数（読み）'!C" & COLUMN(C$1)+SUM($AD$2:$AD67)) -> 42 | M66: =INDIRECT("'関数（読み）'!C" & COLUMN(D$1)+SUM($AD$2:$AD67)) -> 11 | N66: =INDIRECT("'関数（読み）'!C" & COLUMN(E$1)+SUM($AD$2:$AD67)) -> 134 | O66: =INDIRECT("'関数（読み）'!C" & COLUMN(F$1)+SUM($AD$2:$AD67)) -> 68 | P66: =INDIRECT("'関数（読み）'!C" & COLUMN(G$1)+SUM($AD$2:$AD67)) -> 103 | Q66: =INDIRECT("'関数（読み）'!C" & COLUMN(H$1)+SUM($AD$2:$AD67)) -> 31 | R66: =INDIRECT("'関数（読み）'!C" & COLUMN(I$1)+SUM($AD$2:$AD67)) -> 72 | S66: =INDIRECT("'関数（読み）'!C" & COLUMN(J$1)+SUM($AD$2:$AD67)) -> 79 | T66: =INDIRECT("'関数（読み）'!C" & COLUMN(K$1)+SUM($AD$2:$AD67)) -> 92
A67: ⑳ | B67: ⑲ | C67: ⑱ | D67: ⑰ | E67: ⑯ | F67: ⑮ | G67: ⑭ | H67: ⑬ | I67: ⑫ | J67: ⑪ | K67: ⑩ | L67: ⑨ | M67: ⑧ | N67: ⑦ | O67: ⑥ | P67: ⑤ | Q67: ④ | R67: ③ | S67: ② | T67: ① | U67: 次の［ ］の部分の漢字には読みがなをひらがなで書き、カタカナは漢字に直しなさい。 | V67: 14 | W67: 「漢字の博士検定試験」練習問題 | AC67: ← | AD67: 10 | AE67: 問 | AF67: =AH62+1 -> 71 | AG67: ～ | AH67: =SUM($AD$2:$AD67)+10 -> 80 | AI67: 問まで | AJ67: =COUNTIF($A$1:$T$200,T68) -> 2
A68: =IF(A66="","",VLOOKUP(A66,漢字書き!$A$2:$N$506,6,0)) -> ［ヒカリ］がさす | B68: =IF(B66="","",VLOOKUP(B66,漢字書き!$A$2:$N$506,6,0)) -> ［マエ］を見る | C68: =IF(C66="","",VLOOKUP(C66,漢字書き!$A$2:$N$506,6,0)) -> ［フル］い本 | D68: =IF(D66="","",VLOOKUP(D66,漢字書き!$A$2:$N$506,6,0)) -> 字を［カ］く | E68: =IF(E66="","",VLOOKUP(E66,漢字書き!$A$2:$N$506,6,0)) -> 力が［ヨワ］い | F68: =IF(F66="","",VLOOKUP(F66,漢字書き!$A$2:$N$506,6,0)) -> ［サンカク］形 | G68: =IF(G66="","",VLOOKUP(G66,漢字書き!$A$2:$N$506,6,0)) -> ね［モト］に水をかける | H68: =IF(H66="","",VLOOKUP(H66,漢字書き!$A$2:$N$506,6,0)) -> ［イエ］のはしら | I68: =IF(I66="","",VLOOKUP(I66,漢字書き!$A$2:$N$506,6,0)) -> あつい［ナツ］ | J68: =IF(J66="","",VLOOKUP(J66,漢字書き!$A$2:$N$506,6,0)) -> ［フネ］がみなとにつく | K68: =IF(K66="","",VLOOKUP(K66,漢字読み!$A$2:$O$506,6,0)) -> ［水牛］のつの | L68: =IF(L66="","",VLOOKUP(L66,漢字読み!$A$2:$O$506,6,0)) -> ［牛］にゅうをのむ | M68: =IF(M66="","",VLOOKUP(M66,漢字読み!$A$2:$O$506,6,0)) -> ある［夏］の日 | N68: =IF(N66="","",VLOOKUP(N66,漢字読み!$A$2:$O$506,6,0)) -> ［図書］室がすきだ | O68: =IF(O66="","",VLOOKUP(O66,漢字読み!$A$2:$O$506,6,0)) -> ［公］みんかんに行く | P68: =IF(P66="","",VLOOKUP(P66,漢字読み!$A$2:$O$506,6,0)) -> お［寺］のかいだん | Q68: =IF(Q66="","",VLOOKUP(Q66,漢字読み!$A$2:$O$506,6,0)) -> ちきゅうは［丸］い | R68: =IF(R66="","",VLOOKUP(R66,漢字読み!$A$2:$O$506,6,0)) -> ［交］つうあんぜん | S68: =IF(S66="","",VLOOKUP(S66,漢字読み!$A$2:$O$506,6,0)) -> ［高学年］になる | T68: =IF(T66="","",VLOOKUP(T66,漢字読み!$A$2:$O$506,6,0)) -> 文を［作］る | V68: 級
V69: 名前
A70: =IF(A66="","",IF(VLOOKUP(A66,漢字書き!$A$2:$N$502,7,0)=0,"",VLOOKUP(A66,漢字書き!$A$2:$N$502,7,0))) ->  | B70: =IF(B66="","",IF(VLOOKUP(B66,漢字書き!$A$2:$N$502,7,0)=0,"",VLOOKUP(B66,漢字書き!$A$2:$N$502,7,0))) ->  | C70: =IF(C66="","",IF(VLOOKUP(C66,漢字書き!$A$2:$N$502,7,0)=0,"",VLOOKUP(C66,漢字書き!$A$2:$N$502,7,0))) -> い | D70: =IF(D66="","",IF(VLOOKUP(D66,漢字書き!$A$2:$N$502,7,0)=0,"",VLOOKUP(D66,漢字書き!$A$2:$N$502,7,0))) -> く | E70: =IF(E66="","",IF(VLOOKUP(E66,漢字書き!$A$2:$N$502,7,0)=0,"",VLOOKUP(E66,漢字書き!$A$2:$N$502,7,0))) -> い | F70: =IF(F66="","",IF(VLOOKUP(F66,漢字書き!$A$2:$N$502,7,0)=0,"",VLOOKUP(F66,漢字書き!$A$2:$N$502,7,0))) -> 形 | G70: =IF(G66="","",IF(VLOOKUP(G66,漢字書き!$A$2:$N$502,7,0)=0,"",VLOOKUP(G66,漢字書き!$A$2:$N$502,7,0))) ->  | H70: =IF(H66="","",IF(VLOOKUP(H66,漢字書き!$A$2:$N$502,7,0)=0,"",VLOOKUP(H66,漢字書き!$A$2:$N$502,7,0))) ->  | I70: =IF(I66="","",IF(VLOOKUP(I66,漢字書き!$A$2:$N$502,7,0)=0,"",VLOOKUP(I66,漢字書き!$A$2:$N$502,7,0))) ->  | J70: =IF(J66="","",IF(VLOOKUP(J66,漢字書き!$A$2:$N$502,7,0)=0,"",VLOOKUP(J66,漢字書き!$A$2:$N$502,7,0))) ->  | K70: =IF(K66="","",IF(VLOOKUP(K66,漢字読み!$A$2:$O$502,7,0)=0,"",VLOOKUP(K66,漢字読み!$A$2:$O$502,7,0))) ->  | L70: =IF(L66="","",IF(VLOOKUP(L66,漢字読み!$A$2:$O$502,7,0)=0,"",VLOOKUP(L66,漢字読み!$A$2:$O$502,7,0))) -> にゅう | M70: =IF(M66="","",IF(VLOOKUP(M66,漢字読み!$A$2:$O$502,7,0)=0,"",VLOOKUP(M66,漢字読み!$A$2:$O$502,7,0))) ->  | N70: =IF(N66="","",IF(VLOOKUP(N66,漢字読み!$A$2:$O$502,7,0)=0,"",VLOOKUP(N66,漢字読み!$A$2:$O$502,7,0))) -> 室 | O70: =IF(O66="","",IF(VLOOKUP(O66,漢字読み!$A$2:$O$502,7,0)=0,"",VLOOKUP(O66,漢字読み!$A$2:$O$502,7,0))) -> みんかん | P70: =IF(P66="","",IF(VLOOKUP(P66,漢字読み!$A$2:$O$502,7,0)=0,"",VLOOKUP(P66,漢字読み!$A$2:$O$502,7,0))) ->  | Q70: =IF(Q66="","",IF(VLOOKUP(Q66,漢字読み!$A$2:$O$502,7,0)=0,"",VLOOKUP(Q66,漢字読み!$A$2:$O$502,7,0))) -> い | R70: =IF(R66="","",IF(VLOOKUP(R66,漢字読み!$A$2:$O$502,7,0)=0,"",VLOOKUP(R66,漢字読み!$A$2:$O$502,7,0))) -> つう | S70: =IF(S66="","",IF(VLOOKUP(S66,漢字読み!$A$2:$O$502,7,0)=0,"",VLOOKUP(S66,漢字読み!$A$2:$O$502,7,0))) ->  | T70: =IF(T66="","",IF(VLOOKUP(T66,漢字読み!$A$2:$O$502,7,0)=0,"",VLOOKUP(T66,漢字読み!$A$2:$O$502,7,0))) -> る | W70: 和歌山県教育委員会
A71: =A61 -> 19 | B71: =B61 -> 89 | C71: =C61 -> 120 | D71: =D61 -> 25 | E71: =E61 -> 93 | F71: =F61 -> 8 | G71: =G61 -> 33 | H71: =H61 -> 116 | I71: =I61 -> 75 | J71: =J61 -> 23 | K71: =K61 -> 58 | L71: =L61 -> 140 | M71: =M61 -> 146 | N71: =N61 -> 78 | O71: =O61 -> 113 | P71: =P61 -> 124 | Q71: =Q61 -> 4 | R71: =R61 -> 109 | S71: =S61 -> 138 | T71: =T61 -> 29
A72: ⑳ | B72: ⑲ | C72: ⑱ | D72: ⑰ | E72: ⑯ | F72: ⑮ | G72: ⑭ | H72: ⑬ | I72: ⑫ | J72: ⑪ | K72: ⑩ | L72: ⑨ | M72: ⑧ | N72: ⑦ | O72: ⑥ | P72: ⑤ | Q72: ④ | R72: ③ | S72: ② | T72: ① | U72: 次の［ ］の部分の漢字には読みがなをひらがなで書き、カタカナは漢字に直しなさい。 | V72: 14 | W72: 「漢字の博士検定試験」練習問題
A73: =IF(A71="","",VLOOKUP(A71,漢字書き!$A$2:$N$506,6,0)) -> ［ウミ］べをさんぽする | B73: =IF(B71="","",VLOOKUP(B71,漢字書き!$A$2:$N$506,6,0)) -> ［ヤ］がささる | C73: =IF(C71="","",VLOOKUP(C71,漢字書き!$A$2:$N$506,6,0)) -> ［ホシゾラ］かんさつ | D73: =IF(D71="","",VLOOKUP(D71,漢字書き!$A$2:$N$506,6,0)) -> ［ジカン］がすぎる | E73: =IF(E71="","",VLOOKUP(E71,漢字書き!$A$2:$N$506,6,0)) -> お［テラ］のかね | F73: =IF(F71="","",VLOOKUP(F71,漢字書き!$A$2:$N$506,6,0)) -> ［カガク］のしんぽ | G73: =IF(G71="","",VLOOKUP(G71,漢字書き!$A$2:$N$506,6,0)) -> うまと［ウシ］ | H73: =IF(H71="","",VLOOKUP(H71,漢字書き!$A$2:$N$506,6,0)) -> ［スウジ］をならべる | I73: =IF(I71="","",VLOOKUP(I71,漢字書き!$A$2:$N$506,6,0)) -> ［クロ］いふくをきる | J73: =IF(J71="","",VLOOKUP(J71,漢字書き!$A$2:$N$506,6,0)) -> ［タノ］しくあそぶ | K73: =IF(K71="","",VLOOKUP(K71,漢字読み!$A$2:$O$506,6,0)) -> すきな［言］ば | L73: =IF(L71="","",VLOOKUP(L71,漢字読み!$A$2:$O$506,6,0)) -> ［星］ざをおぼえる | M73: =IF(M71="","",VLOOKUP(M71,漢字読み!$A$2:$O$506,6,0)) -> ［雪］がふる | N73: =IF(N71="","",VLOOKUP(N71,漢字読み!$A$2:$O$506,6,0)) -> いい［行］いをする | O73: =IF(O71="","",VLOOKUP(O71,漢字読み!$A$2:$O$506,6,0)) -> ［首］わをする | P73: =IF(P71="","",VLOOKUP(P71,漢字読み!$A$2:$O$506,6,0)) -> ［色］がかわる | Q73: =IF(Q71="","",VLOOKUP(Q71,漢字読み!$A$2:$O$506,6,0)) -> 白い［雲］ | R73: =IF(R71="","",VLOOKUP(R71,漢字読み!$A$2:$O$506,6,0)) -> ［会社］にいく | S73: =IF(S71="","",VLOOKUP(S71,漢字読み!$A$2:$O$506,6,0)) -> ［西］にしずむ夕日 | T73: =IF(T71="","",VLOOKUP(T71,漢字読み!$A$2:$O$506,6,0)) -> たのしい学校［生活］ | V73: 級
A74: =IF(A$11="","",VLOOKUP(A71,漢字書き!$A$2:$O$506,8,0)) -> 海 | B74: =IF(B$11="","",VLOOKUP(B71,漢字書き!$A$2:$O$506,8,0)) -> 矢 | C74: =IF(C$11="","",VLOOKUP(C71,漢字書き!$A$2:$O$506,8,0)) -> 星空 | D74: =IF(D$11="","",VLOOKUP(D71,漢字書き!$A$2:$O$506,8,0)) -> 時間 | E74: =IF(E$11="","",VLOOKUP(E71,漢字書き!$A$2:$O$506,8,0)) -> 寺 | F74: =IF(F$11="","",VLOOKUP(F71,漢字書き!$A$2:$O$506,8,0)) -> 科学 | G74: =IF(G$11="","",VLOOKUP(G71,漢字書き!$A$2:$O$506,8,0)) -> 牛 | H74: =IF(H$11="","",VLOOKUP(H71,漢字書き!$A$2:$O$506,8,0)) -> 数字 | I74: =IF(I$11="","",VLOOKUP(I71,漢字書き!$A$2:$O$506,8,0)) -> 黒 | J74: =IF(J$11="","",VLOOKUP(J71,漢字書き!$A$2:$O$506,8,0)) -> 楽 | K74: =IF(K$11="","",VLOOKUP(K71,漢字読み!$A$2:$O$506,8,0)) -> こと | L74: =IF(L$11="","",VLOOKUP(L71,漢字読み!$A$2:$O$506,8,0)) -> せい | M74: =IF(M$11="","",VLOOKUP(M71,漢字読み!$A$2:$O$506,8,0)) -> ゆき | N74: =IF(N$11="","",VLOOKUP(N71,漢字読み!$A$2:$O$506,8,0)) -> おこな | O74: =IF(O$11="","",VLOOKUP(O71,漢字読み!$A$2:$O$506,8,0)) -> くび | P74: =IF(P$11="","",VLOOKUP(P71,漢字読み!$A$2:$O$506,8,0)) -> いろ | Q74: =IF(Q$11="","",VLOOKUP(Q71,漢字読み!$A$2:$O$506,8,0)) -> くも | R74: =IF(R$11="","",VLOOKUP(R71,漢字読み!$A$2:$O$506,8,0)) -> かいしゃ | S74: =IF(S$11="","",VLOOKUP(S71,漢字読み!$A$2:$O$506,8,0)) -> にし | T74: =IF(T$11="","",VLOOKUP(T71,漢字読み!$A$2:$O$506,8,0)) -> せいかつ | V74: 名前
A75: =IF(A71="","",IF(VLOOKUP(A71,漢字書き!$A$2:$N$502,7,0)=0,"",VLOOKUP(A71,漢字書き!$A$2:$N$502,7,0))) -> べ | B75: =IF(B71="","",IF(VLOOKUP(B71,漢字書き!$A$2:$N$502,7,0)=0,"",VLOOKUP(B71,漢字書き!$A$2:$N$502,7,0))) ->  | C75: =IF(C71="","",IF(VLOOKUP(C71,漢字書き!$A$2:$N$502,7,0)=0,"",VLOOKUP(C71,漢字書き!$A$2:$N$502,7,0))) ->  | D75: =IF(D71="","",IF(VLOOKUP(D71,漢字書き!$A$2:$N$502,7,0)=0,"",VLOOKUP(D71,漢字書き!$A$2:$N$502,7,0))) ->  | E75: =IF(E71="","",IF(VLOOKUP(E71,漢字書き!$A$2:$N$502,7,0)=0,"",VLOOKUP(E71,漢字書き!$A$2:$N$502,7,0))) ->  | F75: =IF(F71="","",IF(VLOOKUP(F71,漢字書き!$A$2:$N$502,7,0)=0,"",VLOOKUP(F71,漢字書き!$A$2:$N$502,7,0))) ->  | G75: =IF(G71="","",IF(VLOOKUP(G71,漢字書き!$A$2:$N$502,7,0)=0,"",VLOOKUP(G71,漢字書き!$A$2:$N$502,7,0))) ->  | H75: =IF(H71="","",IF(VLOOKUP(H71,漢字書き!$A$2:$N$502,7,0)=0,"",VLOOKUP(H71,漢字書き!$A$2:$N$502,7,0))) ->  | I75: =IF(I71="","",IF(VLOOKUP(I71,漢字書き!$A$2:$N$502,7,0)=0,"",VLOOKUP(I71,漢字書き!$A$2:$N$502,7,0))) -> い | J75: =IF(J71="","",IF(VLOOKUP(J71,漢字書き!$A$2:$N$502,7,0)=0,"",VLOOKUP(J71,漢字書き!$A$2:$N$502,7,0))) -> しく | K75: =IF(K71="","",IF(VLOOKUP(K71,漢字読み!$A$2:$O$502,7,0)=0,"",VLOOKUP(K71,漢字読み!$A$2:$O$502,7,0))) -> ば | L75: =IF(L71="","",IF(VLOOKUP(L71,漢字読み!$A$2:$O$502,7,0)=0,"",VLOOKUP(L71,漢字読み!$A$2:$O$502,7,0))) -> ざ | M75: =IF(M71="","",IF(VLOOKUP(M71,漢字読み!$A$2:$O$502,7,0)=0,"",VLOOKUP(M71,漢字読み!$A$2:$O$502,7,0))) ->  | N75: =IF(N71="","",IF(VLOOKUP(N71,漢字読み!$A$2:$O$502,7,0)=0,"",VLOOKUP(N71,漢字読み!$A$2:$O$502,7,0))) -> い | O75: =IF(O71="","",IF(VLOOKUP(O71,漢字読み!$A$2:$O$502,7,0)=0,"",VLOOKUP(O71,漢字読み!$A$2:$O$502,7,0))) -> わ | P75: =IF(P71="","",IF(VLOOKUP(P71,漢字読み!$A$2:$O$502,7,0)=0,"",VLOOKUP(P71,漢字読み!$A$2:$O$502,7,0))) ->  | Q75: =IF(Q71="","",IF(VLOOKUP(Q71,漢字読み!$A$2:$O$502,7,0)=0,"",VLOOKUP(Q71,漢字読み!$A$2:$O$502,7,0))) ->  | R75: =IF(R71="","",IF(VLOOKUP(R71,漢字読み!$A$2:$O$502,7,0)=0,"",VLOOKUP(R71,漢字読み!$A$2:$O$502,7,0))) ->  | S75: =IF(S71="","",IF(VLOOKUP(S71,漢字読み!$A$2:$O$502,7,0)=0,"",VLOOKUP(S71,漢字読み!$A$2:$O$502,7,0))) ->  | T75: =IF(T71="","",IF(VLOOKUP(T71,漢字読み!$A$2:$O$502,7,0)=0,"",VLOOKUP(T71,漢字読み!$A$2:$O$502,7,0))) ->  | W75: 和歌山県教育委員会
A76: =A66 -> 64 | B76: =B66 -> 127 | C76: =C66 -> 52 | D76: =D66 -> 103 | E76: =E66 -> 98 | F76: =F66 -> 22 | G76: =G66 -> 46 | H76: =H66 -> 11 | I76: =I66 -> 10 | J76: =J66 -> 125 | K76: =K66 -> 43 | L76: =L66 -> 42 | M76: =M66 -> 11 | N76: =N66 -> 134 | O76: =O66 -> 68 | P76: =P66 -> 103 | Q76: =Q66 -> 31 | R76: =R66 -> 72 | S76: =S66 -> 79 | T76: =T66 -> 92
A77: ⑳ | B77: ⑲ | C77: ⑱ | D77: ⑰ | E77: ⑯ | F77: ⑮ | G77: ⑭ | H77: ⑬ | I77: ⑫ | J77: ⑪ | K77: ⑩ | L77: ⑨ | M77: ⑧ | N77: ⑦ | O77: ⑥ | P77: ⑤ | Q77: ④ | R77: ③ | S77: ② | T77: ① | U77: 次の［ ］の部分の漢字には読みがなをひらがなで書き、カタカナは漢字に直しなさい。 | V77: 14 | W77: 「漢字の博士検定試験」練習問題
A78: =IF(A76="","",VLOOKUP(A76,漢字書き!$A$2:$N$506,6,0)) -> ［ヒカリ］がさす | B78: =IF(B76="","",VLOOKUP(B76,漢字書き!$A$2:$N$506,6,0)) -> ［マエ］を見る | C78: =IF(C76="","",VLOOKUP(C76,漢字書き!$A$2:$N$506,6,0)) -> ［フル］い本 | D78: =IF(D76="","",VLOOKUP(D76,漢字書き!$A$2:$N$506,6,0)) -> 字を［カ］く | E78: =IF(E76="","",VLOOKUP(E76,漢字書き!$A$2:$N$506,6,0)) -> 力が［ヨワ］い | F78: =IF(F76="","",VLOOKUP(F76,漢字書き!$A$2:$N$506,6,0)) -> ［サンカク］形 | G78: =IF(G76="","",VLOOKUP(G76,漢字書き!$A$2:$N$506,6,0)) -> ね［モト］に水をかける | H78: =IF(H76="","",VLOOKUP(H76,漢字書き!$A$2:$N$506,6,0)) -> ［イエ］のはしら | I78: =IF(I76="","",VLOOKUP(I76,漢字書き!$A$2:$N$506,6,0)) -> あつい［ナツ］ | J78: =IF(J76="","",VLOOKUP(J76,漢字書き!$A$2:$N$506,6,0)) -> ［フネ］がみなとにつく | K78: =IF(K76="","",VLOOKUP(K76,漢字読み!$A$2:$O$506,6,0)) -> ［水牛］のつの | L78: =IF(L76="","",VLOOKUP(L76,漢字読み!$A$2:$O$506,6,0)) -> ［牛］にゅうをのむ | M78: =IF(M76="","",VLOOKUP(M76,漢字読み!$A$2:$O$506,6,0)) -> ある［夏］の日 | N78: =IF(N76="","",VLOOKUP(N76,漢字読み!$A$2:$O$506,6,0)) -> ［図書］室がすきだ | O78: =IF(O76="","",VLOOKUP(O76,漢字読み!$A$2:$O$506,6,0)) -> ［公］みんかんに行く | P78: =IF(P76="","",VLOOKUP(P76,漢字読み!$A$2:$O$506,6,0)) -> お［寺］のかいだん | Q78: =IF(Q76="","",VLOOKUP(Q76,漢字読み!$A$2:$O$506,6,0)) -> ちきゅうは［丸］い | R78: =IF(R76="","",VLOOKUP(R76,漢字読み!$A$2:$O$506,6,0)) -> ［交］つうあんぜん | S78: =IF(S76="","",VLOOKUP(S76,漢字読み!$A$2:$O$506,6,0)) -> ［高学年］になる | T78: =IF(T76="","",VLOOKUP(T76,漢字読み!$A$2:$O$506,6,0)) -> 文を［作］る | V78: 級
A79: =IF(A$16="","",VLOOKUP(A76,漢字書き!$A$2:$O$506,8,0)) -> 光 | B79: =IF(B$16="","",VLOOKUP(B76,漢字書き!$A$2:$O$506,8,0)) -> 前 | C79: =IF(C$16="","",VLOOKUP(C76,漢字書き!$A$2:$O$506,8,0)) -> 古 | D79: =IF(D$16="","",VLOOKUP(D76,漢字書き!$A$2:$O$506,8,0)) -> 書 | E79: =IF(E$16="","",VLOOKUP(E76,漢字書き!$A$2:$O$506,8,0)) -> 弱 | F79: =IF(F$16="","",VLOOKUP(F76,漢字書き!$A$2:$O$506,8,0)) -> 三角 | G79: =IF(G$16="","",VLOOKUP(G76,漢字書き!$A$2:$O$506,8,0)) -> 元 | H79: =IF(H$16="","",VLOOKUP(H76,漢字書き!$A$2:$O$506,8,0)) -> 家 | I79: =IF(I$16="","",VLOOKUP(I76,漢字書き!$A$2:$O$506,8,0)) -> 夏 | J79: =IF(J$16="","",VLOOKUP(J76,漢字書き!$A$2:$O$506,8,0)) -> 船 | K79: =IF(K$16="","",VLOOKUP(K76,漢字読み!$A$2:$O$506,8,0)) -> すいぎゅう | L79: =IF(L$16="","",VLOOKUP(L76,漢字読み!$A$2:$O$506,8,0)) -> ぎゅう | M79: =IF(M$16="","",VLOOKUP(M76,漢字読み!$A$2:$O$506,8,0)) -> なつ | N79: =IF(N$16="","",VLOOKUP(N76,漢字読み!$A$2:$O$506,8,0)) -> としょ | O79: =IF(O$16="","",VLOOKUP(O76,漢字読み!$A$2:$O$506,8,0)) -> こう | P79: =IF(P$16="","",VLOOKUP(P76,漢字読み!$A$2:$O$506,8,0)) -> てら | Q79: =IF(Q$16="","",VLOOKUP(Q76,漢字読み!$A$2:$O$506,8,0)) -> まる | R79: =IF(R$16="","",VLOOKUP(R76,漢字読み!$A$2:$O$506,8,0)) -> こう | S79: =IF(S$16="","",VLOOKUP(S76,漢字読み!$A$2:$O$506,8,0)) -> こうがくねん | T79: =IF(T$16="","",VLOOKUP(T76,漢字読み!$A$2:$O$506,8,0)) -> つく | V79: 名前
A80: =IF(A76="","",IF(VLOOKUP(A76,漢字書き!$A$2:$N$502,7,0)=0,"",VLOOKUP(A76,漢字書き!$A$2:$N$502,7,0))) ->  | B80: =IF(B76="","",IF(VLOOKUP(B76,漢字書き!$A$2:$N$502,7,0)=0,"",VLOOKUP(B76,漢字書き!$A$2:$N$502,7,0))) ->  | C80: =IF(C76="","",IF(VLOOKUP(C76,漢字書き!$A$2:$N$502,7,0)=0,"",VLOOKUP(C76,漢字書き!$A$2:$N$502,7,0))) -> い | D80: =IF(D76="","",IF(VLOOKUP(D76,漢字書き!$A$2:$N$502,7,0)=0,"",VLOOKUP(D76,漢字書き!$A$2:$N$502,7,0))) -> く | E80: =IF(E76="","",IF(VLOOKUP(E76,漢字書き!$A$2:$N$502,7,0)=0,"",VLOOKUP(E76,漢字書き!$A$2:$N$502,7,0))) -> い | F80: =IF(F76="","",IF(VLOOKUP(F76,漢字書き!$A$2:$N$502,7,0)=0,"",VLOOKUP(F76,漢字書き!$A$2:$N$502,7,0))) -> 形 | G80: =IF(G76="","",IF(VLOOKUP(G76,漢字書き!$A$2:$N$502,7,0)=0,"",VLOOKUP(G76,漢字書き!$A$2:$N$502,7,0))) ->  | H80: =IF(H76="","",IF(VLOOKUP(H76,漢字書き!$A$2:$N$502,7,0)=0,"",VLOOKUP(H76,漢字書き!$A$2:$N$502,7,0))) ->  | I80: =IF(I76="","",IF(VLOOKUP(I76,漢字書き!$A$2:$N$502,7,0)=0,"",VLOOKUP(I76,漢字書き!$A$2:$N$502,7,0))) ->  | J80: =IF(J76="","",IF(VLOOKUP(J76,漢字書き!$A$2:$N$502,7,0)=0,"",VLOOKUP(J76,漢字書き!$A$2:$N$502,7,0))) ->  | K80: =IF(K76="","",IF(VLOOKUP(K76,漢字読み!$A$2:$O$502,7,0)=0,"",VLOOKUP(K76,漢字読み!$A$2:$O$502,7,0))) ->  | L80: =IF(L76="","",IF(VLOOKUP(L76,漢字読み!$A$2:$O$502,7,0)=0,"",VLOOKUP(L76,漢字読み!$A$2:$O$502,7,0))) -> にゅう | M80: =IF(M76="","",IF(VLOOKUP(M76,漢字読み!$A$2:$O$502,7,0)=0,"",VLOOKUP(M76,漢字読み!$A$2:$O$502,7,0))) ->  | N80: =IF(N76="","",IF(VLOOKUP(N76,漢字読み!$A$2:$O$502,7,0)=0,"",VLOOKUP(N76,漢字読み!$A$2:$O$502,7,0))) -> 室 | O80: =IF(O76="","",IF(VLOOKUP(O76,漢字読み!$A$2:$O$502,7,0)=0,"",VLOOKUP(O76,漢字読み!$A$2:$O$502,7,0))) -> みんかん | P80: =IF(P76="","",IF(VLOOKUP(P76,漢字読み!$A$2:$O$502,7,0)=0,"",VLOOKUP(P76,漢字読み!$A$2:$O$502,7,0))) ->  | Q80: =IF(Q76="","",IF(VLOOKUP(Q76,漢字読み!$A$2:$O$502,7,0)=0,"",VLOOKUP(Q76,漢字読み!$A$2:$O$502,7,0))) -> い | R80: =IF(R76="","",IF(VLOOKUP(R76,漢字読み!$A$2:$O$502,7,0)=0,"",VLOOKUP(R76,漢字読み!$A$2:$O$502,7,0))) -> つう | S80: =IF(S76="","",IF(VLOOKUP(S76,漢字読み!$A$2:$O$502,7,0)=0,"",VLOOKUP(S76,漢字読み!$A$2:$O$502,7,0))) ->  | T80: =IF(T76="","",IF(VLOOKUP(T76,漢字読み!$A$2:$O$502,7,0)=0,"",VLOOKUP(T76,漢字読み!$A$2:$O$502,7,0))) -> る | W80: 和歌山県教育委員会
A81: =INDIRECT("'関数（書き）'!C" & COLUMN(B$1)+SUM($AD$2:$AD82)) -> 91 | B81: =INDIRECT("'関数（書き）'!C" & COLUMN(C$1)+SUM($AD$2:$AD82)) -> 96 | C81: =INDIRECT("'関数（書き）'!C" & COLUMN(D$1)+SUM($AD$2:$AD82)) -> 28 | D81: =INDIRECT("'関数（書き）'!C" & COLUMN(E$1)+SUM($AD$2:$AD82)) -> 79 | E81: =INDIRECT("'関数（書き）'!C" & COLUMN(F$1)+SUM($AD$2:$AD82)) -> 87 | F81: =INDIRECT("'関数（書き）'!C" & COLUMN(G$1)+SUM($AD$2:$AD82)) -> 129 | G81: =INDIRECT("'関数（書き）'!C" & COLUMN(H$1)+SUM($AD$2:$AD82)) -> 55 | H81: =INDIRECT("'関数（書き）'!C" & COLUMN(I$1)+SUM($AD$2:$AD82)) -> 68 | I81: =INDIRECT("'関数（書き）'!C" & COLUMN(J$1)+SUM($AD$2:$AD82)) -> 113 | J81: =INDIRECT("'関数（書き）'!C" & COLUMN(K$1)+SUM($AD$2:$AD82)) -> 131 | K81: =INDIRECT("'関数（読み）'!C" & COLUMN(B$1)+SUM($AD$2:$AD82)) -> 34 | L81: =INDIRECT("'関数（読み）'!C" & COLUMN(C$1)+SUM($AD$2:$AD82)) -> 9 | M81: =INDIRECT("'関数（読み）'!C" & COLUMN(D$1)+SUM($AD$2:$AD82)) -> 143 | N81: =INDIRECT("'関数（読み）'!C" & COLUMN(E$1)+SUM($AD$2:$AD82)) -> 102 | O81: =INDIRECT("'関数（読み）'!C" & COLUMN(F$1)+SUM($AD$2:$AD82)) -> 24 | P81: =INDIRECT("'関数（読み）'!C" & COLUMN(G$1)+SUM($AD$2:$AD82)) -> 20 | Q81: =INDIRECT("'関数（読み）'!C" & COLUMN(H$1)+SUM($AD$2:$AD82)) -> 147 | R81: =INDIRECT("'関数（読み）'!C" & COLUMN(I$1)+SUM($AD$2:$AD82)) -> 115 | S81: =INDIRECT("'関数（読み）'!C" & COLUMN(J$1)+SUM($AD$2:$AD82)) -> 152 | T81: =INDIRECT("'関数（読み）'!C" & COLUMN(K$1)+SUM($AD$2:$AD82)) -> 73
A82: ⑳ | B82: ⑲ | C82: ⑱ | D82: ⑰ | E82: ⑯ | F82: ⑮ | G82: ⑭ | H82: ⑬ | I82: ⑫ | J82: ⑪ | K82: ⑩ | L82: ⑨ | M82: ⑧ | N82: ⑦ | O82: ⑥ | P82: ⑤ | Q82: ④ | R82: ③ | S82: ② | T82: ① | U82: 次の［ ］の部分の漢字には読みがなをひらがなで書き、カタカナは漢字に直しなさい。 | V82: 14 | W82: 「漢字の博士検定試験」練習問題 | AC82: ← | AD82: 10 | AE82: 問 | AF82: =AH67+1 -> 81 | AG82: ～ | AH82: =SUM($AD$2:$AD82)+10 -> 90 | AI82: 問まで | AJ82: =COUNTIF($A$1:$T$200,T83) -> 2
A83: =IF(A81="","",VLOOKUP(A81,漢字書き!$A$2:$N$506,6,0)) -> たのしい［オモ］い出 | B83: =IF(B81="","",VLOOKUP(B81,漢字書き!$A$2:$N$506,6,0)) -> ［キョウシツ］をそうじする | C83: =IF(C81="","",VLOOKUP(C81,漢字書き!$A$2:$N$506,6,0)) -> ［カオ］をあらう | D83: =IF(D81="","",VLOOKUP(D81,漢字書き!$A$2:$N$506,6,0)) -> ［コマ］かい文字 | E83: =IF(E81="","",VLOOKUP(E81,漢字書き!$A$2:$N$506,6,0)) -> 車を［ト］める | F83: =IF(F81="","",VLOOKUP(F81,漢字書き!$A$2:$N$506,6,0)) -> かたを［ク］む | G83: =IF(G81="","",VLOOKUP(G81,漢字書き!$A$2:$N$506,6,0)) -> ［コクゴ］の教か書 | H83: =IF(H81="","",VLOOKUP(H81,漢字書き!$A$2:$N$506,6,0)) -> ［タカ］いビル | I83: =IF(I81="","",VLOOKUP(I81,漢字書き!$A$2:$N$506,6,0)) -> ［シタ］しいなかま | J83: =IF(J81="","",VLOOKUP(J81,漢字書き!$A$2:$N$506,6,0)) -> 雲が［オオ］い | K83: =IF(K81="","",VLOOKUP(K81,漢字読み!$A$2:$O$506,6,0)) -> ［顔］めんをうつ | L83: =IF(L81="","",VLOOKUP(L81,漢字読み!$A$2:$O$506,6,0)) -> ［科学］のしんぽ | M83: =IF(M81="","",VLOOKUP(M81,漢字読み!$A$2:$O$506,6,0)) -> ［晴］れた空 | N83: =IF(N81="","",VLOOKUP(N81,漢字読み!$A$2:$O$506,6,0)) -> ［紙］しばいを見る | O83: =IF(O81="","",VLOOKUP(O81,漢字読み!$A$2:$O$506,6,0)) -> ［外］がわをあるく | P83: =IF(P81="","",VLOOKUP(P81,漢字読み!$A$2:$O$506,6,0)) -> 花火［大会］をする | Q83: =IF(Q81="","",VLOOKUP(Q81,漢字読み!$A$2:$O$506,6,0)) -> ［船］がついた | R83: =IF(R81="","",VLOOKUP(R81,漢字読み!$A$2:$O$506,6,0)) -> ［今週］のニュース | S83: =IF(S81="","",VLOOKUP(S81,漢字読み!$A$2:$O$506,6,0)) -> しゅくだいが［多］い | T83: =IF(T81="","",VLOOKUP(T81,漢字読み!$A$2:$O$506,6,0)) -> 線が［交］わる | V83: 級
V84: 名前
A85: =IF(A81="","",IF(VLOOKUP(A81,漢字書き!$A$2:$N$502,7,0)=0,"",VLOOKUP(A81,漢字書き!$A$2:$N$502,7,0))) -> い出 | B85: =IF(B81="","",IF(VLOOKUP(B81,漢字書き!$A$2:$N$502,7,0)=0,"",VLOOKUP(B81,漢字書き!$A$2:$N$502,7,0))) ->  | C85: =IF(C81="","",IF(VLOOKUP(C81,漢字書き!$A$2:$N$502,7,0)=0,"",VLOOKUP(C81,漢字書き!$A$2:$N$502,7,0))) ->  | D85: =IF(D81="","",IF(VLOOKUP(D81,漢字書き!$A$2:$N$502,7,0)=0,"",VLOOKUP(D81,漢字書き!$A$2:$N$502,7,0))) -> かい | E85: =IF(E81="","",IF(VLOOKUP(E81,漢字書き!$A$2:$N$502,7,0)=0,"",VLOOKUP(E81,漢字書き!$A$2:$N$502,7,0))) -> める | F85: =IF(F81="","",IF(VLOOKUP(F81,漢字書き!$A$2:$N$502,7,0)=0,"",VLOOKUP(F81,漢字書き!$A$2:$N$502,7,0))) -> む | G85: =IF(G81="","",IF(VLOOKUP(G81,漢字書き!$A$2:$N$502,7,0)=0,"",VLOOKUP(G81,漢字書き!$A$2:$N$502,7,0))) ->  | H85: =IF(H81="","",IF(VLOOKUP(H81,漢字書き!$A$2:$N$502,7,0)=0,"",VLOOKUP(H81,漢字書き!$A$2:$N$502,7,0))) -> い | I85: =IF(I81="","",IF(VLOOKUP(I81,漢字書き!$A$2:$N$502,7,0)=0,"",VLOOKUP(I81,漢字書き!$A$2:$N$502,7,0))) -> しい | J85: =IF(J81="","",IF(VLOOKUP(J81,漢字書き!$A$2:$N$502,7,0)=0,"",VLOOKUP(J81,漢字書き!$A$2:$N$502,7,0))) -> い | K85: =IF(K81="","",IF(VLOOKUP(K81,漢字読み!$A$2:$O$502,7,0)=0,"",VLOOKUP(K81,漢字読み!$A$2:$O$502,7,0))) -> めん | L85: =IF(L81="","",IF(VLOOKUP(L81,漢字読み!$A$2:$O$502,7,0)=0,"",VLOOKUP(L81,漢字読み!$A$2:$O$502,7,0))) ->  | M85: =IF(M81="","",IF(VLOOKUP(M81,漢字読み!$A$2:$O$502,7,0)=0,"",VLOOKUP(M81,漢字読み!$A$2:$O$502,7,0))) -> れた | N85: =IF(N81="","",IF(VLOOKUP(N81,漢字読み!$A$2:$O$502,7,0)=0,"",VLOOKUP(N81,漢字読み!$A$2:$O$502,7,0))) -> しばい | O85: =IF(O81="","",IF(VLOOKUP(O81,漢字読み!$A$2:$O$502,7,0)=0,"",VLOOKUP(O81,漢字読み!$A$2:$O$502,7,0))) ->  | P85: =IF(P81="","",IF(VLOOKUP(P81,漢字読み!$A$2:$O$502,7,0)=0,"",VLOOKUP(P81,漢字読み!$A$2:$O$502,7,0))) ->  | Q85: =IF(Q81="","",IF(VLOOKUP(Q81,漢字読み!$A$2:$O$502,7,0)=0,"",VLOOKUP(Q81,漢字読み!$A$2:$O$502,7,0))) ->  | R85: =IF(R81="","",IF(VLOOKUP(R81,漢字読み!$A$2:$O$502,7,0)=0,"",VLOOKUP(R81,漢字読み!$A$2:$O$502,7,0))) ->  | S85: =IF(S81="","",IF(VLOOKUP(S81,漢字読み!$A$2:$O$502,7,0)=0,"",VLOOKUP(S81,漢字読み!$A$2:$O$502,7,0))) -> い | T85: =IF(T81="","",IF(VLOOKUP(T81,漢字読み!$A$2:$O$502,7,0)=0,"",VLOOKUP(T81,漢字読み!$A$2:$O$502,7,0))) -> わる | W85: 和歌山県教育委員会
A86: =INDIRECT("'関数（書き）'!C" & COLUMN(B$1)+SUM($AD$2:$AD87)) -> 3 | B86: =INDIRECT("'関数（書き）'!C" & COLUMN(C$1)+SUM($AD$2:$AD87)) -> 34 | C86: =INDIRECT("'関数（書き）'!C" & COLUMN(D$1)+SUM($AD$2:$AD87)) -> 97 | D86: =INDIRECT("'関数（書き）'!C" & COLUMN(E$1)+SUM($AD$2:$AD87)) -> 130 | E86: =INDIRECT("'関数（書き）'!C" & COLUMN(F$1)+SUM($AD$2:$AD87)) -> 1 | F86: =INDIRECT("'関数（書き）'!C" & COLUMN(G$1)+SUM($AD$2:$AD87)) -> 65 | G86: =INDIRECT("'関数（書き）'!C" & COLUMN(H$1)+SUM($AD$2:$AD87)) -> 47 | H86: =INDIRECT("'関数（書き）'!C" & COLUMN(I$1)+SUM($AD$2:$AD87)) -> 16 | I86: =INDIRECT("'関数（書き）'!C" & COLUMN(J$1)+SUM($AD$2:$AD87)) -> 86 | J86: =INDIRECT("'関数（書き）'!C" & COLUMN(K$1)+SUM($AD$2:$AD87)) -> 40 | K86: =INDIRECT("'関数（読み）'!C" & COLUMN(B$1)+SUM($AD$2:$AD87)) -> 18 | L86: =INDIRECT("'関数（読み）'!C" & COLUMN(C$1)+SUM($AD$2:$AD87)) -> 125 | M86: =INDIRECT("'関数（読み）'!C" & COLUMN(D$1)+SUM($AD$2:$AD87)) -> 66 | N86: =INDIRECT("'関数（読み）'!C" & COLUMN(E$1)+SUM($AD$2:$AD87)) -> 126 | O86: =INDIRECT("'関数（読み）'!C" & COLUMN(F$1)+SUM($AD$2:$AD87)) -> 86 | P86: =INDIRECT("'関数（読み）'!C" & COLUMN(G$1)+SUM($AD$2:$AD87)) -> 76 | Q86: =INDIRECT("'関数（読み）'!C" & COLUMN(H$1)+SUM($AD$2:$AD87)) -> 50 | R86: =INDIRECT("'関数（読み）'!C" & COLUMN(I$1)+SUM($AD$2:$AD87)) -> 54 | S86: =INDIRECT("'関数（読み）'!C" & COLUMN(J$1)+SUM($AD$2:$AD87)) -> 136 | T86: =INDIRECT("'関数（読み）'!C" & COLUMN(K$1)+SUM($AD$2:$AD87)) -> 5
A87: ⑳ | B87: ⑲ | C87: ⑱ | D87: ⑰ | E87: ⑯ | F87: ⑮ | G87: ⑭ | H87: ⑬ | I87: ⑫ | J87: ⑪ | K87: ⑩ | L87: ⑨ | M87: ⑧ | N87: ⑦ | O87: ⑥ | P87: ⑤ | Q87: ④ | R87: ③ | S87: ② | T87: ① | U87: 次の［ ］の部分の漢字には読みがなをひらがなで書き、カタカナは漢字に直しなさい。 | V87: 14 | W87: 「漢字の博士検定試験」練習問題 | AC87: ← | AD87: 10 | AE87: 問 | AF87: =AH82+1 -> 91 | AG87: ～ | AH87: =SUM($AD$2:$AD87)+10 -> 100 | AI87: 問まで | AJ87: =COUNTIF($A$1:$T$200,T88) -> 2
A88: =IF(A86="","",VLOOKUP(A86,漢字書き!$A$2:$N$506,6,0)) -> 白い［クモ］ | B88: =IF(B86="","",VLOOKUP(B86,漢字書き!$A$2:$N$506,6,0)) -> ［キンギョ］をかう | C88: =IF(C86="","",VLOOKUP(C86,漢字書き!$A$2:$N$506,6,0)) -> ［シャカイ］のためにつくす | D88: =IF(D86="","",VLOOKUP(D86,漢字書き!$A$2:$N$506,6,0)) -> ぜん力で［ハシ］る | E88: =IF(E86="","",VLOOKUP(E86,漢字書き!$A$2:$N$506,6,0)) -> 線を［ヒ］く | F88: =IF(F86="","",VLOOKUP(F86,漢字書き!$A$2:$N$506,6,0)) -> じっくり［カンガ］える | G88: =IF(G86="","",VLOOKUP(G86,漢字書き!$A$2:$N$506,6,0)) -> ［ゲンキ］いっぱい | H88: =IF(H86="","",VLOOKUP(H86,漢字書き!$A$2:$N$506,6,0)) -> うんどう［カイ］ | I88: =IF(I86="","",VLOOKUP(I86,漢字書き!$A$2:$N$506,6,0)) -> バスが［ト］まる | J88: =IF(J86="","",VLOOKUP(J86,漢字書き!$A$2:$N$506,6,0)) -> さん［スウ］がすき | K88: =IF(K86="","",VLOOKUP(K86,漢字読み!$A$2:$O$506,6,0)) -> 目が［回］る | L88: =IF(L86="","",VLOOKUP(L86,漢字読み!$A$2:$O$506,6,0)) -> きゅう［食］とうばん | M88: =IF(M86="","",VLOOKUP(M86,漢字読み!$A$2:$O$506,6,0)) -> たん［語］をおぼえる | N88: =IF(N86="","",VLOOKUP(N86,漢字読み!$A$2:$O$506,6,0)) -> ごはんを［食］べる | O88: =IF(O86="","",VLOOKUP(O86,漢字読み!$A$2:$O$506,6,0)) -> ［今］どこそがんばるぞ | P88: =IF(P86="","",VLOOKUP(P86,漢字読み!$A$2:$O$506,6,0)) -> こたえを［考］える | Q88: =IF(Q86="","",VLOOKUP(Q86,漢字読み!$A$2:$O$506,6,0)) -> 先生に［教］わる | R88: =IF(R86="","",VLOOKUP(R86,漢字読み!$A$2:$O$506,6,0)) -> ［人形］げきをみる | S88: =IF(S86="","",VLOOKUP(S86,漢字読み!$A$2:$O$506,6,0)) -> ［数字］をおぼえる | T88: =IF(T86="","",VLOOKUP(T86,漢字読み!$A$2:$O$506,6,0)) -> ［公園］であそぶ | V88: 級
V89: 名前
A90: =IF(A86="","",IF(VLOOKUP(A86,漢字書き!$A$2:$N$502,7,0)=0,"",VLOOKUP(A86,漢字書き!$A$2:$N$502,7,0))) ->  | B90: =IF(B86="","",IF(VLOOKUP(B86,漢字書き!$A$2:$N$502,7,0)=0,"",VLOOKUP(B86,漢字書き!$A$2:$N$502,7,0))) ->  | C90: =IF(C86="","",IF(VLOOKUP(C86,漢字書き!$A$2:$N$502,7,0)=0,"",VLOOKUP(C86,漢字書き!$A$2:$N$502,7,0))) ->  | D90: =IF(D86="","",IF(VLOOKUP(D86,漢字書き!$A$2:$N$502,7,0)=0,"",VLOOKUP(D86,漢字書き!$A$2:$N$502,7,0))) -> る | E90: =IF(E86="","",IF(VLOOKUP(E86,漢字書き!$A$2:$N$502,7,0)=0,"",VLOOKUP(E86,漢字書き!$A$2:$N$502,7,0))) -> く | F90: =IF(F86="","",IF(VLOOKUP(F86,漢字書き!$A$2:$N$502,7,0)=0,"",VLOOKUP(F86,漢字書き!$A$2:$N$502,7,0))) -> える | G90: =IF(G86="","",IF(VLOOKUP(G86,漢字書き!$A$2:$N$502,7,0)=0,"",VLOOKUP(G86,漢字書き!$A$2:$N$502,7,0))) ->  | H90: =IF(H86="","",IF(VLOOKUP(H86,漢字書き!$A$2:$N$502,7,0)=0,"",VLOOKUP(H86,漢字書き!$A$2:$N$502,7,0))) ->  | I90: =IF(I86="","",IF(VLOOKUP(I86,漢字書き!$A$2:$N$502,7,0)=0,"",VLOOKUP(I86,漢字書き!$A$2:$N$502,7,0))) -> まる | J90: =IF(J86="","",IF(VLOOKUP(J86,漢字書き!$A$2:$N$502,7,0)=0,"",VLOOKUP(J86,漢字書き!$A$2:$N$502,7,0))) ->  | K90: =IF(K86="","",IF(VLOOKUP(K86,漢字読み!$A$2:$O$502,7,0)=0,"",VLOOKUP(K86,漢字読み!$A$2:$O$502,7,0))) -> る | L90: =IF(L86="","",IF(VLOOKUP(L86,漢字読み!$A$2:$O$502,7,0)=0,"",VLOOKUP(L86,漢字読み!$A$2:$O$502,7,0))) ->  | M90: =IF(M86="","",IF(VLOOKUP(M86,漢字読み!$A$2:$O$502,7,0)=0,"",VLOOKUP(M86,漢字読み!$A$2:$O$502,7,0))) ->  | N90: =IF(N86="","",IF(VLOOKUP(N86,漢字読み!$A$2:$O$502,7,0)=0,"",VLOOKUP(N86,漢字読み!$A$2:$O$502,7,0))) -> べる | O90: =IF(O86="","",IF(VLOOKUP(O86,漢字読み!$A$2:$O$502,7,0)=0,"",VLOOKUP(O86,漢字読み!$A$2:$O$502,7,0))) -> ど | P90: =IF(P86="","",IF(VLOOKUP(P86,漢字読み!$A$2:$O$502,7,0)=0,"",VLOOKUP(P86,漢字読み!$A$2:$O$502,7,0))) -> える | Q90: =IF(Q86="","",IF(VLOOKUP(Q86,漢字読み!$A$2:$O$502,7,0)=0,"",VLOOKUP(Q86,漢字読み!$A$2:$O$502,7,0))) -> わる | R90: =IF(R86="","",IF(VLOOKUP(R86,漢字読み!$A$2:$O$502,7,0)=0,"",VLOOKUP(R86,漢字読み!$A$2:$O$502,7,0))) -> げき | S90: =IF(S86="","",IF(VLOOKUP(S86,漢字読み!$A$2:$O$502,7,0)=0,"",VLOOKUP(S86,漢字読み!$A$2:$O$502,7,0))) ->  | T90: =IF(T86="","",IF(VLOOKUP(T86,漢字読み!$A$2:$O$502,7,0)=0,"",VLOOKUP(T86,漢字読み!$A$2:$O$502,7,0))) ->  | W90: 和歌山県教育委員会
A91: =A81 -> 91 | B91: =B81 -> 96 | C91: =C81 -> 28 | D91: =D81 -> 79 | E91: =E81 -> 87 | F91: =F81 -> 129 | G91: =G81 -> 55 | H91: =H81 -> 68 | I91: =I81 -> 113 | J91: =J81 -> 131 | K91: =K81 -> 34 | L91: =L81 -> 9 | M91: =M81 -> 143 | N91: =N81 -> 102 | O91: =O81 -> 24 | P91: =P81 -> 20 | Q91: =Q81 -> 147 | R91: =R81 -> 115 | S91: =S81 -> 152 | T91: =T81 -> 73
A92: ⑳ | B92: ⑲ | C92: ⑱ | D92: ⑰ | E92: ⑯ | F92: ⑮ | G92: ⑭ | H92: ⑬ | I92: ⑫ | J92: ⑪ | K92: ⑩ | L92: ⑨ | M92: ⑧ | N92: ⑦ | O92: ⑥ | P92: ⑤ | Q92: ④ | R92: ③ | S92: ② | T92: ① | U92: 次の［ ］の部分の漢字には読みがなをひらがなで書き、カタカナは漢字に直しなさい。 | V92: 14 | W92: 「漢字の博士検定試験」練習問題
A93: =IF(A91="","",VLOOKUP(A91,漢字書き!$A$2:$N$506,6,0)) -> たのしい［オモ］い出 | B93: =IF(B91="","",VLOOKUP(B91,漢字書き!$A$2:$N$506,6,0)) -> ［キョウシツ］をそうじする | C93: =IF(C91="","",VLOOKUP(C91,漢字書き!$A$2:$N$506,6,0)) -> ［カオ］をあらう | D93: =IF(D91="","",VLOOKUP(D91,漢字書き!$A$2:$N$506,6,0)) -> ［コマ］かい文字 | E93: =IF(E91="","",VLOOKUP(E91,漢字書き!$A$2:$N$506,6,0)) -> 車を［ト］める | F93: =IF(F91="","",VLOOKUP(F91,漢字書き!$A$2:$N$506,6,0)) -> かたを［ク］む | G93: =IF(G91="","",VLOOKUP(G91,漢字書き!$A$2:$N$506,6,0)) -> ［コクゴ］の教か書 | H93: =IF(H91="","",VLOOKUP(H91,漢字書き!$A$2:$N$506,6,0)) -> ［タカ］いビル | I93: =IF(I91="","",VLOOKUP(I91,漢字書き!$A$2:$N$506,6,0)) -> ［シタ］しいなかま | J93: =IF(J91="","",VLOOKUP(J91,漢字書き!$A$2:$N$506,6,0)) -> 雲が［オオ］い | K93: =IF(K91="","",VLOOKUP(K91,漢字読み!$A$2:$O$506,6,0)) -> ［顔］めんをうつ | L93: =IF(L91="","",VLOOKUP(L91,漢字読み!$A$2:$O$506,6,0)) -> ［科学］のしんぽ | M93: =IF(M91="","",VLOOKUP(M91,漢字読み!$A$2:$O$506,6,0)) -> ［晴］れた空 | N93: =IF(N91="","",VLOOKUP(N91,漢字読み!$A$2:$O$506,6,0)) -> ［紙］しばいを見る | O93: =IF(O91="","",VLOOKUP(O91,漢字読み!$A$2:$O$506,6,0)) -> ［外］がわをあるく | P93: =IF(P91="","",VLOOKUP(P91,漢字読み!$A$2:$O$506,6,0)) -> 花火［大会］をする | Q93: =IF(Q91="","",VLOOKUP(Q91,漢字読み!$A$2:$O$506,6,0)) -> ［船］がついた | R93: =IF(R91="","",VLOOKUP(R91,漢字読み!$A$2:$O$506,6,0)) -> ［今週］のニュース | S93: =IF(S91="","",VLOOKUP(S91,漢字読み!$A$2:$O$506,6,0)) -> しゅくだいが［多］い | T93: =IF(T91="","",VLOOKUP(T91,漢字読み!$A$2:$O$506,6,0)) -> 線が［交］わる | V93: 級
A94: =IF(A$11="","",VLOOKUP(A91,漢字書き!$A$2:$O$506,8,0)) -> 思 | B94: =IF(B$11="","",VLOOKUP(B91,漢字書き!$A$2:$O$506,8,0)) -> 教室 | C94: =IF(C$11="","",VLOOKUP(C91,漢字書き!$A$2:$O$506,8,0)) -> 顔 | D94: =IF(D$11="","",VLOOKUP(D91,漢字書き!$A$2:$O$506,8,0)) -> 細 | E94: =IF(E$11="","",VLOOKUP(E91,漢字書き!$A$2:$O$506,8,0)) -> 止 | F94: =IF(F$11="","",VLOOKUP(F91,漢字書き!$A$2:$O$506,8,0)) -> 組 | G94: =IF(G$11="","",VLOOKUP(G91,漢字書き!$A$2:$O$506,8,0)) -> 国語 | H94: =IF(H$11="","",VLOOKUP(H91,漢字書き!$A$2:$O$506,8,0)) -> 高 | I94: =IF(I$11="","",VLOOKUP(I91,漢字書き!$A$2:$O$506,8,0)) -> 親 | J94: =IF(J$11="","",VLOOKUP(J91,漢字書き!$A$2:$O$506,8,0)) -> 多 | K94: =IF(K$11="","",VLOOKUP(K91,漢字読み!$A$2:$O$506,8,0)) -> がん | L94: =IF(L$11="","",VLOOKUP(L91,漢字読み!$A$2:$O$506,8,0)) -> かがく | M94: =IF(M$11="","",VLOOKUP(M91,漢字読み!$A$2:$O$506,8,0)) -> は | N94: =IF(N$11="","",VLOOKUP(N91,漢字読み!$A$2:$O$506,8,0)) -> かみ | O94: =IF(O$11="","",VLOOKUP(O91,漢字読み!$A$2:$O$506,8,0)) -> そと | P94: =IF(P$11="","",VLOOKUP(P91,漢字読み!$A$2:$O$506,8,0)) -> たいかい | Q94: =IF(Q$11="","",VLOOKUP(Q91,漢字読み!$A$2:$O$506,8,0)) -> ふね | R94: =IF(R$11="","",VLOOKUP(R91,漢字読み!$A$2:$O$506,8,0)) -> こんしゅう | S94: =IF(S$11="","",VLOOKUP(S91,漢字読み!$A$2:$O$506,8,0)) -> おお | T94: =IF(T$11="","",VLOOKUP(T91,漢字読み!$A$2:$O$506,8,0)) -> まじ | V94: 名前
A95: =IF(A91="","",IF(VLOOKUP(A91,漢字書き!$A$2:$N$502,7,0)=0,"",VLOOKUP(A91,漢字書き!$A$2:$N$502,7,0))) -> い出 | B95: =IF(B91="","",IF(VLOOKUP(B91,漢字書き!$A$2:$N$502,7,0)=0,"",VLOOKUP(B91,漢字書き!$A$2:$N$502,7,0))) ->  | C95: =IF(C91="","",IF(VLOOKUP(C91,漢字書き!$A$2:$N$502,7,0)=0,"",VLOOKUP(C91,漢字書き!$A$2:$N$502,7,0))) ->  | D95: =IF(D91="","",IF(VLOOKUP(D91,漢字書き!$A$2:$N$502,7,0)=0,"",VLOOKUP(D91,漢字書き!$A$2:$N$502,7,0))) -> かい | E95: =IF(E91="","",IF(VLOOKUP(E91,漢字書き!$A$2:$N$502,7,0)=0,"",VLOOKUP(E91,漢字書き!$A$2:$N$502,7,0))) -> める | F95: =IF(F91="","",IF(VLOOKUP(F91,漢字書き!$A$2:$N$502,7,0)=0,"",VLOOKUP(F91,漢字書き!$A$2:$N$502,7,0))) -> む | G95: =IF(G91="","",IF(VLOOKUP(G91,漢字書き!$A$2:$N$502,7,0)=0,"",VLOOKUP(G91,漢字書き!$A$2:$N$502,7,0))) ->  | H95: =IF(H91="","",IF(VLOOKUP(H91,漢字書き!$A$2:$N$502,7,0)=0,"",VLOOKUP(H91,漢字書き!$A$2:$N$502,7,0))) -> い | I95: =IF(I91="","",IF(VLOOKUP(I91,漢字書き!$A$2:$N$502,7,0)=0,"",VLOOKUP(I91,漢字書き!$A$2:$N$502,7,0))) -> しい | J95: =IF(J91="","",IF(VLOOKUP(J91,漢字書き!$A$2:$N$502,7,0)=0,"",VLOOKUP(J91,漢字書き!$A$2:$N$502,7,0))) -> い | K95: =IF(K91="","",IF(VLOOKUP(K91,漢字読み!$A$2:$O$502,7,0)=0,"",VLOOKUP(K91,漢字読み!$A$2:$O$502,7,0))) -> めん | L95: =IF(L91="","",IF(VLOOKUP(L91,漢字読み!$A$2:$O$502,7,0)=0,"",VLOOKUP(L91,漢字読み!$A$2:$O$502,7,0))) ->  | M95: =IF(M91="","",IF(VLOOKUP(M91,漢字読み!$A$2:$O$502,7,0)=0,"",VLOOKUP(M91,漢字読み!$A$2:$O$502,7,0))) -> れた | N95: =IF(N91="","",IF(VLOOKUP(N91,漢字読み!$A$2:$O$502,7,0)=0,"",VLOOKUP(N91,漢字読み!$A$2:$O$502,7,0))) -> しばい | O95: =IF(O91="","",IF(VLOOKUP(O91,漢字読み!$A$2:$O$502,7,0)=0,"",VLOOKUP(O91,漢字読み!$A$2:$O$502,7,0))) ->  | P95: =IF(P91="","",IF(VLOOKUP(P91,漢字読み!$A$2:$O$502,7,0)=0,"",VLOOKUP(P91,漢字読み!$A$2:$O$502,7,0))) ->  | Q95: =IF(Q91="","",IF(VLOOKUP(Q91,漢字読み!$A$2:$O$502,7,0)=0,"",VLOOKUP(Q91,漢字読み!$A$2:$O$502,7,0))) ->  | R95: =IF(R91="","",IF(VLOOKUP(R91,漢字読み!$A$2:$O$502,7,0)=0,"",VLOOKUP(R91,漢字読み!$A$2:$O$502,7,0))) ->  | S95: =IF(S91="","",IF(VLOOKUP(S91,漢字読み!$A$2:$O$502,7,0)=0,"",VLOOKUP(S91,漢字読み!$A$2:$O$502,7,0))) -> い | T95: =IF(T91="","",IF(VLOOKUP(T91,漢字読み!$A$2:$O$502,7,0)=0,"",VLOOKUP(T91,漢字読み!$A$2:$O$502,7,0))) -> わる | W95: 和歌山県教育委員会
A96: =A86 -> 3 | B96: =B86 -> 34 | C96: =C86 -> 97 | D96: =D86 -> 130 | E96: =E86 -> 1 | F96: =F86 -> 65 | G96: =G86 -> 47 | H96: =H86 -> 16 | I96: =I86 -> 86 | J96: =J86 -> 40 | K96: =K86 -> 18 | L96: =L86 -> 125 | M96: =M86 -> 66 | N96: =N86 -> 126 | O96: =O86 -> 86 | P96: =P86 -> 76 | Q96: =Q86 -> 50 | R96: =R86 -> 54 | S96: =S86 -> 136 | T96: =T86 -> 5
A97: ⑳ | B97: ⑲ | C97: ⑱ | D97: ⑰ | E97: ⑯ | F97: ⑮ | G97: ⑭ | H97: ⑬ | I97: ⑫ | J97: ⑪ | K97: ⑩ | L97: ⑨ | M97: ⑧ | N97: ⑦ | O97: ⑥ | P97: ⑤ | Q97: ④ | R97: ③ | S97: ② | T97: ① | U97: 次の［ ］の部分の漢字には読みがなをひらがなで書き、カタカナは漢字に直しなさい。 | V97: 14 | W97: 「漢字の博士検定試験」練習問題
A98: =IF(A96="","",VLOOKUP(A96,漢字書き!$A$2:$N$506,6,0)) -> 白い［クモ］ | B98: =IF(B96="","",VLOOKUP(B96,漢字書き!$A$2:$N$506,6,0)) -> ［キンギョ］をかう | C98: =IF(C96="","",VLOOKUP(C96,漢字書き!$A$2:$N$506,6,0)) -> ［シャカイ］のためにつくす | D98: =IF(D96="","",VLOOKUP(D96,漢字書き!$A$2:$N$506,6,0)) -> ぜん力で［ハシ］る | E98: =IF(E96="","",VLOOKUP(E96,漢字書き!$A$2:$N$506,6,0)) -> 線を［ヒ］く | F98: =IF(F96="","",VLOOKUP(F96,漢字書き!$A$2:$N$506,6,0)) -> じっくり［カンガ］える | G98: =IF(G96="","",VLOOKUP(G96,漢字書き!$A$2:$N$506,6,0)) -> ［ゲンキ］いっぱい | H98: =IF(H96="","",VLOOKUP(H96,漢字書き!$A$2:$N$506,6,0)) -> うんどう［カイ］ | I98: =IF(I96="","",VLOOKUP(I96,漢字書き!$A$2:$N$506,6,0)) -> バスが［ト］まる | J98: =IF(J96="","",VLOOKUP(J96,漢字書き!$A$2:$N$506,6,0)) -> さん［スウ］がすき | K98: =IF(K96="","",VLOOKUP(K96,漢字読み!$A$2:$O$506,6,0)) -> 目が［回］る | L98: =IF(L96="","",VLOOKUP(L96,漢字読み!$A$2:$O$506,6,0)) -> きゅう［食］とうばん | M98: =IF(M96="","",VLOOKUP(M96,漢字読み!$A$2:$O$506,6,0)) -> たん［語］をおぼえる | N98: =IF(N96="","",VLOOKUP(N96,漢字読み!$A$2:$O$506,6,0)) -> ごはんを［食］べる | O98: =IF(O96="","",VLOOKUP(O96,漢字読み!$A$2:$O$506,6,0)) -> ［今］どこそがんばるぞ | P98: =IF(P96="","",VLOOKUP(P96,漢字読み!$A$2:$O$506,6,0)) -> こたえを［考］える | Q98: =IF(Q96="","",VLOOKUP(Q96,漢字読み!$A$2:$O$506,6,0)) -> 先生に［教］わる | R98: =IF(R96="","",VLOOKUP(R96,漢字読み!$A$2:$O$506,6,0)) -> ［人形］げきをみる | S98: =IF(S96="","",VLOOKUP(S96,漢字読み!$A$2:$O$506,6,0)) -> ［数字］をおぼえる | T98: =IF(T96="","",VLOOKUP(T96,漢字読み!$A$2:$O$506,6,0)) -> ［公園］であそぶ | V98: 級
A99: =IF(A$16="","",VLOOKUP(A96,漢字書き!$A$2:$O$506,8,0)) -> 雲 | B99: =IF(B$16="","",VLOOKUP(B96,漢字書き!$A$2:$O$506,8,0)) -> 金魚 | C99: =IF(C$16="","",VLOOKUP(C96,漢字書き!$A$2:$O$506,8,0)) -> 社会 | D99: =IF(D$16="","",VLOOKUP(D96,漢字書き!$A$2:$O$506,8,0)) -> 走 | E99: =IF(E$16="","",VLOOKUP(E96,漢字書き!$A$2:$O$506,8,0)) -> 引 | F99: =IF(F$16="","",VLOOKUP(F96,漢字書き!$A$2:$O$506,8,0)) -> 考 | G99: =IF(G$16="","",VLOOKUP(G96,漢字書き!$A$2:$O$506,8,0)) -> 元気 | H99: =IF(H$16="","",VLOOKUP(H96,漢字書き!$A$2:$O$506,8,0)) -> 会 | I99: =IF(I$16="","",VLOOKUP(I96,漢字書き!$A$2:$O$506,8,0)) -> 止 | J99: =IF(J$16="","",VLOOKUP(J96,漢字書き!$A$2:$O$506,8,0)) -> 数 | K99: =IF(K$16="","",VLOOKUP(K96,漢字読み!$A$2:$O$506,8,0)) -> まわ | L99: =IF(L$16="","",VLOOKUP(L96,漢字読み!$A$2:$O$506,8,0)) -> しょく | M99: =IF(M$16="","",VLOOKUP(M96,漢字読み!$A$2:$O$506,8,0)) -> ご | N99: =IF(N$16="","",VLOOKUP(N96,漢字読み!$A$2:$O$506,8,0)) -> た | O99: =IF(O$16="","",VLOOKUP(O96,漢字読み!$A$2:$O$506,8,0)) -> こん | P99: =IF(P$16="","",VLOOKUP(P96,漢字読み!$A$2:$O$506,8,0)) -> かんが | Q99: =IF(Q$16="","",VLOOKUP(Q96,漢字読み!$A$2:$O$506,8,0)) -> おそ | R99: =IF(R$16="","",VLOOKUP(R96,漢字読み!$A$2:$O$506,8,0)) -> にんぎょう | S99: =IF(S$16="","",VLOOKUP(S96,漢字読み!$A$2:$O$506,8,0)) -> すうじ | T99: =IF(T$16="","",VLOOKUP(T96,漢字読み!$A$2:$O$506,8,0)) -> こうえん | V99: 名前
A100: =IF(A96="","",IF(VLOOKUP(A96,漢字書き!$A$2:$N$502,7,0)=0,"",VLOOKUP(A96,漢字書き!$A$2:$N$502,7,0))) ->  | B100: =IF(B96="","",IF(VLOOKUP(B96,漢字書き!$A$2:$N$502,7,0)=0,"",VLOOKUP(B96,漢字書き!$A$2:$N$502,7,0))) ->  | C100: =IF(C96="","",IF(VLOOKUP(C96,漢字書き!$A$2:$N$502,7,0)=0,"",VLOOKUP(C96,漢字書き!$A$2:$N$502,7,0))) ->  | D100: =IF(D96="","",IF(VLOOKUP(D96,漢字書き!$A$2:$N$502,7,0)=0,"",VLOOKUP(D96,漢字書き!$A$2:$N$502,7,0))) -> る | E100: =IF(E96="","",IF(VLOOKUP(E96,漢字書き!$A$2:$N$502,7,0)=0,"",VLOOKUP(E96,漢字書き!$A$2:$N$502,7,0))) -> く | F100: =IF(F96="","",IF(VLOOKUP(F96,漢字書き!$A$2:$N$502,7,0)=0,"",VLOOKUP(F96,漢字書き!$A$2:$N$502,7,0))) -> える | G100: =IF(G96="","",IF(VLOOKUP(G96,漢字書き!$A$2:$N$502,7,0)=0,"",VLOOKUP(G96,漢字書き!$A$2:$N$502,7,0))) ->  | H100: =IF(H96="","",IF(VLOOKUP(H96,漢字書き!$A$2:$N$502,7,0)=0,"",VLOOKUP(H96,漢字書き!$A$2:$N$502,7,0))) ->  | I100: =IF(I96="","",IF(VLOOKUP(I96,漢字書き!$A$2:$N$502,7,0)=0,"",VLOOKUP(I96,漢字書き!$A$2:$N$502,7,0))) -> まる | J100: =IF(J96="","",IF(VLOOKUP(J96,漢字書き!$A$2:$N$502,7,0)=0,"",VLOOKUP(J96,漢字書き!$A$2:$N$502,7,0))) ->  | K100: =IF(K96="","",IF(VLOOKUP(K96,漢字読み!$A$2:$O$502,7,0)=0,"",VLOOKUP(K96,漢字読み!$A$2:$O$502,7,0))) -> る | L100: =IF(L96="","",IF(VLOOKUP(L96,漢字読み!$A$2:$O$502,7,0)=0,"",VLOOKUP(L96,漢字読み!$A$2:$O$502,7,0))) ->  | M100: =IF(M96="","",IF(VLOOKUP(M96,漢字読み!$A$2:$O$502,7,0)=0,"",VLOOKUP(M96,漢字読み!$A$2:$O$502,7,0))) ->  | N100: =IF(N96="","",IF(VLOOKUP(N96,漢字読み!$A$2:$O$502,7,0)=0,"",VLOOKUP(N96,漢字読み!$A$2:$O$502,7,0))) -> べる | O100: =IF(O96="","",IF(VLOOKUP(O96,漢字読み!$A$2:$O$502,7,0)=0,"",VLOOKUP(O96,漢字読み!$A$2:$O$502,7,0))) -> ど | P100: =IF(P96="","",IF(VLOOKUP(P96,漢字読み!$A$2:$O$502,7,0)=0,"",VLOOKUP(P96,漢字読み!$A$2:$O$502,7,0))) -> える | Q100: =IF(Q96="","",IF(VLOOKUP(Q96,漢字読み!$A$2:$O$502,7,0)=0,"",VLOOKUP(Q96,漢字読み!$A$2:$O$502,7,0))) -> わる | R100: =IF(R96="","",IF(VLOOKUP(R96,漢字読み!$A$2:$O$502,7,0)=0,"",VLOOKUP(R96,漢字読み!$A$2:$O$502,7,0))) -> げき | S100: =IF(S96="","",IF(VLOOKUP(S96,漢字読み!$A$2:$O$502,7,0)=0,"",VLOOKUP(S96,漢字読み!$A$2:$O$502,7,0))) ->  | T100: =IF(T96="","",IF(VLOOKUP(T96,漢字読み!$A$2:$O$502,7,0)=0,"",VLOOKUP(T96,漢字読み!$A$2:$O$502,7,0))) ->  | W100: 和歌山県教育委員会
A101: =INDIRECT("'関数（書き）'!C" & COLUMN(B$1)+SUM($AD$2:$AD102)) -> 88 | B101: =INDIRECT("'関数（書き）'!C" & COLUMN(C$1)+SUM($AD$2:$AD102)) -> 115 | C101: =INDIRECT("'関数（書き）'!C" & COLUMN(D$1)+SUM($AD$2:$AD102)) -> 126 | D101: =INDIRECT("'関数（書き）'!C" & COLUMN(E$1)+SUM($AD$2:$AD102)) -> 44 | E101: =INDIRECT("'関数（書き）'!C" & COLUMN(F$1)+SUM($AD$2:$AD102)) -> 80 | F101: =INDIRECT("'関数（書き）'!C" & COLUMN(G$1)+SUM($AD$2:$AD102)) -> 72 | G101: =INDIRECT("'関数（書き）'!C" & COLUMN(H$1)+SUM($AD$2:$AD102)) -> 59 | H101: =INDIRECT("'関数（書き）'!C" & COLUMN(I$1)+SUM($AD$2:$AD102)) -> 21 | I101: =INDIRECT("'関数（書き）'!C" & COLUMN(J$1)+SUM($AD$2:$AD102)) -> 58 | J101: =INDIRECT("'関数（書き）'!C" & COLUMN(K$1)+SUM($AD$2:$AD102)) -> 24 | K101: =INDIRECT("'関数（読み）'!C" & COLUMN(B$1)+SUM($AD$2:$AD102)) -> 94 | L101: =INDIRECT("'関数（読み）'!C" & COLUMN(C$1)+SUM($AD$2:$AD102)) -> 59 | M101: =INDIRECT("'関数（読み）'!C" & COLUMN(D$1)+SUM($AD$2:$AD102)) -> 108 | N101: =INDIRECT("'関数（読み）'!C" & COLUMN(E$1)+SUM($AD$2:$AD102)) -> 151 | O101: =INDIRECT("'関数（読み）'!C" & COLUMN(F$1)+SUM($AD$2:$AD102)) -> 62 | P101: =INDIRECT("'関数（読み）'!C" & COLUMN(G$1)+SUM($AD$2:$AD102)) -> 30 | Q101: =INDIRECT("'関数（読み）'!C" & COLUMN(H$1)+SUM($AD$2:$AD102)) -> 130 | R101: =INDIRECT("'関数（読み）'!C" & COLUMN(I$1)+SUM($AD$2:$AD102)) -> 35 | S101: =INDIRECT("'関数（読み）'!C" & COLUMN(J$1)+SUM($AD$2:$AD102)) -> 39 | T101: =INDIRECT("'関数（読み）'!C" & COLUMN(K$1)+SUM($AD$2:$AD102)) -> 48
A102: ⑳ | B102: ⑲ | C102: ⑱ | D102: ⑰ | E102: ⑯ | F102: ⑮ | G102: ⑭ | H102: ⑬ | I102: ⑫ | J102: ⑪ | K102: ⑩ | L102: ⑨ | M102: ⑧ | N102: ⑦ | O102: ⑥ | P102: ⑤ | Q102: ④ | R102: ③ | S102: ② | T102: ① | U102: 次の［ ］の部分の漢字には読みがなをひらがなで書き、カタカナは漢字に直しなさい。 | V102: 14 | W102: 「漢字の博士検定試験」練習問題 | AC102: ← | AD102: 10 | AE102: 問 | AF102: =AH87+1 -> 101 | AG102: ～ | AH102: =SUM($AD$2:$AD102)+10 -> 110 | AI102: 問まで | AJ102: =COUNTIF($A$1:$T$200,T103) -> 2
A103: =IF(A101="","",VLOOKUP(A101,漢字書き!$A$2:$N$506,6,0)) -> ［イチバ］にむかう | B103: =IF(B101="","",VLOOKUP(B101,漢字書き!$A$2:$N$506,6,0)) -> ［トショ］かんにいく | C103: =IF(C101="","",VLOOKUP(C101,漢字書き!$A$2:$N$506,6,0)) -> まっすぐな［セン］を引く | D103: =IF(D101="","",VLOOKUP(D101,漢字書き!$A$2:$N$506,6,0)) -> ［ケイカク］を立てる | E103: =IF(E101="","",VLOOKUP(E101,漢字書き!$A$2:$N$506,6,0)) -> ［ホソ］いひも | F103: =IF(F101="","",VLOOKUP(F101,漢字書き!$A$2:$N$506,6,0)) -> ふかい［タニ］ | G103: =IF(G101="","",VLOOKUP(G101,漢字書き!$A$2:$N$506,6,0)) -> ［ヒロ］い海 | H103: =IF(H101="","",VLOOKUP(H101,漢字書き!$A$2:$N$506,6,0)) -> ［ソト］であそぶ | I103: =IF(I101="","",VLOOKUP(I101,漢字書き!$A$2:$N$506,6,0)) -> ［コウ］がいのない町 | J103: =IF(J101="","",VLOOKUP(J101,漢字書き!$A$2:$N$506,6,0)) -> ［カツ］やくする | K103: =IF(K101="","",VLOOKUP(K101,漢字読み!$A$2:$O$506,6,0)) -> えんそくが［中止］になる | L103: =IF(L101="","",VLOOKUP(L101,漢字読み!$A$2:$O$506,6,0)) -> みんなに［言］う | M103: =IF(M101="","",VLOOKUP(M101,漢字読み!$A$2:$O$506,6,0)) -> ［室外］に出る | N103: =IF(N101="","",VLOOKUP(N101,漢字読み!$A$2:$O$506,6,0)) -> うまが［走］る | O103: =IF(O101="","",VLOOKUP(O101,漢字読み!$A$2:$O$506,6,0)) -> ［戸］があいた | P103: =IF(P101="","",VLOOKUP(P101,漢字読み!$A$2:$O$506,6,0)) -> ［時間］がすぎる | Q103: =IF(Q101="","",VLOOKUP(Q101,漢字読み!$A$2:$O$506,6,0)) -> ［新］しいくつをはく | R103: =IF(R101="","",VLOOKUP(R101,漢字読み!$A$2:$O$506,6,0)) -> ［顔］をあらう | S103: =IF(S101="","",VLOOKUP(S101,漢字読み!$A$2:$O$506,6,0)) -> いっしょに［帰］る | T103: =IF(T101="","",VLOOKUP(T101,漢字読み!$A$2:$O$506,6,0)) -> ［教］え合う | V103: 級
V104: 名前
A105: =IF(A101="","",IF(VLOOKUP(A101,漢字書き!$A$2:$N$502,7,0)=0,"",VLOOKUP(A101,漢字書き!$A$2:$N$502,7,0))) ->  | B105: =IF(B101="","",IF(VLOOKUP(B101,漢字書き!$A$2:$N$502,7,0)=0,"",VLOOKUP(B101,漢字書き!$A$2:$N$502,7,0))) -> かん | C105: =IF(C101="","",IF(VLOOKUP(C101,漢字書き!$A$2:$N$502,7,0)=0,"",VLOOKUP(C101,漢字書き!$A$2:$N$502,7,0))) ->  | D105: =IF(D101="","",IF(VLOOKUP(D101,漢字書き!$A$2:$N$502,7,0)=0,"",VLOOKUP(D101,漢字書き!$A$2:$N$502,7,0))) ->  | E105: =IF(E101="","",IF(VLOOKUP(E101,漢字書き!$A$2:$N$502,7,0)=0,"",VLOOKUP(E101,漢字書き!$A$2:$N$502,7,0))) -> い | F105: =IF(F101="","",IF(VLOOKUP(F101,漢字書き!$A$2:$N$502,7,0)=0,"",VLOOKUP(F101,漢字書き!$A$2:$N$502,7,0))) ->  | G105: =IF(G101="","",IF(VLOOKUP(G101,漢字書き!$A$2:$N$502,7,0)=0,"",VLOOKUP(G101,漢字書き!$A$2:$N$502,7,0))) -> い | H105: =IF(H101="","",IF(VLOOKUP(H101,漢字書き!$A$2:$N$502,7,0)=0,"",VLOOKUP(H101,漢字書き!$A$2:$N$502,7,0))) ->  | I105: =IF(I101="","",IF(VLOOKUP(I101,漢字書き!$A$2:$N$502,7,0)=0,"",VLOOKUP(I101,漢字書き!$A$2:$N$502,7,0))) -> がい | J105: =IF(J101="","",IF(VLOOKUP(J101,漢字書き!$A$2:$N$502,7,0)=0,"",VLOOKUP(J101,漢字書き!$A$2:$N$502,7,0))) -> やく | K105: =IF(K101="","",IF(VLOOKUP(K101,漢字読み!$A$2:$O$502,7,0)=0,"",VLOOKUP(K101,漢字読み!$A$2:$O$502,7,0))) ->  | L105: =IF(L101="","",IF(VLOOKUP(L101,漢字読み!$A$2:$O$502,7,0)=0,"",VLOOKUP(L101,漢字読み!$A$2:$O$502,7,0))) -> う | M105: =IF(M101="","",IF(VLOOKUP(M101,漢字読み!$A$2:$O$502,7,0)=0,"",VLOOKUP(M101,漢字読み!$A$2:$O$502,7,0))) ->  | N105: =IF(N101="","",IF(VLOOKUP(N101,漢字読み!$A$2:$O$502,7,0)=0,"",VLOOKUP(N101,漢字読み!$A$2:$O$502,7,0))) -> る | O105: =IF(O101="","",IF(VLOOKUP(O101,漢字読み!$A$2:$O$502,7,0)=0,"",VLOOKUP(O101,漢字読み!$A$2:$O$502,7,0))) ->  | P105: =IF(P101="","",IF(VLOOKUP(P101,漢字読み!$A$2:$O$502,7,0)=0,"",VLOOKUP(P101,漢字読み!$A$2:$O$502,7,0))) ->  | Q105: =IF(Q101="","",IF(VLOOKUP(Q101,漢字読み!$A$2:$O$502,7,0)=0,"",VLOOKUP(Q101,漢字読み!$A$2:$O$502,7,0))) -> しい | R105: =IF(R101="","",IF(VLOOKUP(R101,漢字読み!$A$2:$O$502,7,0)=0,"",VLOOKUP(R101,漢字読み!$A$2:$O$502,7,0))) ->  | S105: =IF(S101="","",IF(VLOOKUP(S101,漢字読み!$A$2:$O$502,7,0)=0,"",VLOOKUP(S101,漢字読み!$A$2:$O$502,7,0))) -> る | T105: =IF(T101="","",IF(VLOOKUP(T101,漢字読み!$A$2:$O$502,7,0)=0,"",VLOOKUP(T101,漢字読み!$A$2:$O$502,7,0))) -> え | W105: 和歌山県教育委員会
A106: =INDIRECT("'関数（書き）'!C" & COLUMN(B$1)+SUM($AD$2:$AD107)) -> 78 | B106: =INDIRECT("'関数（書き）'!C" & COLUMN(C$1)+SUM($AD$2:$AD107)) -> 84 | C106: =INDIRECT("'関数（書き）'!C" & COLUMN(D$1)+SUM($AD$2:$AD107)) -> 4 | D106: =INDIRECT("'関数（書き）'!C" & COLUMN(E$1)+SUM($AD$2:$AD107)) -> 12 | E106: =INDIRECT("'関数（書き）'!C" & COLUMN(F$1)+SUM($AD$2:$AD107)) -> 69 | F106: =INDIRECT("'関数（書き）'!C" & COLUMN(G$1)+SUM($AD$2:$AD107)) -> 36 | G106: =INDIRECT("'関数（書き）'!C" & COLUMN(H$1)+SUM($AD$2:$AD107)) -> 32 | H106: =INDIRECT("'関数（書き）'!C" & COLUMN(I$1)+SUM($AD$2:$AD107)) -> 106 | I106: =INDIRECT("'関数（書き）'!C" & COLUMN(J$1)+SUM($AD$2:$AD107)) -> 14 | J106: =INDIRECT("'関数（書き）'!C" & COLUMN(K$1)+SUM($AD$2:$AD107)) -> 48 | K106: =INDIRECT("'関数（読み）'!C" & COLUMN(B$1)+SUM($AD$2:$AD107)) -> 122 | L106: =INDIRECT("'関数（読み）'!C" & COLUMN(C$1)+SUM($AD$2:$AD107)) -> 56 | M106: =INDIRECT("'関数（読み）'!C" & COLUMN(D$1)+SUM($AD$2:$AD107)) -> 116 | N106: =INDIRECT("'関数（読み）'!C" & COLUMN(E$1)+SUM($AD$2:$AD107)) -> 22 | O106: =INDIRECT("'関数（読み）'!C" & COLUMN(F$1)+SUM($AD$2:$AD107)) -> 123 | P106: =INDIRECT("'関数（読み）'!C" & COLUMN(G$1)+SUM($AD$2:$AD107)) -> 3 | Q106: =INDIRECT("'関数（読み）'!C" & COLUMN(H$1)+SUM($AD$2:$AD107)) -> 16 | R106: =INDIRECT("'関数（読み）'!C" & COLUMN(I$1)+SUM($AD$2:$AD107)) -> 80 | S106: =INDIRECT("'関数（読み）'!C" & COLUMN(J$1)+SUM($AD$2:$AD107)) -> 107 | T106: =INDIRECT("'関数（読み）'!C" & COLUMN(K$1)+SUM($AD$2:$AD107)) -> 1
A107: ⑳ | B107: ⑲ | C107: ⑱ | D107: ⑰ | E107: ⑯ | F107: ⑮ | G107: ⑭ | H107: ⑬ | I107: ⑫ | J107: ⑪ | K107: ⑩ | L107: ⑨ | M107: ⑧ | N107: ⑦ | O107: ⑥ | P107: ⑤ | Q107: ④ | R107: ③ | S107: ② | T107: ① | U107: 次の［ ］の部分の漢字には読みがなをひらがなで書き、カタカナは漢字に直しなさい。 | V107: 14 | W107: 「漢字の博士検定試験」練習問題 | AC107: ← | AD107: 10 | AE107: 問 | AF107: =AH102+1 -> 111 | AG107: ～ | AH107: =SUM($AD$2:$AD107)+10 -> 120 | AI107: 問まで | AJ107: =COUNTIF($A$1:$T$200,T108) -> 2
A108: =IF(A106="","",VLOOKUP(A106,漢字書き!$A$2:$N$506,6,0)) -> ［ト］をあける | B108: =IF(B106="","",VLOOKUP(B106,漢字書き!$A$2:$N$506,6,0)) -> ［サンスウ］のもんだい | C108: =IF(C106="","",VLOOKUP(C106,漢字書き!$A$2:$N$506,6,0)) -> ［コウエン］であそぶ | D108: =IF(D106="","",VLOOKUP(D106,漢字書き!$A$2:$N$506,6,0)) -> 日本の［コッカ］ | E108: =IF(E106="","",VLOOKUP(E106,漢字書き!$A$2:$N$506,6,0)) -> ［キイロ］のクレヨン | F108: =IF(F106="","",VLOOKUP(F106,漢字書き!$A$2:$N$506,6,0)) -> ［キョウ］のみやこ | G108: =IF(G106="","",VLOOKUP(G106,漢字書き!$A$2:$N$506,6,0)) -> ［ユミ］の名人 | H108: =IF(H106="","",VLOOKUP(H106,漢字書き!$A$2:$N$506,6,0)) -> うんどう［ジョウ］であそぶ | I108: =IF(I106="","",VLOOKUP(I106,漢字書き!$A$2:$N$506,6,0)) -> ゆうめいな［ガカ］ | J108: =IF(J106="","",VLOOKUP(J106,漢字書き!$A$2:$N$506,6,0)) -> ［ゲンゴ］のちがいをしる | K108: =IF(K106="","",VLOOKUP(K106,漢字読み!$A$2:$O$506,6,0)) -> ［広場］でサッカーをする | L108: =IF(L106="","",VLOOKUP(L106,漢字読み!$A$2:$O$506,6,0)) -> ［足元］におとす | M108: =IF(M106="","",VLOOKUP(M106,漢字読み!$A$2:$O$506,6,0)) -> ［先週］はさむかった | N108: =IF(N106="","",VLOOKUP(N106,漢字読み!$A$2:$O$506,6,0)) -> ［絵］をかく | O108: =IF(O106="","",VLOOKUP(O106,漢字読み!$A$2:$O$506,6,0)) -> ［色紙］にサインをする | P108: =IF(P106="","",VLOOKUP(P106,漢字読み!$A$2:$O$506,6,0)) -> まほうの［羽］ | Q108: =IF(Q106="","",VLOOKUP(Q106,漢字読み!$A$2:$O$506,6,0)) -> かん字の［画数］ | R108: =IF(R106="","",VLOOKUP(R106,漢字読み!$A$2:$O$506,6,0)) -> ［高］い山にのぼる | S108: =IF(S106="","",VLOOKUP(S106,漢字読み!$A$2:$O$506,6,0)) -> ［時間］がたつ | T108: =IF(T106="","",VLOOKUP(T106,漢字読み!$A$2:$O$506,6,0)) -> ［引力］がはたらく | V108: 級
V109: 名前
A110: =IF(A106="","",IF(VLOOKUP(A106,漢字書き!$A$2:$N$502,7,0)=0,"",VLOOKUP(A106,漢字書き!$A$2:$N$502,7,0))) ->  | B110: =IF(B106="","",IF(VLOOKUP(B106,漢字書き!$A$2:$N$502,7,0)=0,"",VLOOKUP(B106,漢字書き!$A$2:$N$502,7,0))) ->  | C110: =IF(C106="","",IF(VLOOKUP(C106,漢字書き!$A$2:$N$502,7,0)=0,"",VLOOKUP(C106,漢字書き!$A$2:$N$502,7,0))) ->  | D110: =IF(D106="","",IF(VLOOKUP(D106,漢字書き!$A$2:$N$502,7,0)=0,"",VLOOKUP(D106,漢字書き!$A$2:$N$502,7,0))) ->  | E110: =IF(E106="","",IF(VLOOKUP(E106,漢字書き!$A$2:$N$502,7,0)=0,"",VLOOKUP(E106,漢字書き!$A$2:$N$502,7,0))) ->  | F110: =IF(F106="","",IF(VLOOKUP(F106,漢字書き!$A$2:$N$502,7,0)=0,"",VLOOKUP(F106,漢字書き!$A$2:$N$502,7,0))) ->  | G110: =IF(G106="","",IF(VLOOKUP(G106,漢字書き!$A$2:$N$502,7,0)=0,"",VLOOKUP(G106,漢字書き!$A$2:$N$502,7,0))) ->  | H110: =IF(H106="","",IF(VLOOKUP(H106,漢字書き!$A$2:$N$502,7,0)=0,"",VLOOKUP(H106,漢字書き!$A$2:$N$502,7,0))) ->  | I110: =IF(I106="","",IF(VLOOKUP(I106,漢字書き!$A$2:$N$502,7,0)=0,"",VLOOKUP(I106,漢字書き!$A$2:$N$502,7,0))) ->  | J110: =IF(J106="","",IF(VLOOKUP(J106,漢字書き!$A$2:$N$502,7,0)=0,"",VLOOKUP(J106,漢字書き!$A$2:$N$502,7,0))) ->  | K110: =IF(K106="","",IF(VLOOKUP(K106,漢字読み!$A$2:$O$502,7,0)=0,"",VLOOKUP(K106,漢字読み!$A$2:$O$502,7,0))) ->  | L110: =IF(L106="","",IF(VLOOKUP(L106,漢字読み!$A$2:$O$502,7,0)=0,"",VLOOKUP(L106,漢字読み!$A$2:$O$502,7,0))) ->  | M110: =IF(M106="","",IF(VLOOKUP(M106,漢字読み!$A$2:$O$502,7,0)=0,"",VLOOKUP(M106,漢字読み!$A$2:$O$502,7,0))) ->  | N110: =IF(N106="","",IF(VLOOKUP(N106,漢字読み!$A$2:$O$502,7,0)=0,"",VLOOKUP(N106,漢字読み!$A$2:$O$502,7,0))) ->  | O110: =IF(O106="","",IF(VLOOKUP(O106,漢字読み!$A$2:$O$502,7,0)=0,"",VLOOKUP(O106,漢字読み!$A$2:$O$502,7,0))) ->  | P110: =IF(P106="","",IF(VLOOKUP(P106,漢字読み!$A$2:$O$502,7,0)=0,"",VLOOKUP(P106,漢字読み!$A$2:$O$502,7,0))) ->  | Q110: =IF(Q106="","",IF(VLOOKUP(Q106,漢字読み!$A$2:$O$502,7,0)=0,"",VLOOKUP(Q106,漢字読み!$A$2:$O$502,7,0))) ->  | R110: =IF(R106="","",IF(VLOOKUP(R106,漢字読み!$A$2:$O$502,7,0)=0,"",VLOOKUP(R106,漢字読み!$A$2:$O$502,7,0))) -> い | S110: =IF(S106="","",IF(VLOOKUP(S106,漢字読み!$A$2:$O$502,7,0)=0,"",VLOOKUP(S106,漢字読み!$A$2:$O$502,7,0))) ->  | T110: =IF(T106="","",IF(VLOOKUP(T106,漢字読み!$A$2:$O$502,7,0)=0,"",VLOOKUP(T106,漢字読み!$A$2:$O$502,7,0))) ->  | W110: 和歌山県教育委員会
A111: =A101 -> 88 | B111: =B101 -> 115 | C111: =C101 -> 126 | D111: =D101 -> 44 | E111: =E101 -> 80 | F111: =F101 -> 72 | G111: =G101 -> 59 | H111: =H101 -> 21 | I111: =I101 -> 58 | J111: =J101 -> 24 | K111: =K101 -> 94 | L111: =L101 -> 59 | M111: =M101 -> 108 | N111: =N101 -> 151 | O111: =O101 -> 62 | P111: =P101 -> 30 | Q111: =Q101 -> 130 | R111: =R101 -> 35 | S111: =S101 -> 39 | T111: =T101 -> 48
A112: ⑳ | B112: ⑲ | C112: ⑱ | D112: ⑰ | E112: ⑯ | F112: ⑮ | G112: ⑭ | H112: ⑬ | I112: ⑫ | J112: ⑪ | K112: ⑩ | L112: ⑨ | M112: ⑧ | N112: ⑦ | O112: ⑥ | P112: ⑤ | Q112: ④ | R112: ③ | S112: ② | T112: ① | U112: 次の［ ］の部分の漢字には読みがなをひらがなで書き、カタカナは漢字に直しなさい。 | V112: 14 | W112: 「漢字の博士検定試験」練習問題
A113: =IF(A111="","",VLOOKUP(A111,漢字書き!$A$2:$N$506,6,0)) -> ［イチバ］にむかう | B113: =IF(B111="","",VLOOKUP(B111,漢字書き!$A$2:$N$506,6,0)) -> ［トショ］かんにいく | C113: =IF(C111="","",VLOOKUP(C111,漢字書き!$A$2:$N$506,6,0)) -> まっすぐな［セン］を引く | D113: =IF(D111="","",VLOOKUP(D111,漢字書き!$A$2:$N$506,6,0)) -> ［ケイカク］を立てる | E113: =IF(E111="","",VLOOKUP(E111,漢字書き!$A$2:$N$506,6,0)) -> ［ホソ］いひも | F113: =IF(F111="","",VLOOKUP(F111,漢字書き!$A$2:$N$506,6,0)) -> ふかい［タニ］ | G113: =IF(G111="","",VLOOKUP(G111,漢字書き!$A$2:$N$506,6,0)) -> ［ヒロ］い海 | H113: =IF(H111="","",VLOOKUP(H111,漢字書き!$A$2:$N$506,6,0)) -> ［ソト］であそぶ | I113: =IF(I111="","",VLOOKUP(I111,漢字書き!$A$2:$N$506,6,0)) -> ［コウ］がいのない町 | J113: =IF(J111="","",VLOOKUP(J111,漢字書き!$A$2:$N$506,6,0)) -> ［カツ］やくする | K113: =IF(K111="","",VLOOKUP(K111,漢字読み!$A$2:$O$506,6,0)) -> えんそくが［中止］になる | L113: =IF(L111="","",VLOOKUP(L111,漢字読み!$A$2:$O$506,6,0)) -> みんなに［言］う | M113: =IF(M111="","",VLOOKUP(M111,漢字読み!$A$2:$O$506,6,0)) -> ［室外］に出る | N113: =IF(N111="","",VLOOKUP(N111,漢字読み!$A$2:$O$506,6,0)) -> うまが［走］る | O113: =IF(O111="","",VLOOKUP(O111,漢字読み!$A$2:$O$506,6,0)) -> ［戸］があいた | P113: =IF(P111="","",VLOOKUP(P111,漢字読み!$A$2:$O$506,6,0)) -> ［時間］がすぎる | Q113: =IF(Q111="","",VLOOKUP(Q111,漢字読み!$A$2:$O$506,6,0)) -> ［新］しいくつをはく | R113: =IF(R111="","",VLOOKUP(R111,漢字読み!$A$2:$O$506,6,0)) -> ［顔］をあらう | S113: =IF(S111="","",VLOOKUP(S111,漢字読み!$A$2:$O$506,6,0)) -> いっしょに［帰］る | T113: =IF(T111="","",VLOOKUP(T111,漢字読み!$A$2:$O$506,6,0)) -> ［教］え合う | V113: 級
A114: =IF(A$11="","",VLOOKUP(A111,漢字書き!$A$2:$O$506,8,0)) -> 市場 | B114: =IF(B$11="","",VLOOKUP(B111,漢字書き!$A$2:$O$506,8,0)) -> 図書 | C114: =IF(C$11="","",VLOOKUP(C111,漢字書き!$A$2:$O$506,8,0)) -> 線 | D114: =IF(D$11="","",VLOOKUP(D111,漢字書き!$A$2:$O$506,8,0)) -> 計画 | E114: =IF(E$11="","",VLOOKUP(E111,漢字書き!$A$2:$O$506,8,0)) -> 細 | F114: =IF(F$11="","",VLOOKUP(F111,漢字書き!$A$2:$O$506,8,0)) -> 谷 | G114: =IF(G$11="","",VLOOKUP(G111,漢字書き!$A$2:$O$506,8,0)) -> 広 | H114: =IF(H$11="","",VLOOKUP(H111,漢字書き!$A$2:$O$506,8,0)) -> 外 | I114: =IF(I$11="","",VLOOKUP(I111,漢字書き!$A$2:$O$506,8,0)) -> 公 | J114: =IF(J$11="","",VLOOKUP(J111,漢字書き!$A$2:$O$506,8,0)) -> 活 | K114: =IF(K$11="","",VLOOKUP(K111,漢字読み!$A$2:$O$506,8,0)) -> ちゅうし | L114: =IF(L$11="","",VLOOKUP(L111,漢字読み!$A$2:$O$506,8,0)) -> い | M114: =IF(M$11="","",VLOOKUP(M111,漢字読み!$A$2:$O$506,8,0)) -> しつがい | N114: =IF(N$11="","",VLOOKUP(N111,漢字読み!$A$2:$O$506,8,0)) -> はし | O114: =IF(O$11="","",VLOOKUP(O111,漢字読み!$A$2:$O$506,8,0)) -> と | P114: =IF(P$11="","",VLOOKUP(P111,漢字読み!$A$2:$O$506,8,0)) -> じかん | Q114: =IF(Q$11="","",VLOOKUP(Q111,漢字読み!$A$2:$O$506,8,0)) -> あたら | R114: =IF(R$11="","",VLOOKUP(R111,漢字読み!$A$2:$O$506,8,0)) -> かお | S114: =IF(S$11="","",VLOOKUP(S111,漢字読み!$A$2:$O$506,8,0)) -> かえ | T114: =IF(T$11="","",VLOOKUP(T111,漢字読み!$A$2:$O$506,8,0)) -> おし | V114: 名前
A115: =IF(A111="","",IF(VLOOKUP(A111,漢字書き!$A$2:$N$502,7,0)=0,"",VLOOKUP(A111,漢字書き!$A$2:$N$502,7,0))) ->  | B115: =IF(B111="","",IF(VLOOKUP(B111,漢字書き!$A$2:$N$502,7,0)=0,"",VLOOKUP(B111,漢字書き!$A$2:$N$502,7,0))) -> かん | C115: =IF(C111="","",IF(VLOOKUP(C111,漢字書き!$A$2:$N$502,7,0)=0,"",VLOOKUP(C111,漢字書き!$A$2:$N$502,7,0))) ->  | D115: =IF(D111="","",IF(VLOOKUP(D111,漢字書き!$A$2:$N$502,7,0)=0,"",VLOOKUP(D111,漢字書き!$A$2:$N$502,7,0))) ->  | E115: =IF(E111="","",IF(VLOOKUP(E111,漢字書き!$A$2:$N$502,7,0)=0,"",VLOOKUP(E111,漢字書き!$A$2:$N$502,7,0))) -> い | F115: =IF(F111="","",IF(VLOOKUP(F111,漢字書き!$A$2:$N$502,7,0)=0,"",VLOOKUP(F111,漢字書き!$A$2:$N$502,7,0))) ->  | G115: =IF(G111="","",IF(VLOOKUP(G111,漢字書き!$A$2:$N$502,7,0)=0,"",VLOOKUP(G111,漢字書き!$A$2:$N$502,7,0))) -> い | H115: =IF(H111="","",IF(VLOOKUP(H111,漢字書き!$A$2:$N$502,7,0)=0,"",VLOOKUP(H111,漢字書き!$A$2:$N$502,7,0))) ->  | I115: =IF(I111="","",IF(VLOOKUP(I111,漢字書き!$A$2:$N$502,7,0)=0,"",VLOOKUP(I111,漢字書き!$A$2:$N$502,7,0))) -> がい | J115: =IF(J111="","",IF(VLOOKUP(J111,漢字書き!$A$2:$N$502,7,0)=0,"",VLOOKUP(J111,漢字書き!$A$2:$N$502,7,0))) -> やく | K115: =IF(K111="","",IF(VLOOKUP(K111,漢字読み!$A$2:$O$502,7,0)=0,"",VLOOKUP(K111,漢字読み!$A$2:$O$502,7,0))) ->  | L115: =IF(L111="","",IF(VLOOKUP(L111,漢字読み!$A$2:$O$502,7,0)=0,"",VLOOKUP(L111,漢字読み!$A$2:$O$502,7,0))) -> う | M115: =IF(M111="","",IF(VLOOKUP(M111,漢字読み!$A$2:$O$502,7,0)=0,"",VLOOKUP(M111,漢字読み!$A$2:$O$502,7,0))) ->  | N115: =IF(N111="","",IF(VLOOKUP(N111,漢字読み!$A$2:$O$502,7,0)=0,"",VLOOKUP(N111,漢字読み!$A$2:$O$502,7,0))) -> る | O115: =IF(O111="","",IF(VLOOKUP(O111,漢字読み!$A$2:$O$502,7,0)=0,"",VLOOKUP(O111,漢字読み!$A$2:$O$502,7,0))) ->  | P115: =IF(P111="","",IF(VLOOKUP(P111,漢字読み!$A$2:$O$502,7,0)=0,"",VLOOKUP(P111,漢字読み!$A$2:$O$502,7,0))) ->  | Q115: =IF(Q111="","",IF(VLOOKUP(Q111,漢字読み!$A$2:$O$502,7,0)=0,"",VLOOKUP(Q111,漢字読み!$A$2:$O$502,7,0))) -> しい | R115: =IF(R111="","",IF(VLOOKUP(R111,漢字読み!$A$2:$O$502,7,0)=0,"",VLOOKUP(R111,漢字読み!$A$2:$O$502,7,0))) ->  | S115: =IF(S111="","",IF(VLOOKUP(S111,漢字読み!$A$2:$O$502,7,0)=0,"",VLOOKUP(S111,漢字読み!$A$2:$O$502,7,0))) -> る | T115: =IF(T111="","",IF(VLOOKUP(T111,漢字読み!$A$2:$O$502,7,0)=0,"",VLOOKUP(T111,漢字読み!$A$2:$O$502,7,0))) -> え | W115: 和歌山県教育委員会
A116: =A106 -> 78 | B116: =B106 -> 84 | C116: =C106 -> 4 | D116: =D106 -> 12 | E116: =E106 -> 69 | F116: =F106 -> 36 | G116: =G106 -> 32 | H116: =H106 -> 106 | I116: =I106 -> 14 | J116: =J106 -> 48 | K116: =K106 -> 122 | L116: =L106 -> 56 | M116: =M106 -> 116 | N116: =N106 -> 22 | O116: =O106 -> 123 | P116: =P106 -> 3 | Q116: =Q106 -> 16 | R116: =R106 -> 80 | S116: =S106 -> 107 | T116: =T106 -> 1
A117: ⑳ | B117: ⑲ | C117: ⑱ | D117: ⑰ | E117: ⑯ | F117: ⑮ | G117: ⑭ | H117: ⑬ | I117: ⑫ | J117: ⑪ | K117: ⑩ | L117: ⑨ | M117: ⑧ | N117: ⑦ | O117: ⑥ | P117: ⑤ | Q117: ④ | R117: ③ | S117: ② | T117: ① | U117: 次の［ ］の部分の漢字には読みがなをひらがなで書き、カタカナは漢字に直しなさい。 | V117: 14 | W117: 「漢字の博士検定試験」練習問題
A118: =IF(A116="","",VLOOKUP(A116,漢字書き!$A$2:$N$506,6,0)) -> ［ト］をあける | B118: =IF(B116="","",VLOOKUP(B116,漢字書き!$A$2:$N$506,6,0)) -> ［サンスウ］のもんだい | C118: =IF(C116="","",VLOOKUP(C116,漢字書き!$A$2:$N$506,6,0)) -> ［コウエン］であそぶ | D118: =IF(D116="","",VLOOKUP(D116,漢字書き!$A$2:$N$506,6,0)) -> 日本の［コッカ］ | E118: =IF(E116="","",VLOOKUP(E116,漢字書き!$A$2:$N$506,6,0)) -> ［キイロ］のクレヨン | F118: =IF(F116="","",VLOOKUP(F116,漢字書き!$A$2:$N$506,6,0)) -> ［キョウ］のみやこ | G118: =IF(G116="","",VLOOKUP(G116,漢字書き!$A$2:$N$506,6,0)) -> ［ユミ］の名人 | H118: =IF(H116="","",VLOOKUP(H116,漢字書き!$A$2:$N$506,6,0)) -> うんどう［ジョウ］であそぶ | I118: =IF(I116="","",VLOOKUP(I116,漢字書き!$A$2:$N$506,6,0)) -> ゆうめいな［ガカ］ | J118: =IF(J116="","",VLOOKUP(J116,漢字書き!$A$2:$N$506,6,0)) -> ［ゲンゴ］のちがいをしる | K118: =IF(K116="","",VLOOKUP(K116,漢字読み!$A$2:$O$506,6,0)) -> ［広場］でサッカーをする | L118: =IF(L116="","",VLOOKUP(L116,漢字読み!$A$2:$O$506,6,0)) -> ［足元］におとす | M118: =IF(M116="","",VLOOKUP(M116,漢字読み!$A$2:$O$506,6,0)) -> ［先週］はさむかった | N118: =IF(N116="","",VLOOKUP(N116,漢字読み!$A$2:$O$506,6,0)) -> ［絵］をかく | O118: =IF(O116="","",VLOOKUP(O116,漢字読み!$A$2:$O$506,6,0)) -> ［色紙］にサインをする | P118: =IF(P116="","",VLOOKUP(P116,漢字読み!$A$2:$O$506,6,0)) -> まほうの［羽］ | Q118: =IF(Q116="","",VLOOKUP(Q116,漢字読み!$A$2:$O$506,6,0)) -> かん字の［画数］ | R118: =IF(R116="","",VLOOKUP(R116,漢字読み!$A$2:$O$506,6,0)) -> ［高］い山にのぼる | S118: =IF(S116="","",VLOOKUP(S116,漢字読み!$A$2:$O$506,6,0)) -> ［時間］がたつ | T118: =IF(T116="","",VLOOKUP(T116,漢字読み!$A$2:$O$506,6,0)) -> ［引力］がはたらく | V118: 級
A119: =IF(A$16="","",VLOOKUP(A116,漢字書き!$A$2:$O$506,8,0)) -> 戸 | B119: =IF(B$16="","",VLOOKUP(B116,漢字書き!$A$2:$O$506,8,0)) -> 算数 | C119: =IF(C$16="","",VLOOKUP(C116,漢字書き!$A$2:$O$506,8,0)) -> 公園 | D119: =IF(D$16="","",VLOOKUP(D116,漢字書き!$A$2:$O$506,8,0)) -> 国家 | E119: =IF(E$16="","",VLOOKUP(E116,漢字書き!$A$2:$O$506,8,0)) -> 黄色 | F119: =IF(F$16="","",VLOOKUP(F116,漢字書き!$A$2:$O$506,8,0)) -> 京 | G119: =IF(G$16="","",VLOOKUP(G116,漢字書き!$A$2:$O$506,8,0)) -> 弓 | H119: =IF(H$16="","",VLOOKUP(H116,漢字書き!$A$2:$O$506,8,0)) -> 場 | I119: =IF(I$16="","",VLOOKUP(I116,漢字書き!$A$2:$O$506,8,0)) -> 画家 | J119: =IF(J$16="","",VLOOKUP(J116,漢字書き!$A$2:$O$506,8,0)) -> 言語 | K119: =IF(K$16="","",VLOOKUP(K116,漢字読み!$A$2:$O$506,8,0)) -> ひろば | L119: =IF(L$16="","",VLOOKUP(L116,漢字読み!$A$2:$O$506,8,0)) -> あしもと | M119: =IF(M$16="","",VLOOKUP(M116,漢字読み!$A$2:$O$506,8,0)) -> せんしゅう | N119: =IF(N$16="","",VLOOKUP(N116,漢字読み!$A$2:$O$506,8,0)) -> え | O119: =IF(O$16="","",VLOOKUP(O116,漢字読み!$A$2:$O$506,8,0)) -> しきし | P119: =IF(P$16="","",VLOOKUP(P116,漢字読み!$A$2:$O$506,8,0)) -> はね | Q119: =IF(Q$16="","",VLOOKUP(Q116,漢字読み!$A$2:$O$506,8,0)) -> かくすう | R119: =IF(R$16="","",VLOOKUP(R116,漢字読み!$A$2:$O$506,8,0)) -> たか | S119: =IF(S$16="","",VLOOKUP(S116,漢字読み!$A$2:$O$506,8,0)) -> じかん | T119: =IF(T$16="","",VLOOKUP(T116,漢字読み!$A$2:$O$506,8,0)) -> いんりょく | V119: 名前
A120: =IF(A116="","",IF(VLOOKUP(A116,漢字書き!$A$2:$N$502,7,0)=0,"",VLOOKUP(A116,漢字書き!$A$2:$N$502,7,0))) ->  | B120: =IF(B116="","",IF(VLOOKUP(B116,漢字書き!$A$2:$N$502,7,0)=0,"",VLOOKUP(B116,漢字書き!$A$2:$N$502,7,0))) ->  | C120: =IF(C116="","",IF(VLOOKUP(C116,漢字書き!$A$2:$N$502,7,0)=0,"",VLOOKUP(C116,漢字書き!$A$2:$N$502,7,0))) ->  | D120: =IF(D116="","",IF(VLOOKUP(D116,漢字書き!$A$2:$N$502,7,0)=0,"",VLOOKUP(D116,漢字書き!$A$2:$N$502,7,0))) ->  | E120: =IF(E116="","",IF(VLOOKUP(E116,漢字書き!$A$2:$N$502,7,0)=0,"",VLOOKUP(E116,漢字書き!$A$2:$N$502,7,0))) ->  | F120: =IF(F116="","",IF(VLOOKUP(F116,漢字書き!$A$2:$N$502,7,0)=0,"",VLOOKUP(F116,漢字書き!$A$2:$N$502,7,0))) ->  | G120: =IF(G116="","",IF(VLOOKUP(G116,漢字書き!$A$2:$N$502,7,0)=0,"",VLOOKUP(G116,漢字書き!$A$2:$N$502,7,0))) ->  | H120: =IF(H116="","",IF(VLOOKUP(H116,漢字書き!$A$2:$N$502,7,0)=0,"",VLOOKUP(H116,漢字書き!$A$2:$N$502,7,0))) ->  | I120: =IF(I116="","",IF(VLOOKUP(I116,漢字書き!$A$2:$N$502,7,0)=0,"",VLOOKUP(I116,漢字書き!$A$2:$N$502,7,0))) ->  | J120: =IF(J116="","",IF(VLOOKUP(J116,漢字書き!$A$2:$N$502,7,0)=0,"",VLOOKUP(J116,漢字書き!$A$2:$N$502,7,0))) ->  | K120: =IF(K116="","",IF(VLOOKUP(K116,漢字読み!$A$2:$O$502,7,0)=0,"",VLOOKUP(K116,漢字読み!$A$2:$O$502,7,0))) ->  | L120: =IF(L116="","",IF(VLOOKUP(L116,漢字読み!$A$2:$O$502,7,0)=0,"",VLOOKUP(L116,漢字読み!$A$2:$O$502,7,0))) ->  | M120: =IF(M116="","",IF(VLOOKUP(M116,漢字読み!$A$2:$O$502,7,0)=0,"",VLOOKUP(M116,漢字読み!$A$2:$O$502,7,0))) ->  | N120: =IF(N116="","",IF(VLOOKUP(N116,漢字読み!$A$2:$O$502,7,0)=0,"",VLOOKUP(N116,漢字読み!$A$2:$O$502,7,0))) ->  | O120: =IF(O116="","",IF(VLOOKUP(O116,漢字読み!$A$2:$O$502,7,0)=0,"",VLOOKUP(O116,漢字読み!$A$2:$O$502,7,0))) ->  | P120: =IF(P116="","",IF(VLOOKUP(P116,漢字読み!$A$2:$O$502,7,0)=0,"",VLOOKUP(P116,漢字読み!$A$2:$O$502,7,0))) ->  | Q120: =IF(Q116="","",IF(VLOOKUP(Q116,漢字読み!$A$2:$O$502,7,0)=0,"",VLOOKUP(Q116,漢字読み!$A$2:$O$502,7,0))) ->  | R120: =IF(R116="","",IF(VLOOKUP(R116,漢字読み!$A$2:$O$502,7,0)=0,"",VLOOKUP(R116,漢字読み!$A$2:$O$502,7,0))) -> い | S120: =IF(S116="","",IF(VLOOKUP(S116,漢字読み!$A$2:$O$502,7,0)=0,"",VLOOKUP(S116,漢字読み!$A$2:$O$502,7,0))) ->  | T120: =IF(T116="","",IF(VLOOKUP(T116,漢字読み!$A$2:$O$502,7,0)=0,"",VLOOKUP(T116,漢字読み!$A$2:$O$502,7,0))) ->  | W120: 和歌山県教育委員会
A121: =INDIRECT("'関数（書き）'!C" & COLUMN(B$1)+SUM($AD$2:$AD122)) -> 49 | B121: =INDIRECT("'関数（書き）'!C" & COLUMN(C$1)+SUM($AD$2:$AD122)) -> 51 | C121: =INDIRECT("'関数（書き）'!C" & COLUMN(D$1)+SUM($AD$2:$AD122)) -> 76 | D121: =INDIRECT("'関数（書き）'!C" & COLUMN(E$1)+SUM($AD$2:$AD122)) -> 71 | E121: =INDIRECT("'関数（書き）'!C" & COLUMN(F$1)+SUM($AD$2:$AD122)) -> 119 | F121: =INDIRECT("'関数（書き）'!C" & COLUMN(G$1)+SUM($AD$2:$AD122)) -> 114 | G121: =INDIRECT("'関数（書き）'!C" & COLUMN(H$1)+SUM($AD$2:$AD122)) -> 60 | H121: =INDIRECT("'関数（書き）'!C" & COLUMN(I$1)+SUM($AD$2:$AD122)) -> 128 | I121: =INDIRECT("'関数（書き）'!C" & COLUMN(J$1)+SUM($AD$2:$AD122)) -> 66 | J121: =INDIRECT("'関数（書き）'!C" & COLUMN(K$1)+SUM($AD$2:$AD122)) -> 124 | K121: =INDIRECT("'関数（読み）'!C" & COLUMN(B$1)+SUM($AD$2:$AD122)) -> 118 | L121: =INDIRECT("'関数（読み）'!C" & COLUMN(C$1)+SUM($AD$2:$AD122)) -> 28 | M121: =INDIRECT("'関数（読み）'!C" & COLUMN(D$1)+SUM($AD$2:$AD122)) -> 37 | N121: =INDIRECT("'関数（読み）'!C" & COLUMN(E$1)+SUM($AD$2:$AD122)) -> 112 | O121: =INDIRECT("'関数（読み）'!C" & COLUMN(F$1)+SUM($AD$2:$AD122)) -> 145 | P121: =INDIRECT("'関数（読み）'!C" & COLUMN(G$1)+SUM($AD$2:$AD122)) -> 142 | Q121: =INDIRECT("'関数（読み）'!C" & COLUMN(H$1)+SUM($AD$2:$AD122)) -> 51 | R121: =INDIRECT("'関数（読み）'!C" & COLUMN(I$1)+SUM($AD$2:$AD122)) -> 15 | S121: =INDIRECT("'関数（読み）'!C" & COLUMN(J$1)+SUM($AD$2:$AD122)) -> 83 | T121: =INDIRECT("'関数（読み）'!C" & COLUMN(K$1)+SUM($AD$2:$AD122)) -> 106
A122: ⑳ | B122: ⑲ | C122: ⑱ | D122: ⑰ | E122: ⑯ | F122: ⑮ | G122: ⑭ | H122: ⑬ | I122: ⑫ | J122: ⑪ | K122: ⑩ | L122: ⑨ | M122: ⑧ | N122: ⑦ | O122: ⑥ | P122: ⑤ | Q122: ④ | R122: ③ | S122: ② | T122: ① | U122: 次の［ ］の部分の漢字には読みがなをひらがなで書き、カタカナは漢字に直しなさい。 | V122: 14 | W122: 「漢字の博士検定試験」練習問題 | AC122: ← | AD122: 10 | AE122: 問 | AF122: =AH107+1 -> 121 | AG122: ～ | AH122: =SUM($AD$2:$AD122)+10 -> 130 | AI122: 問まで | AJ122: =COUNTIF($A$1:$T$200,T123) -> 2
A123: =IF(A121="","",VLOOKUP(A121,漢字書き!$A$2:$N$506,6,0)) -> いけんを［イ］う | B123: =IF(B121="","",VLOOKUP(B121,漢字書き!$A$2:$N$506,6,0)) -> ［ト］をあける | C123: =IF(C121="","",VLOOKUP(C121,漢字書き!$A$2:$N$506,6,0)) -> ［イマ］ついたところです | D123: =IF(D121="","",VLOOKUP(D121,漢字書き!$A$2:$N$506,6,0)) -> 二つを［ア］わせる | E123: =IF(E121="","",VLOOKUP(E121,漢字書き!$A$2:$N$506,6,0)) -> ［ホシ］がかがやく | F123: =IF(F121="","",VLOOKUP(F121,漢字書き!$A$2:$N$506,6,0)) -> ［ズコウ］の時間 | G123: =IF(G121="","",VLOOKUP(G121,漢字書き!$A$2:$N$506,6,0)) -> ［ヒロバ］であそぶ | H123: =IF(H121="","",VLOOKUP(H121,漢字書き!$A$2:$N$506,6,0)) -> 二年［ヨンクミ］ | I123: =IF(I121="","",VLOOKUP(I121,漢字書き!$A$2:$N$506,6,0)) -> ［ギョウ］じにさんかする | J123: =IF(J121="","",VLOOKUP(J121,漢字書き!$A$2:$N$506,6,0)) -> ［ユキ］がふる | K123: =IF(K121="","",VLOOKUP(K121,漢字読み!$A$2:$O$506,6,0)) -> ［春］ぶんの日 | L123: =IF(L121="","",VLOOKUP(L121,漢字読み!$A$2:$O$506,6,0)) -> ［音楽］をきく | M123: =IF(M121="","",VLOOKUP(M121,漢字読み!$A$2:$O$506,6,0)) -> ［汽車］にのる | N123: =IF(N121="","",VLOOKUP(N121,漢字読み!$A$2:$O$506,6,0)) -> ［首］かざり | O123: =IF(O121="","",VLOOKUP(O121,漢字読み!$A$2:$O$506,6,0)) -> えだを［切］る | P123: =IF(P121="","",VLOOKUP(P121,漢字読み!$A$2:$O$506,6,0)) -> きれいな［星空］ | Q123: =IF(Q121="","",VLOOKUP(Q121,漢字読み!$A$2:$O$506,6,0)) -> ［近］いおみせ | R123: =IF(R121="","",VLOOKUP(R121,漢字読み!$A$2:$O$506,6,0)) -> ［図画］がすきだ | S123: =IF(S121="","",VLOOKUP(S121,漢字読み!$A$2:$O$506,6,0)) -> ［谷］にふくかぜ | T123: =IF(T121="","",VLOOKUP(T121,漢字読み!$A$2:$O$506,6,0)) -> ［時］がすぎる | V123: 級
V124: 名前
A125: =IF(A121="","",IF(VLOOKUP(A121,漢字書き!$A$2:$N$502,7,0)=0,"",VLOOKUP(A121,漢字書き!$A$2:$N$502,7,0))) -> う | B125: =IF(B121="","",IF(VLOOKUP(B121,漢字書き!$A$2:$N$502,7,0)=0,"",VLOOKUP(B121,漢字書き!$A$2:$N$502,7,0))) ->  | C125: =IF(C121="","",IF(VLOOKUP(C121,漢字書き!$A$2:$N$502,7,0)=0,"",VLOOKUP(C121,漢字書き!$A$2:$N$502,7,0))) ->  | D125: =IF(D121="","",IF(VLOOKUP(D121,漢字書き!$A$2:$N$502,7,0)=0,"",VLOOKUP(D121,漢字書き!$A$2:$N$502,7,0))) -> わせる | E125: =IF(E121="","",IF(VLOOKUP(E121,漢字書き!$A$2:$N$502,7,0)=0,"",VLOOKUP(E121,漢字書き!$A$2:$N$502,7,0))) ->  | F125: =IF(F121="","",IF(VLOOKUP(F121,漢字書き!$A$2:$N$502,7,0)=0,"",VLOOKUP(F121,漢字書き!$A$2:$N$502,7,0))) ->  | G125: =IF(G121="","",IF(VLOOKUP(G121,漢字書き!$A$2:$N$502,7,0)=0,"",VLOOKUP(G121,漢字書き!$A$2:$N$502,7,0))) ->  | H125: =IF(H121="","",IF(VLOOKUP(H121,漢字書き!$A$2:$N$502,7,0)=0,"",VLOOKUP(H121,漢字書き!$A$2:$N$502,7,0))) ->  | I125: =IF(I121="","",IF(VLOOKUP(I121,漢字書き!$A$2:$N$502,7,0)=0,"",VLOOKUP(I121,漢字書き!$A$2:$N$502,7,0))) -> じ | J125: =IF(J121="","",IF(VLOOKUP(J121,漢字書き!$A$2:$N$502,7,0)=0,"",VLOOKUP(J121,漢字書き!$A$2:$N$502,7,0))) ->  | K125: =IF(K121="","",IF(VLOOKUP(K121,漢字読み!$A$2:$O$502,7,0)=0,"",VLOOKUP(K121,漢字読み!$A$2:$O$502,7,0))) -> ぶん | L125: =IF(L121="","",IF(VLOOKUP(L121,漢字読み!$A$2:$O$502,7,0)=0,"",VLOOKUP(L121,漢字読み!$A$2:$O$502,7,0))) ->  | M125: =IF(M121="","",IF(VLOOKUP(M121,漢字読み!$A$2:$O$502,7,0)=0,"",VLOOKUP(M121,漢字読み!$A$2:$O$502,7,0))) ->  | N125: =IF(N121="","",IF(VLOOKUP(N121,漢字読み!$A$2:$O$502,7,0)=0,"",VLOOKUP(N121,漢字読み!$A$2:$O$502,7,0))) ->  | O125: =IF(O121="","",IF(VLOOKUP(O121,漢字読み!$A$2:$O$502,7,0)=0,"",VLOOKUP(O121,漢字読み!$A$2:$O$502,7,0))) -> る | P125: =IF(P121="","",IF(VLOOKUP(P121,漢字読み!$A$2:$O$502,7,0)=0,"",VLOOKUP(P121,漢字読み!$A$2:$O$502,7,0))) ->  | Q125: =IF(Q121="","",IF(VLOOKUP(Q121,漢字読み!$A$2:$O$502,7,0)=0,"",VLOOKUP(Q121,漢字読み!$A$2:$O$502,7,0))) -> い | R125: =IF(R121="","",IF(VLOOKUP(R121,漢字読み!$A$2:$O$502,7,0)=0,"",VLOOKUP(R121,漢字読み!$A$2:$O$502,7,0))) ->  | S125: =IF(S121="","",IF(VLOOKUP(S121,漢字読み!$A$2:$O$502,7,0)=0,"",VLOOKUP(S121,漢字読み!$A$2:$O$502,7,0))) ->  | T125: =IF(T121="","",IF(VLOOKUP(T121,漢字読み!$A$2:$O$502,7,0)=0,"",VLOOKUP(T121,漢字読み!$A$2:$O$502,7,0))) ->  | W125: 和歌山県教育委員会
A126: =INDIRECT("'関数（書き）'!C" & COLUMN(B$1)+SUM($AD$2:$AD127)) -> 18 | B126: =INDIRECT("'関数（書き）'!C" & COLUMN(C$1)+SUM($AD$2:$AD127)) -> 0 | C126: =INDIRECT("'関数（書き）'!C" & COLUMN(D$1)+SUM($AD$2:$AD127)) -> 0 | D126: =INDIRECT("'関数（書き）'!C" & COLUMN(E$1)+SUM($AD$2:$AD127)) -> 0 | E126: =INDIRECT("'関数（書き）'!C" & COLUMN(F$1)+SUM($AD$2:$AD127)) -> 0 | F126: =INDIRECT("'関数（書き）'!C" & COLUMN(G$1)+SUM($AD$2:$AD127)) -> 0 | G126: =INDIRECT("'関数（書き）'!C" & COLUMN(H$1)+SUM($AD$2:$AD127)) -> 0 | H126: =INDIRECT("'関数（書き）'!C" & COLUMN(I$1)+SUM($AD$2:$AD127)) -> 0 | I126: =INDIRECT("'関数（書き）'!C" & COLUMN(J$1)+SUM($AD$2:$AD127)) -> 0 | J126: =INDIRECT("'関数（書き）'!C" & COLUMN(K$1)+SUM($AD$2:$AD127)) -> 0 | K126: =INDIRECT("'関数（読み）'!C" & COLUMN(B$1)+SUM($AD$2:$AD127)) -> 67 | L126: =INDIRECT("'関数（読み）'!C" & COLUMN(C$1)+SUM($AD$2:$AD127)) -> 129 | M126: =INDIRECT("'関数（読み）'!C" & COLUMN(D$1)+SUM($AD$2:$AD127)) -> 8 | N126: =INDIRECT("'関数（読み）'!C" & COLUMN(E$1)+SUM($AD$2:$AD127)) -> 105 | O126: =INDIRECT("'関数（読み）'!C" & COLUMN(F$1)+SUM($AD$2:$AD127)) -> 21 | P126: =INDIRECT("'関数（読み）'!C" & COLUMN(G$1)+SUM($AD$2:$AD127)) -> 141 | Q126: =INDIRECT("'関数（読み）'!C" & COLUMN(H$1)+SUM($AD$2:$AD127)) -> 71 | R126: =INDIRECT("'関数（読み）'!C" & COLUMN(I$1)+SUM($AD$2:$AD127)) -> 93 | S126: =INDIRECT("'関数（読み）'!C" & COLUMN(J$1)+SUM($AD$2:$AD127)) -> 133 | T126: =INDIRECT("'関数（読み）'!C" & COLUMN(K$1)+SUM($AD$2:$AD127)) -> 91
A127: ⑳ | B127: ⑲ | C127: ⑱ | D127: ⑰ | E127: ⑯ | F127: ⑮ | G127: ⑭ | H127: ⑬ | I127: ⑫ | J127: ⑪ | K127: ⑩ | L127: ⑨ | M127: ⑧ | N127: ⑦ | O127: ⑥ | P127: ⑤ | Q127: ④ | R127: ③ | S127: ② | T127: ① | U127: 次の［ ］の部分の漢字には読みがなをひらがなで書き、カタカナは漢字に直しなさい。 | V127: 14 | W127: 「漢字の博士検定試験」練習問題 | AC127: ← | AD127: 10 | AE127: 問 | AF127: =AH122+1 -> 131 | AG127: ～ | AH127: =SUM($AD$2:$AD127)+10 -> 140 | AI127: 問まで | AJ127: =COUNTIF($A$1:$T$200,T128) -> 2
A128: =IF(A126="","",VLOOKUP(A126,漢字書き!$A$2:$N$506,6,0)) -> ［ウミ］でおよぐ | B128: =IF(B126="","",VLOOKUP(B126,漢字書き!$A$2:$N$506,6,0)) ->  | C128: =IF(C126="","",VLOOKUP(C126,漢字書き!$A$2:$N$506,6,0)) ->  | D128: =IF(D126="","",VLOOKUP(D126,漢字書き!$A$2:$N$506,6,0)) ->  | E128: =IF(E126="","",VLOOKUP(E126,漢字書き!$A$2:$N$506,6,0)) ->  | F128: =IF(F126="","",VLOOKUP(F126,漢字書き!$A$2:$N$506,6,0)) ->  | G128: =IF(G126="","",VLOOKUP(G126,漢字書き!$A$2:$N$506,6,0)) ->  | H128: =IF(H126="","",VLOOKUP(H126,漢字書き!$A$2:$N$506,6,0)) ->  | I128: =IF(I126="","",VLOOKUP(I126,漢字書き!$A$2:$N$506,6,0)) ->  | J128: =IF(J126="","",VLOOKUP(J126,漢字書き!$A$2:$N$506,6,0)) ->  | K128: =IF(K126="","",VLOOKUP(K126,漢字読み!$A$2:$O$506,6,0)) -> むかしばなしを［語］る | L128: =IF(L126="","",VLOOKUP(L126,漢字読み!$A$2:$O$506,6,0)) -> ［新年］のおいわい | M128: =IF(M126="","",VLOOKUP(M126,漢字読み!$A$2:$O$506,6,0)) -> 今、［何時］ですか | N128: =IF(N126="","",VLOOKUP(N126,漢字読み!$A$2:$O$506,6,0)) -> ［自］こしょうかいをする | O128: =IF(O126="","",VLOOKUP(O126,漢字読み!$A$2:$O$506,6,0)) -> ［海］にうかぶボート | P128: =IF(P126="","",VLOOKUP(P126,漢字読み!$A$2:$O$506,6,0)) -> ［星］のかがやき | Q128: =IF(Q126="","",VLOOKUP(Q126,漢字読み!$A$2:$O$506,6,0)) -> ［広場］であそぶ | R128: =IF(R126="","",VLOOKUP(R126,漢字読み!$A$2:$O$506,6,0)) -> かけ［算］のれんしゅう | S128: =IF(S126="","",VLOOKUP(S126,漢字読み!$A$2:$O$506,6,0)) -> ライオンの［親子］ | T128: =IF(T126="","",VLOOKUP(T126,漢字読み!$A$2:$O$506,6,0)) -> ［作文］をよむ | V128: 級
V129: 名前
A130: =IF(A126="","",IF(VLOOKUP(A126,漢字書き!$A$2:$N$502,7,0)=0,"",VLOOKUP(A126,漢字書き!$A$2:$N$502,7,0))) ->  | B130: =IF(B126="","",IF(VLOOKUP(B126,漢字書き!$A$2:$N$502,7,0)=0,"",VLOOKUP(B126,漢字書き!$A$2:$N$502,7,0))) ->  | C130: =IF(C126="","",IF(VLOOKUP(C126,漢字書き!$A$2:$N$502,7,0)=0,"",VLOOKUP(C126,漢字書き!$A$2:$N$502,7,0))) ->  | D130: =IF(D126="","",IF(VLOOKUP(D126,漢字書き!$A$2:$N$502,7,0)=0,"",VLOOKUP(D126,漢字書き!$A$2:$N$502,7,0))) ->  | E130: =IF(E126="","",IF(VLOOKUP(E126,漢字書き!$A$2:$N$502,7,0)=0,"",VLOOKUP(E126,漢字書き!$A$2:$N$502,7,0))) ->  | F130: =IF(F126="","",IF(VLOOKUP(F126,漢字書き!$A$2:$N$502,7,0)=0,"",VLOOKUP(F126,漢字書き!$A$2:$N$502,7,0))) ->  | G130: =IF(G126="","",IF(VLOOKUP(G126,漢字書き!$A$2:$N$502,7,0)=0,"",VLOOKUP(G126,漢字書き!$A$2:$N$502,7,0))) ->  | H130: =IF(H126="","",IF(VLOOKUP(H126,漢字書き!$A$2:$N$502,7,0)=0,"",VLOOKUP(H126,漢字書き!$A$2:$N$502,7,0))) ->  | I130: =IF(I126="","",IF(VLOOKUP(I126,漢字書き!$A$2:$N$502,7,0)=0,"",VLOOKUP(I126,漢字書き!$A$2:$N$502,7,0))) ->  | J130: =IF(J126="","",IF(VLOOKUP(J126,漢字書き!$A$2:$N$502,7,0)=0,"",VLOOKUP(J126,漢字書き!$A$2:$N$502,7,0))) ->  | K130: =IF(K126="","",IF(VLOOKUP(K126,漢字読み!$A$2:$O$502,7,0)=0,"",VLOOKUP(K126,漢字読み!$A$2:$O$502,7,0))) -> る | L130: =IF(L126="","",IF(VLOOKUP(L126,漢字読み!$A$2:$O$502,7,0)=0,"",VLOOKUP(L126,漢字読み!$A$2:$O$502,7,0))) ->  | M130: =IF(M126="","",IF(VLOOKUP(M126,漢字読み!$A$2:$O$502,7,0)=0,"",VLOOKUP(M126,漢字読み!$A$2:$O$502,7,0))) ->  | N130: =IF(N126="","",IF(VLOOKUP(N126,漢字読み!$A$2:$O$502,7,0)=0,"",VLOOKUP(N126,漢字読み!$A$2:$O$502,7,0))) -> こしょうかい | O130: =IF(O126="","",IF(VLOOKUP(O126,漢字読み!$A$2:$O$502,7,0)=0,"",VLOOKUP(O126,漢字読み!$A$2:$O$502,7,0))) ->  | P130: =IF(P126="","",IF(VLOOKUP(P126,漢字読み!$A$2:$O$502,7,0)=0,"",VLOOKUP(P126,漢字読み!$A$2:$O$502,7,0))) ->  | Q130: =IF(Q126="","",IF(VLOOKUP(Q126,漢字読み!$A$2:$O$502,7,0)=0,"",VLOOKUP(Q126,漢字読み!$A$2:$O$502,7,0))) ->  | R130: =IF(R126="","",IF(VLOOKUP(R126,漢字読み!$A$2:$O$502,7,0)=0,"",VLOOKUP(R126,漢字読み!$A$2:$O$502,7,0))) ->  | S130: =IF(S126="","",IF(VLOOKUP(S126,漢字読み!$A$2:$O$502,7,0)=0,"",VLOOKUP(S126,漢字読み!$A$2:$O$502,7,0))) ->  | T130: =IF(T126="","",IF(VLOOKUP(T126,漢字読み!$A$2:$O$502,7,0)=0,"",VLOOKUP(T126,漢字読み!$A$2:$O$502,7,0))) ->  | W130: 和歌山県教育委員会
A131: =A121 -> 49 | B131: =B121 -> 51 | C131: =C121 -> 76 | D131: =D121 -> 71 | E131: =E121 -> 119 | F131: =F121 -> 114 | G131: =G121 -> 60 | H131: =H121 -> 128 | I131: =I121 -> 66 | J131: =J121 -> 124 | K131: =K121 -> 118 | L131: =L121 -> 28 | M131: =M121 -> 37 | N131: =N121 -> 112 | O131: =O121 -> 145 | P131: =P121 -> 142 | Q131: =Q121 -> 51 | R131: =R121 -> 15 | S131: =S121 -> 83 | T131: =T121 -> 106
A132: ⑳ | B132: ⑲ | C132: ⑱ | D132: ⑰ | E132: ⑯ | F132: ⑮ | G132: ⑭ | H132: ⑬ | I132: ⑫ | J132: ⑪ | K132: ⑩ | L132: ⑨ | M132: ⑧ | N132: ⑦ | O132: ⑥ | P132: ⑤ | Q132: ④ | R132: ③ | S132: ② | T132: ① | U132: 次の［ ］の部分の漢字には読みがなをひらがなで書き、カタカナは漢字に直しなさい。 | V132: 14 | W132: 「漢字の博士検定試験」練習問題
A133: =IF(A131="","",VLOOKUP(A131,漢字書き!$A$2:$N$506,6,0)) -> いけんを［イ］う | B133: =IF(B131="","",VLOOKUP(B131,漢字書き!$A$2:$N$506,6,0)) -> ［ト］をあける | C133: =IF(C131="","",VLOOKUP(C131,漢字書き!$A$2:$N$506,6,0)) -> ［イマ］ついたところです | D133: =IF(D131="","",VLOOKUP(D131,漢字書き!$A$2:$N$506,6,0)) -> 二つを［ア］わせる | E133: =IF(E131="","",VLOOKUP(E131,漢字書き!$A$2:$N$506,6,0)) -> ［ホシ］がかがやく | F133: =IF(F131="","",VLOOKUP(F131,漢字書き!$A$2:$N$506,6,0)) -> ［ズコウ］の時間 | G133: =IF(G131="","",VLOOKUP(G131,漢字書き!$A$2:$N$506,6,0)) -> ［ヒロバ］であそぶ | H133: =IF(H131="","",VLOOKUP(H131,漢字書き!$A$2:$N$506,6,0)) -> 二年［ヨンクミ］ | I133: =IF(I131="","",VLOOKUP(I131,漢字書き!$A$2:$N$506,6,0)) -> ［ギョウ］じにさんかする | J133: =IF(J131="","",VLOOKUP(J131,漢字書き!$A$2:$N$506,6,0)) -> ［ユキ］がふる | K133: =IF(K131="","",VLOOKUP(K131,漢字読み!$A$2:$O$506,6,0)) -> ［春］ぶんの日 | L133: =IF(L131="","",VLOOKUP(L131,漢字読み!$A$2:$O$506,6,0)) -> ［音楽］をきく | M133: =IF(M131="","",VLOOKUP(M131,漢字読み!$A$2:$O$506,6,0)) -> ［汽車］にのる | N133: =IF(N131="","",VLOOKUP(N131,漢字読み!$A$2:$O$506,6,0)) -> ［首］かざり | O133: =IF(O131="","",VLOOKUP(O131,漢字読み!$A$2:$O$506,6,0)) -> えだを［切］る | P133: =IF(P131="","",VLOOKUP(P131,漢字読み!$A$2:$O$506,6,0)) -> きれいな［星空］ | Q133: =IF(Q131="","",VLOOKUP(Q131,漢字読み!$A$2:$O$506,6,0)) -> ［近］いおみせ | R133: =IF(R131="","",VLOOKUP(R131,漢字読み!$A$2:$O$506,6,0)) -> ［図画］がすきだ | S133: =IF(S131="","",VLOOKUP(S131,漢字読み!$A$2:$O$506,6,0)) -> ［谷］にふくかぜ | T133: =IF(T131="","",VLOOKUP(T131,漢字読み!$A$2:$O$506,6,0)) -> ［時］がすぎる | V133: 級
A134: =IF(A$11="","",VLOOKUP(A131,漢字書き!$A$2:$O$506,8,0)) -> 言 | B134: =IF(B$11="","",VLOOKUP(B131,漢字書き!$A$2:$O$506,8,0)) -> 戸 | C134: =IF(C$11="","",VLOOKUP(C131,漢字書き!$A$2:$O$506,8,0)) -> 今 | D134: =IF(D$11="","",VLOOKUP(D131,漢字書き!$A$2:$O$506,8,0)) -> 合 | E134: =IF(E$11="","",VLOOKUP(E131,漢字書き!$A$2:$O$506,8,0)) -> 星 | F134: =IF(F$11="","",VLOOKUP(F131,漢字書き!$A$2:$O$506,8,0)) -> 図工 | G134: =IF(G$11="","",VLOOKUP(G131,漢字書き!$A$2:$O$506,8,0)) -> 広場 | H134: =IF(H$11="","",VLOOKUP(H131,漢字書き!$A$2:$O$506,8,0)) -> 四組 | I134: =IF(I$11="","",VLOOKUP(I131,漢字書き!$A$2:$O$506,8,0)) -> 行 | J134: =IF(J$11="","",VLOOKUP(J131,漢字書き!$A$2:$O$506,8,0)) -> 雪 | K134: =IF(K$11="","",VLOOKUP(K131,漢字読み!$A$2:$O$506,8,0)) -> しゅん | L134: =IF(L$11="","",VLOOKUP(L131,漢字読み!$A$2:$O$506,8,0)) -> おんがく | M134: =IF(M$11="","",VLOOKUP(M131,漢字読み!$A$2:$O$506,8,0)) -> きしゃ | N134: =IF(N$11="","",VLOOKUP(N131,漢字読み!$A$2:$O$506,8,0)) -> くび | O134: =IF(O$11="","",VLOOKUP(O131,漢字読み!$A$2:$O$506,8,0)) -> き | P134: =IF(P$11="","",VLOOKUP(P131,漢字読み!$A$2:$O$506,8,0)) -> ほしぞら | Q134: =IF(Q$11="","",VLOOKUP(Q131,漢字読み!$A$2:$O$506,8,0)) -> ちか | R134: =IF(R$11="","",VLOOKUP(R131,漢字読み!$A$2:$O$506,8,0)) -> ずが | S134: =IF(S$11="","",VLOOKUP(S131,漢字読み!$A$2:$O$506,8,0)) -> たに | T134: =IF(T$11="","",VLOOKUP(T131,漢字読み!$A$2:$O$506,8,0)) -> とき | V134: 名前
A135: =IF(A131="","",IF(VLOOKUP(A131,漢字書き!$A$2:$N$502,7,0)=0,"",VLOOKUP(A131,漢字書き!$A$2:$N$502,7,0))) -> う | B135: =IF(B131="","",IF(VLOOKUP(B131,漢字書き!$A$2:$N$502,7,0)=0,"",VLOOKUP(B131,漢字書き!$A$2:$N$502,7,0))) ->  | C135: =IF(C131="","",IF(VLOOKUP(C131,漢字書き!$A$2:$N$502,7,0)=0,"",VLOOKUP(C131,漢字書き!$A$2:$N$502,7,0))) ->  | D135: =IF(D131="","",IF(VLOOKUP(D131,漢字書き!$A$2:$N$502,7,0)=0,"",VLOOKUP(D131,漢字書き!$A$2:$N$502,7,0))) -> わせる | E135: =IF(E131="","",IF(VLOOKUP(E131,漢字書き!$A$2:$N$502,7,0)=0,"",VLOOKUP(E131,漢字書き!$A$2:$N$502,7,0))) ->  | F135: =IF(F131="","",IF(VLOOKUP(F131,漢字書き!$A$2:$N$502,7,0)=0,"",VLOOKUP(F131,漢字書き!$A$2:$N$502,7,0))) ->  | G135: =IF(G131="","",IF(VLOOKUP(G131,漢字書き!$A$2:$N$502,7,0)=0,"",VLOOKUP(G131,漢字書き!$A$2:$N$502,7,0))) ->  | H135: =IF(H131="","",IF(VLOOKUP(H131,漢字書き!$A$2:$N$502,7,0)=0,"",VLOOKUP(H131,漢字書き!$A$2:$N$502,7,0))) ->  | I135: =IF(I131="","",IF(VLOOKUP(I131,漢字書き!$A$2:$N$502,7,0)=0,"",VLOOKUP(I131,漢字書き!$A$2:$N$502,7,0))) -> じ | J135: =IF(J131="","",IF(VLOOKUP(J131,漢字書き!$A$2:$N$502,7,0)=0,"",VLOOKUP(J131,漢字書き!$A$2:$N$502,7,0))) ->  | K135: =IF(K131="","",IF(VLOOKUP(K131,漢字読み!$A$2:$O$502,7,0)=0,"",VLOOKUP(K131,漢字読み!$A$2:$O$502,7,0))) -> ぶん | L135: =IF(L131="","",IF(VLOOKUP(L131,漢字読み!$A$2:$O$502,7,0)=0,"",VLOOKUP(L131,漢字読み!$A$2:$O$502,7,0))) ->  | M135: =IF(M131="","",IF(VLOOKUP(M131,漢字読み!$A$2:$O$502,7,0)=0,"",VLOOKUP(M131,漢字読み!$A$2:$O$502,7,0))) ->  | N135: =IF(N131="","",IF(VLOOKUP(N131,漢字読み!$A$2:$O$502,7,0)=0,"",VLOOKUP(N131,漢字読み!$A$2:$O$502,7,0))) ->  | O135: =IF(O131="","",IF(VLOOKUP(O131,漢字読み!$A$2:$O$502,7,0)=0,"",VLOOKUP(O131,漢字読み!$A$2:$O$502,7,0))) -> る | P135: =IF(P131="","",IF(VLOOKUP(P131,漢字読み!$A$2:$O$502,7,0)=0,"",VLOOKUP(P131,漢字読み!$A$2:$O$502,7,0))) ->  | Q135: =IF(Q131="","",IF(VLOOKUP(Q131,漢字読み!$A$2:$O$502,7,0)=0,"",VLOOKUP(Q131,漢字読み!$A$2:$O$502,7,0))) -> い | R135: =IF(R131="","",IF(VLOOKUP(R131,漢字読み!$A$2:$O$502,7,0)=0,"",VLOOKUP(R131,漢字読み!$A$2:$O$502,7,0))) ->  | S135: =IF(S131="","",IF(VLOOKUP(S131,漢字読み!$A$2:$O$502,7,0)=0,"",VLOOKUP(S131,漢字読み!$A$2:$O$502,7,0))) ->  | T135: =IF(T131="","",IF(VLOOKUP(T131,漢字読み!$A$2:$O$502,7,0)=0,"",VLOOKUP(T131,漢字読み!$A$2:$O$502,7,0))) ->  | W135: 和歌山県教育委員会
A136: =A126 -> 18 | B136: =B126 -> 0 | C136: =C126 -> 0 | D136: =D126 -> 0 | E136: =E126 -> 0 | F136: =F126 -> 0 | G136: =G126 -> 0 | H136: =H126 -> 0 | I136: =I126 -> 0 | J136: =J126 -> 0 | K136: =K126 -> 67 | L136: =L126 -> 129 | M136: =M126 -> 8 | N136: =N126 -> 105 | O136: =O126 -> 21 | P136: =P126 -> 141 | Q136: =Q126 -> 71 | R136: =R126 -> 93 | S136: =S126 -> 133 | T136: =T126 -> 91
A137: ⑳ | B137: ⑲ | C137: ⑱ | D137: ⑰ | E137: ⑯ | F137: ⑮ | G137: ⑭ | H137: ⑬ | I137: ⑫ | J137: ⑪ | K137: ⑩ | L137: ⑨ | M137: ⑧ | N137: ⑦ | O137: ⑥ | P137: ⑤ | Q137: ④ | R137: ③ | S137: ② | T137: ① | U137: 次の［ ］の部分の漢字には読みがなをひらがなで書き、カタカナは漢字に直しなさい。 | V137: 14 | W137: 「漢字の博士検定試験」練習問題
A138: =IF(A136="","",VLOOKUP(A136,漢字書き!$A$2:$N$506,6,0)) -> ［ウミ］でおよぐ | B138: =IF(B136="","",VLOOKUP(B136,漢字書き!$A$2:$N$506,6,0)) ->  | C138: =IF(C136="","",VLOOKUP(C136,漢字書き!$A$2:$N$506,6,0)) ->  | D138: =IF(D136="","",VLOOKUP(D136,漢字書き!$A$2:$N$506,6,0)) ->  | E138: =IF(E136="","",VLOOKUP(E136,漢字書き!$A$2:$N$506,6,0)) ->  | F138: =IF(F136="","",VLOOKUP(F136,漢字書き!$A$2:$N$506,6,0)) ->  | G138: =IF(G136="","",VLOOKUP(G136,漢字書き!$A$2:$N$506,6,0)) ->  | H138: =IF(H136="","",VLOOKUP(H136,漢字書き!$A$2:$N$506,6,0)) ->  | I138: =IF(I136="","",VLOOKUP(I136,漢字書き!$A$2:$N$506,6,0)) ->  | J138: =IF(J136="","",VLOOKUP(J136,漢字書き!$A$2:$N$506,6,0)) ->  | K138: =IF(K136="","",VLOOKUP(K136,漢字読み!$A$2:$O$506,6,0)) -> むかしばなしを［語］る | L138: =IF(L136="","",VLOOKUP(L136,漢字読み!$A$2:$O$506,6,0)) -> ［新年］のおいわい | M138: =IF(M136="","",VLOOKUP(M136,漢字読み!$A$2:$O$506,6,0)) -> 今、［何時］ですか | N138: =IF(N136="","",VLOOKUP(N136,漢字読み!$A$2:$O$506,6,0)) -> ［自］こしょうかいをする | O138: =IF(O136="","",VLOOKUP(O136,漢字読み!$A$2:$O$506,6,0)) -> ［海］にうかぶボート | P138: =IF(P136="","",VLOOKUP(P136,漢字読み!$A$2:$O$506,6,0)) -> ［星］のかがやき | Q138: =IF(Q136="","",VLOOKUP(Q136,漢字読み!$A$2:$O$506,6,0)) -> ［広場］であそぶ | R138: =IF(R136="","",VLOOKUP(R136,漢字読み!$A$2:$O$506,6,0)) -> かけ［算］のれんしゅう | S138: =IF(S136="","",VLOOKUP(S136,漢字読み!$A$2:$O$506,6,0)) -> ライオンの［親子］ | T138: =IF(T136="","",VLOOKUP(T136,漢字読み!$A$2:$O$506,6,0)) -> ［作文］をよむ | V138: 級
A139: =IF(A$16="","",VLOOKUP(A136,漢字書き!$A$2:$O$506,8,0)) -> 海 | B139: =IF(B$16="","",VLOOKUP(B136,漢字書き!$A$2:$O$506,8,0)) ->  | C139: =IF(C$16="","",VLOOKUP(C136,漢字書き!$A$2:$O$506,8,0)) ->  | D139: =IF(D$16="","",VLOOKUP(D136,漢字書き!$A$2:$O$506,8,0)) ->  | E139: =IF(E$16="","",VLOOKUP(E136,漢字書き!$A$2:$O$506,8,0)) ->  | F139: =IF(F$16="","",VLOOKUP(F136,漢字書き!$A$2:$O$506,8,0)) ->  | G139: =IF(G$16="","",VLOOKUP(G136,漢字書き!$A$2:$O$506,8,0)) ->  | H139: =IF(H$16="","",VLOOKUP(H136,漢字書き!$A$2:$O$506,8,0)) ->  | I139: =IF(I$16="","",VLOOKUP(I136,漢字書き!$A$2:$O$506,8,0)) ->  | J139: =IF(J$16="","",VLOOKUP(J136,漢字書き!$A$2:$O$506,8,0)) ->  | K139: =IF(K$16="","",VLOOKUP(K136,漢字読み!$A$2:$O$506,8,0)) -> かた | L139: =IF(L$16="","",VLOOKUP(L136,漢字読み!$A$2:$O$506,8,0)) -> しんねん | M139: =IF(M$16="","",VLOOKUP(M136,漢字読み!$A$2:$O$506,8,0)) -> なんじ | N139: =IF(N$16="","",VLOOKUP(N136,漢字読み!$A$2:$O$506,8,0)) -> じ | O139: =IF(O$16="","",VLOOKUP(O136,漢字読み!$A$2:$O$506,8,0)) -> うみ | P139: =IF(P$16="","",VLOOKUP(P136,漢字読み!$A$2:$O$506,8,0)) -> ほし | Q139: =IF(Q$16="","",VLOOKUP(Q136,漢字読み!$A$2:$O$506,8,0)) -> ひろば | R139: =IF(R$16="","",VLOOKUP(R136,漢字読み!$A$2:$O$506,8,0)) -> ざん | S139: =IF(S$16="","",VLOOKUP(S136,漢字読み!$A$2:$O$506,8,0)) -> おやこ | T139: =IF(T$16="","",VLOOKUP(T136,漢字読み!$A$2:$O$506,8,0)) -> さくぶん | V139: 名前
A140: =IF(A136="","",IF(VLOOKUP(A136,漢字書き!$A$2:$N$502,7,0)=0,"",VLOOKUP(A136,漢字書き!$A$2:$N$502,7,0))) ->  | B140: =IF(B136="","",IF(VLOOKUP(B136,漢字書き!$A$2:$N$502,7,0)=0,"",VLOOKUP(B136,漢字書き!$A$2:$N$502,7,0))) ->  | C140: =IF(C136="","",IF(VLOOKUP(C136,漢字書き!$A$2:$N$502,7,0)=0,"",VLOOKUP(C136,漢字書き!$A$2:$N$502,7,0))) ->  | D140: =IF(D136="","",IF(VLOOKUP(D136,漢字書き!$A$2:$N$502,7,0)=0,"",VLOOKUP(D136,漢字書き!$A$2:$N$502,7,0))) ->  | E140: =IF(E136="","",IF(VLOOKUP(E136,漢字書き!$A$2:$N$502,7,0)=0,"",VLOOKUP(E136,漢字書き!$A$2:$N$502,7,0))) ->  | F140: =IF(F136="","",IF(VLOOKUP(F136,漢字書き!$A$2:$N$502,7,0)=0,"",VLOOKUP(F136,漢字書き!$A$2:$N$502,7,0))) ->  | G140: =IF(G136="","",IF(VLOOKUP(G136,漢字書き!$A$2:$N$502,7,0)=0,"",VLOOKUP(G136,漢字書き!$A$2:$N$502,7,0))) ->  | H140: =IF(H136="","",IF(VLOOKUP(H136,漢字書き!$A$2:$N$502,7,0)=0,"",VLOOKUP(H136,漢字書き!$A$2:$N$502,7,0))) ->  | I140: =IF(I136="","",IF(VLOOKUP(I136,漢字書き!$A$2:$N$502,7,0)=0,"",VLOOKUP(I136,漢字書き!$A$2:$N$502,7,0))) ->  | J140: =IF(J136="","",IF(VLOOKUP(J136,漢字書き!$A$2:$N$502,7,0)=0,"",VLOOKUP(J136,漢字書き!$A$2:$N$502,7,0))) ->  | K140: =IF(K136="","",IF(VLOOKUP(K136,漢字読み!$A$2:$O$502,7,0)=0,"",VLOOKUP(K136,漢字読み!$A$2:$O$502,7,0))) -> る | L140: =IF(L136="","",IF(VLOOKUP(L136,漢字読み!$A$2:$O$502,7,0)=0,"",VLOOKUP(L136,漢字読み!$A$2:$O$502,7,0))) ->  | M140: =IF(M136="","",IF(VLOOKUP(M136,漢字読み!$A$2:$O$502,7,0)=0,"",VLOOKUP(M136,漢字読み!$A$2:$O$502,7,0))) ->  | N140: =IF(N136="","",IF(VLOOKUP(N136,漢字読み!$A$2:$O$502,7,0)=0,"",VLOOKUP(N136,漢字読み!$A$2:$O$502,7,0))) -> こしょうかい | O140: =IF(O136="","",IF(VLOOKUP(O136,漢字読み!$A$2:$O$502,7,0)=0,"",VLOOKUP(O136,漢字読み!$A$2:$O$502,7,0))) ->  | P140: =IF(P136="","",IF(VLOOKUP(P136,漢字読み!$A$2:$O$502,7,0)=0,"",VLOOKUP(P136,漢字読み!$A$2:$O$502,7,0))) ->  | Q140: =IF(Q136="","",IF(VLOOKUP(Q136,漢字読み!$A$2:$O$502,7,0)=0,"",VLOOKUP(Q136,漢字読み!$A$2:$O$502,7,0))) ->  | R140: =IF(R136="","",IF(VLOOKUP(R136,漢字読み!$A$2:$O$502,7,0)=0,"",VLOOKUP(R136,漢字読み!$A$2:$O$502,7,0))) ->  | S140: =IF(S136="","",IF(VLOOKUP(S136,漢字読み!$A$2:$O$502,7,0)=0,"",VLOOKUP(S136,漢字読み!$A$2:$O$502,7,0))) ->  | T140: =IF(T136="","",IF(VLOOKUP(T136,漢字読み!$A$2:$O$502,7,0)=0,"",VLOOKUP(T136,漢字読み!$A$2:$O$502,7,0))) ->  | W140: 和歌山県教育委員会
A141: =INDIRECT("'関数（書き）'!C" & COLUMN(B$1)+SUM($AD$2:$AD142)) -> 0 | B141: =INDIRECT("'関数（書き）'!C" & COLUMN(C$1)+SUM($AD$2:$AD142)) -> 0 | C141: =INDIRECT("'関数（書き）'!C" & COLUMN(D$1)+SUM($AD$2:$AD142)) -> 0 | D141: =INDIRECT("'関数（書き）'!C" & COLUMN(E$1)+SUM($AD$2:$AD142)) -> 0 | E141: =INDIRECT("'関数（書き）'!C" & COLUMN(F$1)+SUM($AD$2:$AD142)) -> 0 | F141: =INDIRECT("'関数（書き）'!C" & COLUMN(G$1)+SUM($AD$2:$AD142)) -> 0 | G141: =INDIRECT("'関数（書き）'!C" & COLUMN(H$1)+SUM($AD$2:$AD142)) -> 0 | H141: =INDIRECT("'関数（書き）'!C" & COLUMN(I$1)+SUM($AD$2:$AD142)) -> 0 | I141: =INDIRECT("'関数（書き）'!C" & COLUMN(J$1)+SUM($AD$2:$AD142)) -> 0 | J141: =INDIRECT("'関数（書き）'!C" & COLUMN(K$1)+SUM($AD$2:$AD142)) -> 0 | K141: =INDIRECT("'関数（読み）'!C" & COLUMN(B$1)+SUM($AD$2:$AD142)) -> 121 | L141: =INDIRECT("'関数（読み）'!C" & COLUMN(C$1)+SUM($AD$2:$AD142)) -> 13 | M141: =INDIRECT("'関数（読み）'!C" & COLUMN(D$1)+SUM($AD$2:$AD142)) -> 64 | N141: =INDIRECT("'関数（読み）'!C" & COLUMN(E$1)+SUM($AD$2:$AD142)) -> 82 | O141: =INDIRECT("'関数（読み）'!C" & COLUMN(F$1)+SUM($AD$2:$AD142)) -> 52 | P141: =INDIRECT("'関数（読み）'!C" & COLUMN(G$1)+SUM($AD$2:$AD142)) -> 89 | Q141: =INDIRECT("'関数（読み）'!C" & COLUMN(H$1)+SUM($AD$2:$AD142)) -> 148 | R141: =INDIRECT("'関数（読み）'!C" & COLUMN(I$1)+SUM($AD$2:$AD142)) -> 27 | S141: =INDIRECT("'関数（読み）'!C" & COLUMN(J$1)+SUM($AD$2:$AD142)) -> 14 | T141: =INDIRECT("'関数（読み）'!C" & COLUMN(K$1)+SUM($AD$2:$AD142)) -> 6
A142: ⑳ | B142: ⑲ | C142: ⑱ | D142: ⑰ | E142: ⑯ | F142: ⑮ | G142: ⑭ | H142: ⑬ | I142: ⑫ | J142: ⑪ | K142: ⑩ | L142: ⑨ | M142: ⑧ | N142: ⑦ | O142: ⑥ | P142: ⑤ | Q142: ④ | R142: ③ | S142: ② | T142: ① | U142: 次の［ ］の部分の漢字には読みがなをひらがなで書き、カタカナは漢字に直しなさい。 | V142: 14 | W142: 「漢字の博士検定試験」練習問題 | AC142: ← | AD142: 10 | AE142: 問 | AF142: =AH127+1 -> 141 | AG142: ～ | AH142: =SUM($AD$2:$AD142)+10 -> 150 | AI142: 問まで | AJ142: =COUNTIF($A$1:$T$200,T143) -> 2
A143: =IF(A141="","",VLOOKUP(A141,漢字書き!$A$2:$N$506,6,0)) ->  | B143: =IF(B141="","",VLOOKUP(B141,漢字書き!$A$2:$N$506,6,0)) ->  | C143: =IF(C141="","",VLOOKUP(C141,漢字書き!$A$2:$N$506,6,0)) ->  | D143: =IF(D141="","",VLOOKUP(D141,漢字書き!$A$2:$N$506,6,0)) ->  | E143: =IF(E141="","",VLOOKUP(E141,漢字書き!$A$2:$N$506,6,0)) ->  | F143: =IF(F141="","",VLOOKUP(F141,漢字書き!$A$2:$N$506,6,0)) ->  | G143: =IF(G141="","",VLOOKUP(G141,漢字書き!$A$2:$N$506,6,0)) ->  | H143: =IF(H141="","",VLOOKUP(H141,漢字書き!$A$2:$N$506,6,0)) ->  | I143: =IF(I141="","",VLOOKUP(I141,漢字書き!$A$2:$N$506,6,0)) ->  | J143: =IF(J141="","",VLOOKUP(J141,漢字書き!$A$2:$N$506,6,0)) ->  | K143: =IF(K141="","",VLOOKUP(K141,漢字読み!$A$2:$O$506,6,0)) -> ［少］ない水 | L143: =IF(L141="","",VLOOKUP(L141,漢字読み!$A$2:$O$506,6,0)) -> ［歌声］がひびく | M143: =IF(M141="","",VLOOKUP(M141,漢字読み!$A$2:$O$506,6,0)) -> ［古］いタイヤ | N143: =IF(N141="","",VLOOKUP(N141,漢字読み!$A$2:$O$506,6,0)) -> えきにしゅう［合］する | O143: =IF(O141="","",VLOOKUP(O141,漢字読み!$A$2:$O$506,6,0)) -> やさしい［兄］がいる | P143: =IF(P141="","",VLOOKUP(P141,漢字読み!$A$2:$O$506,6,0)) -> ［細］い糸 | Q143: =IF(Q141="","",VLOOKUP(Q141,漢字読み!$A$2:$O$506,6,0)) -> ［線］を引く | R143: =IF(R141="","",VLOOKUP(R141,漢字読み!$A$2:$O$506,6,0)) -> ［角］をまがる | S143: =IF(S141="","",VLOOKUP(S141,漢字読み!$A$2:$O$506,6,0)) -> ［校歌］をおぼえる | T143: =IF(T141="","",VLOOKUP(T141,漢字読み!$A$2:$O$506,6,0)) -> ［遠］くに行く | V143: 級
V144: 名前
A145: =IF(A141="","",IF(VLOOKUP(A141,漢字書き!$A$2:$N$502,7,0)=0,"",VLOOKUP(A141,漢字書き!$A$2:$N$502,7,0))) ->  | B145: =IF(B141="","",IF(VLOOKUP(B141,漢字書き!$A$2:$N$502,7,0)=0,"",VLOOKUP(B141,漢字書き!$A$2:$N$502,7,0))) ->  | C145: =IF(C141="","",IF(VLOOKUP(C141,漢字書き!$A$2:$N$502,7,0)=0,"",VLOOKUP(C141,漢字書き!$A$2:$N$502,7,0))) ->  | D145: =IF(D141="","",IF(VLOOKUP(D141,漢字書き!$A$2:$N$502,7,0)=0,"",VLOOKUP(D141,漢字書き!$A$2:$N$502,7,0))) ->  | E145: =IF(E141="","",IF(VLOOKUP(E141,漢字書き!$A$2:$N$502,7,0)=0,"",VLOOKUP(E141,漢字書き!$A$2:$N$502,7,0))) ->  | F145: =IF(F141="","",IF(VLOOKUP(F141,漢字書き!$A$2:$N$502,7,0)=0,"",VLOOKUP(F141,漢字書き!$A$2:$N$502,7,0))) ->  | G145: =IF(G141="","",IF(VLOOKUP(G141,漢字書き!$A$2:$N$502,7,0)=0,"",VLOOKUP(G141,漢字書き!$A$2:$N$502,7,0))) ->  | H145: =IF(H141="","",IF(VLOOKUP(H141,漢字書き!$A$2:$N$502,7,0)=0,"",VLOOKUP(H141,漢字書き!$A$2:$N$502,7,0))) ->  | I145: =IF(I141="","",IF(VLOOKUP(I141,漢字書き!$A$2:$N$502,7,0)=0,"",VLOOKUP(I141,漢字書き!$A$2:$N$502,7,0))) ->  | J145: =IF(J141="","",IF(VLOOKUP(J141,漢字書き!$A$2:$N$502,7,0)=0,"",VLOOKUP(J141,漢字書き!$A$2:$N$502,7,0))) ->  | K145: =IF(K141="","",IF(VLOOKUP(K141,漢字読み!$A$2:$O$502,7,0)=0,"",VLOOKUP(K141,漢字読み!$A$2:$O$502,7,0))) -> ない | L145: =IF(L141="","",IF(VLOOKUP(L141,漢字読み!$A$2:$O$502,7,0)=0,"",VLOOKUP(L141,漢字読み!$A$2:$O$502,7,0))) ->  | M145: =IF(M141="","",IF(VLOOKUP(M141,漢字読み!$A$2:$O$502,7,0)=0,"",VLOOKUP(M141,漢字読み!$A$2:$O$502,7,0))) -> い | N145: =IF(N141="","",IF(VLOOKUP(N141,漢字読み!$A$2:$O$502,7,0)=0,"",VLOOKUP(N141,漢字読み!$A$2:$O$502,7,0))) ->  | O145: =IF(O141="","",IF(VLOOKUP(O141,漢字読み!$A$2:$O$502,7,0)=0,"",VLOOKUP(O141,漢字読み!$A$2:$O$502,7,0))) ->  | P145: =IF(P141="","",IF(VLOOKUP(P141,漢字読み!$A$2:$O$502,7,0)=0,"",VLOOKUP(P141,漢字読み!$A$2:$O$502,7,0))) -> い | Q145: =IF(Q141="","",IF(VLOOKUP(Q141,漢字読み!$A$2:$O$502,7,0)=0,"",VLOOKUP(Q141,漢字読み!$A$2:$O$502,7,0))) ->  | R145: =IF(R141="","",IF(VLOOKUP(R141,漢字読み!$A$2:$O$502,7,0)=0,"",VLOOKUP(R141,漢字読み!$A$2:$O$502,7,0))) ->  | S145: =IF(S141="","",IF(VLOOKUP(S141,漢字読み!$A$2:$O$502,7,0)=0,"",VLOOKUP(S141,漢字読み!$A$2:$O$502,7,0))) ->  | T145: =IF(T141="","",IF(VLOOKUP(T141,漢字読み!$A$2:$O$502,7,0)=0,"",VLOOKUP(T141,漢字読み!$A$2:$O$502,7,0))) -> く | W145: 和歌山県教育委員会
A146: =INDIRECT("'関数（書き）'!C" & COLUMN(B$1)+SUM($AD$2:$AD147)) -> 0 | B146: =INDIRECT("'関数（書き）'!C" & COLUMN(C$1)+SUM($AD$2:$AD147)) -> 0 | C146: =INDIRECT("'関数（書き）'!C" & COLUMN(D$1)+SUM($AD$2:$AD147)) -> 0 | D146: =INDIRECT("'関数（書き）'!C" & COLUMN(E$1)+SUM($AD$2:$AD147)) -> 0 | E146: =INDIRECT("'関数（書き）'!C" & COLUMN(F$1)+SUM($AD$2:$AD147)) -> 0 | F146: =INDIRECT("'関数（書き）'!C" & COLUMN(G$1)+SUM($AD$2:$AD147)) -> 0 | G146: =INDIRECT("'関数（書き）'!C" & COLUMN(H$1)+SUM($AD$2:$AD147)) -> 0 | H146: =INDIRECT("'関数（書き）'!C" & COLUMN(I$1)+SUM($AD$2:$AD147)) -> 0 | I146: =INDIRECT("'関数（書き）'!C" & COLUMN(J$1)+SUM($AD$2:$AD147)) -> 0 | J146: =INDIRECT("'関数（書き）'!C" & COLUMN(K$1)+SUM($AD$2:$AD147)) -> 0 | K146: =INDIRECT("'関数（読み）'!C" & COLUMN(B$1)+SUM($AD$2:$AD147)) -> 2 | L146: =INDIRECT("'関数（読み）'!C" & COLUMN(C$1)+SUM($AD$2:$AD147)) -> 150 | M146: =INDIRECT("'関数（読み）'!C" & COLUMN(D$1)+SUM($AD$2:$AD147)) -> 0 | N146: =INDIRECT("'関数（読み）'!C" & COLUMN(E$1)+SUM($AD$2:$AD147)) -> 0 | O146: =INDIRECT("'関数（読み）'!C" & COLUMN(F$1)+SUM($AD$2:$AD147)) -> 0 | P146: =INDIRECT("'関数（読み）'!C" & COLUMN(G$1)+SUM($AD$2:$AD147)) -> 0 | Q146: =INDIRECT("'関数（読み）'!C" & COLUMN(H$1)+SUM($AD$2:$AD147)) -> 0 | R146: =INDIRECT("'関数（読み）'!C" & COLUMN(I$1)+SUM($AD$2:$AD147)) -> 0 | S146: =INDIRECT("'関数（読み）'!C" & COLUMN(J$1)+SUM($AD$2:$AD147)) -> 0 | T146: =INDIRECT("'関数（読み）'!C" & COLUMN(K$1)+SUM($AD$2:$AD147)) -> 0
A147: ⑳ | B147: ⑲ | C147: ⑱ | D147: ⑰ | E147: ⑯ | F147: ⑮ | G147: ⑭ | H147: ⑬ | I147: ⑫ | J147: ⑪ | K147: ⑩ | L147: ⑨ | M147: ⑧ | N147: ⑦ | O147: ⑥ | P147: ⑤ | Q147: ④ | R147: ③ | S147: ② | T147: ① | U147: 次の［ ］の部分の漢字には読みがなをひらがなで書き、カタカナは漢字に直しなさい。 | V147: 14 | W147: 「漢字の博士検定試験」練習問題 | AC147: ← | AD147: 10 | AE147: 問 | AF147: =AH142+1 -> 151 | AG147: ～ | AH147: =SUM($AD$2:$AD147)+10 -> 160 | AI147: 問まで | AJ147: =COUNTIF($A$1:$T$200,T148) -> 585
A148: =IF(A146="","",VLOOKUP(A146,漢字書き!$A$2:$N$506,6,0)) ->  | B148: =IF(B146="","",VLOOKUP(B146,漢字書き!$A$2:$N$506,6,0)) ->  | C148: =IF(C146="","",VLOOKUP(C146,漢字書き!$A$2:$N$506,6,0)) ->  | D148: =IF(D146="","",VLOOKUP(D146,漢字書き!$A$2:$N$506,6,0)) ->  | E148: =IF(E146="","",VLOOKUP(E146,漢字書き!$A$2:$N$506,6,0)) ->  | F148: =IF(F146="","",VLOOKUP(F146,漢字書き!$A$2:$N$506,6,0)) ->  | G148: =IF(G146="","",VLOOKUP(G146,漢字書き!$A$2:$N$506,6,0)) ->  | H148: =IF(H146="","",VLOOKUP(H146,漢字書き!$A$2:$N$506,6,0)) ->  | I148: =IF(I146="","",VLOOKUP(I146,漢字書き!$A$2:$N$506,6,0)) ->  | J148: =IF(J146="","",VLOOKUP(J146,漢字書き!$A$2:$N$506,6,0)) ->  | K148: =IF(K146="","",VLOOKUP(K146,漢字読み!$A$2:$O$506,6,0)) -> つなを［引］く | L148: =IF(L146="","",VLOOKUP(L146,漢字読み!$A$2:$O$506,6,0)) -> おなじ［組］の人 | M148: =IF(M146="","",VLOOKUP(M146,漢字読み!$A$2:$O$506,6,0)) ->  | N148: =IF(N146="","",VLOOKUP(N146,漢字読み!$A$2:$O$506,6,0)) ->  | O148: =IF(O146="","",VLOOKUP(O146,漢字読み!$A$2:$O$506,6,0)) ->  | P148: =IF(P146="","",VLOOKUP(P146,漢字読み!$A$2:$O$506,6,0)) ->  | Q148: =IF(Q146="","",VLOOKUP(Q146,漢字読み!$A$2:$O$506,6,0)) ->  | R148: =IF(R146="","",VLOOKUP(R146,漢字読み!$A$2:$O$506,6,0)) ->  | S148: =IF(S146="","",VLOOKUP(S146,漢字読み!$A$2:$O$506,6,0)) ->  | T148: =IF(T146="","",VLOOKUP(T146,漢字読み!$A$2:$O$506,6,0)) ->  | V148: 級
V149: 名前
A150: =IF(A146="","",IF(VLOOKUP(A146,漢字書き!$A$2:$N$502,7,0)=0,"",VLOOKUP(A146,漢字書き!$A$2:$N$502,7,0))) ->  | B150: =IF(B146="","",IF(VLOOKUP(B146,漢字書き!$A$2:$N$502,7,0)=0,"",VLOOKUP(B146,漢字書き!$A$2:$N$502,7,0))) ->  | C150: =IF(C146="","",IF(VLOOKUP(C146,漢字書き!$A$2:$N$502,7,0)=0,"",VLOOKUP(C146,漢字書き!$A$2:$N$502,7,0))) ->  | D150: =IF(D146="","",IF(VLOOKUP(D146,漢字書き!$A$2:$N$502,7,0)=0,"",VLOOKUP(D146,漢字書き!$A$2:$N$502,7,0))) ->  | E150: =IF(E146="","",IF(VLOOKUP(E146,漢字書き!$A$2:$N$502,7,0)=0,"",VLOOKUP(E146,漢字書き!$A$2:$N$502,7,0))) ->  | F150: =IF(F146="","",IF(VLOOKUP(F146,漢字書き!$A$2:$N$502,7,0)=0,"",VLOOKUP(F146,漢字書き!$A$2:$N$502,7,0))) ->  | G150: =IF(G146="","",IF(VLOOKUP(G146,漢字書き!$A$2:$N$502,7,0)=0,"",VLOOKUP(G146,漢字書き!$A$2:$N$502,7,0))) ->  | H150: =IF(H146="","",IF(VLOOKUP(H146,漢字書き!$A$2:$N$502,7,0)=0,"",VLOOKUP(H146,漢字書き!$A$2:$N$502,7,0))) ->  | I150: =IF(I146="","",IF(VLOOKUP(I146,漢字書き!$A$2:$N$502,7,0)=0,"",VLOOKUP(I146,漢字書き!$A$2:$N$502,7,0))) ->  | J150: =IF(J146="","",IF(VLOOKUP(J146,漢字書き!$A$2:$N$502,7,0)=0,"",VLOOKUP(J146,漢字書き!$A$2:$N$502,7,0))) ->  | K150: =IF(K146="","",IF(VLOOKUP(K146,漢字読み!$A$2:$O$502,7,0)=0,"",VLOOKUP(K146,漢字読み!$A$2:$O$502,7,0))) -> く | L150: =IF(L146="","",IF(VLOOKUP(L146,漢字読み!$A$2:$O$502,7,0)=0,"",VLOOKUP(L146,漢字読み!$A$2:$O$502,7,0))) ->  | M150: =IF(M146="","",IF(VLOOKUP(M146,漢字読み!$A$2:$O$502,7,0)=0,"",VLOOKUP(M146,漢字読み!$A$2:$O$502,7,0))) ->  | N150: =IF(N146="","",IF(VLOOKUP(N146,漢字読み!$A$2:$O$502,7,0)=0,"",VLOOKUP(N146,漢字読み!$A$2:$O$502,7,0))) ->  | O150: =IF(O146="","",IF(VLOOKUP(O146,漢字読み!$A$2:$O$502,7,0)=0,"",VLOOKUP(O146,漢字読み!$A$2:$O$502,7,0))) ->  | P150: =IF(P146="","",IF(VLOOKUP(P146,漢字読み!$A$2:$O$502,7,0)=0,"",VLOOKUP(P146,漢字読み!$A$2:$O$502,7,0))) ->  | Q150: =IF(Q146="","",IF(VLOOKUP(Q146,漢字読み!$A$2:$O$502,7,0)=0,"",VLOOKUP(Q146,漢字読み!$A$2:$O$502,7,0))) ->  | R150: =IF(R146="","",IF(VLOOKUP(R146,漢字読み!$A$2:$O$502,7,0)=0,"",VLOOKUP(R146,漢字読み!$A$2:$O$502,7,0))) ->  | S150: =IF(S146="","",IF(VLOOKUP(S146,漢字読み!$A$2:$O$502,7,0)=0,"",VLOOKUP(S146,漢字読み!$A$2:$O$502,7,0))) ->  | T150: =IF(T146="","",IF(VLOOKUP(T146,漢字読み!$A$2:$O$502,7,0)=0,"",VLOOKUP(T146,漢字読み!$A$2:$O$502,7,0))) ->  | W150: 和歌山県教育委員会
A151: =A141 -> 0 | B151: =B141 -> 0 | C151: =C141 -> 0 | D151: =D141 -> 0 | E151: =E141 -> 0 | F151: =F141 -> 0 | G151: =G141 -> 0 | H151: =H141 -> 0 | I151: =I141 -> 0 | J151: =J141 -> 0 | K151: =K141 -> 121 | L151: =L141 -> 13 | M151: =M141 -> 64 | N151: =N141 -> 82 | O151: =O141 -> 52 | P151: =P141 -> 89 | Q151: =Q141 -> 148 | R151: =R141 -> 27 | S151: =S141 -> 14 | T151: =T141 -> 6
A152: ⑳ | B152: ⑲ | C152: ⑱ | D152: ⑰ | E152: ⑯ | F152: ⑮ | G152: ⑭ | H152: ⑬ | I152: ⑫ | J152: ⑪ | K152: ⑩ | L152: ⑨ | M152: ⑧ | N152: ⑦ | O152: ⑥ | P152: ⑤ | Q152: ④ | R152: ③ | S152: ② | T152: ① | U152: 次の［ ］の部分の漢字には読みがなをひらがなで書き、カタカナは漢字に直しなさい。 | V152: 14 | W152: 「漢字の博士検定試験」練習問題
A153: =IF(A151="","",VLOOKUP(A151,漢字書き!$A$2:$N$506,6,0)) ->  | B153: =IF(B151="","",VLOOKUP(B151,漢字書き!$A$2:$N$506,6,0)) ->  | C153: =IF(C151="","",VLOOKUP(C151,漢字書き!$A$2:$N$506,6,0)) ->  | D153: =IF(D151="","",VLOOKUP(D151,漢字書き!$A$2:$N$506,6,0)) ->  | E153: =IF(E151="","",VLOOKUP(E151,漢字書き!$A$2:$N$506,6,0)) ->  | F153: =IF(F151="","",VLOOKUP(F151,漢字書き!$A$2:$N$506,6,0)) ->  | G153: =IF(G151="","",VLOOKUP(G151,漢字書き!$A$2:$N$506,6,0)) ->  | H153: =IF(H151="","",VLOOKUP(H151,漢字書き!$A$2:$N$506,6,0)) ->  | I153: =IF(I151="","",VLOOKUP(I151,漢字書き!$A$2:$N$506,6,0)) ->  | J153: =IF(J151="","",VLOOKUP(J151,漢字書き!$A$2:$N$506,6,0)) ->  | K153: =IF(K151="","",VLOOKUP(K151,漢字読み!$A$2:$O$506,6,0)) -> ［少］ない水 | L153: =IF(L151="","",VLOOKUP(L151,漢字読み!$A$2:$O$506,6,0)) -> ［歌声］がひびく | M153: =IF(M151="","",VLOOKUP(M151,漢字読み!$A$2:$O$506,6,0)) -> ［古］いタイヤ | N153: =IF(N151="","",VLOOKUP(N151,漢字読み!$A$2:$O$506,6,0)) -> えきにしゅう［合］する | O153: =IF(O151="","",VLOOKUP(O151,漢字読み!$A$2:$O$506,6,0)) -> やさしい［兄］がいる | P153: =IF(P151="","",VLOOKUP(P151,漢字読み!$A$2:$O$506,6,0)) -> ［細］い糸 | Q153: =IF(Q151="","",VLOOKUP(Q151,漢字読み!$A$2:$O$506,6,0)) -> ［線］を引く | R153: =IF(R151="","",VLOOKUP(R151,漢字読み!$A$2:$O$506,6,0)) -> ［角］をまがる | S153: =IF(S151="","",VLOOKUP(S151,漢字読み!$A$2:$O$506,6,0)) -> ［校歌］をおぼえる | T153: =IF(T151="","",VLOOKUP(T151,漢字読み!$A$2:$O$506,6,0)) -> ［遠］くに行く | V153: 級
A154: =IF(A$11="","",VLOOKUP(A151,漢字書き!$A$2:$O$506,8,0)) ->  | B154: =IF(B$11="","",VLOOKUP(B151,漢字書き!$A$2:$O$506,8,0)) ->  | C154: =IF(C$11="","",VLOOKUP(C151,漢字書き!$A$2:$O$506,8,0)) ->  | D154: =IF(D$11="","",VLOOKUP(D151,漢字書き!$A$2:$O$506,8,0)) ->  | E154: =IF(E$11="","",VLOOKUP(E151,漢字書き!$A$2:$O$506,8,0)) ->  | F154: =IF(F$11="","",VLOOKUP(F151,漢字書き!$A$2:$O$506,8,0)) ->  | G154: =IF(G$11="","",VLOOKUP(G151,漢字書き!$A$2:$O$506,8,0)) ->  | H154: =IF(H$11="","",VLOOKUP(H151,漢字書き!$A$2:$O$506,8,0)) ->  | I154: =IF(I$11="","",VLOOKUP(I151,漢字書き!$A$2:$O$506,8,0)) ->  | J154: =IF(J$11="","",VLOOKUP(J151,漢字書き!$A$2:$O$506,8,0)) ->  | K154: =IF(K$11="","",VLOOKUP(K151,漢字読み!$A$2:$O$506,8,0)) -> すく | L154: =IF(L$11="","",VLOOKUP(L151,漢字読み!$A$2:$O$506,8,0)) -> うたごえ | M154: =IF(M$11="","",VLOOKUP(M151,漢字読み!$A$2:$O$506,8,0)) -> ふる | N154: =IF(N$11="","",VLOOKUP(N151,漢字読み!$A$2:$O$506,8,0)) -> ごう | O154: =IF(O$11="","",VLOOKUP(O151,漢字読み!$A$2:$O$506,8,0)) -> あに | P154: =IF(P$11="","",VLOOKUP(P151,漢字読み!$A$2:$O$506,8,0)) -> ほそ | Q154: =IF(Q$11="","",VLOOKUP(Q151,漢字読み!$A$2:$O$506,8,0)) -> せん | R154: =IF(R$11="","",VLOOKUP(R151,漢字読み!$A$2:$O$506,8,0)) -> かど | S154: =IF(S$11="","",VLOOKUP(S151,漢字読み!$A$2:$O$506,8,0)) -> こうか | T154: =IF(T$11="","",VLOOKUP(T151,漢字読み!$A$2:$O$506,8,0)) -> とお | V154: 名前
A155: =IF(A151="","",IF(VLOOKUP(A151,漢字書き!$A$2:$N$502,7,0)=0,"",VLOOKUP(A151,漢字書き!$A$2:$N$502,7,0))) ->  | B155: =IF(B151="","",IF(VLOOKUP(B151,漢字書き!$A$2:$N$502,7,0)=0,"",VLOOKUP(B151,漢字書き!$A$2:$N$502,7,0))) ->  | C155: =IF(C151="","",IF(VLOOKUP(C151,漢字書き!$A$2:$N$502,7,0)=0,"",VLOOKUP(C151,漢字書き!$A$2:$N$502,7,0))) ->  | D155: =IF(D151="","",IF(VLOOKUP(D151,漢字書き!$A$2:$N$502,7,0)=0,"",VLOOKUP(D151,漢字書き!$A$2:$N$502,7,0))) ->  | E155: =IF(E151="","",IF(VLOOKUP(E151,漢字書き!$A$2:$N$502,7,0)=0,"",VLOOKUP(E151,漢字書き!$A$2:$N$502,7,0))) ->  | F155: =IF(F151="","",IF(VLOOKUP(F151,漢字書き!$A$2:$N$502,7,0)=0,"",VLOOKUP(F151,漢字書き!$A$2:$N$502,7,0))) ->  | G155: =IF(G151="","",IF(VLOOKUP(G151,漢字書き!$A$2:$N$502,7,0)=0,"",VLOOKUP(G151,漢字書き!$A$2:$N$502,7,0))) ->  | H155: =IF(H151="","",IF(VLOOKUP(H151,漢字書き!$A$2:$N$502,7,0)=0,"",VLOOKUP(H151,漢字書き!$A$2:$N$502,7,0))) ->  | I155: =IF(I151="","",IF(VLOOKUP(I151,漢字書き!$A$2:$N$502,7,0)=0,"",VLOOKUP(I151,漢字書き!$A$2:$N$502,7,0))) ->  | J155: =IF(J151="","",IF(VLOOKUP(J151,漢字書き!$A$2:$N$502,7,0)=0,"",VLOOKUP(J151,漢字書き!$A$2:$N$502,7,0))) ->  | K155: =IF(K151="","",IF(VLOOKUP(K151,漢字読み!$A$2:$O$502,7,0)=0,"",VLOOKUP(K151,漢字読み!$A$2:$O$502,7,0))) -> ない | L155: =IF(L151="","",IF(VLOOKUP(L151,漢字読み!$A$2:$O$502,7,0)=0,"",VLOOKUP(L151,漢字読み!$A$2:$O$502,7,0))) ->  | M155: =IF(M151="","",IF(VLOOKUP(M151,漢字読み!$A$2:$O$502,7,0)=0,"",VLOOKUP(M151,漢字読み!$A$2:$O$502,7,0))) -> い | N155: =IF(N151="","",IF(VLOOKUP(N151,漢字読み!$A$2:$O$502,7,0)=0,"",VLOOKUP(N151,漢字読み!$A$2:$O$502,7,0))) ->  | O155: =IF(O151="","",IF(VLOOKUP(O151,漢字読み!$A$2:$O$502,7,0)=0,"",VLOOKUP(O151,漢字読み!$A$2:$O$502,7,0))) ->  | P155: =IF(P151="","",IF(VLOOKUP(P151,漢字読み!$A$2:$O$502,7,0)=0,"",VLOOKUP(P151,漢字読み!$A$2:$O$502,7,0))) -> い | Q155: =IF(Q151="","",IF(VLOOKUP(Q151,漢字読み!$A$2:$O$502,7,0)=0,"",VLOOKUP(Q151,漢字読み!$A$2:$O$502,7,0))) ->  | R155: =IF(R151="","",IF(VLOOKUP(R151,漢字読み!$A$2:$O$502,7,0)=0,"",VLOOKUP(R151,漢字読み!$A$2:$O$502,7,0))) ->  | S155: =IF(S151="","",IF(VLOOKUP(S151,漢字読み!$A$2:$O$502,7,0)=0,"",VLOOKUP(S151,漢字読み!$A$2:$O$502,7,0))) ->  | T155: =IF(T151="","",IF(VLOOKUP(T151,漢字読み!$A$2:$O$502,7,0)=0,"",VLOOKUP(T151,漢字読み!$A$2:$O$502,7,0))) -> く | W155: 和歌山県教育委員会
A156: =A146 -> 0 | B156: =B146 -> 0 | C156: =C146 -> 0 | D156: =D146 -> 0 | E156: =E146 -> 0 | F156: =F146 -> 0 | G156: =G146 -> 0 | H156: =H146 -> 0 | I156: =I146 -> 0 | J156: =J146 -> 0 | K156: =K146 -> 2 | L156: =L146 -> 150 | M156: =M146 -> 0 | N156: =N146 -> 0 | O156: =O146 -> 0 | P156: =P146 -> 0 | Q156: =Q146 -> 0 | R156: =R146 -> 0 | S156: =S146 -> 0 | T156: =T146 -> 0
A157: ⑳ | B157: ⑲ | C157: ⑱ | D157: ⑰ | E157: ⑯ | F157: ⑮ | G157: ⑭ | H157: ⑬ | I157: ⑫ | J157: ⑪ | K157: ⑩ | L157: ⑨ | M157: ⑧ | N157: ⑦ | O157: ⑥ | P157: ⑤ | Q157: ④ | R157: ③ | S157: ② | T157: ① | U157: 次の［ ］の部分の漢字には読みがなをひらがなで書き、カタカナは漢字に直しなさい。 | V157: 14 | W157: 「漢字の博士検定試験」練習問題
A158: =IF(A156="","",VLOOKUP(A156,漢字書き!$A$2:$N$506,6,0)) ->  | B158: =IF(B156="","",VLOOKUP(B156,漢字書き!$A$2:$N$506,6,0)) ->  | C158: =IF(C156="","",VLOOKUP(C156,漢字書き!$A$2:$N$506,6,0)) ->  | D158: =IF(D156="","",VLOOKUP(D156,漢字書き!$A$2:$N$506,6,0)) ->  | E158: =IF(E156="","",VLOOKUP(E156,漢字書き!$A$2:$N$506,6,0)) ->  | F158: =IF(F156="","",VLOOKUP(F156,漢字書き!$A$2:$N$506,6,0)) ->  | G158: =IF(G156="","",VLOOKUP(G156,漢字書き!$A$2:$N$506,6,0)) ->  | H158: =IF(H156="","",VLOOKUP(H156,漢字書き!$A$2:$N$506,6,0)) ->  | I158: =IF(I156="","",VLOOKUP(I156,漢字書き!$A$2:$N$506,6,0)) ->  | J158: =IF(J156="","",VLOOKUP(J156,漢字書き!$A$2:$N$506,6,0)) ->  | K158: =IF(K156="","",VLOOKUP(K156,漢字読み!$A$2:$O$506,6,0)) -> つなを［引］く | L158: =IF(L156="","",VLOOKUP(L156,漢字読み!$A$2:$O$506,6,0)) -> おなじ［組］の人 | M158: =IF(M156="","",VLOOKUP(M156,漢字読み!$A$2:$O$506,6,0)) ->  | N158: =IF(N156="","",VLOOKUP(N156,漢字読み!$A$2:$O$506,6,0)) ->  | O158: =IF(O156="","",VLOOKUP(O156,漢字読み!$A$2:$O$506,6,0)) ->  | P158: =IF(P156="","",VLOOKUP(P156,漢字読み!$A$2:$O$506,6,0)) ->  | Q158: =IF(Q156="","",VLOOKUP(Q156,漢字読み!$A$2:$O$506,6,0)) ->  | R158: =IF(R156="","",VLOOKUP(R156,漢字読み!$A$2:$O$506,6,0)) ->  | S158: =IF(S156="","",VLOOKUP(S156,漢字読み!$A$2:$O$506,6,0)) ->  | T158: =IF(T156="","",VLOOKUP(T156,漢字読み!$A$2:$O$506,6,0)) ->  | V158: 級
A159: =IF(A$16="","",VLOOKUP(A156,漢字書き!$A$2:$O$506,8,0)) ->  | B159: =IF(B$16="","",VLOOKUP(B156,漢字書き!$A$2:$O$506,8,0)) ->  | C159: =IF(C$16="","",VLOOKUP(C156,漢字書き!$A$2:$O$506,8,0)) ->  | D159: =IF(D$16="","",VLOOKUP(D156,漢字書き!$A$2:$O$506,8,0)) ->  | E159: =IF(E$16="","",VLOOKUP(E156,漢字書き!$A$2:$O$506,8,0)) ->  | F159: =IF(F$16="","",VLOOKUP(F156,漢字書き!$A$2:$O$506,8,0)) ->  | G159: =IF(G$16="","",VLOOKUP(G156,漢字書き!$A$2:$O$506,8,0)) ->  | H159: =IF(H$16="","",VLOOKUP(H156,漢字書き!$A$2:$O$506,8,0)) ->  | I159: =IF(I$16="","",VLOOKUP(I156,漢字書き!$A$2:$O$506,8,0)) ->  | J159: =IF(J$16="","",VLOOKUP(J156,漢字書き!$A$2:$O$506,8,0)) ->  | K159: =IF(K$16="","",VLOOKUP(K156,漢字読み!$A$2:$O$506,8,0)) -> ひ | L159: =IF(L$16="","",VLOOKUP(L156,漢字読み!$A$2:$O$506,8,0)) -> くみ | M159: =IF(M$16="","",VLOOKUP(M156,漢字読み!$A$2:$O$506,8,0)) ->  | N159: =IF(N$16="","",VLOOKUP(N156,漢字読み!$A$2:$O$506,8,0)) ->  | O159: =IF(O$16="","",VLOOKUP(O156,漢字読み!$A$2:$O$506,8,0)) ->  | P159: =IF(P$16="","",VLOOKUP(P156,漢字読み!$A$2:$O$506,8,0)) ->  | Q159: =IF(Q$16="","",VLOOKUP(Q156,漢字読み!$A$2:$O$506,8,0)) ->  | R159: =IF(R$16="","",VLOOKUP(R156,漢字読み!$A$2:$O$506,8,0)) ->  | S159: =IF(S$16="","",VLOOKUP(S156,漢字読み!$A$2:$O$506,8,0)) ->  | T159: =IF(T$16="","",VLOOKUP(T156,漢字読み!$A$2:$O$506,8,0)) ->  | V159: 名前
A160: =IF(A156="","",IF(VLOOKUP(A156,漢字書き!$A$2:$N$502,7,0)=0,"",VLOOKUP(A156,漢字書き!$A$2:$N$502,7,0))) ->  | B160: =IF(B156="","",IF(VLOOKUP(B156,漢字書き!$A$2:$N$502,7,0)=0,"",VLOOKUP(B156,漢字書き!$A$2:$N$502,7,0))) ->  | C160: =IF(C156="","",IF(VLOOKUP(C156,漢字書き!$A$2:$N$502,7,0)=0,"",VLOOKUP(C156,漢字書き!$A$2:$N$502,7,0))) ->  | D160: =IF(D156="","",IF(VLOOKUP(D156,漢字書き!$A$2:$N$502,7,0)=0,"",VLOOKUP(D156,漢字書き!$A$2:$N$502,7,0))) ->  | E160: =IF(E156="","",IF(VLOOKUP(E156,漢字書き!$A$2:$N$502,7,0)=0,"",VLOOKUP(E156,漢字書き!$A$2:$N$502,7,0))) ->  | F160: =IF(F156="","",IF(VLOOKUP(F156,漢字書き!$A$2:$N$502,7,0)=0,"",VLOOKUP(F156,漢字書き!$A$2:$N$502,7,0))) ->  | G160: =IF(G156="","",IF(VLOOKUP(G156,漢字書き!$A$2:$N$502,7,0)=0,"",VLOOKUP(G156,漢字書き!$A$2:$N$502,7,0))) ->  | H160: =IF(H156="","",IF(VLOOKUP(H156,漢字書き!$A$2:$N$502,7,0)=0,"",VLOOKUP(H156,漢字書き!$A$2:$N$502,7,0))) ->  | I160: =IF(I156="","",IF(VLOOKUP(I156,漢字書き!$A$2:$N$502,7,0)=0,"",VLOOKUP(I156,漢字書き!$A$2:$N$502,7,0))) ->  | J160: =IF(J156="","",IF(VLOOKUP(J156,漢字書き!$A$2:$N$502,7,0)=0,"",VLOOKUP(J156,漢字書き!$A$2:$N$502,7,0))) ->  | K160: =IF(K156="","",IF(VLOOKUP(K156,漢字読み!$A$2:$O$502,7,0)=0,"",VLOOKUP(K156,漢字読み!$A$2:$O$502,7,0))) -> く | L160: =IF(L156="","",IF(VLOOKUP(L156,漢字読み!$A$2:$O$502,7,0)=0,"",VLOOKUP(L156,漢字読み!$A$2:$O$502,7,0))) ->  | M160: =IF(M156="","",IF(VLOOKUP(M156,漢字読み!$A$2:$O$502,7,0)=0,"",VLOOKUP(M156,漢字読み!$A$2:$O$502,7,0))) ->  | N160: =IF(N156="","",IF(VLOOKUP(N156,漢字読み!$A$2:$O$502,7,0)=0,"",VLOOKUP(N156,漢字読み!$A$2:$O$502,7,0))) ->  | O160: =IF(O156="","",IF(VLOOKUP(O156,漢字読み!$A$2:$O$502,7,0)=0,"",VLOOKUP(O156,漢字読み!$A$2:$O$502,7,0))) ->  | P160: =IF(P156="","",IF(VLOOKUP(P156,漢字読み!$A$2:$O$502,7,0)=0,"",VLOOKUP(P156,漢字読み!$A$2:$O$502,7,0))) ->  | Q160: =IF(Q156="","",IF(VLOOKUP(Q156,漢字読み!$A$2:$O$502,7,0)=0,"",VLOOKUP(Q156,漢字読み!$A$2:$O$502,7,0))) ->  | R160: =IF(R156="","",IF(VLOOKUP(R156,漢字読み!$A$2:$O$502,7,0)=0,"",VLOOKUP(R156,漢字読み!$A$2:$O$502,7,0))) ->  | S160: =IF(S156="","",IF(VLOOKUP(S156,漢字読み!$A$2:$O$502,7,0)=0,"",VLOOKUP(S156,漢字読み!$A$2:$O$502,7,0))) ->  | T160: =IF(T156="","",IF(VLOOKUP(T156,漢字読み!$A$2:$O$502,7,0)=0,"",VLOOKUP(T156,漢字読み!$A$2:$O$502,7,0))) ->  | W160: 和歌山県教育委員会
A161: =INDIRECT("'関数（書き）'!C" & COLUMN(B$1)+SUM($AD$2:$AD162)) -> 0 | B161: =INDIRECT("'関数（書き）'!C" & COLUMN(C$1)+SUM($AD$2:$AD162)) -> 0 | C161: =INDIRECT("'関数（書き）'!C" & COLUMN(D$1)+SUM($AD$2:$AD162)) -> 0 | D161: =INDIRECT("'関数（書き）'!C" & COLUMN(E$1)+SUM($AD$2:$AD162)) -> 0 | E161: =INDIRECT("'関数（書き）'!C" & COLUMN(F$1)+SUM($AD$2:$AD162)) -> 0 | F161: =INDIRECT("'関数（書き）'!C" & COLUMN(G$1)+SUM($AD$2:$AD162)) -> 0 | G161: =INDIRECT("'関数（書き）'!C" & COLUMN(H$1)+SUM($AD$2:$AD162)) -> 0 | H161: =INDIRECT("'関数（書き）'!C" & COLUMN(I$1)+SUM($AD$2:$AD162)) -> 0 | I161: =INDIRECT("'関数（書き）'!C" & COLUMN(J$1)+SUM($AD$2:$AD162)) -> 0 | J161: =INDIRECT("'関数（書き）'!C" & COLUMN(K$1)+SUM($AD$2:$AD162)) -> 0 | K161: =INDIRECT("'関数（読み）'!C" & COLUMN(B$1)+SUM($AD$2:$AD162)) -> 0 | L161: =INDIRECT("'関数（読み）'!C" & COLUMN(C$1)+SUM($AD$2:$AD162)) -> 0 | M161: =INDIRECT("'関数（読み）'!C" & COLUMN(D$1)+SUM($AD$2:$AD162)) -> 0 | N161: =INDIRECT("'関数（読み）'!C" & COLUMN(E$1)+SUM($AD$2:$AD162)) -> 0 | O161: =INDIRECT("'関数（読み）'!C" & COLUMN(F$1)+SUM($AD$2:$AD162)) -> 0 | P161: =INDIRECT("'関数（読み）'!C" & COLUMN(G$1)+SUM($AD$2:$AD162)) -> 0 | Q161: =INDIRECT("'関数（読み）'!C" & COLUMN(H$1)+SUM($AD$2:$AD162)) -> 0 | R161: =INDIRECT("'関数（読み）'!C" & COLUMN(I$1)+SUM($AD$2:$AD162)) -> 0 | S161: =INDIRECT("'関数（読み）'!C" & COLUMN(J$1)+SUM($AD$2:$AD162)) -> 0 | T161: =INDIRECT("'関数（読み）'!C" & COLUMN(K$1)+SUM($AD$2:$AD162)) -> 0
A162: ⑳ | B162: ⑲ | C162: ⑱ | D162: ⑰ | E162: ⑯ | F162: ⑮ | G162: ⑭ | H162: ⑬ | I162: ⑫ | J162: ⑪ | K162: ⑩ | L162: ⑨ | M162: ⑧ | N162: ⑦ | O162: ⑥ | P162: ⑤ | Q162: ④ | R162: ③ | S162: ② | T162: ① | U162: 次の［ ］の部分の漢字には読みがなをひらがなで書き、カタカナは漢字に直しなさい。 | V162: 14 | W162: 「漢字の博士検定試験」練習問題 | AC162: ← | AD162: 10 | AE162: 問 | AF162: =AH147+1 -> 161 | AG162: ～ | AH162: =SUM($AD$2:$AD162)+10 -> 170 | AI162: 問まで | AJ162: =COUNTIF($A$1:$T$200,T163) -> 585
A163: =IF(A161="","",VLOOKUP(A161,漢字書き!$A$2:$N$506,6,0)) ->  | B163: =IF(B161="","",VLOOKUP(B161,漢字書き!$A$2:$N$506,6,0)) ->  | C163: =IF(C161="","",VLOOKUP(C161,漢字書き!$A$2:$N$506,6,0)) ->  | D163: =IF(D161="","",VLOOKUP(D161,漢字書き!$A$2:$N$506,6,0)) ->  | E163: =IF(E161="","",VLOOKUP(E161,漢字書き!$A$2:$N$506,6,0)) ->  | F163: =IF(F161="","",VLOOKUP(F161,漢字書き!$A$2:$N$506,6,0)) ->  | G163: =IF(G161="","",VLOOKUP(G161,漢字書き!$A$2:$N$506,6,0)) ->  | H163: =IF(H161="","",VLOOKUP(H161,漢字書き!$A$2:$N$506,6,0)) ->  | I163: =IF(I161="","",VLOOKUP(I161,漢字書き!$A$2:$N$506,6,0)) ->  | J163: =IF(J161="","",VLOOKUP(J161,漢字書き!$A$2:$N$506,6,0)) ->  | K163: =IF(K161="","",VLOOKUP(K161,漢字読み!$A$2:$O$506,6,0)) ->  | L163: =IF(L161="","",VLOOKUP(L161,漢字読み!$A$2:$O$506,6,0)) ->  | M163: =IF(M161="","",VLOOKUP(M161,漢字読み!$A$2:$O$506,6,0)) ->  | N163: =IF(N161="","",VLOOKUP(N161,漢字読み!$A$2:$O$506,6,0)) ->  | O163: =IF(O161="","",VLOOKUP(O161,漢字読み!$A$2:$O$506,6,0)) ->  | P163: =IF(P161="","",VLOOKUP(P161,漢字読み!$A$2:$O$506,6,0)) ->  | Q163: =IF(Q161="","",VLOOKUP(Q161,漢字読み!$A$2:$O$506,6,0)) ->  | R163: =IF(R161="","",VLOOKUP(R161,漢字読み!$A$2:$O$506,6,0)) ->  | S163: =IF(S161="","",VLOOKUP(S161,漢字読み!$A$2:$O$506,6,0)) ->  | T163: =IF(T161="","",VLOOKUP(T161,漢字読み!$A$2:$O$506,6,0)) ->  | V163: 級
V164: 名前
A165: =IF(A161="","",IF(VLOOKUP(A161,漢字書き!$A$2:$N$502,7,0)=0,"",VLOOKUP(A161,漢字書き!$A$2:$N$502,7,0))) ->  | B165: =IF(B161="","",IF(VLOOKUP(B161,漢字書き!$A$2:$N$502,7,0)=0,"",VLOOKUP(B161,漢字書き!$A$2:$N$502,7,0))) ->  | C165: =IF(C161="","",IF(VLOOKUP(C161,漢字書き!$A$2:$N$502,7,0)=0,"",VLOOKUP(C161,漢字書き!$A$2:$N$502,7,0))) ->  | D165: =IF(D161="","",IF(VLOOKUP(D161,漢字書き!$A$2:$N$502,7,0)=0,"",VLOOKUP(D161,漢字書き!$A$2:$N$502,7,0))) ->  | E165: =IF(E161="","",IF(VLOOKUP(E161,漢字書き!$A$2:$N$502,7,0)=0,"",VLOOKUP(E161,漢字書き!$A$2:$N$502,7,0))) ->  | F165: =IF(F161="","",IF(VLOOKUP(F161,漢字書き!$A$2:$N$502,7,0)=0,"",VLOOKUP(F161,漢字書き!$A$2:$N$502,7,0))) ->  | G165: =IF(G161="","",IF(VLOOKUP(G161,漢字書き!$A$2:$N$502,7,0)=0,"",VLOOKUP(G161,漢字書き!$A$2:$N$502,7,0))) ->  | H165: =IF(H161="","",IF(VLOOKUP(H161,漢字書き!$A$2:$N$502,7,0)=0,"",VLOOKUP(H161,漢字書き!$A$2:$N$502,7,0))) ->  | I165: =IF(I161="","",IF(VLOOKUP(I161,漢字書き!$A$2:$N$502,7,0)=0,"",VLOOKUP(I161,漢字書き!$A$2:$N$502,7,0))) ->  | J165: =IF(J161="","",IF(VLOOKUP(J161,漢字書き!$A$2:$N$502,7,0)=0,"",VLOOKUP(J161,漢字書き!$A$2:$N$502,7,0))) ->  | K165: =IF(K161="","",IF(VLOOKUP(K161,漢字読み!$A$2:$O$502,7,0)=0,"",VLOOKUP(K161,漢字読み!$A$2:$O$502,7,0))) ->  | L165: =IF(L161="","",IF(VLOOKUP(L161,漢字読み!$A$2:$O$502,7,0)=0,"",VLOOKUP(L161,漢字読み!$A$2:$O$502,7,0))) ->  | M165: =IF(M161="","",IF(VLOOKUP(M161,漢字読み!$A$2:$O$502,7,0)=0,"",VLOOKUP(M161,漢字読み!$A$2:$O$502,7,0))) ->  | N165: =IF(N161="","",IF(VLOOKUP(N161,漢字読み!$A$2:$O$502,7,0)=0,"",VLOOKUP(N161,漢字読み!$A$2:$O$502,7,0))) ->  | O165: =IF(O161="","",IF(VLOOKUP(O161,漢字読み!$A$2:$O$502,7,0)=0,"",VLOOKUP(O161,漢字読み!$A$2:$O$502,7,0))) ->  | P165: =IF(P161="","",IF(VLOOKUP(P161,漢字読み!$A$2:$O$502,7,0)=0,"",VLOOKUP(P161,漢字読み!$A$2:$O$502,7,0))) ->  | Q165: =IF(Q161="","",IF(VLOOKUP(Q161,漢字読み!$A$2:$O$502,7,0)=0,"",VLOOKUP(Q161,漢字読み!$A$2:$O$502,7,0))) ->  | R165: =IF(R161="","",IF(VLOOKUP(R161,漢字読み!$A$2:$O$502,7,0)=0,"",VLOOKUP(R161,漢字読み!$A$2:$O$502,7,0))) ->  | S165: =IF(S161="","",IF(VLOOKUP(S161,漢字読み!$A$2:$O$502,7,0)=0,"",VLOOKUP(S161,漢字読み!$A$2:$O$502,7,0))) ->  | T165: =IF(T161="","",IF(VLOOKUP(T161,漢字読み!$A$2:$O$502,7,0)=0,"",VLOOKUP(T161,漢字読み!$A$2:$O$502,7,0))) ->  | W165: 和歌山県教育委員会
A166: =INDIRECT("'関数（書き）'!C" & COLUMN(B$1)+SUM($AD$2:$AD167)) -> 0 | B166: =INDIRECT("'関数（書き）'!C" & COLUMN(C$1)+SUM($AD$2:$AD167)) -> 0 | C166: =INDIRECT("'関数（書き）'!C" & COLUMN(D$1)+SUM($AD$2:$AD167)) -> 0 | D166: =INDIRECT("'関数（書き）'!C" & COLUMN(E$1)+SUM($AD$2:$AD167)) -> 0 | E166: =INDIRECT("'関数（書き）'!C" & COLUMN(F$1)+SUM($AD$2:$AD167)) -> 0 | F166: =INDIRECT("'関数（書き）'!C" & COLUMN(G$1)+SUM($AD$2:$AD167)) -> 0 | G166: =INDIRECT("'関数（書き）'!C" & COLUMN(H$1)+SUM($AD$2:$AD167)) -> 0 | H166: =INDIRECT("'関数（書き）'!C" & COLUMN(I$1)+SUM($AD$2:$AD167)) -> 0 | I166: =INDIRECT("'関数（書き）'!C" & COLUMN(J$1)+SUM($AD$2:$AD167)) -> 0 | J166: =INDIRECT("'関数（書き）'!C" & COLUMN(K$1)+SUM($AD$2:$AD167)) -> 0 | K166: =INDIRECT("'関数（読み）'!C" & COLUMN(B$1)+SUM($AD$2:$AD167)) -> 0 | L166: =INDIRECT("'関数（読み）'!C" & COLUMN(C$1)+SUM($AD$2:$AD167)) -> 0 | M166: =INDIRECT("'関数（読み）'!C" & COLUMN(D$1)+SUM($AD$2:$AD167)) -> 0 | N166: =INDIRECT("'関数（読み）'!C" & COLUMN(E$1)+SUM($AD$2:$AD167)) -> 0 | O166: =INDIRECT("'関数（読み）'!C" & COLUMN(F$1)+SUM($AD$2:$AD167)) -> 0 | P166: =INDIRECT("'関数（読み）'!C" & COLUMN(G$1)+SUM($AD$2:$AD167)) -> 0 | Q166: =INDIRECT("'関数（読み）'!C" & COLUMN(H$1)+SUM($AD$2:$AD167)) -> 0 | R166: =INDIRECT("'関数（読み）'!C" & COLUMN(I$1)+SUM($AD$2:$AD167)) -> 0 | S166: =INDIRECT("'関数（読み）'!C" & COLUMN(J$1)+SUM($AD$2:$AD167)) -> 0 | T166: =INDIRECT("'関数（読み）'!C" & COLUMN(K$1)+SUM($AD$2:$AD167)) -> 0
A167: ⑳ | B167: ⑲ | C167: ⑱ | D167: ⑰ | E167: ⑯ | F167: ⑮ | G167: ⑭ | H167: ⑬ | I167: ⑫ | J167: ⑪ | K167: ⑩ | L167: ⑨ | M167: ⑧ | N167: ⑦ | O167: ⑥ | P167: ⑤ | Q167: ④ | R167: ③ | S167: ② | T167: ① | U167: 次の［ ］の部分の漢字には読みがなをひらがなで書き、カタカナは漢字に直しなさい。 | V167: 14 | W167: 「漢字の博士検定試験」練習問題 | AC167: ← | AD167: 10 | AE167: 問 | AF167: =AH162+1 -> 171 | AG167: ～ | AH167: =SUM($AD$2:$AD167)+10 -> 180 | AI167: 問まで | AJ167: =COUNTIF($A$1:$T$200,T168) -> 585
A168: =IF(A166="","",VLOOKUP(A166,漢字書き!$A$2:$N$506,6,0)) ->  | B168: =IF(B166="","",VLOOKUP(B166,漢字書き!$A$2:$N$506,6,0)) ->  | C168: =IF(C166="","",VLOOKUP(C166,漢字書き!$A$2:$N$506,6,0)) ->  | D168: =IF(D166="","",VLOOKUP(D166,漢字書き!$A$2:$N$506,6,0)) ->  | E168: =IF(E166="","",VLOOKUP(E166,漢字書き!$A$2:$N$506,6,0)) ->  | F168: =IF(F166="","",VLOOKUP(F166,漢字書き!$A$2:$N$506,6,0)) ->  | G168: =IF(G166="","",VLOOKUP(G166,漢字書き!$A$2:$N$506,6,0)) ->  | H168: =IF(H166="","",VLOOKUP(H166,漢字書き!$A$2:$N$506,6,0)) ->  | I168: =IF(I166="","",VLOOKUP(I166,漢字書き!$A$2:$N$506,6,0)) ->  | J168: =IF(J166="","",VLOOKUP(J166,漢字書き!$A$2:$N$506,6,0)) ->  | K168: =IF(K166="","",VLOOKUP(K166,漢字読み!$A$2:$O$506,6,0)) ->  | L168: =IF(L166="","",VLOOKUP(L166,漢字読み!$A$2:$O$506,6,0)) ->  | M168: =IF(M166="","",VLOOKUP(M166,漢字読み!$A$2:$O$506,6,0)) ->  | N168: =IF(N166="","",VLOOKUP(N166,漢字読み!$A$2:$O$506,6,0)) ->  | O168: =IF(O166="","",VLOOKUP(O166,漢字読み!$A$2:$O$506,6,0)) ->  | P168: =IF(P166="","",VLOOKUP(P166,漢字読み!$A$2:$O$506,6,0)) ->  | Q168: =IF(Q166="","",VLOOKUP(Q166,漢字読み!$A$2:$O$506,6,0)) ->  | R168: =IF(R166="","",VLOOKUP(R166,漢字読み!$A$2:$O$506,6,0)) ->  | S168: =IF(S166="","",VLOOKUP(S166,漢字読み!$A$2:$O$506,6,0)) ->  | T168: =IF(T166="","",VLOOKUP(T166,漢字読み!$A$2:$O$506,6,0)) ->  | V168: 級
V169: 名前
A170: =IF(A166="","",IF(VLOOKUP(A166,漢字書き!$A$2:$N$502,7,0)=0,"",VLOOKUP(A166,漢字書き!$A$2:$N$502,7,0))) ->  | B170: =IF(B166="","",IF(VLOOKUP(B166,漢字書き!$A$2:$N$502,7,0)=0,"",VLOOKUP(B166,漢字書き!$A$2:$N$502,7,0))) ->  | C170: =IF(C166="","",IF(VLOOKUP(C166,漢字書き!$A$2:$N$502,7,0)=0,"",VLOOKUP(C166,漢字書き!$A$2:$N$502,7,0))) ->  | D170: =IF(D166="","",IF(VLOOKUP(D166,漢字書き!$A$2:$N$502,7,0)=0,"",VLOOKUP(D166,漢字書き!$A$2:$N$502,7,0))) ->  | E170: =IF(E166="","",IF(VLOOKUP(E166,漢字書き!$A$2:$N$502,7,0)=0,"",VLOOKUP(E166,漢字書き!$A$2:$N$502,7,0))) ->  | F170: =IF(F166="","",IF(VLOOKUP(F166,漢字書き!$A$2:$N$502,7,0)=0,"",VLOOKUP(F166,漢字書き!$A$2:$N$502,7,0))) ->  | G170: =IF(G166="","",IF(VLOOKUP(G166,漢字書き!$A$2:$N$502,7,0)=0,"",VLOOKUP(G166,漢字書き!$A$2:$N$502,7,0))) ->  | H170: =IF(H166="","",IF(VLOOKUP(H166,漢字書き!$A$2:$N$502,7,0)=0,"",VLOOKUP(H166,漢字書き!$A$2:$N$502,7,0))) ->  | I170: =IF(I166="","",IF(VLOOKUP(I166,漢字書き!$A$2:$N$502,7,0)=0,"",VLOOKUP(I166,漢字書き!$A$2:$N$502,7,0))) ->  | J170: =IF(J166="","",IF(VLOOKUP(J166,漢字書き!$A$2:$N$502,7,0)=0,"",VLOOKUP(J166,漢字書き!$A$2:$N$502,7,0))) ->  | K170: =IF(K166="","",IF(VLOOKUP(K166,漢字読み!$A$2:$O$502,7,0)=0,"",VLOOKUP(K166,漢字読み!$A$2:$O$502,7,0))) ->  | L170: =IF(L166="","",IF(VLOOKUP(L166,漢字読み!$A$2:$O$502,7,0)=0,"",VLOOKUP(L166,漢字読み!$A$2:$O$502,7,0))) ->  | M170: =IF(M166="","",IF(VLOOKUP(M166,漢字読み!$A$2:$O$502,7,0)=0,"",VLOOKUP(M166,漢字読み!$A$2:$O$502,7,0))) ->  | N170: =IF(N166="","",IF(VLOOKUP(N166,漢字読み!$A$2:$O$502,7,0)=0,"",VLOOKUP(N166,漢字読み!$A$2:$O$502,7,0))) ->  | O170: =IF(O166="","",IF(VLOOKUP(O166,漢字読み!$A$2:$O$502,7,0)=0,"",VLOOKUP(O166,漢字読み!$A$2:$O$502,7,0))) ->  | P170: =IF(P166="","",IF(VLOOKUP(P166,漢字読み!$A$2:$O$502,7,0)=0,"",VLOOKUP(P166,漢字読み!$A$2:$O$502,7,0))) ->  | Q170: =IF(Q166="","",IF(VLOOKUP(Q166,漢字読み!$A$2:$O$502,7,0)=0,"",VLOOKUP(Q166,漢字読み!$A$2:$O$502,7,0))) ->  | R170: =IF(R166="","",IF(VLOOKUP(R166,漢字読み!$A$2:$O$502,7,0)=0,"",VLOOKUP(R166,漢字読み!$A$2:$O$502,7,0))) ->  | S170: =IF(S166="","",IF(VLOOKUP(S166,漢字読み!$A$2:$O$502,7,0)=0,"",VLOOKUP(S166,漢字読み!$A$2:$O$502,7,0))) ->  | T170: =IF(T166="","",IF(VLOOKUP(T166,漢字読み!$A$2:$O$502,7,0)=0,"",VLOOKUP(T166,漢字読み!$A$2:$O$502,7,0))) ->  | W170: 和歌山県教育委員会
A171: =A161 -> 0 | B171: =B161 -> 0 | C171: =C161 -> 0 | D171: =D161 -> 0 | E171: =E161 -> 0 | F171: =F161 -> 0 | G171: =G161 -> 0 | H171: =H161 -> 0 | I171: =I161 -> 0 | J171: =J161 -> 0 | K171: =K161 -> 0 | L171: =L161 -> 0 | M171: =M161 -> 0 | N171: =N161 -> 0 | O171: =O161 -> 0 | P171: =P161 -> 0 | Q171: =Q161 -> 0 | R171: =R161 -> 0 | S171: =S161 -> 0 | T171: =T161 -> 0
A172: ⑳ | B172: ⑲ | C172: ⑱ | D172: ⑰ | E172: ⑯ | F172: ⑮ | G172: ⑭ | H172: ⑬ | I172: ⑫ | J172: ⑪ | K172: ⑩ | L172: ⑨ | M172: ⑧ | N172: ⑦ | O172: ⑥ | P172: ⑤ | Q172: ④ | R172: ③ | S172: ② | T172: ① | U172: 次の［ ］の部分の漢字には読みがなをひらがなで書き、カタカナは漢字に直しなさい。 | V172: 14 | W172: 「漢字の博士検定試験」練習問題
A173: =IF(A171="","",VLOOKUP(A171,漢字書き!$A$2:$N$506,6,0)) ->  | B173: =IF(B171="","",VLOOKUP(B171,漢字書き!$A$2:$N$506,6,0)) ->  | C173: =IF(C171="","",VLOOKUP(C171,漢字書き!$A$2:$N$506,6,0)) ->  | D173: =IF(D171="","",VLOOKUP(D171,漢字書き!$A$2:$N$506,6,0)) ->  | E173: =IF(E171="","",VLOOKUP(E171,漢字書き!$A$2:$N$506,6,0)) ->  | F173: =IF(F171="","",VLOOKUP(F171,漢字書き!$A$2:$N$506,6,0)) ->  | G173: =IF(G171="","",VLOOKUP(G171,漢字書き!$A$2:$N$506,6,0)) ->  | H173: =IF(H171="","",VLOOKUP(H171,漢字書き!$A$2:$N$506,6,0)) ->  | I173: =IF(I171="","",VLOOKUP(I171,漢字書き!$A$2:$N$506,6,0)) ->  | J173: =IF(J171="","",VLOOKUP(J171,漢字書き!$A$2:$N$506,6,0)) ->  | K173: =IF(K171="","",VLOOKUP(K171,漢字読み!$A$2:$O$506,6,0)) ->  | L173: =IF(L171="","",VLOOKUP(L171,漢字読み!$A$2:$O$506,6,0)) ->  | M173: =IF(M171="","",VLOOKUP(M171,漢字読み!$A$2:$O$506,6,0)) ->  | N173: =IF(N171="","",VLOOKUP(N171,漢字読み!$A$2:$O$506,6,0)) ->  | O173: =IF(O171="","",VLOOKUP(O171,漢字読み!$A$2:$O$506,6,0)) ->  | P173: =IF(P171="","",VLOOKUP(P171,漢字読み!$A$2:$O$506,6,0)) ->  | Q173: =IF(Q171="","",VLOOKUP(Q171,漢字読み!$A$2:$O$506,6,0)) ->  | R173: =IF(R171="","",VLOOKUP(R171,漢字読み!$A$2:$O$506,6,0)) ->  | S173: =IF(S171="","",VLOOKUP(S171,漢字読み!$A$2:$O$506,6,0)) ->  | T173: =IF(T171="","",VLOOKUP(T171,漢字読み!$A$2:$O$506,6,0)) ->  | V173: 級
A174: =IF(A$11="","",VLOOKUP(A171,漢字書き!$A$2:$O$506,8,0)) ->  | B174: =IF(B$11="","",VLOOKUP(B171,漢字書き!$A$2:$O$506,8,0)) ->  | C174: =IF(C$11="","",VLOOKUP(C171,漢字書き!$A$2:$O$506,8,0)) ->  | D174: =IF(D$11="","",VLOOKUP(D171,漢字書き!$A$2:$O$506,8,0)) ->  | E174: =IF(E$11="","",VLOOKUP(E171,漢字書き!$A$2:$O$506,8,0)) ->  | F174: =IF(F$11="","",VLOOKUP(F171,漢字書き!$A$2:$O$506,8,0)) ->  | G174: =IF(G$11="","",VLOOKUP(G171,漢字書き!$A$2:$O$506,8,0)) ->  | H174: =IF(H$11="","",VLOOKUP(H171,漢字書き!$A$2:$O$506,8,0)) ->  | I174: =IF(I$11="","",VLOOKUP(I171,漢字書き!$A$2:$O$506,8,0)) ->  | J174: =IF(J$11="","",VLOOKUP(J171,漢字書き!$A$2:$O$506,8,0)) ->  | K174: =IF(K$11="","",VLOOKUP(K171,漢字読み!$A$2:$O$506,8,0)) ->  | L174: =IF(L$11="","",VLOOKUP(L171,漢字読み!$A$2:$O$506,8,0)) ->  | M174: =IF(M$11="","",VLOOKUP(M171,漢字読み!$A$2:$O$506,8,0)) ->  | N174: =IF(N$11="","",VLOOKUP(N171,漢字読み!$A$2:$O$506,8,0)) ->  | O174: =IF(O$11="","",VLOOKUP(O171,漢字読み!$A$2:$O$506,8,0)) ->  | P174: =IF(P$11="","",VLOOKUP(P171,漢字読み!$A$2:$O$506,8,0)) ->  | Q174: =IF(Q$11="","",VLOOKUP(Q171,漢字読み!$A$2:$O$506,8,0)) ->  | R174: =IF(R$11="","",VLOOKUP(R171,漢字読み!$A$2:$O$506,8,0)) ->  | S174: =IF(S$11="","",VLOOKUP(S171,漢字読み!$A$2:$O$506,8,0)) ->  | T174: =IF(T$11="","",VLOOKUP(T171,漢字読み!$A$2:$O$506,8,0)) ->  | V174: 名前
A175: =IF(A171="","",IF(VLOOKUP(A171,漢字書き!$A$2:$N$502,7,0)=0,"",VLOOKUP(A171,漢字書き!$A$2:$N$502,7,0))) ->  | B175: =IF(B171="","",IF(VLOOKUP(B171,漢字書き!$A$2:$N$502,7,0)=0,"",VLOOKUP(B171,漢字書き!$A$2:$N$502,7,0))) ->  | C175: =IF(C171="","",IF(VLOOKUP(C171,漢字書き!$A$2:$N$502,7,0)=0,"",VLOOKUP(C171,漢字書き!$A$2:$N$502,7,0))) ->  | D175: =IF(D171="","",IF(VLOOKUP(D171,漢字書き!$A$2:$N$502,7,0)=0,"",VLOOKUP(D171,漢字書き!$A$2:$N$502,7,0))) ->  | E175: =IF(E171="","",IF(VLOOKUP(E171,漢字書き!$A$2:$N$502,7,0)=0,"",VLOOKUP(E171,漢字書き!$A$2:$N$502,7,0))) ->  | F175: =IF(F171="","",IF(VLOOKUP(F171,漢字書き!$A$2:$N$502,7,0)=0,"",VLOOKUP(F171,漢字書き!$A$2:$N$502,7,0))) ->  | G175: =IF(G171="","",IF(VLOOKUP(G171,漢字書き!$A$2:$N$502,7,0)=0,"",VLOOKUP(G171,漢字書き!$A$2:$N$502,7,0))) ->  | H175: =IF(H171="","",IF(VLOOKUP(H171,漢字書き!$A$2:$N$502,7,0)=0,"",VLOOKUP(H171,漢字書き!$A$2:$N$502,7,0))) ->  | I175: =IF(I171="","",IF(VLOOKUP(I171,漢字書き!$A$2:$N$502,7,0)=0,"",VLOOKUP(I171,漢字書き!$A$2:$N$502,7,0))) ->  | J175: =IF(J171="","",IF(VLOOKUP(J171,漢字書き!$A$2:$N$502,7,0)=0,"",VLOOKUP(J171,漢字書き!$A$2:$N$502,7,0))) ->  | K175: =IF(K171="","",IF(VLOOKUP(K171,漢字読み!$A$2:$O$502,7,0)=0,"",VLOOKUP(K171,漢字読み!$A$2:$O$502,7,0))) ->  | L175: =IF(L171="","",IF(VLOOKUP(L171,漢字読み!$A$2:$O$502,7,0)=0,"",VLOOKUP(L171,漢字読み!$A$2:$O$502,7,0))) ->  | M175: =IF(M171="","",IF(VLOOKUP(M171,漢字読み!$A$2:$O$502,7,0)=0,"",VLOOKUP(M171,漢字読み!$A$2:$O$502,7,0))) ->  | N175: =IF(N171="","",IF(VLOOKUP(N171,漢字読み!$A$2:$O$502,7,0)=0,"",VLOOKUP(N171,漢字読み!$A$2:$O$502,7,0))) ->  | O175: =IF(O171="","",IF(VLOOKUP(O171,漢字読み!$A$2:$O$502,7,0)=0,"",VLOOKUP(O171,漢字読み!$A$2:$O$502,7,0))) ->  | P175: =IF(P171="","",IF(VLOOKUP(P171,漢字読み!$A$2:$O$502,7,0)=0,"",VLOOKUP(P171,漢字読み!$A$2:$O$502,7,0))) ->  | Q175: =IF(Q171="","",IF(VLOOKUP(Q171,漢字読み!$A$2:$O$502,7,0)=0,"",VLOOKUP(Q171,漢字読み!$A$2:$O$502,7,0))) ->  | R175: =IF(R171="","",IF(VLOOKUP(R171,漢字読み!$A$2:$O$502,7,0)=0,"",VLOOKUP(R171,漢字読み!$A$2:$O$502,7,0))) ->  | S175: =IF(S171="","",IF(VLOOKUP(S171,漢字読み!$A$2:$O$502,7,0)=0,"",VLOOKUP(S171,漢字読み!$A$2:$O$502,7,0))) ->  | T175: =IF(T171="","",IF(VLOOKUP(T171,漢字読み!$A$2:$O$502,7,0)=0,"",VLOOKUP(T171,漢字読み!$A$2:$O$502,7,0))) ->  | W175: 和歌山県教育委員会
A176: =A166 -> 0 | B176: =B166 -> 0 | C176: =C166 -> 0 | D176: =D166 -> 0 | E176: =E166 -> 0 | F176: =F166 -> 0 | G176: =G166 -> 0 | H176: =H166 -> 0 | I176: =I166 -> 0 | J176: =J166 -> 0 | K176: =K166 -> 0 | L176: =L166 -> 0 | M176: =M166 -> 0 | N176: =N166 -> 0 | O176: =O166 -> 0 | P176: =P166 -> 0 | Q176: =Q166 -> 0 | R176: =R166 -> 0 | S176: =S166 -> 0 | T176: =T166 -> 0
A177: ⑳ | B177: ⑲ | C177: ⑱ | D177: ⑰ | E177: ⑯ | F177: ⑮ | G177: ⑭ | H177: ⑬ | I177: ⑫ | J177: ⑪ | K177: ⑩ | L177: ⑨ | M177: ⑧ | N177: ⑦ | O177: ⑥ | P177: ⑤ | Q177: ④ | R177: ③ | S177: ② | T177: ① | U177: 次の［ ］の部分の漢字には読みがなをひらがなで書き、カタカナは漢字に直しなさい。 | V177: 14 | W177: 「漢字の博士検定試験」練習問題
A178: =IF(A176="","",VLOOKUP(A176,漢字書き!$A$2:$N$506,6,0)) ->  | B178: =IF(B176="","",VLOOKUP(B176,漢字書き!$A$2:$N$506,6,0)) ->  | C178: =IF(C176="","",VLOOKUP(C176,漢字書き!$A$2:$N$506,6,0)) ->  | D178: =IF(D176="","",VLOOKUP(D176,漢字書き!$A$2:$N$506,6,0)) ->  | E178: =IF(E176="","",VLOOKUP(E176,漢字書き!$A$2:$N$506,6,0)) ->  | F178: =IF(F176="","",VLOOKUP(F176,漢字書き!$A$2:$N$506,6,0)) ->  | G178: =IF(G176="","",VLOOKUP(G176,漢字書き!$A$2:$N$506,6,0)) ->  | H178: =IF(H176="","",VLOOKUP(H176,漢字書き!$A$2:$N$506,6,0)) ->  | I178: =IF(I176="","",VLOOKUP(I176,漢字書き!$A$2:$N$506,6,0)) ->  | J178: =IF(J176="","",VLOOKUP(J176,漢字書き!$A$2:$N$506,6,0)) ->  | K178: =IF(K176="","",VLOOKUP(K176,漢字読み!$A$2:$O$506,6,0)) ->  | L178: =IF(L176="","",VLOOKUP(L176,漢字読み!$A$2:$O$506,6,0)) ->  | M178: =IF(M176="","",VLOOKUP(M176,漢字読み!$A$2:$O$506,6,0)) ->  | N178: =IF(N176="","",VLOOKUP(N176,漢字読み!$A$2:$O$506,6,0)) ->  | O178: =IF(O176="","",VLOOKUP(O176,漢字読み!$A$2:$O$506,6,0)) ->  | P178: =IF(P176="","",VLOOKUP(P176,漢字読み!$A$2:$O$506,6,0)) ->  | Q178: =IF(Q176="","",VLOOKUP(Q176,漢字読み!$A$2:$O$506,6,0)) ->  | R178: =IF(R176="","",VLOOKUP(R176,漢字読み!$A$2:$O$506,6,0)) ->  | S178: =IF(S176="","",VLOOKUP(S176,漢字読み!$A$2:$O$506,6,0)) ->  | T178: =IF(T176="","",VLOOKUP(T176,漢字読み!$A$2:$O$506,6,0)) ->  | V178: 級
A179: =IF(A$16="","",VLOOKUP(A176,漢字書き!$A$2:$O$506,8,0)) ->  | B179: =IF(B$16="","",VLOOKUP(B176,漢字書き!$A$2:$O$506,8,0)) ->  | C179: =IF(C$16="","",VLOOKUP(C176,漢字書き!$A$2:$O$506,8,0)) ->  | D179: =IF(D$16="","",VLOOKUP(D176,漢字書き!$A$2:$O$506,8,0)) ->  | E179: =IF(E$16="","",VLOOKUP(E176,漢字書き!$A$2:$O$506,8,0)) ->  | F179: =IF(F$16="","",VLOOKUP(F176,漢字書き!$A$2:$O$506,8,0)) ->  | G179: =IF(G$16="","",VLOOKUP(G176,漢字書き!$A$2:$O$506,8,0)) ->  | H179: =IF(H$16="","",VLOOKUP(H176,漢字書き!$A$2:$O$506,8,0)) ->  | I179: =IF(I$16="","",VLOOKUP(I176,漢字書き!$A$2:$O$506,8,0)) ->  | J179: =IF(J$16="","",VLOOKUP(J176,漢字書き!$A$2:$O$506,8,0)) ->  | K179: =IF(K$16="","",VLOOKUP(K176,漢字読み!$A$2:$O$506,8,0)) ->  | L179: =IF(L$16="","",VLOOKUP(L176,漢字読み!$A$2:$O$506,8,0)) ->  | M179: =IF(M$16="","",VLOOKUP(M176,漢字読み!$A$2:$O$506,8,0)) ->  | N179: =IF(N$16="","",VLOOKUP(N176,漢字読み!$A$2:$O$506,8,0)) ->  | O179: =IF(O$16="","",VLOOKUP(O176,漢字読み!$A$2:$O$506,8,0)) ->  | P179: =IF(P$16="","",VLOOKUP(P176,漢字読み!$A$2:$O$506,8,0)) ->  | Q179: =IF(Q$16="","",VLOOKUP(Q176,漢字読み!$A$2:$O$506,8,0)) ->  | R179: =IF(R$16="","",VLOOKUP(R176,漢字読み!$A$2:$O$506,8,0)) ->  | S179: =IF(S$16="","",VLOOKUP(S176,漢字読み!$A$2:$O$506,8,0)) ->  | T179: =IF(T$16="","",VLOOKUP(T176,漢字読み!$A$2:$O$506,8,0)) ->  | V179: 名前
A180: =IF(A176="","",IF(VLOOKUP(A176,漢字書き!$A$2:$N$502,7,0)=0,"",VLOOKUP(A176,漢字書き!$A$2:$N$502,7,0))) ->  | B180: =IF(B176="","",IF(VLOOKUP(B176,漢字書き!$A$2:$N$502,7,0)=0,"",VLOOKUP(B176,漢字書き!$A$2:$N$502,7,0))) ->  | C180: =IF(C176="","",IF(VLOOKUP(C176,漢字書き!$A$2:$N$502,7,0)=0,"",VLOOKUP(C176,漢字書き!$A$2:$N$502,7,0))) ->  | D180: =IF(D176="","",IF(VLOOKUP(D176,漢字書き!$A$2:$N$502,7,0)=0,"",VLOOKUP(D176,漢字書き!$A$2:$N$502,7,0))) ->  | E180: =IF(E176="","",IF(VLOOKUP(E176,漢字書き!$A$2:$N$502,7,0)=0,"",VLOOKUP(E176,漢字書き!$A$2:$N$502,7,0))) ->  | F180: =IF(F176="","",IF(VLOOKUP(F176,漢字書き!$A$2:$N$502,7,0)=0,"",VLOOKUP(F176,漢字書き!$A$2:$N$502,7,0))) ->  | G180: =IF(G176="","",IF(VLOOKUP(G176,漢字書き!$A$2:$N$502,7,0)=0,"",VLOOKUP(G176,漢字書き!$A$2:$N$502,7,0))) ->  | H180: =IF(H176="","",IF(VLOOKUP(H176,漢字書き!$A$2:$N$502,7,0)=0,"",VLOOKUP(H176,漢字書き!$A$2:$N$502,7,0))) ->  | I180: =IF(I176="","",IF(VLOOKUP(I176,漢字書き!$A$2:$N$502,7,0)=0,"",VLOOKUP(I176,漢字書き!$A$2:$N$502,7,0))) ->  | J180: =IF(J176="","",IF(VLOOKUP(J176,漢字書き!$A$2:$N$502,7,0)=0,"",VLOOKUP(J176,漢字書き!$A$2:$N$502,7,0))) ->  | K180: =IF(K176="","",IF(VLOOKUP(K176,漢字読み!$A$2:$O$502,7,0)=0,"",VLOOKUP(K176,漢字読み!$A$2:$O$502,7,0))) ->  | L180: =IF(L176="","",IF(VLOOKUP(L176,漢字読み!$A$2:$O$502,7,0)=0,"",VLOOKUP(L176,漢字読み!$A$2:$O$502,7,0))) ->  | M180: =IF(M176="","",IF(VLOOKUP(M176,漢字読み!$A$2:$O$502,7,0)=0,"",VLOOKUP(M176,漢字読み!$A$2:$O$502,7,0))) ->  | N180: =IF(N176="","",IF(VLOOKUP(N176,漢字読み!$A$2:$O$502,7,0)=0,"",VLOOKUP(N176,漢字読み!$A$2:$O$502,7,0))) ->  | O180: =IF(O176="","",IF(VLOOKUP(O176,漢字読み!$A$2:$O$502,7,0)=0,"",VLOOKUP(O176,漢字読み!$A$2:$O$502,7,0))) ->  | P180: =IF(P176="","",IF(VLOOKUP(P176,漢字読み!$A$2:$O$502,7,0)=0,"",VLOOKUP(P176,漢字読み!$A$2:$O$502,7,0))) ->  | Q180: =IF(Q176="","",IF(VLOOKUP(Q176,漢字読み!$A$2:$O$502,7,0)=0,"",VLOOKUP(Q176,漢字読み!$A$2:$O$502,7,0))) ->  | R180: =IF(R176="","",IF(VLOOKUP(R176,漢字読み!$A$2:$O$502,7,0)=0,"",VLOOKUP(R176,漢字読み!$A$2:$O$502,7,0))) ->  | S180: =IF(S176="","",IF(VLOOKUP(S176,漢字読み!$A$2:$O$502,7,0)=0,"",VLOOKUP(S176,漢字読み!$A$2:$O$502,7,0))) ->  | T180: =IF(T176="","",IF(VLOOKUP(T176,漢字読み!$A$2:$O$502,7,0)=0,"",VLOOKUP(T176,漢字読み!$A$2:$O$502,7,0))) ->  | W180: 和歌山県教育委員会
A181: =INDIRECT("'関数（書き）'!C" & COLUMN(B$1)+SUM($AD$2:$AD182)) -> 0 | B181: =INDIRECT("'関数（書き）'!C" & COLUMN(C$1)+SUM($AD$2:$AD182)) -> 0 | C181: =INDIRECT("'関数（書き）'!C" & COLUMN(D$1)+SUM($AD$2:$AD182)) -> 0 | D181: =INDIRECT("'関数（書き）'!C" & COLUMN(E$1)+SUM($AD$2:$AD182)) -> 0 | E181: =INDIRECT("'関数（書き）'!C" & COLUMN(F$1)+SUM($AD$2:$AD182)) -> 0 | F181: =INDIRECT("'関数（書き）'!C" & COLUMN(G$1)+SUM($AD$2:$AD182)) -> 0 | G181: =INDIRECT("'関数（書き）'!C" & COLUMN(H$1)+SUM($AD$2:$AD182)) -> 0 | H181: =INDIRECT("'関数（書き）'!C" & COLUMN(I$1)+SUM($AD$2:$AD182)) -> 0 | I181: =INDIRECT("'関数（書き）'!C" & COLUMN(J$1)+SUM($AD$2:$AD182)) -> 0 | J181: =INDIRECT("'関数（書き）'!C" & COLUMN(K$1)+SUM($AD$2:$AD182)) -> 0 | K181: =INDIRECT("'関数（読み）'!C" & COLUMN(B$1)+SUM($AD$2:$AD182)) -> 0 | L181: =INDIRECT("'関数（読み）'!C" & COLUMN(C$1)+SUM($AD$2:$AD182)) -> 0 | M181: =INDIRECT("'関数（読み）'!C" & COLUMN(D$1)+SUM($AD$2:$AD182)) -> 0 | N181: =INDIRECT("'関数（読み）'!C" & COLUMN(E$1)+SUM($AD$2:$AD182)) -> 0 | O181: =INDIRECT("'関数（読み）'!C" & COLUMN(F$1)+SUM($AD$2:$AD182)) -> 0 | P181: =INDIRECT("'関数（読み）'!C" & COLUMN(G$1)+SUM($AD$2:$AD182)) -> 0 | Q181: =INDIRECT("'関数（読み）'!C" & COLUMN(H$1)+SUM($AD$2:$AD182)) -> 0 | R181: =INDIRECT("'関数（読み）'!C" & COLUMN(I$1)+SUM($AD$2:$AD182)) -> 0 | S181: =INDIRECT("'関数（読み）'!C" & COLUMN(J$1)+SUM($AD$2:$AD182)) -> 0 | T181: =INDIRECT("'関数（読み）'!C" & COLUMN(K$1)+SUM($AD$2:$AD182)) -> 0
A182: ⑳ | B182: ⑲ | C182: ⑱ | D182: ⑰ | E182: ⑯ | F182: ⑮ | G182: ⑭ | H182: ⑬ | I182: ⑫ | J182: ⑪ | K182: ⑩ | L182: ⑨ | M182: ⑧ | N182: ⑦ | O182: ⑥ | P182: ⑤ | Q182: ④ | R182: ③ | S182: ② | T182: ① | U182: 次の［ ］の部分の漢字には読みがなをひらがなで書き、カタカナは漢字に直しなさい。 | V182: 14 | W182: 「漢字の博士検定試験」練習問題 | AC182: ← | AD182: 10 | AE182: 問 | AF182: =AH167+1 -> 181 | AG182: ～ | AH182: =SUM($AD$2:$AD182)+10 -> 190 | AI182: 問まで | AJ182: =COUNTIF($A$1:$T$200,T183) -> 585
A183: =IF(A181="","",VLOOKUP(A181,漢字書き!$A$2:$N$506,6,0)) ->  | B183: =IF(B181="","",VLOOKUP(B181,漢字書き!$A$2:$N$506,6,0)) ->  | C183: =IF(C181="","",VLOOKUP(C181,漢字書き!$A$2:$N$506,6,0)) ->  | D183: =IF(D181="","",VLOOKUP(D181,漢字書き!$A$2:$N$506,6,0)) ->  | E183: =IF(E181="","",VLOOKUP(E181,漢字書き!$A$2:$N$506,6,0)) ->  | F183: =IF(F181="","",VLOOKUP(F181,漢字書き!$A$2:$N$506,6,0)) ->  | G183: =IF(G181="","",VLOOKUP(G181,漢字書き!$A$2:$N$506,6,0)) ->  | H183: =IF(H181="","",VLOOKUP(H181,漢字書き!$A$2:$N$506,6,0)) ->  | I183: =IF(I181="","",VLOOKUP(I181,漢字書き!$A$2:$N$506,6,0)) ->  | J183: =IF(J181="","",VLOOKUP(J181,漢字書き!$A$2:$N$506,6,0)) ->  | K183: =IF(K181="","",VLOOKUP(K181,漢字読み!$A$2:$O$506,6,0)) ->  | L183: =IF(L181="","",VLOOKUP(L181,漢字読み!$A$2:$O$506,6,0)) ->  | M183: =IF(M181="","",VLOOKUP(M181,漢字読み!$A$2:$O$506,6,0)) ->  | N183: =IF(N181="","",VLOOKUP(N181,漢字読み!$A$2:$O$506,6,0)) ->  | O183: =IF(O181="","",VLOOKUP(O181,漢字読み!$A$2:$O$506,6,0)) ->  | P183: =IF(P181="","",VLOOKUP(P181,漢字読み!$A$2:$O$506,6,0)) ->  | Q183: =IF(Q181="","",VLOOKUP(Q181,漢字読み!$A$2:$O$506,6,0)) ->  | R183: =IF(R181="","",VLOOKUP(R181,漢字読み!$A$2:$O$506,6,0)) ->  | S183: =IF(S181="","",VLOOKUP(S181,漢字読み!$A$2:$O$506,6,0)) ->  | T183: =IF(T181="","",VLOOKUP(T181,漢字読み!$A$2:$O$506,6,0)) ->  | V183: 級
V184: 名前
A185: =IF(A181="","",IF(VLOOKUP(A181,漢字書き!$A$2:$N$502,7,0)=0,"",VLOOKUP(A181,漢字書き!$A$2:$N$502,7,0))) ->  | B185: =IF(B181="","",IF(VLOOKUP(B181,漢字書き!$A$2:$N$502,7,0)=0,"",VLOOKUP(B181,漢字書き!$A$2:$N$502,7,0))) ->  | C185: =IF(C181="","",IF(VLOOKUP(C181,漢字書き!$A$2:$N$502,7,0)=0,"",VLOOKUP(C181,漢字書き!$A$2:$N$502,7,0))) ->  | D185: =IF(D181="","",IF(VLOOKUP(D181,漢字書き!$A$2:$N$502,7,0)=0,"",VLOOKUP(D181,漢字書き!$A$2:$N$502,7,0))) ->  | E185: =IF(E181="","",IF(VLOOKUP(E181,漢字書き!$A$2:$N$502,7,0)=0,"",VLOOKUP(E181,漢字書き!$A$2:$N$502,7,0))) ->  | F185: =IF(F181="","",IF(VLOOKUP(F181,漢字書き!$A$2:$N$502,7,0)=0,"",VLOOKUP(F181,漢字書き!$A$2:$N$502,7,0))) ->  | G185: =IF(G181="","",IF(VLOOKUP(G181,漢字書き!$A$2:$N$502,7,0)=0,"",VLOOKUP(G181,漢字書き!$A$2:$N$502,7,0))) ->  | H185: =IF(H181="","",IF(VLOOKUP(H181,漢字書き!$A$2:$N$502,7,0)=0,"",VLOOKUP(H181,漢字書き!$A$2:$N$502,7,0))) ->  | I185: =IF(I181="","",IF(VLOOKUP(I181,漢字書き!$A$2:$N$502,7,0)=0,"",VLOOKUP(I181,漢字書き!$A$2:$N$502,7,0))) ->  | J185: =IF(J181="","",IF(VLOOKUP(J181,漢字書き!$A$2:$N$502,7,0)=0,"",VLOOKUP(J181,漢字書き!$A$2:$N$502,7,0))) ->  | K185: =IF(K181="","",IF(VLOOKUP(K181,漢字読み!$A$2:$O$502,7,0)=0,"",VLOOKUP(K181,漢字読み!$A$2:$O$502,7,0))) ->  | L185: =IF(L181="","",IF(VLOOKUP(L181,漢字読み!$A$2:$O$502,7,0)=0,"",VLOOKUP(L181,漢字読み!$A$2:$O$502,7,0))) ->  | M185: =IF(M181="","",IF(VLOOKUP(M181,漢字読み!$A$2:$O$502,7,0)=0,"",VLOOKUP(M181,漢字読み!$A$2:$O$502,7,0))) ->  | N185: =IF(N181="","",IF(VLOOKUP(N181,漢字読み!$A$2:$O$502,7,0)=0,"",VLOOKUP(N181,漢字読み!$A$2:$O$502,7,0))) ->  | O185: =IF(O181="","",IF(VLOOKUP(O181,漢字読み!$A$2:$O$502,7,0)=0,"",VLOOKUP(O181,漢字読み!$A$2:$O$502,7,0))) ->  | P185: =IF(P181="","",IF(VLOOKUP(P181,漢字読み!$A$2:$O$502,7,0)=0,"",VLOOKUP(P181,漢字読み!$A$2:$O$502,7,0))) ->  | Q185: =IF(Q181="","",IF(VLOOKUP(Q181,漢字読み!$A$2:$O$502,7,0)=0,"",VLOOKUP(Q181,漢字読み!$A$2:$O$502,7,0))) ->  | R185: =IF(R181="","",IF(VLOOKUP(R181,漢字読み!$A$2:$O$502,7,0)=0,"",VLOOKUP(R181,漢字読み!$A$2:$O$502,7,0))) ->  | S185: =IF(S181="","",IF(VLOOKUP(S181,漢字読み!$A$2:$O$502,7,0)=0,"",VLOOKUP(S181,漢字読み!$A$2:$O$502,7,0))) ->  | T185: =IF(T181="","",IF(VLOOKUP(T181,漢字読み!$A$2:$O$502,7,0)=0,"",VLOOKUP(T181,漢字読み!$A$2:$O$502,7,0))) ->  | W185: 和歌山県教育委員会
A186: =INDIRECT("'関数（書き）'!C" & COLUMN(B$1)+SUM($AD$2:$AD187)) -> 0 | B186: =INDIRECT("'関数（書き）'!C" & COLUMN(C$1)+SUM($AD$2:$AD187)) -> 0 | C186: =INDIRECT("'関数（書き）'!C" & COLUMN(D$1)+SUM($AD$2:$AD187)) -> 0 | D186: =INDIRECT("'関数（書き）'!C" & COLUMN(E$1)+SUM($AD$2:$AD187)) -> 0 | E186: =INDIRECT("'関数（書き）'!C" & COLUMN(F$1)+SUM($AD$2:$AD187)) -> 0 | F186: =INDIRECT("'関数（書き）'!C" & COLUMN(G$1)+SUM($AD$2:$AD187)) -> 0 | G186: =INDIRECT("'関数（書き）'!C" & COLUMN(H$1)+SUM($AD$2:$AD187)) -> 0 | H186: =INDIRECT("'関数（書き）'!C" & COLUMN(I$1)+SUM($AD$2:$AD187)) -> 0 | I186: =INDIRECT("'関数（書き）'!C" & COLUMN(J$1)+SUM($AD$2:$AD187)) -> 0 | J186: =INDIRECT("'関数（書き）'!C" & COLUMN(K$1)+SUM($AD$2:$AD187)) -> 0 | K186: =INDIRECT("'関数（読み）'!C" & COLUMN(B$1)+SUM($AD$2:$AD187)) -> 0 | L186: =INDIRECT("'関数（読み）'!C" & COLUMN(C$1)+SUM($AD$2:$AD187)) -> 0 | M186: =INDIRECT("'関数（読み）'!C" & COLUMN(D$1)+SUM($AD$2:$AD187)) -> 0 | N186: =INDIRECT("'関数（読み）'!C" & COLUMN(E$1)+SUM($AD$2:$AD187)) -> 0 | O186: =INDIRECT("'関数（読み）'!C" & COLUMN(F$1)+SUM($AD$2:$AD187)) -> 0 | P186: =INDIRECT("'関数（読み）'!C" & COLUMN(G$1)+SUM($AD$2:$AD187)) -> 0 | Q186: =INDIRECT("'関数（読み）'!C" & COLUMN(H$1)+SUM($AD$2:$AD187)) -> 0 | R186: =INDIRECT("'関数（読み）'!C" & COLUMN(I$1)+SUM($AD$2:$AD187)) -> 0 | S186: =INDIRECT("'関数（読み）'!C" & COLUMN(J$1)+SUM($AD$2:$AD187)) -> 0 | T186: =INDIRECT("'関数（読み）'!C" & COLUMN(K$1)+SUM($AD$2:$AD187)) -> 0
A187: ⑳ | B187: ⑲ | C187: ⑱ | D187: ⑰ | E187: ⑯ | F187: ⑮ | G187: ⑭ | H187: ⑬ | I187: ⑫ | J187: ⑪ | K187: ⑩ | L187: ⑨ | M187: ⑧ | N187: ⑦ | O187: ⑥ | P187: ⑤ | Q187: ④ | R187: ③ | S187: ② | T187: ① | U187: 次の［ ］の部分の漢字には読みがなをひらがなで書き、カタカナは漢字に直しなさい。 | V187: 14 | W187: 「漢字の博士検定試験」練習問題 | AC187: ← | AD187: 10 | AE187: 問 | AF187: =AH182+1 -> 191 | AG187: ～ | AH187: =SUM($AD$2:$AD187)+10 -> 200 | AI187: 問まで | AJ187: =COUNTIF($A$1:$T$200,T188) -> 585
A188: =IF(A186="","",VLOOKUP(A186,漢字書き!$A$2:$N$506,6,0)) ->  | B188: =IF(B186="","",VLOOKUP(B186,漢字書き!$A$2:$N$506,6,0)) ->  | C188: =IF(C186="","",VLOOKUP(C186,漢字書き!$A$2:$N$506,6,0)) ->  | D188: =IF(D186="","",VLOOKUP(D186,漢字書き!$A$2:$N$506,6,0)) ->  | E188: =IF(E186="","",VLOOKUP(E186,漢字書き!$A$2:$N$506,6,0)) ->  | F188: =IF(F186="","",VLOOKUP(F186,漢字書き!$A$2:$N$506,6,0)) ->  | G188: =IF(G186="","",VLOOKUP(G186,漢字書き!$A$2:$N$506,6,0)) ->  | H188: =IF(H186="","",VLOOKUP(H186,漢字書き!$A$2:$N$506,6,0)) ->  | I188: =IF(I186="","",VLOOKUP(I186,漢字書き!$A$2:$N$506,6,0)) ->  | J188: =IF(J186="","",VLOOKUP(J186,漢字書き!$A$2:$N$506,6,0)) ->  | K188: =IF(K186="","",VLOOKUP(K186,漢字読み!$A$2:$O$506,6,0)) ->  | L188: =IF(L186="","",VLOOKUP(L186,漢字読み!$A$2:$O$506,6,0)) ->  | M188: =IF(M186="","",VLOOKUP(M186,漢字読み!$A$2:$O$506,6,0)) ->  | N188: =IF(N186="","",VLOOKUP(N186,漢字読み!$A$2:$O$506,6,0)) ->  | O188: =IF(O186="","",VLOOKUP(O186,漢字読み!$A$2:$O$506,6,0)) ->  | P188: =IF(P186="","",VLOOKUP(P186,漢字読み!$A$2:$O$506,6,0)) ->  | Q188: =IF(Q186="","",VLOOKUP(Q186,漢字読み!$A$2:$O$506,6,0)) ->  | R188: =IF(R186="","",VLOOKUP(R186,漢字読み!$A$2:$O$506,6,0)) ->  | S188: =IF(S186="","",VLOOKUP(S186,漢字読み!$A$2:$O$506,6,0)) ->  | T188: =IF(T186="","",VLOOKUP(T186,漢字読み!$A$2:$O$506,6,0)) ->  | V188: 級
V189: 名前
A190: =IF(A186="","",IF(VLOOKUP(A186,漢字書き!$A$2:$N$502,7,0)=0,"",VLOOKUP(A186,漢字書き!$A$2:$N$502,7,0))) ->  | B190: =IF(B186="","",IF(VLOOKUP(B186,漢字書き!$A$2:$N$502,7,0)=0,"",VLOOKUP(B186,漢字書き!$A$2:$N$502,7,0))) ->  | C190: =IF(C186="","",IF(VLOOKUP(C186,漢字書き!$A$2:$N$502,7,0)=0,"",VLOOKUP(C186,漢字書き!$A$2:$N$502,7,0))) ->  | D190: =IF(D186="","",IF(VLOOKUP(D186,漢字書き!$A$2:$N$502,7,0)=0,"",VLOOKUP(D186,漢字書き!$A$2:$N$502,7,0))) ->  | E190: =IF(E186="","",IF(VLOOKUP(E186,漢字書き!$A$2:$N$502,7,0)=0,"",VLOOKUP(E186,漢字書き!$A$2:$N$502,7,0))) ->  | F190: =IF(F186="","",IF(VLOOKUP(F186,漢字書き!$A$2:$N$502,7,0)=0,"",VLOOKUP(F186,漢字書き!$A$2:$N$502,7,0))) ->  | G190: =IF(G186="","",IF(VLOOKUP(G186,漢字書き!$A$2:$N$502,7,0)=0,"",VLOOKUP(G186,漢字書き!$A$2:$N$502,7,0))) ->  | H190: =IF(H186="","",IF(VLOOKUP(H186,漢字書き!$A$2:$N$502,7,0)=0,"",VLOOKUP(H186,漢字書き!$A$2:$N$502,7,0))) ->  | I190: =IF(I186="","",IF(VLOOKUP(I186,漢字書き!$A$2:$N$502,7,0)=0,"",VLOOKUP(I186,漢字書き!$A$2:$N$502,7,0))) ->  | J190: =IF(J186="","",IF(VLOOKUP(J186,漢字書き!$A$2:$N$502,7,0)=0,"",VLOOKUP(J186,漢字書き!$A$2:$N$502,7,0))) ->  | K190: =IF(K186="","",IF(VLOOKUP(K186,漢字読み!$A$2:$O$502,7,0)=0,"",VLOOKUP(K186,漢字読み!$A$2:$O$502,7,0))) ->  | L190: =IF(L186="","",IF(VLOOKUP(L186,漢字読み!$A$2:$O$502,7,0)=0,"",VLOOKUP(L186,漢字読み!$A$2:$O$502,7,0))) ->  | M190: =IF(M186="","",IF(VLOOKUP(M186,漢字読み!$A$2:$O$502,7,0)=0,"",VLOOKUP(M186,漢字読み!$A$2:$O$502,7,0))) ->  | N190: =IF(N186="","",IF(VLOOKUP(N186,漢字読み!$A$2:$O$502,7,0)=0,"",VLOOKUP(N186,漢字読み!$A$2:$O$502,7,0))) ->  | O190: =IF(O186="","",IF(VLOOKUP(O186,漢字読み!$A$2:$O$502,7,0)=0,"",VLOOKUP(O186,漢字読み!$A$2:$O$502,7,0))) ->  | P190: =IF(P186="","",IF(VLOOKUP(P186,漢字読み!$A$2:$O$502,7,0)=0,"",VLOOKUP(P186,漢字読み!$A$2:$O$502,7,0))) ->  | Q190: =IF(Q186="","",IF(VLOOKUP(Q186,漢字読み!$A$2:$O$502,7,0)=0,"",VLOOKUP(Q186,漢字読み!$A$2:$O$502,7,0))) ->  | R190: =IF(R186="","",IF(VLOOKUP(R186,漢字読み!$A$2:$O$502,7,0)=0,"",VLOOKUP(R186,漢字読み!$A$2:$O$502,7,0))) ->  | S190: =IF(S186="","",IF(VLOOKUP(S186,漢字読み!$A$2:$O$502,7,0)=0,"",VLOOKUP(S186,漢字読み!$A$2:$O$502,7,0))) ->  | T190: =IF(T186="","",IF(VLOOKUP(T186,漢字読み!$A$2:$O$502,7,0)=0,"",VLOOKUP(T186,漢字読み!$A$2:$O$502,7,0))) ->  | W190: 和歌山県教育委員会
A191: =A181 -> 0 | B191: =B181 -> 0 | C191: =C181 -> 0 | D191: =D181 -> 0 | E191: =E181 -> 0 | F191: =F181 -> 0 | G191: =G181 -> 0 | H191: =H181 -> 0 | I191: =I181 -> 0 | J191: =J181 -> 0 | K191: =K181 -> 0 | L191: =L181 -> 0 | M191: =M181 -> 0 | N191: =N181 -> 0 | O191: =O181 -> 0 | P191: =P181 -> 0 | Q191: =Q181 -> 0 | R191: =R181 -> 0 | S191: =S181 -> 0 | T191: =T181 -> 0
A192: ⑳ | B192: ⑲ | C192: ⑱ | D192: ⑰ | E192: ⑯ | F192: ⑮ | G192: ⑭ | H192: ⑬ | I192: ⑫ | J192: ⑪ | K192: ⑩ | L192: ⑨ | M192: ⑧ | N192: ⑦ | O192: ⑥ | P192: ⑤ | Q192: ④ | R192: ③ | S192: ② | T192: ① | U192: 次の［ ］の部分の漢字には読みがなをひらがなで書き、カタカナは漢字に直しなさい。 | V192: 14 | W192: 「漢字の博士検定試験」練習問題
A193: =IF(A191="","",VLOOKUP(A191,漢字書き!$A$2:$N$506,6,0)) ->  | B193: =IF(B191="","",VLOOKUP(B191,漢字書き!$A$2:$N$506,6,0)) ->  | C193: =IF(C191="","",VLOOKUP(C191,漢字書き!$A$2:$N$506,6,0)) ->  | D193: =IF(D191="","",VLOOKUP(D191,漢字書き!$A$2:$N$506,6,0)) ->  | E193: =IF(E191="","",VLOOKUP(E191,漢字書き!$A$2:$N$506,6,0)) ->  | F193: =IF(F191="","",VLOOKUP(F191,漢字書き!$A$2:$N$506,6,0)) ->  | G193: =IF(G191="","",VLOOKUP(G191,漢字書き!$A$2:$N$506,6,0)) ->  | H193: =IF(H191="","",VLOOKUP(H191,漢字書き!$A$2:$N$506,6,0)) ->  | I193: =IF(I191="","",VLOOKUP(I191,漢字書き!$A$2:$N$506,6,0)) ->  | J193: =IF(J191="","",VLOOKUP(J191,漢字書き!$A$2:$N$506,6,0)) ->  | K193: =IF(K191="","",VLOOKUP(K191,漢字読み!$A$2:$O$506,6,0)) ->  | L193: =IF(L191="","",VLOOKUP(L191,漢字読み!$A$2:$O$506,6,0)) ->  | M193: =IF(M191="","",VLOOKUP(M191,漢字読み!$A$2:$O$506,6,0)) ->  | N193: =IF(N191="","",VLOOKUP(N191,漢字読み!$A$2:$O$506,6,0)) ->  | O193: =IF(O191="","",VLOOKUP(O191,漢字読み!$A$2:$O$506,6,0)) ->  | P193: =IF(P191="","",VLOOKUP(P191,漢字読み!$A$2:$O$506,6,0)) ->  | Q193: =IF(Q191="","",VLOOKUP(Q191,漢字読み!$A$2:$O$506,6,0)) ->  | R193: =IF(R191="","",VLOOKUP(R191,漢字読み!$A$2:$O$506,6,0)) ->  | S193: =IF(S191="","",VLOOKUP(S191,漢字読み!$A$2:$O$506,6,0)) ->  | T193: =IF(T191="","",VLOOKUP(T191,漢字読み!$A$2:$O$506,6,0)) ->  | V193: 級
A194: =IF(A$11="","",VLOOKUP(A191,漢字書き!$A$2:$O$506,8,0)) ->  | B194: =IF(B$11="","",VLOOKUP(B191,漢字書き!$A$2:$O$506,8,0)) ->  | C194: =IF(C$11="","",VLOOKUP(C191,漢字書き!$A$2:$O$506,8,0)) ->  | D194: =IF(D$11="","",VLOOKUP(D191,漢字書き!$A$2:$O$506,8,0)) ->  | E194: =IF(E$11="","",VLOOKUP(E191,漢字書き!$A$2:$O$506,8,0)) ->  | F194: =IF(F$11="","",VLOOKUP(F191,漢字書き!$A$2:$O$506,8,0)) ->  | G194: =IF(G$11="","",VLOOKUP(G191,漢字書き!$A$2:$O$506,8,0)) ->  | H194: =IF(H$11="","",VLOOKUP(H191,漢字書き!$A$2:$O$506,8,0)) ->  | I194: =IF(I$11="","",VLOOKUP(I191,漢字書き!$A$2:$O$506,8,0)) ->  | J194: =IF(J$11="","",VLOOKUP(J191,漢字書き!$A$2:$O$506,8,0)) ->  | K194: =IF(K$11="","",VLOOKUP(K191,漢字読み!$A$2:$O$506,8,0)) ->  | L194: =IF(L$11="","",VLOOKUP(L191,漢字読み!$A$2:$O$506,8,0)) ->  | M194: =IF(M$11="","",VLOOKUP(M191,漢字読み!$A$2:$O$506,8,0)) ->  | N194: =IF(N$11="","",VLOOKUP(N191,漢字読み!$A$2:$O$506,8,0)) ->  | O194: =IF(O$11="","",VLOOKUP(O191,漢字読み!$A$2:$O$506,8,0)) ->  | P194: =IF(P$11="","",VLOOKUP(P191,漢字読み!$A$2:$O$506,8,0)) ->  | Q194: =IF(Q$11="","",VLOOKUP(Q191,漢字読み!$A$2:$O$506,8,0)) ->  | R194: =IF(R$11="","",VLOOKUP(R191,漢字読み!$A$2:$O$506,8,0)) ->  | S194: =IF(S$11="","",VLOOKUP(S191,漢字読み!$A$2:$O$506,8,0)) ->  | T194: =IF(T$11="","",VLOOKUP(T191,漢字読み!$A$2:$O$506,8,0)) ->  | V194: 名前
A195: =IF(A191="","",IF(VLOOKUP(A191,漢字書き!$A$2:$N$502,7,0)=0,"",VLOOKUP(A191,漢字書き!$A$2:$N$502,7,0))) ->  | B195: =IF(B191="","",IF(VLOOKUP(B191,漢字書き!$A$2:$N$502,7,0)=0,"",VLOOKUP(B191,漢字書き!$A$2:$N$502,7,0))) ->  | C195: =IF(C191="","",IF(VLOOKUP(C191,漢字書き!$A$2:$N$502,7,0)=0,"",VLOOKUP(C191,漢字書き!$A$2:$N$502,7,0))) ->  | D195: =IF(D191="","",IF(VLOOKUP(D191,漢字書き!$A$2:$N$502,7,0)=0,"",VLOOKUP(D191,漢字書き!$A$2:$N$502,7,0))) ->  | E195: =IF(E191="","",IF(VLOOKUP(E191,漢字書き!$A$2:$N$502,7,0)=0,"",VLOOKUP(E191,漢字書き!$A$2:$N$502,7,0))) ->  | F195: =IF(F191="","",IF(VLOOKUP(F191,漢字書き!$A$2:$N$502,7,0)=0,"",VLOOKUP(F191,漢字書き!$A$2:$N$502,7,0))) ->  | G195: =IF(G191="","",IF(VLOOKUP(G191,漢字書き!$A$2:$N$502,7,0)=0,"",VLOOKUP(G191,漢字書き!$A$2:$N$502,7,0))) ->  | H195: =IF(H191="","",IF(VLOOKUP(H191,漢字書き!$A$2:$N$502,7,0)=0,"",VLOOKUP(H191,漢字書き!$A$2:$N$502,7,0))) ->  | I195: =IF(I191="","",IF(VLOOKUP(I191,漢字書き!$A$2:$N$502,7,0)=0,"",VLOOKUP(I191,漢字書き!$A$2:$N$502,7,0))) ->  | J195: =IF(J191="","",IF(VLOOKUP(J191,漢字書き!$A$2:$N$502,7,0)=0,"",VLOOKUP(J191,漢字書き!$A$2:$N$502,7,0))) ->  | K195: =IF(K191="","",IF(VLOOKUP(K191,漢字読み!$A$2:$O$502,7,0)=0,"",VLOOKUP(K191,漢字読み!$A$2:$O$502,7,0))) ->  | L195: =IF(L191="","",IF(VLOOKUP(L191,漢字読み!$A$2:$O$502,7,0)=0,"",VLOOKUP(L191,漢字読み!$A$2:$O$502,7,0))) ->  | M195: =IF(M191="","",IF(VLOOKUP(M191,漢字読み!$A$2:$O$502,7,0)=0,"",VLOOKUP(M191,漢字読み!$A$2:$O$502,7,0))) ->  | N195: =IF(N191="","",IF(VLOOKUP(N191,漢字読み!$A$2:$O$502,7,0)=0,"",VLOOKUP(N191,漢字読み!$A$2:$O$502,7,0))) ->  | O195: =IF(O191="","",IF(VLOOKUP(O191,漢字読み!$A$2:$O$502,7,0)=0,"",VLOOKUP(O191,漢字読み!$A$2:$O$502,7,0))) ->  | P195: =IF(P191="","",IF(VLOOKUP(P191,漢字読み!$A$2:$O$502,7,0)=0,"",VLOOKUP(P191,漢字読み!$A$2:$O$502,7,0))) ->  | Q195: =IF(Q191="","",IF(VLOOKUP(Q191,漢字読み!$A$2:$O$502,7,0)=0,"",VLOOKUP(Q191,漢字読み!$A$2:$O$502,7,0))) ->  | R195: =IF(R191="","",IF(VLOOKUP(R191,漢字読み!$A$2:$O$502,7,0)=0,"",VLOOKUP(R191,漢字読み!$A$2:$O$502,7,0))) ->  | S195: =IF(S191="","",IF(VLOOKUP(S191,漢字読み!$A$2:$O$502,7,0)=0,"",VLOOKUP(S191,漢字読み!$A$2:$O$502,7,0))) ->  | T195: =IF(T191="","",IF(VLOOKUP(T191,漢字読み!$A$2:$O$502,7,0)=0,"",VLOOKUP(T191,漢字読み!$A$2:$O$502,7,0))) ->  | W195: 和歌山県教育委員会
A196: =A186 -> 0 | B196: =B186 -> 0 | C196: =C186 -> 0 | D196: =D186 -> 0 | E196: =E186 -> 0 | F196: =F186 -> 0 | G196: =G186 -> 0 | H196: =H186 -> 0 | I196: =I186 -> 0 | J196: =J186 -> 0 | K196: =K186 -> 0 | L196: =L186 -> 0 | M196: =M186 -> 0 | N196: =N186 -> 0 | O196: =O186 -> 0 | P196: =P186 -> 0 | Q196: =Q186 -> 0 | R196: =R186 -> 0 | S196: =S186 -> 0 | T196: =T186 -> 0
A197: ⑳ | B197: ⑲ | C197: ⑱ | D197: ⑰ | E197: ⑯ | F197: ⑮ | G197: ⑭ | H197: ⑬ | I197: ⑫ | J197: ⑪ | K197: ⑩ | L197: ⑨ | M197: ⑧ | N197: ⑦ | O197: ⑥ | P197: ⑤ | Q197: ④ | R197: ③ | S197: ② | T197: ① | U197: 次の［ ］の部分の漢字には読みがなをひらがなで書き、カタカナは漢字に直しなさい。 | V197: 14 | W197: 「漢字の博士検定試験」練習問題
A198: =IF(A196="","",VLOOKUP(A196,漢字書き!$A$2:$N$506,6,0)) ->  | B198: =IF(B196="","",VLOOKUP(B196,漢字書き!$A$2:$N$506,6,0)) ->  | C198: =IF(C196="","",VLOOKUP(C196,漢字書き!$A$2:$N$506,6,0)) ->  | D198: =IF(D196="","",VLOOKUP(D196,漢字書き!$A$2:$N$506,6,0)) ->  | E198: =IF(E196="","",VLOOKUP(E196,漢字書き!$A$2:$N$506,6,0)) ->  | F198: =IF(F196="","",VLOOKUP(F196,漢字書き!$A$2:$N$506,6,0)) ->  | G198: =IF(G196="","",VLOOKUP(G196,漢字書き!$A$2:$N$506,6,0)) ->  | H198: =IF(H196="","",VLOOKUP(H196,漢字書き!$A$2:$N$506,6,0)) ->  | I198: =IF(I196="","",VLOOKUP(I196,漢字書き!$A$2:$N$506,6,0)) ->  | J198: =IF(J196="","",VLOOKUP(J196,漢字書き!$A$2:$N$506,6,0)) ->  | K198: =IF(K196="","",VLOOKUP(K196,漢字読み!$A$2:$O$506,6,0)) ->  | L198: =IF(L196="","",VLOOKUP(L196,漢字読み!$A$2:$O$506,6,0)) ->  | M198: =IF(M196="","",VLOOKUP(M196,漢字読み!$A$2:$O$506,6,0)) ->  | N198: =IF(N196="","",VLOOKUP(N196,漢字読み!$A$2:$O$506,6,0)) ->  | O198: =IF(O196="","",VLOOKUP(O196,漢字読み!$A$2:$O$506,6,0)) ->  | P198: =IF(P196="","",VLOOKUP(P196,漢字読み!$A$2:$O$506,6,0)) ->  | Q198: =IF(Q196="","",VLOOKUP(Q196,漢字読み!$A$2:$O$506,6,0)) ->  | R198: =IF(R196="","",VLOOKUP(R196,漢字読み!$A$2:$O$506,6,0)) ->  | S198: =IF(S196="","",VLOOKUP(S196,漢字読み!$A$2:$O$506,6,0)) ->  | T198: =IF(T196="","",VLOOKUP(T196,漢字読み!$A$2:$O$506,6,0)) ->  | V198: 級
A199: =IF(A$16="","",VLOOKUP(A196,漢字書き!$A$2:$O$506,8,0)) ->  | B199: =IF(B$16="","",VLOOKUP(B196,漢字書き!$A$2:$O$506,8,0)) ->  | C199: =IF(C$16="","",VLOOKUP(C196,漢字書き!$A$2:$O$506,8,0)) ->  | D199: =IF(D$16="","",VLOOKUP(D196,漢字書き!$A$2:$O$506,8,0)) ->  | E199: =IF(E$16="","",VLOOKUP(E196,漢字書き!$A$2:$O$506,8,0)) ->  | F199: =IF(F$16="","",VLOOKUP(F196,漢字書き!$A$2:$O$506,8,0)) ->  | G199: =IF(G$16="","",VLOOKUP(G196,漢字書き!$A$2:$O$506,8,0)) ->  | H199: =IF(H$16="","",VLOOKUP(H196,漢字書き!$A$2:$O$506,8,0)) ->  | I199: =IF(I$16="","",VLOOKUP(I196,漢字書き!$A$2:$O$506,8,0)) ->  | J199: =IF(J$16="","",VLOOKUP(J196,漢字書き!$A$2:$O$506,8,0)) ->  | K199: =IF(K$16="","",VLOOKUP(K196,漢字読み!$A$2:$O$506,8,0)) ->  | L199: =IF(L$16="","",VLOOKUP(L196,漢字読み!$A$2:$O$506,8,0)) ->  | M199: =IF(M$16="","",VLOOKUP(M196,漢字読み!$A$2:$O$506,8,0)) ->  | N199: =IF(N$16="","",VLOOKUP(N196,漢字読み!$A$2:$O$506,8,0)) ->  | O199: =IF(O$16="","",VLOOKUP(O196,漢字読み!$A$2:$O$506,8,0)) ->  | P199: =IF(P$16="","",VLOOKUP(P196,漢字読み!$A$2:$O$506,8,0)) ->  | Q199: =IF(Q$16="","",VLOOKUP(Q196,漢字読み!$A$2:$O$506,8,0)) ->  | R199: =IF(R$16="","",VLOOKUP(R196,漢字読み!$A$2:$O$506,8,0)) ->  | S199: =IF(S$16="","",VLOOKUP(S196,漢字読み!$A$2:$O$506,8,0)) ->  | T199: =IF(T$16="","",VLOOKUP(T196,漢字読み!$A$2:$O$506,8,0)) ->  | V199: 名前
A200: =IF(A196="","",IF(VLOOKUP(A196,漢字書き!$A$2:$N$502,7,0)=0,"",VLOOKUP(A196,漢字書き!$A$2:$N$502,7,0))) ->  | B200: =IF(B196="","",IF(VLOOKUP(B196,漢字書き!$A$2:$N$502,7,0)=0,"",VLOOKUP(B196,漢字書き!$A$2:$N$502,7,0))) ->  | C200: =IF(C196="","",IF(VLOOKUP(C196,漢字書き!$A$2:$N$502,7,0)=0,"",VLOOKUP(C196,漢字書き!$A$2:$N$502,7,0))) ->  | D200: =IF(D196="","",IF(VLOOKUP(D196,漢字書き!$A$2:$N$502,7,0)=0,"",VLOOKUP(D196,漢字書き!$A$2:$N$502,7,0))) ->  | E200: =IF(E196="","",IF(VLOOKUP(E196,漢字書き!$A$2:$N$502,7,0)=0,"",VLOOKUP(E196,漢字書き!$A$2:$N$502,7,0))) ->  | F200: =IF(F196="","",IF(VLOOKUP(F196,漢字書き!$A$2:$N$502,7,0)=0,"",VLOOKUP(F196,漢字書き!$A$2:$N$502,7,0))) ->  | G200: =IF(G196="","",IF(VLOOKUP(G196,漢字書き!$A$2:$N$502,7,0)=0,"",VLOOKUP(G196,漢字書き!$A$2:$N$502,7,0))) ->  | H200: =IF(H196="","",IF(VLOOKUP(H196,漢字書き!$A$2:$N$502,7,0)=0,"",VLOOKUP(H196,漢字書き!$A$2:$N$502,7,0))) ->  | I200: =IF(I196="","",IF(VLOOKUP(I196,漢字書き!$A$2:$N$502,7,0)=0,"",VLOOKUP(I196,漢字書き!$A$2:$N$502,7,0))) ->  | J200: =IF(J196="","",IF(VLOOKUP(J196,漢字書き!$A$2:$N$502,7,0)=0,"",VLOOKUP(J196,漢字書き!$A$2:$N$502,7,0))) ->  | K200: =IF(K196="","",IF(VLOOKUP(K196,漢字読み!$A$2:$O$502,7,0)=0,"",VLOOKUP(K196,漢字読み!$A$2:$O$502,7,0))) ->  | L200: =IF(L196="","",IF(VLOOKUP(L196,漢字読み!$A$2:$O$502,7,0)=0,"",VLOOKUP(L196,漢字読み!$A$2:$O$502,7,0))) ->  | M200: =IF(M196="","",IF(VLOOKUP(M196,漢字読み!$A$2:$O$502,7,0)=0,"",VLOOKUP(M196,漢字読み!$A$2:$O$502,7,0))) ->  | N200: =IF(N196="","",IF(VLOOKUP(N196,漢字読み!$A$2:$O$502,7,0)=0,"",VLOOKUP(N196,漢字読み!$A$2:$O$502,7,0))) ->  | O200: =IF(O196="","",IF(VLOOKUP(O196,漢字読み!$A$2:$O$502,7,0)=0,"",VLOOKUP(O196,漢字読み!$A$2:$O$502,7,0))) ->  | P200: =IF(P196="","",IF(VLOOKUP(P196,漢字読み!$A$2:$O$502,7,0)=0,"",VLOOKUP(P196,漢字読み!$A$2:$O$502,7,0))) ->  | Q200: =IF(Q196="","",IF(VLOOKUP(Q196,漢字読み!$A$2:$O$502,7,0)=0,"",VLOOKUP(Q196,漢字読み!$A$2:$O$502,7,0))) ->  | R200: =IF(R196="","",IF(VLOOKUP(R196,漢字読み!$A$2:$O$502,7,0)=0,"",VLOOKUP(R196,漢字読み!$A$2:$O$502,7,0))) ->  | S200: =IF(S196="","",IF(VLOOKUP(S196,漢字読み!$A$2:$O$502,7,0)=0,"",VLOOKUP(S196,漢字読み!$A$2:$O$502,7,0))) ->  | T200: =IF(T196="","",IF(VLOOKUP(T196,漢字読み!$A$2:$O$502,7,0)=0,"",VLOOKUP(T196,漢字読み!$A$2:$O$502,7,0))) ->  | W200: 和歌山県教育委員会
... 220 more rows

Sheet 漢字読み
A1: 通し番号 | B1: 問題番号 | C1: 漢字 | D1: 読み | E1: 音訓 | F1: 問題 | G1: 送り仮名 | H1: 読み | I1: 間違いやすい漢字
A2: 1 | B2: 1 | C2: 引 | D2: イン | E2: 1 | F2: ［引力］がはたらく | H2: いんりょく
A3: 2 | B3: 1 | C3: 引 | D3: イン | E3: 2 | F3: つなを［引］く | G3: く | H3: ひ
A4: 3 | B4: 2 | C4: 羽 | D4: ウ | E4: 2 | F4: まほうの［羽］ | H4: はね
A5: 4 | B5: 3 | C5: 雲 | D5: ウン | E5: 2 | F5: 白い［雲］ | H5: くも
A6: 5 | B6: 4 | C6: 園 | D6: エン | E6: 1 | F6: ［公園］であそぶ | H6: こうえん
A7: 6 | B7: 5 | C7: 遠 | D7: エン | E7: 2 | F7: ［遠］くに行く | G7: く | H7: とお
A8: 7 | B8: 5 | C8: 遠 | D8: エン | E8: 1 | F8: うれしい［遠足］ | H8: えんそく
A9: 8 | B9: 6 | C9: 何 | D9: カ | E9: 2 | F9: 今、［何時］ですか | H9: なんじ
A10: 9 | B10: 7 | C10: 科 | D10: カ | E10: 1 | F10: ［科学］のしんぽ | H10: かがく | I10: ☆
A11: 10 | B11: 8 | C11: 夏 | D11: カ | E11: 2 | F11: ［夏休］みがはじまる | G11: み | H11: なつやす
A12: 11 | B12: 8 | C12: 夏 | D12: カ | E12: 2 | F12: ある［夏］の日 | H12: なつ
A13: 12 | B13: 9 | C13: 家 | D13: カ | E13: 2 | F13: ［家］に帰る | H13: いえ
A14: 13 | B14: 10 | C14: 歌 | D14: カ | E14: 2 | F14: ［歌声］がひびく | H14: うたごえ
A15: 14 | B15: 10 | C15: 歌 | D15: カ | E15: 1 | F15: ［校歌］をおぼえる | H15: こうか
A16: 15 | B16: 11 | C16: 画 | D16: ガ | E16: 1 | F16: ［図画］がすきだ | H16: ずが
A17: 16 | B17: 11 | C17: 画 | D17: ガ | E17: 1 | F17: かん字の［画数］ | H17: かくすう | I17: ☆
A18: 17 | B18: 12 | C18: 回 | D18: カイ | E18: 1 | F18: ［何回］もよむ | H18: なんかい
A19: 18 | B19: 12 | C19: 回 | D19: カイ | E19: 2 | F19: 目が［回］る | G19: る | H19: まわ
A20: 19 | B20: 13 | C20: 会 | D20: カイ | E20: 1 | F20: ［会社］ではたらく | H20: かいしゃ
A21: 20 | B21: 13 | C21: 会 | D21: カイ | E21: 1 | F21: 花火［大会］をする | H21: たいかい
A22: 21 | B22: 14 | C22: 海 | D22: カイ | E22: 2 | F22: ［海］にうかぶボート | H22: うみ
A23: 22 | B23: 15 | C23: 絵 | D23: カイ | E23: 2 | F23: ［絵］をかく | H23: え
A24: 23 | B24: 15 | C24: 絵 | D24: カイ | E24: 1 | F24: ［絵画］を見る | H24: かいが | I24: ☆
A25: 24 | B25: 16 | C25: 外 | D25: ガイ | E25: 2 | F25: ［外］がわをあるく | H25: そと
A26: 25 | B26: 16 | C26: 外 | D26: ガイ | E26: 1 | F26: ［外国］の町 | H26: がいこく
A27: 26 | B27: 17 | C27: 角 | D27: カク | E27: 1 | F27: ［角］どをはかる | G27: ど | H27: かく
A28: 27 | B28: 17 | C28: 角 | D28: カク | E28: 2 | F28: ［角］をまがる | H28: かど | I28: ☆
A29: 28 | B29: 18 | C29: 楽 | D29: ガク | E29: 1 | F29: ［音楽］をきく | H29: おんがく
A30: 29 | B30: 19 | C30: 活 | D30: カツ | E30: 1 | F30: たのしい学校［生活］ | H30: せいかつ
A31: 30 | B31: 20 | C31: 間 | D31: カン | E31: 1 | F31: ［時間］がすぎる | H31: じかん
A32: 31 | B32: 21 | C32: 丸 | D32: ガン | E32: 2 | F32: ちきゅうは［丸］い | G32: い | H32: まる
A33: 32 | B33: 22 | C33: 岩 | D33: ガン | E33: 2 | F33: ［岩］かげにかくれる | G33: かげ | H33: いわ
A34: 33 | B34: 22 | C34: 岩 | D34: ガン | E34: 1 | F34: ［岩石］のしゅるい | H34: がんせき | I34: ☆
A35: 34 | B35: 23 | C35: 顔 | D35: ガン | E35: 1 | F35: ［顔］めんをうつ | G35: めん | H35: がん | I35: ☆
A36: 35 | B36: 23 | C36: 顔 | D36: ガン | E36: 2 | F36: ［顔］をあらう | H36: かお
A37: 36 | B37: 24 | C37: 汽 | D37: キ | E37: 1 | F37: ［汽］てきをならす | G37: てき | H37: き
A38: 37 | B38: 24 | C38: 汽 | D38: キ | E38: 1 | F38: ［汽車］にのる | H38: きしゃ
A39: 38 | B39: 25 | C39: 記 | D39: キ | E39: 1 | F39: ［日記］をつける | H39: にっき
A40: 39 | B40: 26 | C40: 帰 | D40: キ | E40: 2 | F40: いっしょに［帰］る | G40: る | H40: かえ
A41: 40 | B41: 27 | C41: 弓 | D41: キュウ | E41: 2 | F41: ［弓］の名人 | H41: ゆみ | I41: ☆
A42: 41 | B42: 28 | C42: 牛 | D42: ギュウ | E42: 2 | F42: ［牛］をかう | H42: うし
A43: 42 | B43: 28 | C43: 牛 | D43: ギュウ | E43: 1 | F43: ［牛］にゅうをのむ | G43: にゅう | H43: ぎゅう
A44: 43 | B44: 28 | C44: 牛 | D44: ギュウ | E44: 1 | F44: ［水牛］のつの | H44: すいぎゅう | I44: ☆
A45: 44 | B45: 29 | C45: 魚 | D45: ギョ | E45: 2 | F45: ［魚］のむれ | H45: さかな
A46: 45 | B46: 29 | C46: 魚 | D46: ギョ | E46: 1 | F46: かわいい［金魚］ | H46: きんぎょ
A47: 46 | B47: 30 | C47: 京 | D47: キョウ | E47: 1 | F47: ［京］とに行く | G47: と | H47: きょう
A48: 47 | B48: 31 | C48: 強 | D48: キョウ | E48: 2 | F48: ［強］いチームとたたかう | G48: い | H48: つよ
A49: 48 | B49: 32 | C49: 教 | D49: キョウ | E49: 2 | F49: ［教］え合う | G49: え | H49: おし
A50: 49 | B50: 32 | C50: 教 | D50: キョウ | E50: 1 | F50: ［教室］に入る | H50: きょうしつ
A51: 50 | B51: 32 | C51: 教 | D51: キョウ | E51: 2 | F51: 先生に［教］わる | G51: わる | H51: おそ | I51: ☆
A52: 51 | B52: 33 | C52: 近 | D52: キン | E52: 2 | F52: ［近］いおみせ | G52: い | H52: ちか
A53: 52 | B53: 34 | C53: 兄 | D53: ケイ | E53: 2 | F53: やさしい［兄］がいる | H53: あに
A54: 53 | B54: 35 | C54: 形 | D54: ケイ | E54: 2 | F54: ［形］をかえる | H54: かたち
A55: 54 | B55: 35 | C55: 形 | D55: ケイ | E55: 1 | F55: ［人形］げきをみる | G55: げき | H55: にんぎょう
A56: 55 | B56: 36 | C56: 計 | D56: ケイ | E56: 1 | F56: ［計算］をする | H56: けいさん
A57: 56 | B57: 37 | C57: 元 | D57: ゲン | E57: 2 | F57: ［足元］におとす | H57: あしもと | I57: ☆
A58: 57 | B58: 37 | C58: 元 | D58: ゲン | E58: 1 | F58: ［元気］にあそぶ | H58: げんき
A59: 58 | B59: 38 | C59: 言 | D59: ゲン | E59: 1 | F59: すきな［言］ば | G59: ば | H59: こと | I59: ☆
A60: 59 | B60: 38 | C60: 言 | D60: ゲン | E60: 2 | F60: みんなに［言］う | G60: う | H60: い
A61: 60 | B61: 39 | C61: 原 | D61: ゲン | E61: 1 | F61: ［草原］を走る | H61: そうげん | I61: ☆
A62: 61 | B62: 40 | C62: 戸 | D62: コ | E62: 1 | F62: ［雨戸］をしめる | H62: あまど | I62: ☆
A63: 62 | B63: 40 | C63: 戸 | D63: コ | E63: 2 | F63: ［戸］があいた | H63: と
A64: 63 | B64: 41 | C64: 古 | D64: コ | E64: 1 | F64: ［古文］をよむ | H64: こぶん | I64: ☆
A65: 64 | B65: 41 | C65: 古 | D65: コ | E65: 2 | F65: ［古］いタイヤ | G65: い | H65: ふる
A66: 65 | B66: 42 | C66: 午 | D66: ゴ | E66: 1 | F66: ［午後］のひととき | H66: ごご
A67: 66 | B67: 44 | C67: 語 | D67: ゴ | E67: 1 | F67: たん［語］をおぼえる | H67: ご
A68: 67 | B68: 44 | C68: 語 | D68: ゴ | E68: 2 | F68: むかしばなしを［語］る | G68: る | H68: かた | I68: ☆
A69: 68 | B69: 46 | C69: 公 | D69: コウ | E69: 1 | F69: ［公］みんかんに行く | G69: みんかん | H69: こう
A70: 69 | B70: 45 | C70: 工 | D70: コウ | E70: 1 | F70: ［図工］のじかん | H70: ずこう
A71: 70 | B71: 47 | C71: 広 | D71: コウ | E71: 2 | F71: ［広］い原っぱ | G71: い | H71: ひろ
A72: 71 | B72: 47 | C72: 広 | D72: コウ | E72: 2 | F72: ［広場］であそぶ | H72: ひろば
A73: 72 | B73: 48 | C73: 交 | D73: コウ | E73: 1 | F73: ［交］つうあんぜん | G73: つう | H73: こう
A74: 73 | B74: 48 | C74: 交 | D74: コウ | E74: 2 | F74: 線が［交］わる | G74: わる | H74: まじ
A75: 74 | B75: 49 | C75: 光 | D75: コウ | E75: 1 | F75: ［日光］をあびる | H75: にっこう
A76: 75 | B76: 49 | C76: 光 | D76: コウ | E76: 2 | F76: ［光］をあびる | H76: ひかり
A77: 76 | B77: 50 | C77: 考 | D77: コウ | E77: 2 | F77: こたえを［考］える | G77: える | H77: かんが
A78: 77 | B78: 51 | C78: 行 | D78: コウ | E78: 1 | F78: ［三行］で書く | H78: さんぎょう | I78: ☆
A79: 78 | B79: 51 | C79: 行 | D79: コウ | E79: 2 | F79: いい［行］いをする | G79: い | H79: おこな | I79: ☆
A80: 79 | B80: 52 | C80: 高 | D80: コウ | E80: 1 | F80: ［高学年］になる | H80: こうがくねん
A81: 80 | B81: 52 | C81: 高 | D81: コウ | E81: 2 | F81: ［高］い山にのぼる | G81: い | H81: たか | I81: ☆
A82: 81 | B82: 53 | C82: 黄 | D82: コウ | E82: 2 | F82: ［黄色］いたんぽぽ | G82: い | H82: きいろ
A83: 82 | B83: 54 | C83: 合 | D83: ゴウ | E83: 1 | F83: えきにしゅう［合］する | H83: ごう
A84: 83 | B84: 55 | C84: 谷 | D84: コク | E84: 2 | F84: ［谷］にふくかぜ | H84: たに
A85: 84 | B85: 56 | C85: 国 | D85: コク | E85: 2 | F85: 海外の［国］にあこがれる | H85: くに
A86: 85 | B86: 57 | C86: 黒 | D86: コク | E86: 2 | F86: ［黒］ごまのふりかけ | G86: ごま | H86: くろ
A87: 86 | B87: 58 | C87: 今 | D87: コン | E87: 1 | F87: ［今］どこそがんばるぞ | G87: ど | H87: こん | I87: ☆
A88: 87 | B88: 59 | C88: 才 | D88: サイ | E88: 1 | F88: ［九才］になる | H88: きゅうさい
A89: 88 | B89: 59 | C89: 才 | D89: サイ | E89: 1 | F89: かれは［天才］だ | H89: てんさい
A90: 89 | B90: 60 | C90: 細 | D90: サイ | E90: 2 | F90: ［細］い糸 | G90: い | H90: ほそ
A91: 90 | B91: 60 | C91: 細 | D91: サイ | E91: 2 | F91: ［細］かい字 | G91: かい | H91: こま | I91: ☆
A92: 91 | B92: 61 | C92: 作 | D92: サク | E92: 1 | F92: ［作文］をよむ | H92: さくぶん
A93: 92 | B93: 61 | C93: 作 | D93: サク | E93: 2 | F93: 文を［作］る | G93: る | H93: つく
A94: 93 | B94: 62 | C94: 算 | D94: サン | E94: 1 | F94: かけ［算］のれんしゅう | H94: ざん
A95: 94 | B95: 63 | C95: 止 | D95: シ | E95: 1 | F95: えんそくが［中止］になる | H95: ちゅうし
A96: 95 | B96: 63 | C96: 止 | D96: シ | E96: 2 | F96: でんしゃが［止］まる | G96: まる | H96: と
A97: 96 | B97: 64 | C97: 市 | D97: シ | E97: 2 | F97: ［朝市］がひらかれる | H97: あさいち
A98: 97 | B98: 64 | C98: 市 | D98: シ | E98: 2 | F98: わか山［市］の学校 | H98: し
A99: 98 | B99: 65 | C99: 矢 | D99: シ | E99: 2 | F99: ［矢］がささる | H99: や
A100: 99 | B100: 66 | C100: 姉 | D100: シ | E100: 2 | F100: わたしの［姉］です | H100: あね
A101: 100 | B101: 67 | C101: 思 | D101: シ | E101: 2 | F101: ［思］いでをつくる | G101: いで | H101: おも
A102: 101 | B102: 67 | C102: 思 | D102: シ | E102: 2 | F102: うれしく［思］う | G102: う | H102: おも
A103: 102 | B103: 68 | C103: 紙 | D103: シ | E103: 2 | F103: ［紙］しばいを見る | G103: しばい | H103: かみ
A104: 103 | B104: 69 | C104: 寺 | D104: ジ | E104: 2 | F104: お［寺］のかいだん | H104: てら
A105: 104 | B105: 69 | C105: 寺 | D105: ジ | E105: 1 | F105: とう大［寺］の大ぶつ | H105: じ | I105: ☆
A106: 105 | B106: 70 | C106: 自 | D106: ジ | E106: 1 | F106: ［自］こしょうかいをする | G106: こしょうかい | H106: じ | I106: ☆
A107: 106 | B107: 71 | C107: 時 | D107: ジ | E107: 2 | F107: ［時］がすぎる | H107: とき
A108: 107 | B108: 71 | C108: 時 | D108: ジ | E108: 1 | F108: ［時間］がたつ | H108: じかん
A109: 108 | B109: 72 | C109: 室 | D109: シツ | E109: 1 | F109: ［室外］に出る | H109: しつがい | I109: ☆
A110: 109 | B110: 73 | C110: 社 | D110: シャ | E110: 1 | F110: ［会社］にいく | H110: かいしゃ
A111: 110 | B111: 73 | C111: 社 | D111: シャ | E111: 1 | F111: ［社会］のへんか | H111: しゃかい
A112: 111 | B112: 74 | C112: 弱 | D112: ジャク | E112: 2 | F112: 力が［弱］い | G112: い | H112: よわ
A113: 112 | B113: 75 | C113: 首 | D113: シュ | E113: 2 | F113: ［首］かざり | H113: くび
A114: 113 | B114: 75 | C114: 首 | D114: シュ | E114: 2 | F114: ［首］わをする | G114: わ | H114: くび
A115: 114 | B115: 76 | C115: 秋 | D115: シュウ | E115: 2 | F115: ［秋］の夕ぐれ | H115: あき
A116: 115 | B116: 77 | C116: 週 | D116: シュウ | E116: 1 | F116: ［今週］のニュース | H116: こんしゅう
A117: 116 | B117: 77 | C117: 週 | D117: シュウ | E117: 1 | F117: ［先週］はさむかった | H117: せんしゅう
A118: 117 | B118: 78 | C118: 春 | D118: シュン | E118: 2 | F118: ［春］がきた | H118: はる
A119: 118 | B119: 78 | C119: 春 | D119: シュン | E119: 1 | F119: ［春］ぶんの日 | G119: ぶん | H119: しゅん | I119: ☆
A120: 119 | B120: 79 | C120: 書 | D120: ショ | E120: 2 | F120: 字を［書］く | G120: く | H120: か
A121: 120 | B121: 80 | C121: 少 | D121: ショウ | E121: 1 | F121: ［少］人数のクラス | G121: 人数 | H121: しょう
A122: 121 | B122: 80 | C122: 少 | D122: ショウ | E122: 2 | F122: ［少］ない水 | G122: ない | H122: すく
A123: 122 | B123: 81 | C123: 場 | D123: ジョウ | E123: 2 | F123: ［広場］でサッカーをする | H123: ひろば
A124: 123 | B124: 82 | C124: 色 | D124: ショク | E124: 1 | F124: ［色紙］にサインをする | H124: しきし | I124: ☆
A125: 124 | B125: 82 | C125: 色 | D125: ショク | E125: 2 | F125: ［色］がかわる | H125: いろ
A126: 125 | B126: 83 | C126: 食 | D126: ショク | E126: 1 | F126: きゅう［食］とうばん | H126: しょく
A127: 126 | B127: 83 | C127: 食 | D127: ショク | E127: 2 | F127: ごはんを［食］べる | G127: べる | H127: た
A128: 127 | B128: 84 | C128: 心 | D128: シン | E128: 2 | F128: ［心］の中 | H128: こころ
A129: 128 | B129: 85 | C129: 新 | D129: シン | E129: 1 | F129: ［新入生］をむかえる | H129: しんにゅうせい
A130: 129 | B130: 85 | C130: 新 | D130: シン | E130: 1 | F130: ［新年］のおいわい | H130: しんねん
A131: 130 | B131: 85 | C131: 新 | D131: シン | E131: 2 | F131: ［新］しいくつをはく | G131: しい | H131: あたら
A132: 131 | B132: 86 | C132: 親 | D132: シン | E132: 1 | F132: ［親］ゆうになる | G132: ゆう | H132: しん
A133: 132 | B133: 86 | C133: 親 | D133: シン | E133: 2 | F133: ［親］にはなす | H133: おや
A134: 133 | B134: 86 | C134: 親 | D134: シン | E134: 2 | F134: ライオンの［親子］ | H134: おやこ
A135: 134 | B135: 87 | C135: 図 | D135: ズ | E135: 1 | F135: ［図書］室がすきだ | G135: 室 | H135: としょ
A136: 135 | B136: 88 | C136: 数 | D136: スウ | E136: 1 | F136: ［算数］のノート | H136: さんすう
A137: 136 | B137: 88 | C137: 数 | D137: スウ | E137: 1 | F137: ［数字］をおぼえる | H137: すうじ
A138: 137 | B138: 88 | C138: 数 | D138: スウ | E138: 2 | F138: おはじきを［数］える | G138: える | H138: かぞ
A139: 138 | B139: 89 | C139: 西 | D139: セイ | E139: 2 | F139: ［西］にしずむ夕日 | H139: にし
A140: 139 | B140: 90 | C140: 声 | D140: セイ | E140: 2 | F140: ［声］をかける | H140: こえ
A141: 140 | B141: 91 | C141: 星 | D141: セイ | E141: 1 | F141: ［星］ざをおぼえる | G141: ざ | H141: せい | I141: ☆
A142: 141 | B142: 91 | C142: 星 | D142: セイ | E142: 2 | F142: ［星］のかがやき | H142: ほし
A143: 142 | B143: 91 | C143: 星 | D143: セイ | E143: 2 | F143: きれいな［星空］ | H143: ほしぞら
A144: 143 | B144: 92 | C144: 晴 | D144: セイ | E144: 2 | F144: ［晴］れた空 | G144: れた | H144: は
A145: 144 | B145: 93 | C145: 切 | D145: セツ | E145: 1 | F145: ［切手］をあつめる | H145: きって
A146: 145 | B146: 93 | C146: 切 | D146: セツ | E146: 2 | F146: えだを［切］る | G146: る | H146: き
A147: 146 | B147: 94 | C147: 雪 | D147: セツ | E147: 2 | F147: ［雪］がふる | H147: ゆき
A148: 147 | B148: 95 | C148: 船 | D148: セン | E148: 2 | F148: ［船］がついた | H148: ふね
A149: 148 | B149: 96 | C149: 線 | D149: セン | E149: 2 | F149: ［線］を引く | H149: せん
A150: 149 | B150: 97 | C150: 前 | D150: ゼン | E150: 2 | F150: ［前］のページ | H150: まえ
A151: 150 | B151: 98 | C151: 組 | D151: ソ | E151: 2 | F151: おなじ［組］の人 | H151: くみ
A152: 151 | B152: 99 | C152: 走 | D152: ソウ | E152: 2 | F152: うまが［走］る | G152: る | H152: はし
A153: 152 | B153: 100 | C153: 多 | D153: タ | E153: 2 | F153: しゅくだいが［多］い | G153: い | H153: おお

Sheet 漢字書き
A1: 通し番号 | B1: 問題番号 | C1: 漢字 | D1: 読み | E1: 音訓 | F1: 問題 | G1: 送り仮名 | H1: 漢字
A2: 1 | B2: 1 | C2: 引 | D2: イン | E2: 2 | F2: 線を［ヒ］く | G2: く | H2: 引
A3: 2 | B3: 2 | C3: 羽 | D3: ウ | E3: 2 | F3: とりの［ハネ］ | H3: 羽
A4: 3 | B4: 3 | C4: 雲 | D4: ウン | E4: 2 | F4: 白い［クモ］ | H4: 雲
A5: 4 | B5: 4 | C5: 園 | D5: エン | E5: 1 | F5: ［コウエン］であそぶ | H5: 公園
A6: 5 | B6: 5 | C6: 遠 | D6: エン | E6: 2 | F6: ［トオ］いくにのはなし | G6: い | H6: 遠
A7: 6 | B7: 5 | C7: 遠 | D7: エン | E7: 1 | F7: あすは［エンソク］だ | H7: 遠足
A8: 7 | B8: 6 | C8: 何 | D8: カ | E8: 2 | F8: ［ナニ］かごようですか | G8: か | H8: 何
A9: 8 | B9: 7 | C9: 科 | D9: カ | E9: 1 | F9: ［カガク］のしんぽ | H9: 科学
A10: 9 | B10: 8 | C10: 夏 | D10: カ | E10: 2 | F10: ながい［ナツヤス］み | G10: み | H10: 夏休
A11: 10 | B11: 8 | C11: 夏 | D11: カ | E11: 2 | F11: あつい［ナツ］ | H11: 夏
A12: 11 | B12: 9 | C12: 家 | D12: カ | E12: 2 | F12: ［イエ］のはしら | H12: 家
A13: 12 | B13: 10 | C13: 歌 | D13: カ | E13: 1 | F13: 日本の［コッカ］ | H13: 国家
A14: 13 | B14: 10 | C14: 歌 | D14: カ | E14: 2 | F14: ［ウタゴエ］がひびく | H14: 歌声
A15: 14 | B15: 11 | C15: 画 | D15: ガ | E15: 1 | F15: ゆうめいな［ガカ］ | H15: 画家 | I15: ☆
A16: 15 | B16: 12 | C16: 回 | D16: カイ | E16: 2 | F16: 目が［マワ］る | G16: る | H16: 回
A17: 16 | B17: 13 | C17: 会 | D17: カイ | E17: 2 | F17: うんどう［カイ］ | H17: 会
A18: 17 | B18: 13 | C18: 会 | D18: カイ | E18: 2 | F18: ともだちに［ア］う | G18: う | H18: 会
A19: 18 | B19: 14 | C19: 海 | D19: カイ | E19: 2 | F19: ［ウミ］でおよぐ | H19: 海
A20: 19 | B20: 14 | C20: 海 | D20: カイ | E20: 2 | F20: ［ウミ］べをさんぽする | G20: べ | H20: 海
A21: 20 | B21: 15 | C21: 絵 | D21: カイ | E21: 2 | F21: ［エ］にかいて見せる | H21: 絵
A22: 21 | B22: 16 | C22: 外 | D22: ガイ | E22: 2 | F22: ［ソト］であそぶ | H22: 外
A23: 22 | B23: 17 | C23: 角 | D23: カク | E23: 1 | F23: ［サンカク］形 | G23: 形 | H23: 三角
A24: 23 | B24: 18 | C24: 楽 | D24: ガク | E24: 2 | F24: ［タノ］しくあそぶ | G24: しく | H24: 楽
A25: 24 | B25: 19 | C25: 活 | D25: カツ | E25: 1 | F25: ［カツ］やくする | G25: やく | H25: 活
A26: 25 | B26: 20 | C26: 間 | D26: カン | E26: 1 | F26: ［ジカン］がすぎる | H26: 時間
A27: 26 | B27: 21 | C27: 丸 | D27: ガン | E27: 2 | F27: ［マル］い石 | G27: い | H27: 丸
A28: 27 | B28: 22 | C28: 岩 | D28: ガン | E28: 2 | F28: ［イワ］にのぼる | H28: 岩
A29: 28 | B29: 23 | C29: 顔 | D29: ガン | E29: 2 | F29: ［カオ］をあらう | H29: 顔
A30: 29 | B30: 24 | C30: 汽 | D30: キ | E30: 1 | F30: おもちゃの［キシャ］ | H30: 汽車 | I30: ☆
A31: 30 | B31: 25 | C31: 記 | D31: キ | E31: 1 | F31: ［ニッキ］をかく | H31: 日記
A32: 31 | B32: 26 | C32: 帰 | D32: キ | E32: 2 | F32: 家に［カエ］る | G32: る | H32: 帰
A33: 32 | B33: 27 | C33: 弓 | D33: キュウ | E33: 2 | F33: ［ユミ］の名人 | H33: 弓 | I33: ☆
A34: 33 | B34: 28 | C34: 牛 | D34: ギュウ | E34: 2 | F34: うまと［ウシ］ | H34: 牛
A35: 34 | B35: 29 | C35: 魚 | D35: ギョ | E35: 1 | F35: ［キンギョ］をかう | H35: 金魚
A36: 35 | B36: 29 | C36: 魚 | D36: ギョ | E36: 2 | F36: ［サカナ］がおよぐ | H36: 魚
A37: 36 | B37: 30 | C37: 京 | D37: キョウ | E37: 1 | F37: ［キョウ］のみやこ | H37: 京 | I37: ☆
A38: 37 | B38: 32 | C38: 教 | D38: キョウ | E38: 1 | F38: ［キョウ］か書をよむ | G38: か書 | H38: 教
A39: 38 | B39: 32 | C39: 教 | D39: キョウ | E39: 1 | F39: ［キョウシツ］に入る | H39: 教室
A40: 39 | B40: 32 | C40: 数 | D40: キョウ | E40: 1 | F40: ［スウジ］をよむ | H40: 数字
A41: 40 | B41: 32 | C41: 数 | D41: キョウ | E41: 1 | F41: さん［スウ］がすき | H41: 数
A42: 41 | B42: 33 | C42: 近 | D42: キン | E42: 2 | F42: 車が［チカ］づく | G42: づく | H42: 近
A43: 42 | B43: 34 | C43: 兄 | D43: ケイ | E43: 2 | F43: ［アニ］のともだち | H43: 兄
A44: 43 | B44: 35 | C44: 形 | D44: ケイ | E44: 1 | F44: ［ニンギョウ］をかう | H44: 人形 | I44: ☆
A45: 44 | B45: 36 | C45: 計 | D45: ケイ | E45: 1 | F45: ［ケイカク］を立てる | H45: 計画 | I45: ☆
A46: 45 | B46: 36 | C46: 計 | D46: ケイ | E46: 1 | F46: ［ケイサン］がとくい | H46: 計算
A47: 46 | B47: 37 | C47: 元 | D47: ゲン | E47: 2 | F47: ね［モト］に水をかける | H47: 元 | I47: ☆
A48: 47 | B48: 37 | C48: 元 | D48: ゲン | E48: 1 | F48: ［ゲンキ］いっぱい | H48: 元気
A49: 48 | B49: 38 | C49: 言 | D49: ゲン | E49: 1 | F49: ［ゲンゴ］のちがいをしる | H49: 言語 | I49: ☆
A50: 49 | B50: 38 | C50: 言 | D50: ゲン | E50: 2 | F50: いけんを［イ］う | G50: う | H50: 言
A51: 50 | B51: 39 | C51: 原 | D51: ゲン | E51: 2 | F51: ［ハラ］っぱであそぶ | G51: っぱ | H51: 原
A52: 51 | B52: 40 | C52: 戸 | D52: コ | E52: 2 | F52: ［ト］をあける | H52: 戸
A53: 52 | B53: 41 | C53: 古 | D53: コ | E53: 2 | F53: ［フル］い本 | G53: い | H53: 古
A54: 53 | B54: 42 | C54: 午 | D54: ゴ | E54: 1 | F54: ［ゴゴ］のひととき | H54: 午後
A55: 54 | B55: 43 | C55: 後 | D55: ゴ | E55: 2 | F55: 先生の［ウシ］ろをあるく | G55: ろ | H55: 後
A56: 55 | B56: 44 | C56: 語 | D56: ゴ | E56: 1 | F56: ［コクゴ］の教か書 | H56: 国語
A57: 56 | B57: 44 | C57: 語 | D57: ゴ | E57: 2 | F57: むかしばなしを［カタ］る | G57: る | H57: 語 | I57: ☆
A58: 57 | B58: 45 | C58: 工 | D58: コウ | E58: 1 | F58: ［ダイク］さんが家をたてる | H58: 大工 | I58: ☆
A59: 58 | B59: 46 | C59: 公 | D59: コウ | E59: 1 | F59: ［コウ］がいのない町 | G59: がい | H59: 公
A60: 59 | B60: 47 | C60: 広 | D60: コウ | E60: 2 | F60: ［ヒロ］い海 | G60: い | H60: 広
A61: 60 | B61: 47 | C61: 広 | D61: コウ | E61: 2 | F61: ［ヒロバ］であそぶ | H61: 広場
A62: 61 | B62: 48 | C62: 交 | D62: コウ | E62: 1 | F62: せんしゅの［コウ］たい | G62: たい | H62: 交
A63: 62 | B63: 48 | C63: 交 | D63: コウ | E63: 1 | F63: ［コウ］つうルール | G63: つう | H63: 交
A64: 63 | B64: 49 | C64: 光 | D64: コウ | E64: 2 | F64: 星が［ヒカ］る | G64: る | H64: 光
A65: 64 | B65: 49 | C65: 光 | D65: コウ | E65: 2 | F65: ［ヒカリ］がさす | H65: 光
A66: 65 | B66: 50 | C66: 考 | D66: コウ | E66: 2 | F66: じっくり［カンガ］える | G66: える | H66: 考
A67: 66 | B67: 51 | C67: 行 | D67: ギョウ | E67: 1 | F67: ［ギョウ］じにさんかする | G67: じ | H67: 行
A68: 67 | B68: 51 | C68: 行 | D68: ギョウ | E68: 1 | F68: ありの［ギョウ］れつ | G68: れつ | H68: 行
A69: 68 | B69: 52 | C69: 高 | D69: コウ | E69: 2 | F69: ［タカ］いビル | G69: い | H69: 高
A70: 69 | B70: 53 | C70: 黄 | D70: コウ | E70: 2 | F70: ［キイロ］のクレヨン | H70: 黄色
A71: 70 | B71: 54 | C71: 合 | D71: ゴウ | E71: 1 | F71: テストに［ゴウ］かくする | G71: かく | H71: 合
A72: 71 | B72: 54 | C72: 合 | D72: ゴウ | E72: 2 | F72: 二つを［ア］わせる | G72: わせる | H72: 合
A73: 72 | B73: 55 | C73: 谷 | D73: コク | E73: 2 | F73: ふかい［タニ］ | H73: 谷
A74: 73 | B74: 56 | C74: 国 | D74: コク | E74: 1 | F74: ［ガイコク］に行く | H74: 外国
A75: 74 | B75: 57 | C75: 黒 | D75: コク | E75: 1 | F75: ［コク］ばんを見る | G75: ばん | H75: 黒
A76: 75 | B76: 57 | C76: 黒 | D76: コク | E76: 2 | F76: ［クロ］いふくをきる | G76: い | H76: 黒
A77: 76 | B77: 58 | C77: 今 | D77: コン | E77: 1 | F77: ［イマ］ついたところです | H77: 今
A78: 77 | B78: 59 | C78: 才 | D78: サイ | E78: 1 | F78: ［ゴサイ］のたんじょうび | H78: 五才
A79: 78 | B79: 60 | C79: 戸 | D79: コ | E79: 2 | F79: ［ト］をあける | H79: 戸
A80: 79 | B80: 60 | C80: 細 | D80: サイ | E80: 2 | F80: ［コマ］かい文字 | G80: かい | H80: 細
A81: 80 | B81: 60 | C81: 細 | D81: サイ | E81: 2 | F81: ［ホソ］いひも | G81: い | H81: 細
A82: 81 | B82: 61 | C82: 作 | D82: サク | E82: 2 | F82: 文を［ツク］る | G82: る | H82: 作
A83: 82 | B83: 61 | C83: 作 | D83: サク | E83: 1 | F83: ［サクブン］をかく | H83: 作文
A84: 83 | B84: 62 | C84: 算 | D84: サン | E84: 1 | F84: かけ［ザン］のべん強 | H84: 算
A85: 84 | B85: 62 | C85: 算 | D85: サン | E85: 1 | F85: ［サンスウ］のもんだい | H85: 算数
A86: 85 | B86: 62 | C86: 算 | D86: サン | E86: 1 | F86: ［ケイサン］もんだい | H86: 計算
A87: 86 | B87: 63 | C87: 止 | D87: シ | E87: 2 | F87: バスが［ト］まる | G87: まる | H87: 止
A88: 87 | B88: 63 | C88: 止 | D88: シ | E88: 2 | F88: 車を［ト］める | G88: める | H88: 止
A89: 88 | B89: 64 | C89: 市 | D89: シ | E89: 2 | F89: ［イチバ］にむかう | H89: 市場 | I89: ☆
A90: 89 | B90: 65 | C90: 矢 | D90: シ | E90: 2 | F90: ［ヤ］がささる | H90: 矢
A91: 90 | B91: 66 | C91: 姉 | D91: シ | E91: 2 | F91: ［アネ］がいます | H91: 姉
A92: 91 | B92: 67 | C92: 思 | D92: シ | E92: 2 | F92: たのしい［オモ］い出 | G92: い出 | H92: 思
A93: 92 | B93: 68 | C93: 紙 | D93: シ | E93: 2 | F93: ［カミ］しばい | H93: 紙
A94: 93 | B94: 69 | C94: 寺 | D94: ジ | E94: 2 | F94: お［テラ］のかね | H94: 寺
A95: 94 | B95: 70 | C95: 自 | D95: ジ | E95: 1 | F95: ［ジ］てん車にのる | G95: てん車 | H95: 自
A96: 95 | B96: 71 | C96: 時 | D96: ジ | E96: 1 | F96: ［ジカン］がすぎる | H96: 時間
A97: 96 | B97: 72 | C97: 室 | D97: シツ | E97: 1 | F97: ［キョウシツ］をそうじする | H97: 教室
A98: 97 | B98: 73 | C98: 社 | D98: シャ | E98: 1 | F98: ［シャカイ］のためにつくす | H98: 社会
A99: 98 | B99: 74 | C99: 弱 | D99: ジャク | E99: 2 | F99: 力が［ヨワ］い | G99: い | H99: 弱
A100: 99 | B100: 75 | C100: 首 | D100: シュ | E100: 2 | F100: 犬の［クビ］わ | G100: わ | H100: 首
A101: 100 | B101: 76 | C101: 秋 | D101: シュウ | E101: 2 | F101: ［アキ］まつり | G101: まつり | H101: 秋
A102: 101 | B102: 77 | C102: 週 | D102: シュウ | E102: 1 | F102: ［コンシュウ］のニュース | H102: 今週
A103: 102 | B103: 78 | C103: 春 | D103: シュン | E103: 2 | F103: あたたかい［ハル］ | H103: 春
A104: 103 | B104: 79 | C104: 書 | D104: ショ | E104: 2 | F104: 字を［カ］く | G104: く | H104: 書
A105: 104 | B105: 80 | C105: 少 | D105: ショウ | E105: 2 | F105: ［スク］ないおかず | G105: ない | H105: 少
A106: 105 | B106: 80 | C106: 少 | D106: ショウ | E106: 1 | F106: ［ショウ］年とあそぶ | G106: 年 | H106: 少 | I106: ☆
A107: 106 | B107: 81 | C107: 場 | D107: ジョウ | E107: 1 | F107: うんどう［ジョウ］であそぶ | H107: 場
A108: 107 | B108: 82 | C108: 色 | D108: ショク | E108: 2 | F108: ［イロ］えんぴつ | H108: 色
A109: 108 | B109: 83 | C109: 食 | D109: ショク | E109: 1 | F109: ［ショク］じはたのしい | G109: じ | H109: 食
A110: 109 | B110: 83 | C110: 食 | D110: ショク | E110: 2 | F110: ごはんを［タ］べる | G110: べる | H110: 食
A111: 110 | B111: 84 | C111: 心 | D111: シン | E111: 2 | F111: ［ココロ］がはずむ | H111: 心
A112: 111 | B112: 85 | C112: 新 | D112: シン | E112: 2 | F112: ［アタラ］しいえんぴつ | G112: しい | H112: 新
A113: 112 | B113: 86 | C113: 親 | D113: シン | E113: 2 | F113: ぞうの［オヤコ］ | H113: 親子
A114: 113 | B114: 86 | C114: 親 | D114: シン | E114: 2 | F114: ［シタ］しいなかま | G114: しい | H114: 親
A115: 114 | B115: 87 | C115: 図 | D115: ズ | E115: 1 | F115: ［ズコウ］の時間 | H115: 図工
A116: 115 | B116: 87 | C116: 図 | D116: ズ | E116: 1 | F116: ［トショ］かんにいく | G116: かん | H116: 図書
A117: 116 | B117: 88 | C117: 数 | D117: スウ | E117: 1 | F117: ［スウジ］をならべる | H117: 数字
A118: 117 | B118: 89 | C118: 西 | D118: セイ | E118: 2 | F118: ［ニシ］の空 | H118: 西
A119: 118 | B119: 90 | C119: 声 | D119: セイ | E119: 2 | F119: きれいな［コエ］ | H119: 声
A120: 119 | B120: 91 | C120: 星 | D120: セイ | E120: 2 | F120: ［ホシ］がかがやく | H120: 星
A121: 120 | B121: 91 | C121: 星 | D121: セイ | E121: 2 | F121: ［ホシゾラ］かんさつ | H121: 星空
A122: 121 | B122: 92 | C122: 晴 | D122: セイ | E122: 2 | F122: よく［ハ］れた日 | G122: れた | H122: 晴
A123: 122 | B123: 93 | C123: 切 | D123: セツ | E123: 1 | F123: ［キッテ］をあつめる | H123: 切手 | I123: ☆
A124: 123 | B124: 93 | C124: 切 | D124: セツ | E124: 2 | F124: はさみで［キ］る | G124: る | H124: 切
A125: 124 | B125: 94 | C125: 雪 | D125: セツ | E125: 2 | F125: ［ユキ］がふる | H125: 雪
A126: 125 | B126: 95 | C126: 船 | D126: セン | E126: 2 | F126: ［フネ］がみなとにつく | H126: 船
A127: 126 | B127: 96 | C127: 線 | D127: セン | E127: 2 | F127: まっすぐな［セン］を引く | H127: 線
A128: 127 | B128: 97 | C128: 前 | D128: ゼン | E128: 2 | F128: ［マエ］を見る | H128: 前
A129: 128 | B129: 98 | C129: 組 | D129: ソ | E129: 2 | F129: 二年［ヨンクミ］ | H129: 四組
A130: 129 | B130: 98 | C130: 組 | D130: ソ | E130: 2 | F130: かたを［ク］む | G130: む | H130: 組
A131: 130 | B131: 99 | C131: 走 | D131: ソウ | E131: 2 | F131: ぜん力で［ハシ］る | G131: る | H131: 走
A132: 131 | B132: 100 | C132: 多 | D132: タ | E132: 2 | F132: 雲が［オオ］い | G132: い | H132: 多

Sheet 関数（読み）
A1: 番号 | B1: ランダム | C1: 順位
A2: 1 | B2: =RAND() -> 0.4325546824 | C2: =RANK(B2,$B$2:$B$153) -> 90
A3: 2 | B3: =RAND() -> 0.3537104278 | C3: =RANK(B3,$B$2:$B$153) -> 98
A4: 3 | B4: 0.5401106711 | C4: 75
A5: 4 | B5: 0.2518107709 | C5: 117
A6: 5 | B6: 0.8104876019 | C6: 36
A7: 6 | B7: 0.2745388382 | C7: 114
A8: 7 | B8: 0.3553032579 | C8: 97
A9: 8 | B9: 0.476009648 | C9: 84
A10: 9 | B10: 0.3276830897 | C10: 104
A11: 10 | B11: 0.7149489791 | C11: 46
A12: 11 | B12: 0.5033112632 | C12: 77
A13: 12 | B13: 0.9488916633 | C13: 10
A14: 13 | B14: 0.6002635694 | C14: 69
A15: 14 | B15: 0.8914878842 | C15: 23
A16: 15 | B16: 0.6941092038 | C16: 49
A17: 16 | B17: 0.7924971815 | C17: 38
A18: 17 | B18: 0.2990395521 | C18: 110
A19: 18 | B19: 0.7791035225 | C19: 40
A20: 19 | B20: 0.3647374194 | C20: 95
A21: 20 | B21: 0.3588356421 | C21: 96
A22: 21 | B22: 0.4685033156 | C22: 85
A23: 22 | B23: 0.1184276419 | C23: 132
A24: 23 | B24: 0.5474672362 | C24: 74
A25: 24 | B25: 0.6353969351 | C25: 60
A26: 25 | B26: 0.008764064651 | C26: 149
A27: 26 | B27: 0.942369307 | C27: 12
A28: 27 | B28: 0.3374107139 | C28: 101
A29: 28 | B29: 0.9605072825 | C29: 7
A30: 29 | B30: 0.9188491111 | C30: 17
A31: 30 | B31: 0.7123824578 | C31: 47
A32: 31 | B32: 0.1192736276 | C32: 131
A33: 32 | B33: 0.1644556862 | C33: 128
A34: 33 | B34: 0.297428939 | C34: 111
A35: 34 | B35: 0.1717649022 | C35: 127
A36: 35 | B36: 0.9108071496 | C36: 19
A37: 36 | B37: 0.4623246375 | C37: 87
A38: 37 | B38: 0.06840087123 | C38: 139
A39: 38 | B39: 0.2216094212 | C39: 119
A40: 39 | B40: 0.6701421671 | C40: 55
A41: 40 | B41: 0.3522442958 | C41: 99
A42: 41 | B42: 0.6193118844 | C42: 63
A43: 42 | B43: 0.6729760512 | C43: 53
A44: 43 | B44: 0.8762128756 | C44: 25
A45: 44 | B45: 0.3424664095 | C45: 100
A46: 45 | B46: 0.7448126488 | C46: 44
A47: 46 | B47: 0.4527117635 | C47: 88
A48: 47 | B48: 0.8713394108 | C48: 26
A49: 48 | B49: 0.6537011638 | C49: 57
A50: 49 | B50: 0.7733465167 | C50: 41
A51: 50 | B51: 0.592401654 | C51: 70
A52: 51 | B52: 0.07627837708 | C52: 135
A53: 52 | B53: 0.02602188155 | C53: 144
A54: 53 | B54: 0.611006591 | C54: 65
A55: 54 | B55: 0.2206207309 | C55: 120
A56: 55 | B56: 0.7412271875 | C56: 45
A57: 56 | B57: 0.4872393052 | C57: 81
A58: 57 | B58: 0.8404052142 | C58: 32
A59: 58 | B59: 0.6253557035 | C59: 61
A60: 59 | B60: 0.06945850485 | C60: 137
A61: 60 | B61: 0.838081085 | C61: 33
A62: 61 | B62: 0.647507693 | C62: 58
A63: 62 | B63: 0.05666186414 | C63: 140
A64: 63 | B64: 0.02406494844 | C64: 146
A65: 64 | B65: 0.5008238133 | C65: 78
A66: 65 | B66: 0.2771861188 | C66: 113
A67: 66 | B67: =RAND() -> 0.1772745655 | C67: =RANK(B67,$B$2:$B$153) -> 124
A68: 67 | B68: 0.9822315683 | C68: 4
A69: 68 | B69: 0.3114044343 | C69: 109
A70: 69 | B70: 0.0685013513 | C70: 138
A71: 70 | B71: 0.8594094366 | C71: 29
A72: 71 | B72: 0.7459747768 | C72: 43
A73: 72 | B73: 0.7702597901 | C73: 42
A74: 73 | B74: 0.9423831782 | C74: 11
A75: 74 | B75: 0.1001852609 | C75: 134
A76: 75 | B76: 0.601892565 | C76: 68
A77: 76 | B77: 0.3326340174 | C77: 103
A78: 77 | B78: 0.8409588646 | C78: 31
A79: 78 | B79: 0.5740385634 | C79: 72
A80: 79 | B80: 0.5004354571 | C80: 79
A81: 80 | B81: 0.3708864222 | C81: 92
A82: 81 | B82: 0.8177298017 | C82: 34
A83: 82 | B83: 0.9510505778 | C83: 9
A84: 83 | B84: 0.03969368999 | C84: 143
A85: 84 | B85: 0.3340189057 | C85: 102
A86: 85 | B86: 0.8837690608 | C86: 24
A87: 86 | B87: 0.9092185006 | C87: 20
A88: 87 | B88: 0.02159374259 | C88: 147
A89: 88 | B89: 0.271556367 | C89: 115
A90: 89 | B90: 0.002561989481 | C90: 152
A91: 90 | B91: 0.5701294629 | C91: 73
A92: 91 | B92: 0.9157045335 | C92: 18
A93: 92 | B93: 0.177141461 | C93: 125
A94: 93 | B94: 0.6061999801 | C94: 66
A95: 94 | B95: 0.1724672034 | C95: 126
A96: 95 | B96: 0.4628654714 | C96: 86
A97: 96 | B97: 0.5093351494 | C97: 76
A98: 97 | B98: 0.6935901651 | C98: 50
A99: 98 | B99: 0.6703342387 | C99: 54
A100: 99 | B100: 0.07313596074 | C100: 136
A101: 100 | B101: 0.9786851441 | C101: 5
A102: 101 | B102: 0.3664836236 | C102: 94
A103: 102 | B103: 0.6402284844 | C103: 59
A104: 103 | B104: 0.3137863922 | C104: 108
A105: 104 | B105: 0.00503688029 | C105: 151
A106: 105 | B106: 0.6242183692 | C106: 62
A107: 106 | B107: 0.8488610678 | C107: 30
A108: 107 | B108: 0.1513779491 | C108: 130
A109: 108 | B109: 0.8167970529 | C109: 35
A110: 109 | B110: 0.7831366277 | C110: 39
A111: 110 | B111: 0.7031840859 | C111: 48
A112: 111 | B112: 0.2065550474 | C112: 122
A113: 112 | B113: 0.6623726096 | C113: 56
A114: 113 | B114: 0.254536034 | C114: 116
A115: 114 | B115: 0.8933411367 | C115: 22
A116: 115 | B116: 0.205846965 | C116: 123
A117: 116 | B117: 0.9832882488 | C117: 3
A118: 117 | B118: 0.9192617842 | C118: 16
A119: 118 | B119: 0.4939602024 | C119: 80
A120: 119 | B120: 0.3182578392 | C120: 107
A121: 120 | B121: 0.9914688761 | C121: 1
A122: 121 | B122: 0.2345909683 | C122: 118
A123: 122 | B123: 0.8618093481 | C123: 28
A124: 123 | B124: 0.8070096721 | C124: 37
A125: 124 | B125: 0.2881563606 | C125: 112
A126: 125 | B126: 0.02446279295 | C126: 145
A127: 126 | B127: 0.04521890678 | C127: 142
A128: 127 | B128: 0.6815354928 | C128: 51
A129: 128 | B129: 0.9217962424 | C129: 15
A130: 129 | B130: 0.4800146179 | C130: 83
A131: 130 | B131: =RAND() -> 0.3208964177 | C131: =RANK(B131,$B$2:$B$153) -> 106
A132: 131 | B132: 0.6061884112 | C132: 67
A133: 132 | B133: 0.1597744951 | C133: 129
A134: 133 | B134: 0.9604960366 | C134: 8
A135: 134 | B135: 0.3235727391 | C135: 105
A136: 135 | B136: 0.9084031615 | C136: 21
A137: 136 | B137: 0.04544407097 | C137: 141
A138: 137 | B138: 0.5776343278 | C138: 71
A139: 138 | B139: 0.366808268 | C139: 93
A140: 139 | B140: 0.1035276877 | C140: 133
A141: 140 | B141: 0.3937863158 | C141: 91
A142: 141 | B142: 0.210761823 | C142: 121
A143: 142 | B143: 0.9391293425 | C143: 13
A144: 143 | B144: 0.6130334795 | C144: 64
A145: 144 | B145: 0.4851364373 | C145: 82
A146: 145 | B146: 0.6761479603 | C146: 52
A147: 146 | B147: 0.4463389025 | C147: 89
A148: 147 | B148: 0.01866911096 | C148: 148
A149: 148 | B149: 0.8630193574 | C149: 27
A150: 149 | B150: 0.9241581329 | C150: 14
A151: 150 | B151: 0.9638264554 | C151: 6
A152: 151 | B152: 0.9851854175 | C152: 2
A153: 152 | B153: 0.008011395793 | C153: 150

Sheet 関数（書き）
A1: 番号 | B1: ランダム | C1: 順位
A2: 1 | B2: =RAND() -> 0.7496237107 | C2: =RANK(B2,$B$2:$B$132) -> 37
A3: 2 | B3: =RAND() -> 0.277081642 | C3: =RANK(B3,$B$2:$B$132) -> 101
A4: 3 | B4: 0.2076813728 | C4: 109
A5: 4 | B5: 0.7354570196 | C5: 41
A6: 5 | B6: 0.06835691118 | C6: 122
A7: 6 | B7: 0.7507858152 | C7: 35
A8: 7 | B8: 0.2432480306 | C8: 105
A9: 8 | B9: 0.2108146728 | C9: 108
A10: 9 | B10: 0.1983078106 | C10: 110
A11: 10 | B11: 0.4643426711 | C11: 81
A12: 11 | B12: 0.5062180696 | C12: 74
A13: 12 | B13: 0.7890422893 | C13: 30
A14: 13 | B14: 0.1904516094 | C14: 111
A15: 14 | B15: 0.445774127 | C15: 83
A16: 15 | B16: 0.7078415011 | C16: 45
A17: 16 | B17: 0.3486210132 | C17: 90
A18: 17 | B18: 0.9638433027 | C18: 6
A19: 18 | B19: 0.136806704 | C19: 117
A20: 19 | B20: 0.1086422733 | C20: 118
A21: 20 | B21: 0.06599094111 | C21: 123
A22: 21 | B22: 0.2599922419 | C22: 102
A23: 22 | B23: 0.811804185 | C23: 27
A24: 23 | B24: 0.6701185364 | C24: 50
A25: 24 | B25: 0.880401332 | C25: 17
A26: 25 | B26: 0.326685112 | C26: 95
A27: 26 | B27: 0.2858837458 | C27: 100
A28: 27 | B28: 0.5826918178 | C28: 62
A29: 28 | B29: 0.4899298424 | C29: 77
A30: 29 | B30: 0.5780434299 | C30: 63
A31: 30 | B31: 0.2901520258 | C31: 99
A32: 31 | B32: 0.9655272002 | C32: 5
A33: 32 | B33: 0.9614596493 | C33: 7
A34: 33 | B34: 0.342214423 | C34: 92
A35: 34 | B35: 0.7253743482 | C35: 42
A36: 35 | B36: 0.8123710983 | C36: 26
A37: 36 | B37: 0.7465461218 | C37: 38
A38: 37 | B38: 0.7878761566 | C38: 31
A39: 38 | B39: 0.8986271679 | C39: 15
A40: 39 | B40: 0.7091503442 | C40: 43
A41: 40 | B41: 0.2456360174 | C41: 104
A42: 41 | B42: 0.5384059625 | C42: 70
A43: 42 | B43: 0.9157293068 | C43: 13
A44: 43 | B44: 0.9791593127 | C44: 2
A45: 44 | B45: 0.6356270499 | C45: 53
A46: 45 | B46: 0.9413456651 | C46: 9
A47: 46 | B47: 0.6288984778 | C47: 54
A48: 47 | B48: 0.6053008309 | C48: 56
A49: 48 | B49: 0.5438361058 | C49: 67
A50: 49 | B50: 0.4208076833 | C50: 85
A51: 50 | B51: 0.4616063158 | C51: 82
A52: 51 | B52: 0.08021314276 | C52: 121
A53: 52 | B53: 0.2152836997 | C53: 107
A54: 53 | B54: 0.3275865113 | C54: 94
A55: 54 | B55: 0.5830552762 | C55: 61
A56: 55 | B56: 0.8668188584 | C56: 20
A57: 56 | B57: 0.6052261199 | C57: 57
A58: 57 | B58: 0.7991210398 | C58: 29
A59: 58 | B59: 0.7444772748 | C59: 39
A60: 59 | B60: 0.1798139144 | C60: 112
A61: 60 | B61: 0.5062440578 | C61: 73
A62: 61 | B62: 0.8774360493 | C62: 19
A63: 62 | B63: 0.3493712231 | C63: 89
A64: 63 | B64: 0.09531308933 | C64: 120
A65: 64 | B65: 0.8140879566 | C65: 25
A66: 65 | B66: 0.336408767 | C66: 93
A67: 66 | B67: =RAND() -> 0.9566753605 | C67: =RANK(B67,$B$2:$B$132) -> 8
A68: 67 | B68: 0.7685563885 | C68: 33
A69: 68 | B69: 0.1440389533 | C69: 116
A70: 69 | B70: 0.5051556777 | C70: 75
A71: 70 | B71: 0.8211902146 | C71: 23
A72: 71 | B72: 0.5603675993 | C72: 64
A73: 72 | B73: 0.05141396775 | C73: 127
A74: 73 | B74: 0.6446655154 | C74: 52
A75: 74 | B75: 0.2498624234 | C75: 103
A76: 75 | B76: 0.2956404264 | C76: 98
A77: 76 | B77: 0.8353452395 | C77: 22
A78: 77 | B78: 0.7055537158 | C78: 46
A79: 78 | B79: 0.9255076532 | C79: 11
A80: 79 | B80: 0.9295697594 | C80: 10
A81: 80 | B81: 0.05552832471 | C81: 125
A82: 81 | B82: 0.3439218232 | C82: 91
A83: 82 | B83: 0.3107590608 | C83: 96
A84: 83 | B84: 0.8035691039 | C84: 28
A85: 84 | B85: 0.4788977266 | C85: 79
A86: 85 | B86: 0.3885256743 | C86: 87
A87: 86 | B87: 0.04291906959 | C87: 129
A88: 87 | B88: 0.6108785246 | C88: 55
A89: 88 | B89: 0.5397334615 | C89: 68
A90: 89 | B90: 0.1769467758 | C90: 113
A91: 90 | B91: 0.01305110039 | C91: 131
A92: 91 | B92: 0.9723382564 | C92: 3
A93: 92 | B93: 0.7580971682 | C93: 34
A94: 93 | B94: 0.3097031003 | C94: 97
A95: 94 | B95: 0.03301121719 | C95: 130
A96: 95 | B96: 0.993561935 | C96: 1
A97: 96 | B97: 0.5593543017 | C97: 65
A98: 97 | B98: 0.6944227696 | C98: 47
A99: 98 | B99: 0.8830150989 | C99: 16
A100: 99 | B100: 0.3962657468 | C100: 86
A101: 100 | B101: 0.7382588659 | C101: 40
A102: 101 | B102: 0.3600373021 | C102: 88
A103: 102 | B103: 0.1459435997 | C103: 115
A104: 103 | B104: 0.05361219317 | C104: 126
A105: 104 | B105: 0.7083674435 | C105: 44
A106: 105 | B106: 0.4776490638 | C106: 80
A107: 106 | B107: 0.5161669059 | C107: 72
A108: 107 | B108: 0.5996782538 | C108: 59
A109: 108 | B109: 0.8469814207 | C109: 21
A110: 109 | B110: 0.6006266024 | C110: 58
A111: 110 | B111: 0.8185087486 | C111: 24
A112: 111 | B112: 0.4812828631 | C112: 78
A113: 112 | B113: 0.4409484684 | C113: 84
A114: 113 | B114: 0.9701406638 | C114: 4
A115: 114 | B115: 0.9171173824 | C115: 12
A116: 115 | B116: 0.5388540374 | C116: 69
A117: 116 | B117: 0.7507488081 | C117: 36
A118: 117 | B118: 0.7727141931 | C118: 32
A119: 118 | B119: 0.2285217399 | C119: 106
A120: 119 | B120: 0.905457557 | C120: 14
A121: 120 | B121: 0.6865436741 | C121: 48
A122: 121 | B122: 0.6767364182 | C122: 49
A123: 122 | B123: 0.645453205 | C123: 51
A124: 123 | B124: 0.4940735273 | C124: 76
A125: 124 | B125: 0.5270657487 | C125: 71
A126: 125 | B126: 0.0990597686 | C126: 119
A127: 126 | B127: 0.1753214792 | C127: 114
A128: 127 | B128: 0.5962967684 | C128: 60
A129: 128 | B129: 0.04931238995 | C129: 128
A130: 129 | B130: 0.5511423311 | C130: 66
A131: 130 | B131: =RAND() -> 0.06120284515 | C131: =RANK(B131,$B$2:$B$132) -> 124
A132: 131 | B132: =RAND() -> 0.880304869 | C132: =RANK(B132,$B$2:$B$132) -> 18
